Workbook

Sheet Control
A1: Sheets | B1: Text File Names | C1: Description | E1: Notes: 50 sheets maximum
A2: 1EPond | B2: Project_1EPond.txt | C2: Project concentrations for the 1E Pond | E2: Referenced text files must be in same root folder as this spreadsheet
A3: 2EPond | B3: Project_2EPond.txt | C3: Project concentrations for the 2E Pond
A4: Other_1EPond | B4: SDEIS_Project_1EPond.txt | C4: SDEIS Project concentrations for the 1E Pond
A5: Other_2EPond | B5: SDEIS_Project_2EPond.txt | C5: SDEIS Project concentrations for the 2E Pond

Sheet PlotControl
A2: Model Name: | B2: Plant Site Version 6.0
A4: Plot: | B4: Annual Max | C4: =B2 & " Model vs. SDEIS (Version 5.0) " & IF(B4="Annual Max", "Annual Maximum", B4) & " of Concentration Statistics " & B6 & " in the FTB Pond" -> Plant Site Version 6.0 Model vs. SDEIS (Version 5.0) Annual Maximum of Concentration Statistics SO4 in the FTB Pond | AA4: Directory to save PDFs to: | AB4: C:\Users\jem4\Desktop\temp
C5: =B2 & " Model Monthly Concentration Statistics " & B6 & " in the FTB Pond" -> Plant Site Version 6.0 Model Monthly Concentration Statistics SO4 in the FTB Pond | AA5: Starting figure caption | AB5: 56
A6: Constituent to Plot (dropdown): | B6: SO4 | C6: =MATCH(B6,$A$25:$A$52,0) -> 24
AA7: Note: This loops through the plot and constituent drop down menus.
A8: Location to Plot (dropdown): | B8: Pond | C8: =MATCH(B8,$A$15:$A$21,0) -> 1
A10: Initial Time for Monthly Plot (yr): | B10: 40
B11: =B10+20 -> 60
A12: Standard | B12: =VLOOKUP($B$6,$A$25:$B$52,2,FALSE) -> 
A14: Locations
A15: Pond
A17: Plot
A18: Annual Max
A19: Annual Average
I23: Annual Project Results | N23: Annual "Other" results | T23: Monthly Project Results
A24: Constituent | B24: Embarrass Standard (ug/L) | H24: Time | I24: P10 | J24: P50 | K24: P90 | L24: SW Standard | M24: Time | N24: P10 | O24: P50 | P24: P90 | Q24: SW Standard | S24: Time | T24: P10 | U24: P50 | V24: P90 | W24: SW Standard
A25: Ag | B25: 1 | H25: 0 | I25: =VLOOKUP($H25,P_All!$A$5:$D$205,3*($C$8-1)+2) -> 130000 | J25: =VLOOKUP($H25,P_All!$A$5:$D$205,3*($C$8-1)+3) -> 130350 | K25: =VLOOKUP($H25,P_All!$A$5:$D$205,3*($C$8-1)+4) -> 134610 | L25: =IF(ISNA(VLOOKUP($B$6,$A$25:$E$51,IF($B$8=$A$22,3,2))),EXP(VLOOKUP($B$6,$A$25:$E$51,4)*LN(VLOOKUP($H25,#REF!,$C$8+1)/1000)+VLOOKUP($B$6,$A$25:$E$51,5)),VLOOKUP($B$6,$A$25:$E$51,IF($B$8=$A$22,3,2))) ->  | M25: 0 | N25: =VLOOKUP($H25,Other_All!$A$5:$D$205,3*($C$8-1)+2) -> 130000 | O25: =VLOOKUP($H25,Other_All!$A$5:$D$205,3*($C$8-1)+3) -> 131870 | P25: =VLOOKUP($H25,Other_All!$A$5:$D$205,3*($C$8-1)+4) -> 139420 | Q25: =IF(ISNA(VLOOKUP($B$6,$A$25:$E$51,IF($B$8=$A$22,3,2))),EXP(VLOOKUP($B$6,$A$25:$E$51,4)*LN(VLOOKUP($H25,#REF!,$C$8+1)/1000)+VLOOKUP($B$6,$A$25:$E$51,5)),VLOOKUP($B$6,$A$25:$E$51,IF($B$8=$A$22,3,2))) ->  | S25: =B10 -> 40 | T25: =VLOOKUP($S25,P_All!$X$5:$AS$245,3*($C$8-1)+2) -> 17516 | U25: =VLOOKUP($S25,P_All!$X$5:$AS$245,3*($C$8-1)+3) -> 18592 | V25: =VLOOKUP($S25,P_All!$X$5:$AS$245,3*($C$8-1)+4) -> 19604 | W25: =IF(ISNA(VLOOKUP($B$6,$A$25:$E$52,IF($B$8=$A$22,3,2))),EXP(VLOOKUP($B$6,$A$25:$E$52,4)*LN(VLOOKUP($S25,#REF!,$C$8+1)/1000)+VLOOKUP($B$6,$A$25:$E$52,5)),VLOOKUP($B$6,$A$25:$E$52,IF($B$8=$A$22,3,2))) -> 
A26: Al | B26: 125 | H26: 1 | I26: =VLOOKUP($H26,P_All!$A$5:$D$205,3*($C$8-1)+2) -> 156760 | J26: =VLOOKUP($H26,P_All!$A$5:$D$205,3*($C$8-1)+3) -> 164570 | K26: =VLOOKUP($H26,P_All!$A$5:$D$205,3*($C$8-1)+4) -> 172410 | L26: =IF(ISNA(VLOOKUP($B$6,$A$25:$E$51,IF($B$8=$A$22,3,2))),EXP(VLOOKUP($B$6,$A$25:$E$51,4)*LN(VLOOKUP($H26,#REF!,$C$8+1)/1000)+VLOOKUP($B$6,$A$25:$E$51,5)),VLOOKUP($B$6,$A$25:$E$51,IF($B$8=$A$22,3,2))) ->  | M26: 1 | N26: =VLOOKUP($H26,Other_All!$A$5:$D$205,3*($C$8-1)+2) -> 148180 | O26: =VLOOKUP($H26,Other_All!$A$5:$D$205,3*($C$8-1)+3) -> 163510 | P26: =VLOOKUP($H26,Other_All!$A$5:$D$205,3*($C$8-1)+4) -> 173000 | Q26: =IF(ISNA(VLOOKUP($B$6,$A$25:$E$51,IF($B$8=$A$22,3,2))),EXP(VLOOKUP($B$6,$A$25:$E$51,4)*LN(VLOOKUP($H26,#REF!,$C$8+1)/1000)+VLOOKUP($B$6,$A$25:$E$51,5)),VLOOKUP($B$6,$A$25:$E$51,IF($B$8=$A$22,3,2))) ->  | S26: =S25+1/12 -> 40.08333333 | T26: =VLOOKUP($S26,P_All!$X$5:$AS$245,3*($C$8-1)+2) -> 17462 | U26: =VLOOKUP($S26,P_All!$X$5:$AS$245,3*($C$8-1)+3) -> 18510 | V26: =VLOOKUP($S26,P_All!$X$5:$AS$245,3*($C$8-1)+4) -> 19481 | W26: =IF(ISNA(VLOOKUP($B$6,$A$25:$E$52,IF($B$8=$A$22,3,2))),EXP(VLOOKUP($B$6,$A$25:$E$52,4)*LN(VLOOKUP($S26,#REF!,$C$8+1)/1000)+VLOOKUP($B$6,$A$25:$E$52,5)),VLOOKUP($B$6,$A$25:$E$52,IF($B$8=$A$22,3,2))) -> 
A27: Alkalinity | H27: 2 | I27: =VLOOKUP($H27,P_All!$A$5:$D$205,3*($C$8-1)+2) -> 174660 | J27: =VLOOKUP($H27,P_All!$A$5:$D$205,3*($C$8-1)+3) -> 183960 | K27: =VLOOKUP($H27,P_All!$A$5:$D$205,3*($C$8-1)+4) -> 193610 | L27: =IF(ISNA(VLOOKUP($B$6,$A$25:$E$51,IF($B$8=$A$22,3,2))),EXP(VLOOKUP($B$6,$A$25:$E$51,4)*LN(VLOOKUP($H27,#REF!,$C$8+1)/1000)+VLOOKUP($B$6,$A$25:$E$51,5)),VLOOKUP($B$6,$A$25:$E$51,IF($B$8=$A$22,3,2))) ->  | M27: 2 | N27: =VLOOKUP($H27,Other_All!$A$5:$D$205,3*($C$8-1)+2) -> 169390 | O27: =VLOOKUP($H27,Other_All!$A$5:$D$205,3*($C$8-1)+3) -> 180980 | P27: =VLOOKUP($H27,Other_All!$A$5:$D$205,3*($C$8-1)+4) -> 191520 | Q27: =IF(ISNA(VLOOKUP($B$6,$A$25:$E$51,IF($B$8=$A$22,3,2))),EXP(VLOOKUP($B$6,$A$25:$E$51,4)*LN(VLOOKUP($H27,#REF!,$C$8+1)/1000)+VLOOKUP($B$6,$A$25:$E$51,5)),VLOOKUP($B$6,$A$25:$E$51,IF($B$8=$A$22,3,2))) ->  | S27: =S26+1/12 -> 40.16666667 | T27: =VLOOKUP($S27,P_All!$X$5:$AS$245,3*($C$8-1)+2) -> 17413 | U27: =VLOOKUP($S27,P_All!$X$5:$AS$245,3*($C$8-1)+3) -> 18421 | V27: =VLOOKUP($S27,P_All!$X$5:$AS$245,3*($C$8-1)+4) -> 19364 | W27: =IF(ISNA(VLOOKUP($B$6,$A$25:$E$52,IF($B$8=$A$22,3,2))),EXP(VLOOKUP($B$6,$A$25:$E$52,4)*LN(VLOOKUP($S27,#REF!,$C$8+1)/1000)+VLOOKUP($B$6,$A$25:$E$52,5)),VLOOKUP($B$6,$A$25:$E$52,IF($B$8=$A$22,3,2))) -> 
A28: As | B28: 53 | H28: 3 | I28: =VLOOKUP($H28,P_All!$A$5:$D$205,3*($C$8-1)+2) -> 185560 | J28: =VLOOKUP($H28,P_All!$A$5:$D$205,3*($C$8-1)+3) -> 196030 | K28: =VLOOKUP($H28,P_All!$A$5:$D$205,3*($C$8-1)+4) -> 206920 | L28: =IF(ISNA(VLOOKUP($B$6,$A$25:$E$51,IF($B$8=$A$22,3,2))),EXP(VLOOKUP($B$6,$A$25:$E$51,4)*LN(VLOOKUP($H28,#REF!,$C$8+1)/1000)+VLOOKUP($B$6,$A$25:$E$51,5)),VLOOKUP($B$6,$A$25:$E$51,IF($B$8=$A$22,3,2))) ->  | M28: 3 | N28: =VLOOKUP($H28,Other_All!$A$5:$D$205,3*($C$8-1)+2) -> 181250 | O28: =VLOOKUP($H28,Other_All!$A$5:$D$205,3*($C$8-1)+3) -> 193550 | P28: =VLOOKUP($H28,Other_All!$A$5:$D$205,3*($C$8-1)+4) -> 204710 | Q28: =IF(ISNA(VLOOKUP($B$6,$A$25:$E$51,IF($B$8=$A$22,3,2))),EXP(VLOOKUP($B$6,$A$25:$E$51,4)*LN(VLOOKUP($H28,#REF!,$C$8+1)/1000)+VLOOKUP($B$6,$A$25:$E$51,5)),VLOOKUP($B$6,$A$25:$E$51,IF($B$8=$A$22,3,2))) ->  | S28: 40.25 | T28: =VLOOKUP($S28,P_All!$X$5:$AS$245,3*($C$8-1)+2) -> 17407 | U28: =VLOOKUP($S28,P_All!$X$5:$AS$245,3*($C$8-1)+3) -> 18406 | V28: =VLOOKUP($S28,P_All!$X$5:$AS$245,3*($C$8-1)+4) -> 19320 | W28: =IF(ISNA(VLOOKUP($B$6,$A$25:$E$52,IF($B$8=$A$22,3,2))),EXP(VLOOKUP($B$6,$A$25:$E$52,4)*LN(VLOOKUP($S28,#REF!,$C$8+1)/1000)+VLOOKUP($B$6,$A$25:$E$52,5)),VLOOKUP($B$6,$A$25:$E$52,IF($B$8=$A$22,3,2))) -> 
A29: B | B29: 500 | H29: 4 | I29: =VLOOKUP($H29,P_All!$A$5:$D$205,3*($C$8-1)+2) -> 192970 | J29: =VLOOKUP($H29,P_All!$A$5:$D$205,3*($C$8-1)+3) -> 203610 | K29: =VLOOKUP($H29,P_All!$A$5:$D$205,3*($C$8-1)+4) -> 213630 | L29: =IF(ISNA(VLOOKUP($B$6,$A$25:$E$51,IF($B$8=$A$22,3,2))),EXP(VLOOKUP($B$6,$A$25:$E$51,4)*LN(VLOOKUP($H29,#REF!,$C$8+1)/1000)+VLOOKUP($B$6,$A$25:$E$51,5)),VLOOKUP($B$6,$A$25:$E$51,IF($B$8=$A$22,3,2))) ->  | M29: 4 | N29: =VLOOKUP($H29,Other_All!$A$5:$D$205,3*($C$8-1)+2) -> 190200 | O29: =VLOOKUP($H29,Other_All!$A$5:$D$205,3*($C$8-1)+3) -> 201950 | P29: =VLOOKUP($H29,Other_All!$A$5:$D$205,3*($C$8-1)+4) -> 214470 | Q29: =IF(ISNA(VLOOKUP($B$6,$A$25:$E$51,IF($B$8=$A$22,3,2))),EXP(VLOOKUP($B$6,$A$25:$E$51,4)*LN(VLOOKUP($H29,#REF!,$C$8+1)/1000)+VLOOKUP($B$6,$A$25:$E$51,5)),VLOOKUP($B$6,$A$25:$E$51,IF($B$8=$A$22,3,2))) ->  | S29: 40.33333333 | T29: =VLOOKUP($S29,P_All!$X$5:$AS$245,3*($C$8-1)+2) -> 17423 | U29: =VLOOKUP($S29,P_All!$X$5:$AS$245,3*($C$8-1)+3) -> 18411 | V29: =VLOOKUP($S29,P_All!$X$5:$AS$245,3*($C$8-1)+4) -> 19329 | W29: =IF(ISNA(VLOOKUP($B$6,$A$25:$E$52,IF($B$8=$A$22,3,2))),EXP(VLOOKUP($B$6,$A$25:$E$52,4)*LN(VLOOKUP($S29,#REF!,$C$8+1)/1000)+VLOOKUP($B$6,$A$25:$E$52,5)),VLOOKUP($B$6,$A$25:$E$52,IF($B$8=$A$22,3,2))) -> 
A30: Ba | H30: 5 | I30: =VLOOKUP($H30,P_All!$A$5:$D$205,3*($C$8-1)+2) -> 197950 | J30: =VLOOKUP($H30,P_All!$A$5:$D$205,3*($C$8-1)+3) -> 207380 | K30: =VLOOKUP($H30,P_All!$A$5:$D$205,3*($C$8-1)+4) -> 217980 | L30: =IF(ISNA(VLOOKUP($B$6,$A$25:$E$51,IF($B$8=$A$22,3,2))),EXP(VLOOKUP($B$6,$A$25:$E$51,4)*LN(VLOOKUP($H30,#REF!,$C$8+1)/1000)+VLOOKUP($B$6,$A$25:$E$51,5)),VLOOKUP($B$6,$A$25:$E$51,IF($B$8=$A$22,3,2))) ->  | M30: 5 | N30: =VLOOKUP($H30,Other_All!$A$5:$D$205,3*($C$8-1)+2) -> 201970 | O30: =VLOOKUP($H30,Other_All!$A$5:$D$205,3*($C$8-1)+3) -> 214500 | P30: =VLOOKUP($H30,Other_All!$A$5:$D$205,3*($C$8-1)+4) -> 228120 | Q30: =IF(ISNA(VLOOKUP($B$6,$A$25:$E$51,IF($B$8=$A$22,3,2))),EXP(VLOOKUP($B$6,$A$25:$E$51,4)*LN(VLOOKUP($H30,#REF!,$C$8+1)/1000)+VLOOKUP($B$6,$A$25:$E$51,5)),VLOOKUP($B$6,$A$25:$E$51,IF($B$8=$A$22,3,2))) ->  | S30: 40.41666667 | T30: =VLOOKUP($S30,P_All!$X$5:$AS$245,3*($C$8-1)+2) -> 17327 | U30: =VLOOKUP($S30,P_All!$X$5:$AS$245,3*($C$8-1)+3) -> 18324 | V30: =VLOOKUP($S30,P_All!$X$5:$AS$245,3*($C$8-1)+4) -> 19231 | W30: =IF(ISNA(VLOOKUP($B$6,$A$25:$E$52,IF($B$8=$A$22,3,2))),EXP(VLOOKUP($B$6,$A$25:$E$52,4)*LN(VLOOKUP($S30,#REF!,$C$8+1)/1000)+VLOOKUP($B$6,$A$25:$E$52,5)),VLOOKUP($B$6,$A$25:$E$52,IF($B$8=$A$22,3,2))) -> 
A31: Be | H31: 6 | I31: =VLOOKUP($H31,P_All!$A$5:$D$205,3*($C$8-1)+2) -> 203430 | J31: =VLOOKUP($H31,P_All!$A$5:$D$205,3*($C$8-1)+3) -> 216190 | K31: =VLOOKUP($H31,P_All!$A$5:$D$205,3*($C$8-1)+4) -> 229230 | L31: =IF(ISNA(VLOOKUP($B$6,$A$25:$E$51,IF($B$8=$A$22,3,2))),EXP(VLOOKUP($B$6,$A$25:$E$51,4)*LN(VLOOKUP($H31,#REF!,$C$8+1)/1000)+VLOOKUP($B$6,$A$25:$E$51,5)),VLOOKUP($B$6,$A$25:$E$51,IF($B$8=$A$22,3,2))) ->  | M31: 6 | N31: =VLOOKUP($H31,Other_All!$A$5:$D$205,3*($C$8-1)+2) -> 219850 | O31: =VLOOKUP($H31,Other_All!$A$5:$D$205,3*($C$8-1)+3) -> 235230 | P31: =VLOOKUP($H31,Other_All!$A$5:$D$205,3*($C$8-1)+4) -> 251500 | Q31: =IF(ISNA(VLOOKUP($B$6,$A$25:$E$51,IF($B$8=$A$22,3,2))),EXP(VLOOKUP($B$6,$A$25:$E$51,4)*LN(VLOOKUP($H31,#REF!,$C$8+1)/1000)+VLOOKUP($B$6,$A$25:$E$51,5)),VLOOKUP($B$6,$A$25:$E$51,IF($B$8=$A$22,3,2))) ->  | S31: 40.5 | T31: =VLOOKUP($S31,P_All!$X$5:$AS$245,3*($C$8-1)+2) -> 17146 | U31: =VLOOKUP($S31,P_All!$X$5:$AS$245,3*($C$8-1)+3) -> 18183 | V31: =VLOOKUP($S31,P_All!$X$5:$AS$245,3*($C$8-1)+4) -> 19054 | W31: =IF(ISNA(VLOOKUP($B$6,$A$25:$E$52,IF($B$8=$A$22,3,2))),EXP(VLOOKUP($B$6,$A$25:$E$52,4)*LN(VLOOKUP($S31,#REF!,$C$8+1)/1000)+VLOOKUP($B$6,$A$25:$E$52,5)),VLOOKUP($B$6,$A$25:$E$52,IF($B$8=$A$22,3,2))) -> 
A32: Ca | H32: 7 | I32: =VLOOKUP($H32,P_All!$A$5:$D$205,3*($C$8-1)+2) -> 195210 | J32: =VLOOKUP($H32,P_All!$A$5:$D$205,3*($C$8-1)+3) -> 207030 | K32: =VLOOKUP($H32,P_All!$A$5:$D$205,3*($C$8-1)+4) -> 220920 | L32: =IF(ISNA(VLOOKUP($B$6,$A$25:$E$51,IF($B$8=$A$22,3,2))),EXP(VLOOKUP($B$6,$A$25:$E$51,4)*LN(VLOOKUP($H32,#REF!,$C$8+1)/1000)+VLOOKUP($B$6,$A$25:$E$51,5)),VLOOKUP($B$6,$A$25:$E$51,IF($B$8=$A$22,3,2))) ->  | M32: 7 | N32: =VLOOKUP($H32,Other_All!$A$5:$D$205,3*($C$8-1)+2) -> 212510 | O32: =VLOOKUP($H32,Other_All!$A$5:$D$205,3*($C$8-1)+3) -> 227440 | P32: =VLOOKUP($H32,Other_All!$A$5:$D$205,3*($C$8-1)+4) -> 241160 | Q32: =IF(ISNA(VLOOKUP($B$6,$A$25:$E$51,IF($B$8=$A$22,3,2))),EXP(VLOOKUP($B$6,$A$25:$E$51,4)*LN(VLOOKUP($H32,#REF!,$C$8+1)/1000)+VLOOKUP($B$6,$A$25:$E$51,5)),VLOOKUP($B$6,$A$25:$E$51,IF($B$8=$A$22,3,2))) ->  | S32: 40.58333333 | T32: =VLOOKUP($S32,P_All!$X$5:$AS$245,3*($C$8-1)+2) -> 17060 | U32: =VLOOKUP($S32,P_All!$X$5:$AS$245,3*($C$8-1)+3) -> 18119 | V32: =VLOOKUP($S32,P_All!$X$5:$AS$245,3*($C$8-1)+4) -> 18993 | W32: =IF(ISNA(VLOOKUP($B$6,$A$25:$E$52,IF($B$8=$A$22,3,2))),EXP(VLOOKUP($B$6,$A$25:$E$52,4)*LN(VLOOKUP($S32,#REF!,$C$8+1)/1000)+VLOOKUP($B$6,$A$25:$E$52,5)),VLOOKUP($B$6,$A$25:$E$52,IF($B$8=$A$22,3,2))) -> 
A33: Cd | H33: 8 | I33: =VLOOKUP($H33,P_All!$A$5:$D$205,3*($C$8-1)+2) -> 211560 | J33: =VLOOKUP($H33,P_All!$A$5:$D$205,3*($C$8-1)+3) -> 227650 | K33: =VLOOKUP($H33,P_All!$A$5:$D$205,3*($C$8-1)+4) -> 242620 | L33: =IF(ISNA(VLOOKUP($B$6,$A$25:$E$51,IF($B$8=$A$22,3,2))),EXP(VLOOKUP($B$6,$A$25:$E$51,4)*LN(VLOOKUP($H33,#REF!,$C$8+1)/1000)+VLOOKUP($B$6,$A$25:$E$51,5)),VLOOKUP($B$6,$A$25:$E$51,IF($B$8=$A$22,3,2))) ->  | M33: 8 | N33: =VLOOKUP($H33,Other_All!$A$5:$D$205,3*($C$8-1)+2) -> 250330 | O33: =VLOOKUP($H33,Other_All!$A$5:$D$205,3*($C$8-1)+3) -> 263340 | P33: =VLOOKUP($H33,Other_All!$A$5:$D$205,3*($C$8-1)+4) -> 277240 | Q33: =IF(ISNA(VLOOKUP($B$6,$A$25:$E$51,IF($B$8=$A$22,3,2))),EXP(VLOOKUP($B$6,$A$25:$E$51,4)*LN(VLOOKUP($H33,#REF!,$C$8+1)/1000)+VLOOKUP($B$6,$A$25:$E$51,5)),VLOOKUP($B$6,$A$25:$E$51,IF($B$8=$A$22,3,2))) ->  | S33: 40.66666667 | T33: =VLOOKUP($S33,P_All!$X$5:$AS$245,3*($C$8-1)+2) -> 16952 | U33: =VLOOKUP($S33,P_All!$X$5:$AS$245,3*($C$8-1)+3) -> 18061 | V33: =VLOOKUP($S33,P_All!$X$5:$AS$245,3*($C$8-1)+4) -> 18964 | W33: =IF(ISNA(VLOOKUP($B$6,$A$25:$E$52,IF($B$8=$A$22,3,2))),EXP(VLOOKUP($B$6,$A$25:$E$52,4)*LN(VLOOKUP($S33,#REF!,$C$8+1)/1000)+VLOOKUP($B$6,$A$25:$E$52,5)),VLOOKUP($B$6,$A$25:$E$52,IF($B$8=$A$22,3,2))) -> 
A34: Cl | B34: 230000 | H34: 9 | I34: =VLOOKUP($H34,P_All!$A$5:$D$205,3*($C$8-1)+2) -> 227450 | J34: =VLOOKUP($H34,P_All!$A$5:$D$205,3*($C$8-1)+3) -> 243480 | K34: =VLOOKUP($H34,P_All!$A$5:$D$205,3*($C$8-1)+4) -> 258400 | L34: =IF(ISNA(VLOOKUP($B$6,$A$25:$E$51,IF($B$8=$A$22,3,2))),EXP(VLOOKUP($B$6,$A$25:$E$51,4)*LN(VLOOKUP($H34,#REF!,$C$8+1)/1000)+VLOOKUP($B$6,$A$25:$E$51,5)),VLOOKUP($B$6,$A$25:$E$51,IF($B$8=$A$22,3,2))) ->  | M34: 9 | N34: =VLOOKUP($H34,Other_All!$A$5:$D$205,3*($C$8-1)+2) -> 266950 | O34: =VLOOKUP($H34,Other_All!$A$5:$D$205,3*($C$8-1)+3) -> 281230 | P34: =VLOOKUP($H34,Other_All!$A$5:$D$205,3*($C$8-1)+4) -> 294380 | Q34: =IF(ISNA(VLOOKUP($B$6,$A$25:$E$51,IF($B$8=$A$22,3,2))),EXP(VLOOKUP($B$6,$A$25:$E$51,4)*LN(VLOOKUP($H34,#REF!,$C$8+1)/1000)+VLOOKUP($B$6,$A$25:$E$51,5)),VLOOKUP($B$6,$A$25:$E$51,IF($B$8=$A$22,3,2))) ->  | S34: 40.75 | T34: =VLOOKUP($S34,P_All!$X$5:$AS$245,3*($C$8-1)+2) -> 16814 | U34: =VLOOKUP($S34,P_All!$X$5:$AS$245,3*($C$8-1)+3) -> 17929 | V34: =VLOOKUP($S34,P_All!$X$5:$AS$245,3*($C$8-1)+4) -> 18873 | W34: =IF(ISNA(VLOOKUP($B$6,$A$25:$E$52,IF($B$8=$A$22,3,2))),EXP(VLOOKUP($B$6,$A$25:$E$52,4)*LN(VLOOKUP($S34,#REF!,$C$8+1)/1000)+VLOOKUP($B$6,$A$25:$E$52,5)),VLOOKUP($B$6,$A$25:$E$52,IF($B$8=$A$22,3,2))) -> 
A35: Co | B35: 5 | H35: 10 | I35: =VLOOKUP($H35,P_All!$A$5:$D$205,3*($C$8-1)+2) -> 237630 | J35: =VLOOKUP($H35,P_All!$A$5:$D$205,3*($C$8-1)+3) -> 253980 | K35: =VLOOKUP($H35,P_All!$A$5:$D$205,3*($C$8-1)+4) -> 268750 | L35: =IF(ISNA(VLOOKUP($B$6,$A$25:$E$51,IF($B$8=$A$22,3,2))),EXP(VLOOKUP($B$6,$A$25:$E$51,4)*LN(VLOOKUP($H35,#REF!,$C$8+1)/1000)+VLOOKUP($B$6,$A$25:$E$51,5)),VLOOKUP($B$6,$A$25:$E$51,IF($B$8=$A$22,3,2))) ->  | M35: 10 | N35: =VLOOKUP($H35,Other_All!$A$5:$D$205,3*($C$8-1)+2) -> 281810 | O35: =VLOOKUP($H35,Other_All!$A$5:$D$205,3*($C$8-1)+3) -> 297430 | P35: =VLOOKUP($H35,Other_All!$A$5:$D$205,3*($C$8-1)+4) -> 313720 | Q35: =IF(ISNA(VLOOKUP($B$6,$A$25:$E$51,IF($B$8=$A$22,3,2))),EXP(VLOOKUP($B$6,$A$25:$E$51,4)*LN(VLOOKUP($H35,#REF!,$C$8+1)/1000)+VLOOKUP($B$6,$A$25:$E$51,5)),VLOOKUP($B$6,$A$25:$E$51,IF($B$8=$A$22,3,2))) ->  | S35: 40.83333333 | T35: =VLOOKUP($S35,P_All!$X$5:$AS$245,3*($C$8-1)+2) -> 16723 | U35: =VLOOKUP($S35,P_All!$X$5:$AS$245,3*($C$8-1)+3) -> 17837 | V35: =VLOOKUP($S35,P_All!$X$5:$AS$245,3*($C$8-1)+4) -> 18784 | W35: =IF(ISNA(VLOOKUP($B$6,$A$25:$E$52,IF($B$8=$A$22,3,2))),EXP(VLOOKUP($B$6,$A$25:$E$52,4)*LN(VLOOKUP($S35,#REF!,$C$8+1)/1000)+VLOOKUP($B$6,$A$25:$E$52,5)),VLOOKUP($B$6,$A$25:$E$52,IF($B$8=$A$22,3,2))) -> 
A36: Cr | B36: 11 | H36: 11 | I36: =VLOOKUP($H36,P_All!$A$5:$D$205,3*($C$8-1)+2) -> 246380 | J36: =VLOOKUP($H36,P_All!$A$5:$D$205,3*($C$8-1)+3) -> 262180 | K36: =VLOOKUP($H36,P_All!$A$5:$D$205,3*($C$8-1)+4) -> 276950 | L36: =IF(ISNA(VLOOKUP($B$6,$A$25:$E$51,IF($B$8=$A$22,3,2))),EXP(VLOOKUP($B$6,$A$25:$E$51,4)*LN(VLOOKUP($H36,#REF!,$C$8+1)/1000)+VLOOKUP($B$6,$A$25:$E$51,5)),VLOOKUP($B$6,$A$25:$E$51,IF($B$8=$A$22,3,2))) ->  | M36: 11 | N36: =VLOOKUP($H36,Other_All!$A$5:$D$205,3*($C$8-1)+2) -> 313150 | O36: =VLOOKUP($H36,Other_All!$A$5:$D$205,3*($C$8-1)+3) -> 336440 | P36: =VLOOKUP($H36,Other_All!$A$5:$D$205,3*($C$8-1)+4) -> 358350 | Q36: =IF(ISNA(VLOOKUP($B$6,$A$25:$E$51,IF($B$8=$A$22,3,2))),EXP(VLOOKUP($B$6,$A$25:$E$51,4)*LN(VLOOKUP($H36,#REF!,$C$8+1)/1000)+VLOOKUP($B$6,$A$25:$E$51,5)),VLOOKUP($B$6,$A$25:$E$51,IF($B$8=$A$22,3,2))) ->  | S36: 40.91666667 | T36: =VLOOKUP($S36,P_All!$X$5:$AS$245,3*($C$8-1)+2) -> 16677 | U36: =VLOOKUP($S36,P_All!$X$5:$AS$245,3*($C$8-1)+3) -> 17760 | V36: =VLOOKUP($S36,P_All!$X$5:$AS$245,3*($C$8-1)+4) -> 18683 | W36: =IF(ISNA(VLOOKUP($B$6,$A$25:$E$52,IF($B$8=$A$22,3,2))),EXP(VLOOKUP($B$6,$A$25:$E$52,4)*LN(VLOOKUP($S36,#REF!,$C$8+1)/1000)+VLOOKUP($B$6,$A$25:$E$52,5)),VLOOKUP($B$6,$A$25:$E$52,IF($B$8=$A$22,3,2))) -> 
A37: Cu | H37: 12 | I37: =VLOOKUP($H37,P_All!$A$5:$D$205,3*($C$8-1)+2) -> 251790 | J37: =VLOOKUP($H37,P_All!$A$5:$D$205,3*($C$8-1)+3) -> 266750 | K37: =VLOOKUP($H37,P_All!$A$5:$D$205,3*($C$8-1)+4) -> 282910 | L37: =IF(ISNA(VLOOKUP($B$6,$A$25:$E$51,IF($B$8=$A$22,3,2))),EXP(VLOOKUP($B$6,$A$25:$E$51,4)*LN(VLOOKUP($H37,#REF!,$C$8+1)/1000)+VLOOKUP($B$6,$A$25:$E$51,5)),VLOOKUP($B$6,$A$25:$E$51,IF($B$8=$A$22,3,2))) ->  | M37: 12 | N37: =VLOOKUP($H37,Other_All!$A$5:$D$205,3*($C$8-1)+2) -> 343000 | O37: =VLOOKUP($H37,Other_All!$A$5:$D$205,3*($C$8-1)+3) -> 370040 | P37: =VLOOKUP($H37,Other_All!$A$5:$D$205,3*($C$8-1)+4) -> 397250 | Q37: =IF(ISNA(VLOOKUP($B$6,$A$25:$E$51,IF($B$8=$A$22,3,2))),EXP(VLOOKUP($B$6,$A$25:$E$51,4)*LN(VLOOKUP($H37,#REF!,$C$8+1)/1000)+VLOOKUP($B$6,$A$25:$E$51,5)),VLOOKUP($B$6,$A$25:$E$51,IF($B$8=$A$22,3,2))) ->  | S37: 41 | T37: =VLOOKUP($S37,P_All!$X$5:$AS$245,3*($C$8-1)+2) -> 16599 | U37: =VLOOKUP($S37,P_All!$X$5:$AS$245,3*($C$8-1)+3) -> 17665 | V37: =VLOOKUP($S37,P_All!$X$5:$AS$245,3*($C$8-1)+4) -> 18560 | W37: =IF(ISNA(VLOOKUP($B$6,$A$25:$E$52,IF($B$8=$A$22,3,2))),EXP(VLOOKUP($B$6,$A$25:$E$52,4)*LN(VLOOKUP($S37,#REF!,$C$8+1)/1000)+VLOOKUP($B$6,$A$25:$E$52,5)),VLOOKUP($B$6,$A$25:$E$52,IF($B$8=$A$22,3,2))) -> 
A38: F | H38: 13 | I38: =VLOOKUP($H38,P_All!$A$5:$D$205,3*($C$8-1)+2) -> 252510 | J38: =VLOOKUP($H38,P_All!$A$5:$D$205,3*($C$8-1)+3) -> 268370 | K38: =VLOOKUP($H38,P_All!$A$5:$D$205,3*($C$8-1)+4) -> 284190 | L38: =IF(ISNA(VLOOKUP($B$6,$A$25:$E$51,IF($B$8=$A$22,3,2))),EXP(VLOOKUP($B$6,$A$25:$E$51,4)*LN(VLOOKUP($H38,#REF!,$C$8+1)/1000)+VLOOKUP($B$6,$A$25:$E$51,5)),VLOOKUP($B$6,$A$25:$E$51,IF($B$8=$A$22,3,2))) ->  | M38: 13 | N38: =VLOOKUP($H38,Other_All!$A$5:$D$205,3*($C$8-1)+2) -> 350890 | O38: =VLOOKUP($H38,Other_All!$A$5:$D$205,3*($C$8-1)+3) -> 376970 | P38: =VLOOKUP($H38,Other_All!$A$5:$D$205,3*($C$8-1)+4) -> 399910 | Q38: =IF(ISNA(VLOOKUP($B$6,$A$25:$E$51,IF($B$8=$A$22,3,2))),EXP(VLOOKUP($B$6,$A$25:$E$51,4)*LN(VLOOKUP($H38,#REF!,$C$8+1)/1000)+VLOOKUP($B$6,$A$25:$E$51,5)),VLOOKUP($B$6,$A$25:$E$51,IF($B$8=$A$22,3,2))) ->  | S38: 41.08333333 | T38: =VLOOKUP($S38,P_All!$X$5:$AS$245,3*($C$8-1)+2) -> 16565 | U38: =VLOOKUP($S38,P_All!$X$5:$AS$245,3*($C$8-1)+3) -> 17582 | V38: =VLOOKUP($S38,P_All!$X$5:$AS$245,3*($C$8-1)+4) -> 18453 | W38: =IF(ISNA(VLOOKUP($B$6,$A$25:$E$52,IF($B$8=$A$22,3,2))),EXP(VLOOKUP($B$6,$A$25:$E$52,4)*LN(VLOOKUP($S38,#REF!,$C$8+1)/1000)+VLOOKUP($B$6,$A$25:$E$52,5)),VLOOKUP($B$6,$A$25:$E$52,IF($B$8=$A$22,3,2))) -> 
A39: Fe | H39: 14 | I39: =VLOOKUP($H39,P_All!$A$5:$D$205,3*($C$8-1)+2) -> 251970 | J39: =VLOOKUP($H39,P_All!$A$5:$D$205,3*($C$8-1)+3) -> 267590 | K39: =VLOOKUP($H39,P_All!$A$5:$D$205,3*($C$8-1)+4) -> 284100 | L39: =IF(ISNA(VLOOKUP($B$6,$A$25:$E$51,IF($B$8=$A$22,3,2))),EXP(VLOOKUP($B$6,$A$25:$E$51,4)*LN(VLOOKUP($H39,#REF!,$C$8+1)/1000)+VLOOKUP($B$6,$A$25:$E$51,5)),VLOOKUP($B$6,$A$25:$E$51,IF($B$8=$A$22,3,2))) ->  | M39: 14 | N39: =VLOOKUP($H39,Other_All!$A$5:$D$205,3*($C$8-1)+2) -> 344770 | O39: =VLOOKUP($H39,Other_All!$A$5:$D$205,3*($C$8-1)+3) -> 371210 | P39: =VLOOKUP($H39,Other_All!$A$5:$D$205,3*($C$8-1)+4) -> 395330 | Q39: =IF(ISNA(VLOOKUP($B$6,$A$25:$E$51,IF($B$8=$A$22,3,2))),EXP(VLOOKUP($B$6,$A$25:$E$51,4)*LN(VLOOKUP($H39,#REF!,$C$8+1)/1000)+VLOOKUP($B$6,$A$25:$E$51,5)),VLOOKUP($B$6,$A$25:$E$51,IF($B$8=$A$22,3,2))) ->  | S39: 41.16666667 | T39: =VLOOKUP($S39,P_All!$X$5:$AS$245,3*($C$8-1)+2) -> 16548 | U39: =VLOOKUP($S39,P_All!$X$5:$AS$245,3*($C$8-1)+3) -> 17526 | V39: =VLOOKUP($S39,P_All!$X$5:$AS$245,3*($C$8-1)+4) -> 18383 | W39: =IF(ISNA(VLOOKUP($B$6,$A$25:$E$52,IF($B$8=$A$22,3,2))),EXP(VLOOKUP($B$6,$A$25:$E$52,4)*LN(VLOOKUP($S39,#REF!,$C$8+1)/1000)+VLOOKUP($B$6,$A$25:$E$52,5)),VLOOKUP($B$6,$A$25:$E$52,IF($B$8=$A$22,3,2))) -> 
A40: K | H40: 15 | I40: =VLOOKUP($H40,P_All!$A$5:$D$205,3*($C$8-1)+2) -> 248710 | J40: =VLOOKUP($H40,P_All!$A$5:$D$205,3*($C$8-1)+3) -> 265120 | K40: =VLOOKUP($H40,P_All!$A$5:$D$205,3*($C$8-1)+4) -> 282270 | L40: =IF(ISNA(VLOOKUP($B$6,$A$25:$E$51,IF($B$8=$A$22,3,2))),EXP(VLOOKUP($B$6,$A$25:$E$51,4)*LN(VLOOKUP($H40,#REF!,$C$8+1)/1000)+VLOOKUP($B$6,$A$25:$E$51,5)),VLOOKUP($B$6,$A$25:$E$51,IF($B$8=$A$22,3,2))) ->  | M40: 15 | N40: =VLOOKUP($H40,Other_All!$A$5:$D$205,3*($C$8-1)+2) -> 335340 | O40: =VLOOKUP($H40,Other_All!$A$5:$D$205,3*($C$8-1)+3) -> 359190 | P40: =VLOOKUP($H40,Other_All!$A$5:$D$205,3*($C$8-1)+4) -> 385240 | Q40: =IF(ISNA(VLOOKUP($B$6,$A$25:$E$51,IF($B$8=$A$22,3,2))),EXP(VLOOKUP($B$6,$A$25:$E$51,4)*LN(VLOOKUP($H40,#REF!,$C$8+1)/1000)+VLOOKUP($B$6,$A$25:$E$51,5)),VLOOKUP($B$6,$A$25:$E$51,IF($B$8=$A$22,3,2))) ->  | S40: 41.25 | T40: =VLOOKUP($S40,P_All!$X$5:$AS$245,3*($C$8-1)+2) -> 16596 | U40: =VLOOKUP($S40,P_All!$X$5:$AS$245,3*($C$8-1)+3) -> 17522 | V40: =VLOOKUP($S40,P_All!$X$5:$AS$245,3*($C$8-1)+4) -> 18368 | W40: =IF(ISNA(VLOOKUP($B$6,$A$25:$E$52,IF($B$8=$A$22,3,2))),EXP(VLOOKUP($B$6,$A$25:$E$52,4)*LN(VLOOKUP($S40,#REF!,$C$8+1)/1000)+VLOOKUP($B$6,$A$25:$E$52,5)),VLOOKUP($B$6,$A$25:$E$52,IF($B$8=$A$22,3,2))) -> 
A41: Mg | H41: 16 | I41: =VLOOKUP($H41,P_All!$A$5:$D$205,3*($C$8-1)+2) -> 234030 | J41: =VLOOKUP($H41,P_All!$A$5:$D$205,3*($C$8-1)+3) -> 250020 | K41: =VLOOKUP($H41,P_All!$A$5:$D$205,3*($C$8-1)+4) -> 268210 | L41: =IF(ISNA(VLOOKUP($B$6,$A$25:$E$51,IF($B$8=$A$22,3,2))),EXP(VLOOKUP($B$6,$A$25:$E$51,4)*LN(VLOOKUP($H41,#REF!,$C$8+1)/1000)+VLOOKUP($B$6,$A$25:$E$51,5)),VLOOKUP($B$6,$A$25:$E$51,IF($B$8=$A$22,3,2))) ->  | M41: 16 | N41: =VLOOKUP($H41,Other_All!$A$5:$D$205,3*($C$8-1)+2) -> 335970 | O41: =VLOOKUP($H41,Other_All!$A$5:$D$205,3*($C$8-1)+3) -> 362440 | P41: =VLOOKUP($H41,Other_All!$A$5:$D$205,3*($C$8-1)+4) -> 391210 | Q41: =IF(ISNA(VLOOKUP($B$6,$A$25:$E$51,IF($B$8=$A$22,3,2))),EXP(VLOOKUP($B$6,$A$25:$E$51,4)*LN(VLOOKUP($H41,#REF!,$C$8+1)/1000)+VLOOKUP($B$6,$A$25:$E$51,5)),VLOOKUP($B$6,$A$25:$E$51,IF($B$8=$A$22,3,2))) ->  | S41: 41.33333333 | T41: =VLOOKUP($S41,P_All!$X$5:$AS$245,3*($C$8-1)+2) -> 16651 | U41: =VLOOKUP($S41,P_All!$X$5:$AS$245,3*($C$8-1)+3) -> 17528 | V41: =VLOOKUP($S41,P_All!$X$5:$AS$245,3*($C$8-1)+4) -> 18392 | W41: =IF(ISNA(VLOOKUP($B$6,$A$25:$E$52,IF($B$8=$A$22,3,2))),EXP(VLOOKUP($B$6,$A$25:$E$52,4)*LN(VLOOKUP($S41,#REF!,$C$8+1)/1000)+VLOOKUP($B$6,$A$25:$E$52,5)),VLOOKUP($B$6,$A$25:$E$52,IF($B$8=$A$22,3,2))) -> 
A42: Mn | H42: 17 | I42: =VLOOKUP($H42,P_All!$A$5:$D$205,3*($C$8-1)+2) -> 226960 | J42: =VLOOKUP($H42,P_All!$A$5:$D$205,3*($C$8-1)+3) -> 245820 | K42: =VLOOKUP($H42,P_All!$A$5:$D$205,3*($C$8-1)+4) -> 266610 | L42: =IF(ISNA(VLOOKUP($B$6,$A$25:$E$51,IF($B$8=$A$22,3,2))),EXP(VLOOKUP($B$6,$A$25:$E$51,4)*LN(VLOOKUP($H42,#REF!,$C$8+1)/1000)+VLOOKUP($B$6,$A$25:$E$51,5)),VLOOKUP($B$6,$A$25:$E$51,IF($B$8=$A$22,3,2))) ->  | M42: 17 | N42: =VLOOKUP($H42,Other_All!$A$5:$D$205,3*($C$8-1)+2) -> 338030 | O42: =VLOOKUP($H42,Other_All!$A$5:$D$205,3*($C$8-1)+3) -> 367110 | P42: =VLOOKUP($H42,Other_All!$A$5:$D$205,3*($C$8-1)+4) -> 396270 | Q42: =IF(ISNA(VLOOKUP($B$6,$A$25:$E$51,IF($B$8=$A$22,3,2))),EXP(VLOOKUP($B$6,$A$25:$E$51,4)*LN(VLOOKUP($H42,#REF!,$C$8+1)/1000)+VLOOKUP($B$6,$A$25:$E$51,5)),VLOOKUP($B$6,$A$25:$E$51,IF($B$8=$A$22,3,2))) ->  | S42: 41.41666667 | T42: =VLOOKUP($S42,P_All!$X$5:$AS$245,3*($C$8-1)+2) -> 16590 | U42: =VLOOKUP($S42,P_All!$X$5:$AS$245,3*($C$8-1)+3) -> 17471 | V42: =VLOOKUP($S42,P_All!$X$5:$AS$245,3*($C$8-1)+4) -> 18359 | W42: =IF(ISNA(VLOOKUP($B$6,$A$25:$E$52,IF($B$8=$A$22,3,2))),EXP(VLOOKUP($B$6,$A$25:$E$52,4)*LN(VLOOKUP($S42,#REF!,$C$8+1)/1000)+VLOOKUP($B$6,$A$25:$E$52,5)),VLOOKUP($B$6,$A$25:$E$52,IF($B$8=$A$22,3,2))) -> 
A43: Na | H43: 18 | I43: =VLOOKUP($H43,P_All!$A$5:$D$205,3*($C$8-1)+2) -> 229350 | J43: =VLOOKUP($H43,P_All!$A$5:$D$205,3*($C$8-1)+3) -> 249680 | K43: =VLOOKUP($H43,P_All!$A$5:$D$205,3*($C$8-1)+4) -> 272170 | L43: =IF(ISNA(VLOOKUP($B$6,$A$25:$E$51,IF($B$8=$A$22,3,2))),EXP(VLOOKUP($B$6,$A$25:$E$51,4)*LN(VLOOKUP($H43,#REF!,$C$8+1)/1000)+VLOOKUP($B$6,$A$25:$E$51,5)),VLOOKUP($B$6,$A$25:$E$51,IF($B$8=$A$22,3,2))) ->  | M43: 18 | N43: =VLOOKUP($H43,Other_All!$A$5:$D$205,3*($C$8-1)+2) -> 344240 | O43: =VLOOKUP($H43,Other_All!$A$5:$D$205,3*($C$8-1)+3) -> 377420 | P43: =VLOOKUP($H43,Other_All!$A$5:$D$205,3*($C$8-1)+4) -> 409780 | Q43: =IF(ISNA(VLOOKUP($B$6,$A$25:$E$51,IF($B$8=$A$22,3,2))),EXP(VLOOKUP($B$6,$A$25:$E$51,4)*LN(VLOOKUP($H43,#REF!,$C$8+1)/1000)+VLOOKUP($B$6,$A$25:$E$51,5)),VLOOKUP($B$6,$A$25:$E$51,IF($B$8=$A$22,3,2))) ->  | S43: 41.5 | T43: =VLOOKUP($S43,P_All!$X$5:$AS$245,3*($C$8-1)+2) -> 16444 | U43: =VLOOKUP($S43,P_All!$X$5:$AS$245,3*($C$8-1)+3) -> 17331 | V43: =VLOOKUP($S43,P_All!$X$5:$AS$245,3*($C$8-1)+4) -> 18223 | W43: =IF(ISNA(VLOOKUP($B$6,$A$25:$E$52,IF($B$8=$A$22,3,2))),EXP(VLOOKUP($B$6,$A$25:$E$52,4)*LN(VLOOKUP($S43,#REF!,$C$8+1)/1000)+VLOOKUP($B$6,$A$25:$E$52,5)),VLOOKUP($B$6,$A$25:$E$52,IF($B$8=$A$22,3,2))) -> 
A44: Ni | H44: 19 | I44: =VLOOKUP($H44,P_All!$A$5:$D$205,3*($C$8-1)+2) -> 238930 | J44: =VLOOKUP($H44,P_All!$A$5:$D$205,3*($C$8-1)+3) -> 259730 | K44: =VLOOKUP($H44,P_All!$A$5:$D$205,3*($C$8-1)+4) -> 283540 | L44: =IF(ISNA(VLOOKUP($B$6,$A$25:$E$51,IF($B$8=$A$22,3,2))),EXP(VLOOKUP($B$6,$A$25:$E$51,4)*LN(VLOOKUP($H44,#REF!,$C$8+1)/1000)+VLOOKUP($B$6,$A$25:$E$51,5)),VLOOKUP($B$6,$A$25:$E$51,IF($B$8=$A$22,3,2))) ->  | M44: 19 | N44: =VLOOKUP($H44,Other_All!$A$5:$D$205,3*($C$8-1)+2) -> 332960 | O44: =VLOOKUP($H44,Other_All!$A$5:$D$205,3*($C$8-1)+3) -> 363410 | P44: =VLOOKUP($H44,Other_All!$A$5:$D$205,3*($C$8-1)+4) -> 401470 | Q44: =IF(ISNA(VLOOKUP($B$6,$A$25:$E$51,IF($B$8=$A$22,3,2))),EXP(VLOOKUP($B$6,$A$25:$E$51,4)*LN(VLOOKUP($H44,#REF!,$C$8+1)/1000)+VLOOKUP($B$6,$A$25:$E$51,5)),VLOOKUP($B$6,$A$25:$E$51,IF($B$8=$A$22,3,2))) ->  | S44: 41.58333333 | T44: =VLOOKUP($S44,P_All!$X$5:$AS$245,3*($C$8-1)+2) -> 16378 | U44: =VLOOKUP($S44,P_All!$X$5:$AS$245,3*($C$8-1)+3) -> 17279 | V44: =VLOOKUP($S44,P_All!$X$5:$AS$245,3*($C$8-1)+4) -> 18214 | W44: =IF(ISNA(VLOOKUP($B$6,$A$25:$E$52,IF($B$8=$A$22,3,2))),EXP(VLOOKUP($B$6,$A$25:$E$52,4)*LN(VLOOKUP($S44,#REF!,$C$8+1)/1000)+VLOOKUP($B$6,$A$25:$E$52,5)),VLOOKUP($B$6,$A$25:$E$52,IF($B$8=$A$22,3,2))) -> 
A45: Pb | H45: 20 | I45: =VLOOKUP($H45,P_All!$A$5:$D$205,3*($C$8-1)+2) -> 300680 | J45: =VLOOKUP($H45,P_All!$A$5:$D$205,3*($C$8-1)+3) -> 330380 | K45: =VLOOKUP($H45,P_All!$A$5:$D$205,3*($C$8-1)+4) -> 360590 | L45: =IF(ISNA(VLOOKUP($B$6,$A$25:$E$51,IF($B$8=$A$22,3,2))),EXP(VLOOKUP($B$6,$A$25:$E$51,4)*LN(VLOOKUP($H45,#REF!,$C$8+1)/1000)+VLOOKUP($B$6,$A$25:$E$51,5)),VLOOKUP($B$6,$A$25:$E$51,IF($B$8=$A$22,3,2))) ->  | M45: 20 | N45: =VLOOKUP($H45,Other_All!$A$5:$D$205,3*($C$8-1)+2) -> 420570 | O45: =VLOOKUP($H45,Other_All!$A$5:$D$205,3*($C$8-1)+3) -> 461210 | P45: =VLOOKUP($H45,Other_All!$A$5:$D$205,3*($C$8-1)+4) -> 512450 | Q45: =IF(ISNA(VLOOKUP($B$6,$A$25:$E$51,IF($B$8=$A$22,3,2))),EXP(VLOOKUP($B$6,$A$25:$E$51,4)*LN(VLOOKUP($H45,#REF!,$C$8+1)/1000)+VLOOKUP($B$6,$A$25:$E$51,5)),VLOOKUP($B$6,$A$25:$E$51,IF($B$8=$A$22,3,2))) ->  | S45: 41.66666667 | T45: =VLOOKUP($S45,P_All!$X$5:$AS$245,3*($C$8-1)+2) -> 16317 | U45: =VLOOKUP($S45,P_All!$X$5:$AS$245,3*($C$8-1)+3) -> 17239 | V45: =VLOOKUP($S45,P_All!$X$5:$AS$245,3*($C$8-1)+4) -> 18190 | W45: =IF(ISNA(VLOOKUP($B$6,$A$25:$E$52,IF($B$8=$A$22,3,2))),EXP(VLOOKUP($B$6,$A$25:$E$52,4)*LN(VLOOKUP($S45,#REF!,$C$8+1)/1000)+VLOOKUP($B$6,$A$25:$E$52,5)),VLOOKUP($B$6,$A$25:$E$52,IF($B$8=$A$22,3,2))) -> 
A46: Sb | B46: 31 | H46: 21 | I46: =VLOOKUP($H46,P_All!$A$5:$D$205,3*($C$8-1)+2) -> 244360 | J46: =VLOOKUP($H46,P_All!$A$5:$D$205,3*($C$8-1)+3) -> 274550 | K46: =VLOOKUP($H46,P_All!$A$5:$D$205,3*($C$8-1)+4) -> 305510 | L46: =IF(ISNA(VLOOKUP($B$6,$A$25:$E$51,IF($B$8=$A$22,3,2))),EXP(VLOOKUP($B$6,$A$25:$E$51,4)*LN(VLOOKUP($H46,#REF!,$C$8+1)/1000)+VLOOKUP($B$6,$A$25:$E$51,5)),VLOOKUP($B$6,$A$25:$E$51,IF($B$8=$A$22,3,2))) ->  | M46: 21 | N46: =VLOOKUP($H46,Other_All!$A$5:$D$205,3*($C$8-1)+2) -> 331090 | O46: =VLOOKUP($H46,Other_All!$A$5:$D$205,3*($C$8-1)+3) -> 365710 | P46: =VLOOKUP($H46,Other_All!$A$5:$D$205,3*($C$8-1)+4) -> 407820 | Q46: =IF(ISNA(VLOOKUP($B$6,$A$25:$E$51,IF($B$8=$A$22,3,2))),EXP(VLOOKUP($B$6,$A$25:$E$51,4)*LN(VLOOKUP($H46,#REF!,$C$8+1)/1000)+VLOOKUP($B$6,$A$25:$E$51,5)),VLOOKUP($B$6,$A$25:$E$51,IF($B$8=$A$22,3,2))) ->  | S46: 41.75 | T46: =VLOOKUP($S46,P_All!$X$5:$AS$245,3*($C$8-1)+2) -> 16216 | U46: =VLOOKUP($S46,P_All!$X$5:$AS$245,3*($C$8-1)+3) -> 17123 | V46: =VLOOKUP($S46,P_All!$X$5:$AS$245,3*($C$8-1)+4) -> 18113 | W46: =IF(ISNA(VLOOKUP($B$6,$A$25:$E$52,IF($B$8=$A$22,3,2))),EXP(VLOOKUP($B$6,$A$25:$E$52,4)*LN(VLOOKUP($S46,#REF!,$C$8+1)/1000)+VLOOKUP($B$6,$A$25:$E$52,5)),VLOOKUP($B$6,$A$25:$E$52,IF($B$8=$A$22,3,2))) -> 
A47: Se | B47: 5 | H47: 22 | I47: =VLOOKUP($H47,P_All!$A$5:$D$205,3*($C$8-1)+2) -> 196550 | J47: =VLOOKUP($H47,P_All!$A$5:$D$205,3*($C$8-1)+3) -> 225890 | K47: =VLOOKUP($H47,P_All!$A$5:$D$205,3*($C$8-1)+4) -> 254380 | L47: =IF(ISNA(VLOOKUP($B$6,$A$25:$E$51,IF($B$8=$A$22,3,2))),EXP(VLOOKUP($B$6,$A$25:$E$51,4)*LN(VLOOKUP($H47,#REF!,$C$8+1)/1000)+VLOOKUP($B$6,$A$25:$E$51,5)),VLOOKUP($B$6,$A$25:$E$51,IF($B$8=$A$22,3,2))) ->  | M47: 22 | N47: =VLOOKUP($H47,Other_All!$A$5:$D$205,3*($C$8-1)+2) -> 258270 | O47: =VLOOKUP($H47,Other_All!$A$5:$D$205,3*($C$8-1)+3) -> 285900 | P47: =VLOOKUP($H47,Other_All!$A$5:$D$205,3*($C$8-1)+4) -> 317140 | Q47: =IF(ISNA(VLOOKUP($B$6,$A$25:$E$51,IF($B$8=$A$22,3,2))),EXP(VLOOKUP($B$6,$A$25:$E$51,4)*LN(VLOOKUP($H47,#REF!,$C$8+1)/1000)+VLOOKUP($B$6,$A$25:$E$51,5)),VLOOKUP($B$6,$A$25:$E$51,IF($B$8=$A$22,3,2))) ->  | S47: 41.83333333 | T47: =VLOOKUP($S47,P_All!$X$5:$AS$245,3*($C$8-1)+2) -> 16137 | U47: =VLOOKUP($S47,P_All!$X$5:$AS$245,3*($C$8-1)+3) -> 17048 | V47: =VLOOKUP($S47,P_All!$X$5:$AS$245,3*($C$8-1)+4) -> 18037 | W47: =IF(ISNA(VLOOKUP($B$6,$A$25:$E$52,IF($B$8=$A$22,3,2))),EXP(VLOOKUP($B$6,$A$25:$E$52,4)*LN(VLOOKUP($S47,#REF!,$C$8+1)/1000)+VLOOKUP($B$6,$A$25:$E$52,5)),VLOOKUP($B$6,$A$25:$E$52,IF($B$8=$A$22,3,2))) -> 
A48: SO4 | H48: 23 | I48: =VLOOKUP($H48,P_All!$A$5:$D$205,3*($C$8-1)+2) -> 163450 | J48: =VLOOKUP($H48,P_All!$A$5:$D$205,3*($C$8-1)+3) -> 189140 | K48: =VLOOKUP($H48,P_All!$A$5:$D$205,3*($C$8-1)+4) -> 215310 | L48: =IF(ISNA(VLOOKUP($B$6,$A$25:$E$51,IF($B$8=$A$22,3,2))),EXP(VLOOKUP($B$6,$A$25:$E$51,4)*LN(VLOOKUP($H48,#REF!,$C$8+1)/1000)+VLOOKUP($B$6,$A$25:$E$51,5)),VLOOKUP($B$6,$A$25:$E$51,IF($B$8=$A$22,3,2))) ->  | M48: 23 | N48: =VLOOKUP($H48,Other_All!$A$5:$D$205,3*($C$8-1)+2) -> 203350 | O48: =VLOOKUP($H48,Other_All!$A$5:$D$205,3*($C$8-1)+3) -> 225670 | P48: =VLOOKUP($H48,Other_All!$A$5:$D$205,3*($C$8-1)+4) -> 250900 | Q48: =IF(ISNA(VLOOKUP($B$6,$A$25:$E$51,IF($B$8=$A$22,3,2))),EXP(VLOOKUP($B$6,$A$25:$E$51,4)*LN(VLOOKUP($H48,#REF!,$C$8+1)/1000)+VLOOKUP($B$6,$A$25:$E$51,5)),VLOOKUP($B$6,$A$25:$E$51,IF($B$8=$A$22,3,2))) ->  | S48: 41.91666667 | T48: =VLOOKUP($S48,P_All!$X$5:$AS$245,3*($C$8-1)+2) -> 16105 | U48: =VLOOKUP($S48,P_All!$X$5:$AS$245,3*($C$8-1)+3) -> 16982 | V48: =VLOOKUP($S48,P_All!$X$5:$AS$245,3*($C$8-1)+4) -> 17987 | W48: =IF(ISNA(VLOOKUP($B$6,$A$25:$E$52,IF($B$8=$A$22,3,2))),EXP(VLOOKUP($B$6,$A$25:$E$52,4)*LN(VLOOKUP($S48,#REF!,$C$8+1)/1000)+VLOOKUP($B$6,$A$25:$E$52,5)),VLOOKUP($B$6,$A$25:$E$52,IF($B$8=$A$22,3,2))) -> 
A49: Tl | B49: 0.56 | H49: 24 | I49: =VLOOKUP($H49,P_All!$A$5:$D$205,3*($C$8-1)+2) -> 139090 | J49: =VLOOKUP($H49,P_All!$A$5:$D$205,3*($C$8-1)+3) -> 161250 | K49: =VLOOKUP($H49,P_All!$A$5:$D$205,3*($C$8-1)+4) -> 182970 | L49: =IF(ISNA(VLOOKUP($B$6,$A$25:$E$51,IF($B$8=$A$22,3,2))),EXP(VLOOKUP($B$6,$A$25:$E$51,4)*LN(VLOOKUP($H49,#REF!,$C$8+1)/1000)+VLOOKUP($B$6,$A$25:$E$51,5)),VLOOKUP($B$6,$A$25:$E$51,IF($B$8=$A$22,3,2))) ->  | M49: 24 | N49: =VLOOKUP($H49,Other_All!$A$5:$D$205,3*($C$8-1)+2) -> 160510 | O49: =VLOOKUP($H49,Other_All!$A$5:$D$205,3*($C$8-1)+3) -> 177270 | P49: =VLOOKUP($H49,Other_All!$A$5:$D$205,3*($C$8-1)+4) -> 197370 | Q49: =IF(ISNA(VLOOKUP($B$6,$A$25:$E$51,IF($B$8=$A$22,3,2))),EXP(VLOOKUP($B$6,$A$25:$E$51,4)*LN(VLOOKUP($H49,#REF!,$C$8+1)/1000)+VLOOKUP($B$6,$A$25:$E$51,5)),VLOOKUP($B$6,$A$25:$E$51,IF($B$8=$A$22,3,2))) ->  | S49: 42 | T49: =VLOOKUP($S49,P_All!$X$5:$AS$245,3*($C$8-1)+2) -> 16040 | U49: =VLOOKUP($S49,P_All!$X$5:$AS$245,3*($C$8-1)+3) -> 16893 | V49: =VLOOKUP($S49,P_All!$X$5:$AS$245,3*($C$8-1)+4) -> 17884 | W49: =IF(ISNA(VLOOKUP($B$6,$A$25:$E$52,IF($B$8=$A$22,3,2))),EXP(VLOOKUP($B$6,$A$25:$E$52,4)*LN(VLOOKUP($S49,#REF!,$C$8+1)/1000)+VLOOKUP($B$6,$A$25:$E$52,5)),VLOOKUP($B$6,$A$25:$E$52,IF($B$8=$A$22,3,2))) -> 
A50: V | H50: 25 | I50: =VLOOKUP($H50,P_All!$A$5:$D$205,3*($C$8-1)+2) -> 122610 | J50: =VLOOKUP($H50,P_All!$A$5:$D$205,3*($C$8-1)+3) -> 141920 | K50: =VLOOKUP($H50,P_All!$A$5:$D$205,3*($C$8-1)+4) -> 161790 | L50: =IF(ISNA(VLOOKUP($B$6,$A$25:$E$51,IF($B$8=$A$22,3,2))),EXP(VLOOKUP($B$6,$A$25:$E$51,4)*LN(VLOOKUP($H50,#REF!,$C$8+1)/1000)+VLOOKUP($B$6,$A$25:$E$51,5)),VLOOKUP($B$6,$A$25:$E$51,IF($B$8=$A$22,3,2))) ->  | M50: 25 | N50: =VLOOKUP($H50,Other_All!$A$5:$D$205,3*($C$8-1)+2) -> 127220 | O50: =VLOOKUP($H50,Other_All!$A$5:$D$205,3*($C$8-1)+3) -> 140900 | P50: =VLOOKUP($H50,Other_All!$A$5:$D$205,3*($C$8-1)+4) -> 155670 | Q50: =IF(ISNA(VLOOKUP($B$6,$A$25:$E$51,IF($B$8=$A$22,3,2))),EXP(VLOOKUP($B$6,$A$25:$E$51,4)*LN(VLOOKUP($H50,#REF!,$C$8+1)/1000)+VLOOKUP($B$6,$A$25:$E$51,5)),VLOOKUP($B$6,$A$25:$E$51,IF($B$8=$A$22,3,2))) ->  | S50: 42.08333333 | T50: =VLOOKUP($S50,P_All!$X$5:$AS$245,3*($C$8-1)+2) -> 16014 | U50: =VLOOKUP($S50,P_All!$X$5:$AS$245,3*($C$8-1)+3) -> 16842 | V50: =VLOOKUP($S50,P_All!$X$5:$AS$245,3*($C$8-1)+4) -> 17797 | W50: =IF(ISNA(VLOOKUP($B$6,$A$25:$E$52,IF($B$8=$A$22,3,2))),EXP(VLOOKUP($B$6,$A$25:$E$52,4)*LN(VLOOKUP($S50,#REF!,$C$8+1)/1000)+VLOOKUP($B$6,$A$25:$E$52,5)),VLOOKUP($B$6,$A$25:$E$52,IF($B$8=$A$22,3,2))) -> 
A51: Zn | H51: 26 | I51: =VLOOKUP($H51,P_All!$A$5:$D$205,3*($C$8-1)+2) -> 110540 | J51: =VLOOKUP($H51,P_All!$A$5:$D$205,3*($C$8-1)+3) -> 126730 | K51: =VLOOKUP($H51,P_All!$A$5:$D$205,3*($C$8-1)+4) -> 145080 | L51: =IF(ISNA(VLOOKUP($B$6,$A$25:$E$51,IF($B$8=$A$22,3,2))),EXP(VLOOKUP($B$6,$A$25:$E$51,4)*LN(VLOOKUP($H51,#REF!,$C$8+1)/1000)+VLOOKUP($B$6,$A$25:$E$51,5)),VLOOKUP($B$6,$A$25:$E$51,IF($B$8=$A$22,3,2))) ->  | M51: 26 | N51: =VLOOKUP($H51,Other_All!$A$5:$D$205,3*($C$8-1)+2) -> 100030 | O51: =VLOOKUP($H51,Other_All!$A$5:$D$205,3*($C$8-1)+3) -> 111610 | P51: =VLOOKUP($H51,Other_All!$A$5:$D$205,3*($C$8-1)+4) -> 123840 | Q51: =IF(ISNA(VLOOKUP($B$6,$A$25:$E$51,IF($B$8=$A$22,3,2))),EXP(VLOOKUP($B$6,$A$25:$E$51,4)*LN(VLOOKUP($H51,#REF!,$C$8+1)/1000)+VLOOKUP($B$6,$A$25:$E$51,5)),VLOOKUP($B$6,$A$25:$E$51,IF($B$8=$A$22,3,2))) ->  | S51: 42.16666667 | T51: =VLOOKUP($S51,P_All!$X$5:$AS$245,3*($C$8-1)+2) -> 16010 | U51: =VLOOKUP($S51,P_All!$X$5:$AS$245,3*($C$8-1)+3) -> 16805 | V51: =VLOOKUP($S51,P_All!$X$5:$AS$245,3*($C$8-1)+4) -> 17744 | W51: =IF(ISNA(VLOOKUP($B$6,$A$25:$E$52,IF($B$8=$A$22,3,2))),EXP(VLOOKUP($B$6,$A$25:$E$52,4)*LN(VLOOKUP($S51,#REF!,$C$8+1)/1000)+VLOOKUP($B$6,$A$25:$E$52,5)),VLOOKUP($B$6,$A$25:$E$52,IF($B$8=$A$22,3,2))) -> 
A52: Hardness | B52: 500000 | H52: 27 | I52: =VLOOKUP($H52,P_All!$A$5:$D$205,3*($C$8-1)+2) -> 99395 | J52: =VLOOKUP($H52,P_All!$A$5:$D$205,3*($C$8-1)+3) -> 112730 | K52: =VLOOKUP($H52,P_All!$A$5:$D$205,3*($C$8-1)+4) -> 129220 | L52: =IF(ISNA(VLOOKUP($B$6,$A$25:$E$51,IF($B$8=$A$22,3,2))),EXP(VLOOKUP($B$6,$A$25:$E$51,4)*LN(VLOOKUP($H52,#REF!,$C$8+1)/1000)+VLOOKUP($B$6,$A$25:$E$51,5)),VLOOKUP($B$6,$A$25:$E$51,IF($B$8=$A$22,3,2))) ->  | M52: 27 | N52: =VLOOKUP($H52,Other_All!$A$5:$D$205,3*($C$8-1)+2) -> 79632 | O52: =VLOOKUP($H52,Other_All!$A$5:$D$205,3*($C$8-1)+3) -> 87811 | P52: =VLOOKUP($H52,Other_All!$A$5:$D$205,3*($C$8-1)+4) -> 97279 | Q52: =IF(ISNA(VLOOKUP($B$6,$A$25:$E$51,IF($B$8=$A$22,3,2))),EXP(VLOOKUP($B$6,$A$25:$E$51,4)*LN(VLOOKUP($H52,#REF!,$C$8+1)/1000)+VLOOKUP($B$6,$A$25:$E$51,5)),VLOOKUP($B$6,$A$25:$E$51,IF($B$8=$A$22,3,2))) ->  | S52: 42.25 | T52: =VLOOKUP($S52,P_All!$X$5:$AS$245,3*($C$8-1)+2) -> 16071 | U52: =VLOOKUP($S52,P_All!$X$5:$AS$245,3*($C$8-1)+3) -> 16825 | V52: =VLOOKUP($S52,P_All!$X$5:$AS$245,3*($C$8-1)+4) -> 17737 | W52: =IF(ISNA(VLOOKUP($B$6,$A$25:$E$52,IF($B$8=$A$22,3,2))),EXP(VLOOKUP($B$6,$A$25:$E$52,4)*LN(VLOOKUP($S52,#REF!,$C$8+1)/1000)+VLOOKUP($B$6,$A$25:$E$52,5)),VLOOKUP($B$6,$A$25:$E$52,IF($B$8=$A$22,3,2))) -> 
H53: 28 | I53: =VLOOKUP($H53,P_All!$A$5:$D$205,3*($C$8-1)+2) -> 84326 | J53: =VLOOKUP($H53,P_All!$A$5:$D$205,3*($C$8-1)+3) -> 95113 | K53: =VLOOKUP($H53,P_All!$A$5:$D$205,3*($C$8-1)+4) -> 108260 | L53: =IF(ISNA(VLOOKUP($B$6,$A$25:$E$51,IF($B$8=$A$22,3,2))),EXP(VLOOKUP($B$6,$A$25:$E$51,4)*LN(VLOOKUP($H53,#REF!,$C$8+1)/1000)+VLOOKUP($B$6,$A$25:$E$51,5)),VLOOKUP($B$6,$A$25:$E$51,IF($B$8=$A$22,3,2))) ->  | M53: 28 | N53: =VLOOKUP($H53,Other_All!$A$5:$D$205,3*($C$8-1)+2) -> 60675 | O53: =VLOOKUP($H53,Other_All!$A$5:$D$205,3*($C$8-1)+3) -> 66734 | P53: =VLOOKUP($H53,Other_All!$A$5:$D$205,3*($C$8-1)+4) -> 73869 | Q53: =IF(ISNA(VLOOKUP($B$6,$A$25:$E$51,IF($B$8=$A$22,3,2))),EXP(VLOOKUP($B$6,$A$25:$E$51,4)*LN(VLOOKUP($H53,#REF!,$C$8+1)/1000)+VLOOKUP($B$6,$A$25:$E$51,5)),VLOOKUP($B$6,$A$25:$E$51,IF($B$8=$A$22,3,2))) ->  | S53: 42.33333333 | T53: =VLOOKUP($S53,P_All!$X$5:$AS$245,3*($C$8-1)+2) -> 16123 | U53: =VLOOKUP($S53,P_All!$X$5:$AS$245,3*($C$8-1)+3) -> 16876 | V53: =VLOOKUP($S53,P_All!$X$5:$AS$245,3*($C$8-1)+4) -> 17748 | W53: =IF(ISNA(VLOOKUP($B$6,$A$25:$E$52,IF($B$8=$A$22,3,2))),EXP(VLOOKUP($B$6,$A$25:$E$52,4)*LN(VLOOKUP($S53,#REF!,$C$8+1)/1000)+VLOOKUP($B$6,$A$25:$E$52,5)),VLOOKUP($B$6,$A$25:$E$52,IF($B$8=$A$22,3,2))) -> 
H54: 29 | I54: =VLOOKUP($H54,P_All!$A$5:$D$205,3*($C$8-1)+2) -> 67470 | J54: =VLOOKUP($H54,P_All!$A$5:$D$205,3*($C$8-1)+3) -> 76217 | K54: =VLOOKUP($H54,P_All!$A$5:$D$205,3*($C$8-1)+4) -> 85975 | L54: =IF(ISNA(VLOOKUP($B$6,$A$25:$E$51,IF($B$8=$A$22,3,2))),EXP(VLOOKUP($B$6,$A$25:$E$51,4)*LN(VLOOKUP($H54,#REF!,$C$8+1)/1000)+VLOOKUP($B$6,$A$25:$E$51,5)),VLOOKUP($B$6,$A$25:$E$51,IF($B$8=$A$22,3,2))) ->  | M54: 29 | N54: =VLOOKUP($H54,Other_All!$A$5:$D$205,3*($C$8-1)+2) -> 44615 | O54: =VLOOKUP($H54,Other_All!$A$5:$D$205,3*($C$8-1)+3) -> 49229 | P54: =VLOOKUP($H54,Other_All!$A$5:$D$205,3*($C$8-1)+4) -> 54290 | Q54: =IF(ISNA(VLOOKUP($B$6,$A$25:$E$51,IF($B$8=$A$22,3,2))),EXP(VLOOKUP($B$6,$A$25:$E$51,4)*LN(VLOOKUP($H54,#REF!,$C$8+1)/1000)+VLOOKUP($B$6,$A$25:$E$51,5)),VLOOKUP($B$6,$A$25:$E$51,IF($B$8=$A$22,3,2))) ->  | S54: 42.41666667 | T54: =VLOOKUP($S54,P_All!$X$5:$AS$245,3*($C$8-1)+2) -> 16080 | U54: =VLOOKUP($S54,P_All!$X$5:$AS$245,3*($C$8-1)+3) -> 16836 | V54: =VLOOKUP($S54,P_All!$X$5:$AS$245,3*($C$8-1)+4) -> 17694 | W54: =IF(ISNA(VLOOKUP($B$6,$A$25:$E$52,IF($B$8=$A$22,3,2))),EXP(VLOOKUP($B$6,$A$25:$E$52,4)*LN(VLOOKUP($S54,#REF!,$C$8+1)/1000)+VLOOKUP($B$6,$A$25:$E$52,5)),VLOOKUP($B$6,$A$25:$E$52,IF($B$8=$A$22,3,2))) -> 
H55: 30 | I55: =VLOOKUP($H55,P_All!$A$5:$D$205,3*($C$8-1)+2) -> 54108 | J55: =VLOOKUP($H55,P_All!$A$5:$D$205,3*($C$8-1)+3) -> 60053 | K55: =VLOOKUP($H55,P_All!$A$5:$D$205,3*($C$8-1)+4) -> 67084 | L55: =IF(ISNA(VLOOKUP($B$6,$A$25:$E$51,IF($B$8=$A$22,3,2))),EXP(VLOOKUP($B$6,$A$25:$E$51,4)*LN(VLOOKUP($H55,#REF!,$C$8+1)/1000)+VLOOKUP($B$6,$A$25:$E$51,5)),VLOOKUP($B$6,$A$25:$E$51,IF($B$8=$A$22,3,2))) ->  | M55: 30 | N55: =VLOOKUP($H55,Other_All!$A$5:$D$205,3*($C$8-1)+2) -> 32990 | O55: =VLOOKUP($H55,Other_All!$A$5:$D$205,3*($C$8-1)+3) -> 36036 | P55: =VLOOKUP($H55,Other_All!$A$5:$D$205,3*($C$8-1)+4) -> 39783 | Q55: =IF(ISNA(VLOOKUP($B$6,$A$25:$E$51,IF($B$8=$A$22,3,2))),EXP(VLOOKUP($B$6,$A$25:$E$51,4)*LN(VLOOKUP($H55,#REF!,$C$8+1)/1000)+VLOOKUP($B$6,$A$25:$E$51,5)),VLOOKUP($B$6,$A$25:$E$51,IF($B$8=$A$22,3,2))) ->  | S55: 42.5 | T55: =VLOOKUP($S55,P_All!$X$5:$AS$245,3*($C$8-1)+2) -> 15949 | U55: =VLOOKUP($S55,P_All!$X$5:$AS$245,3*($C$8-1)+3) -> 16721 | V55: =VLOOKUP($S55,P_All!$X$5:$AS$245,3*($C$8-1)+4) -> 17597 | W55: =IF(ISNA(VLOOKUP($B$6,$A$25:$E$52,IF($B$8=$A$22,3,2))),EXP(VLOOKUP($B$6,$A$25:$E$52,4)*LN(VLOOKUP($S55,#REF!,$C$8+1)/1000)+VLOOKUP($B$6,$A$25:$E$52,5)),VLOOKUP($B$6,$A$25:$E$52,IF($B$8=$A$22,3,2))) -> 
H56: 31 | I56: =VLOOKUP($H56,P_All!$A$5:$D$205,3*($C$8-1)+2) -> 44292 | J56: =VLOOKUP($H56,P_All!$A$5:$D$205,3*($C$8-1)+3) -> 48787 | K56: =VLOOKUP($H56,P_All!$A$5:$D$205,3*($C$8-1)+4) -> 54194 | L56: =IF(ISNA(VLOOKUP($B$6,$A$25:$E$51,IF($B$8=$A$22,3,2))),EXP(VLOOKUP($B$6,$A$25:$E$51,4)*LN(VLOOKUP($H56,#REF!,$C$8+1)/1000)+VLOOKUP($B$6,$A$25:$E$51,5)),VLOOKUP($B$6,$A$25:$E$51,IF($B$8=$A$22,3,2))) ->  | M56: 31 | N56: =VLOOKUP($H56,Other_All!$A$5:$D$205,3*($C$8-1)+2) -> 27353 | O56: =VLOOKUP($H56,Other_All!$A$5:$D$205,3*($C$8-1)+3) -> 30202 | P56: =VLOOKUP($H56,Other_All!$A$5:$D$205,3*($C$8-1)+4) -> 33638 | Q56: =IF(ISNA(VLOOKUP($B$6,$A$25:$E$51,IF($B$8=$A$22,3,2))),EXP(VLOOKUP($B$6,$A$25:$E$51,4)*LN(VLOOKUP($H56,#REF!,$C$8+1)/1000)+VLOOKUP($B$6,$A$25:$E$51,5)),VLOOKUP($B$6,$A$25:$E$51,IF($B$8=$A$22,3,2))) ->  | S56: 42.58333333 | T56: =VLOOKUP($S56,P_All!$X$5:$AS$245,3*($C$8-1)+2) -> 15878 | U56: =VLOOKUP($S56,P_All!$X$5:$AS$245,3*($C$8-1)+3) -> 16679 | V56: =VLOOKUP($S56,P_All!$X$5:$AS$245,3*($C$8-1)+4) -> 17566 | W56: =IF(ISNA(VLOOKUP($B$6,$A$25:$E$52,IF($B$8=$A$22,3,2))),EXP(VLOOKUP($B$6,$A$25:$E$52,4)*LN(VLOOKUP($S56,#REF!,$C$8+1)/1000)+VLOOKUP($B$6,$A$25:$E$52,5)),VLOOKUP($B$6,$A$25:$E$52,IF($B$8=$A$22,3,2))) -> 
H57: 32 | I57: =VLOOKUP($H57,P_All!$A$5:$D$205,3*($C$8-1)+2) -> 37784 | J57: =VLOOKUP($H57,P_All!$A$5:$D$205,3*($C$8-1)+3) -> 41387 | K57: =VLOOKUP($H57,P_All!$A$5:$D$205,3*($C$8-1)+4) -> 45061 | L57: =IF(ISNA(VLOOKUP($B$6,$A$25:$E$51,IF($B$8=$A$22,3,2))),EXP(VLOOKUP($B$6,$A$25:$E$51,4)*LN(VLOOKUP($H57,#REF!,$C$8+1)/1000)+VLOOKUP($B$6,$A$25:$E$51,5)),VLOOKUP($B$6,$A$25:$E$51,IF($B$8=$A$22,3,2))) ->  | M57: 32 | N57: =VLOOKUP($H57,Other_All!$A$5:$D$205,3*($C$8-1)+2) -> 24638 | O57: =VLOOKUP($H57,Other_All!$A$5:$D$205,3*($C$8-1)+3) -> 28099 | P57: =VLOOKUP($H57,Other_All!$A$5:$D$205,3*($C$8-1)+4) -> 32577 | Q57: =IF(ISNA(VLOOKUP($B$6,$A$25:$E$51,IF($B$8=$A$22,3,2))),EXP(VLOOKUP($B$6,$A$25:$E$51,4)*LN(VLOOKUP($H57,#REF!,$C$8+1)/1000)+VLOOKUP($B$6,$A$25:$E$51,5)),VLOOKUP($B$6,$A$25:$E$51,IF($B$8=$A$22,3,2))) ->  | S57: 42.66666667 | T57: =VLOOKUP($S57,P_All!$X$5:$AS$245,3*($C$8-1)+2) -> 15819 | U57: =VLOOKUP($S57,P_All!$X$5:$AS$245,3*($C$8-1)+3) -> 16668 | V57: =VLOOKUP($S57,P_All!$X$5:$AS$245,3*($C$8-1)+4) -> 17558 | W57: =IF(ISNA(VLOOKUP($B$6,$A$25:$E$52,IF($B$8=$A$22,3,2))),EXP(VLOOKUP($B$6,$A$25:$E$52,4)*LN(VLOOKUP($S57,#REF!,$C$8+1)/1000)+VLOOKUP($B$6,$A$25:$E$52,5)),VLOOKUP($B$6,$A$25:$E$52,IF($B$8=$A$22,3,2))) -> 
H58: 33 | I58: =VLOOKUP($H58,P_All!$A$5:$D$205,3*($C$8-1)+2) -> 33388 | J58: =VLOOKUP($H58,P_All!$A$5:$D$205,3*($C$8-1)+3) -> 35962 | K58: =VLOOKUP($H58,P_All!$A$5:$D$205,3*($C$8-1)+4) -> 38993 | L58: =IF(ISNA(VLOOKUP($B$6,$A$25:$E$51,IF($B$8=$A$22,3,2))),EXP(VLOOKUP($B$6,$A$25:$E$51,4)*LN(VLOOKUP($H58,#REF!,$C$8+1)/1000)+VLOOKUP($B$6,$A$25:$E$51,5)),VLOOKUP($B$6,$A$25:$E$51,IF($B$8=$A$22,3,2))) ->  | M58: 33 | N58: =VLOOKUP($H58,Other_All!$A$5:$D$205,3*($C$8-1)+2) -> 23804 | O58: =VLOOKUP($H58,Other_All!$A$5:$D$205,3*($C$8-1)+3) -> 27307 | P58: =VLOOKUP($H58,Other_All!$A$5:$D$205,3*($C$8-1)+4) -> 31274 | Q58: =IF(ISNA(VLOOKUP($B$6,$A$25:$E$51,IF($B$8=$A$22,3,2))),EXP(VLOOKUP($B$6,$A$25:$E$51,4)*LN(VLOOKUP($H58,#REF!,$C$8+1)/1000)+VLOOKUP($B$6,$A$25:$E$51,5)),VLOOKUP($B$6,$A$25:$E$51,IF($B$8=$A$22,3,2))) ->  | S58: 42.75 | T58: =VLOOKUP($S58,P_All!$X$5:$AS$245,3*($C$8-1)+2) -> 15694 | U58: =VLOOKUP($S58,P_All!$X$5:$AS$245,3*($C$8-1)+3) -> 16585 | V58: =VLOOKUP($S58,P_All!$X$5:$AS$245,3*($C$8-1)+4) -> 17489 | W58: =IF(ISNA(VLOOKUP($B$6,$A$25:$E$52,IF($B$8=$A$22,3,2))),EXP(VLOOKUP($B$6,$A$25:$E$52,4)*LN(VLOOKUP($S58,#REF!,$C$8+1)/1000)+VLOOKUP($B$6,$A$25:$E$52,5)),VLOOKUP($B$6,$A$25:$E$52,IF($B$8=$A$22,3,2))) -> 
H59: 34 | I59: =VLOOKUP($H59,P_All!$A$5:$D$205,3*($C$8-1)+2) -> 30248 | J59: =VLOOKUP($H59,P_All!$A$5:$D$205,3*($C$8-1)+3) -> 32227 | K59: =VLOOKUP($H59,P_All!$A$5:$D$205,3*($C$8-1)+4) -> 34755 | L59: =IF(ISNA(VLOOKUP($B$6,$A$25:$E$51,IF($B$8=$A$22,3,2))),EXP(VLOOKUP($B$6,$A$25:$E$51,4)*LN(VLOOKUP($H59,#REF!,$C$8+1)/1000)+VLOOKUP($B$6,$A$25:$E$51,5)),VLOOKUP($B$6,$A$25:$E$51,IF($B$8=$A$22,3,2))) ->  | M59: 34 | N59: =VLOOKUP($H59,Other_All!$A$5:$D$205,3*($C$8-1)+2) -> 23406 | O59: =VLOOKUP($H59,Other_All!$A$5:$D$205,3*($C$8-1)+3) -> 26594 | P59: =VLOOKUP($H59,Other_All!$A$5:$D$205,3*($C$8-1)+4) -> 30240 | Q59: =IF(ISNA(VLOOKUP($B$6,$A$25:$E$51,IF($B$8=$A$22,3,2))),EXP(VLOOKUP($B$6,$A$25:$E$51,4)*LN(VLOOKUP($H59,#REF!,$C$8+1)/1000)+VLOOKUP($B$6,$A$25:$E$51,5)),VLOOKUP($B$6,$A$25:$E$51,IF($B$8=$A$22,3,2))) ->  | S59: 42.83333333 | T59: =VLOOKUP($S59,P_All!$X$5:$AS$245,3*($C$8-1)+2) -> 15616 | U59: =VLOOKUP($S59,P_All!$X$5:$AS$245,3*($C$8-1)+3) -> 16512 | V59: =VLOOKUP($S59,P_All!$X$5:$AS$245,3*($C$8-1)+4) -> 17433 | W59: =IF(ISNA(VLOOKUP($B$6,$A$25:$E$52,IF($B$8=$A$22,3,2))),EXP(VLOOKUP($B$6,$A$25:$E$52,4)*LN(VLOOKUP($S59,#REF!,$C$8+1)/1000)+VLOOKUP($B$6,$A$25:$E$52,5)),VLOOKUP($B$6,$A$25:$E$52,IF($B$8=$A$22,3,2))) -> 
H60: 35 | I60: =VLOOKUP($H60,P_All!$A$5:$D$205,3*($C$8-1)+2) -> 27153 | J60: =VLOOKUP($H60,P_All!$A$5:$D$205,3*($C$8-1)+3) -> 28818 | K60: =VLOOKUP($H60,P_All!$A$5:$D$205,3*($C$8-1)+4) -> 31002 | L60: =IF(ISNA(VLOOKUP($B$6,$A$25:$E$51,IF($B$8=$A$22,3,2))),EXP(VLOOKUP($B$6,$A$25:$E$51,4)*LN(VLOOKUP($H60,#REF!,$C$8+1)/1000)+VLOOKUP($B$6,$A$25:$E$51,5)),VLOOKUP($B$6,$A$25:$E$51,IF($B$8=$A$22,3,2))) ->  | M60: 35 | N60: =VLOOKUP($H60,Other_All!$A$5:$D$205,3*($C$8-1)+2) -> 22879 | O60: =VLOOKUP($H60,Other_All!$A$5:$D$205,3*($C$8-1)+3) -> 25950 | P60: =VLOOKUP($H60,Other_All!$A$5:$D$205,3*($C$8-1)+4) -> 29473 | Q60: =IF(ISNA(VLOOKUP($B$6,$A$25:$E$51,IF($B$8=$A$22,3,2))),EXP(VLOOKUP($B$6,$A$25:$E$51,4)*LN(VLOOKUP($H60,#REF!,$C$8+1)/1000)+VLOOKUP($B$6,$A$25:$E$51,5)),VLOOKUP($B$6,$A$25:$E$51,IF($B$8=$A$22,3,2))) ->  | S60: 42.91666667 | T60: =VLOOKUP($S60,P_All!$X$5:$AS$245,3*($C$8-1)+2) -> 15568 | U60: =VLOOKUP($S60,P_All!$X$5:$AS$245,3*($C$8-1)+3) -> 16474 | V60: =VLOOKUP($S60,P_All!$X$5:$AS$245,3*($C$8-1)+4) -> 17365 | W60: =IF(ISNA(VLOOKUP($B$6,$A$25:$E$52,IF($B$8=$A$22,3,2))),EXP(VLOOKUP($B$6,$A$25:$E$52,4)*LN(VLOOKUP($S60,#REF!,$C$8+1)/1000)+VLOOKUP($B$6,$A$25:$E$52,5)),VLOOKUP($B$6,$A$25:$E$52,IF($B$8=$A$22,3,2))) -> 
H61: 36 | I61: =VLOOKUP($H61,P_All!$A$5:$D$205,3*($C$8-1)+2) -> 24132 | J61: =VLOOKUP($H61,P_All!$A$5:$D$205,3*($C$8-1)+3) -> 25653 | K61: =VLOOKUP($H61,P_All!$A$5:$D$205,3*($C$8-1)+4) -> 27388 | L61: =IF(ISNA(VLOOKUP($B$6,$A$25:$E$51,IF($B$8=$A$22,3,2))),EXP(VLOOKUP($B$6,$A$25:$E$51,4)*LN(VLOOKUP($H61,#REF!,$C$8+1)/1000)+VLOOKUP($B$6,$A$25:$E$51,5)),VLOOKUP($B$6,$A$25:$E$51,IF($B$8=$A$22,3,2))) ->  | M61: 36 | N61: =VLOOKUP($H61,Other_All!$A$5:$D$205,3*($C$8-1)+2) -> 21993 | O61: =VLOOKUP($H61,Other_All!$A$5:$D$205,3*($C$8-1)+3) -> 25295 | P61: =VLOOKUP($H61,Other_All!$A$5:$D$205,3*($C$8-1)+4) -> 28820 | Q61: =IF(ISNA(VLOOKUP($B$6,$A$25:$E$51,IF($B$8=$A$22,3,2))),EXP(VLOOKUP($B$6,$A$25:$E$51,4)*LN(VLOOKUP($H61,#REF!,$C$8+1)/1000)+VLOOKUP($B$6,$A$25:$E$51,5)),VLOOKUP($B$6,$A$25:$E$51,IF($B$8=$A$22,3,2))) ->  | S61: 43 | T61: =VLOOKUP($S61,P_All!$X$5:$AS$245,3*($C$8-1)+2) -> 15530 | U61: =VLOOKUP($S61,P_All!$X$5:$AS$245,3*($C$8-1)+3) -> 16411 | V61: =VLOOKUP($S61,P_All!$X$5:$AS$245,3*($C$8-1)+4) -> 17290 | W61: =IF(ISNA(VLOOKUP($B$6,$A$25:$E$52,IF($B$8=$A$22,3,2))),EXP(VLOOKUP($B$6,$A$25:$E$52,4)*LN(VLOOKUP($S61,#REF!,$C$8+1)/1000)+VLOOKUP($B$6,$A$25:$E$52,5)),VLOOKUP($B$6,$A$25:$E$52,IF($B$8=$A$22,3,2))) -> 
H62: 37 | I62: =VLOOKUP($H62,P_All!$A$5:$D$205,3*($C$8-1)+2) -> 21626 | J62: =VLOOKUP($H62,P_All!$A$5:$D$205,3*($C$8-1)+3) -> 22902 | K62: =VLOOKUP($H62,P_All!$A$5:$D$205,3*($C$8-1)+4) -> 24292 | L62: =IF(ISNA(VLOOKUP($B$6,$A$25:$E$51,IF($B$8=$A$22,3,2))),EXP(VLOOKUP($B$6,$A$25:$E$51,4)*LN(VLOOKUP($H62,#REF!,$C$8+1)/1000)+VLOOKUP($B$6,$A$25:$E$51,5)),VLOOKUP($B$6,$A$25:$E$51,IF($B$8=$A$22,3,2))) ->  | M62: 37 | N62: =VLOOKUP($H62,Other_All!$A$5:$D$205,3*($C$8-1)+2) -> 21608 | O62: =VLOOKUP($H62,Other_All!$A$5:$D$205,3*($C$8-1)+3) -> 24669 | P62: =VLOOKUP($H62,Other_All!$A$5:$D$205,3*($C$8-1)+4) -> 28325 | Q62: =IF(ISNA(VLOOKUP($B$6,$A$25:$E$51,IF($B$8=$A$22,3,2))),EXP(VLOOKUP($B$6,$A$25:$E$51,4)*LN(VLOOKUP($H62,#REF!,$C$8+1)/1000)+VLOOKUP($B$6,$A$25:$E$51,5)),VLOOKUP($B$6,$A$25:$E$51,IF($B$8=$A$22,3,2))) ->  | S62: 43.08333333 | T62: =VLOOKUP($S62,P_All!$X$5:$AS$245,3*($C$8-1)+2) -> 15507 | U62: =VLOOKUP($S62,P_All!$X$5:$AS$245,3*($C$8-1)+3) -> 16358 | V62: =VLOOKUP($S62,P_All!$X$5:$AS$245,3*($C$8-1)+4) -> 17214 | W62: =IF(ISNA(VLOOKUP($B$6,$A$25:$E$52,IF($B$8=$A$22,3,2))),EXP(VLOOKUP($B$6,$A$25:$E$52,4)*LN(VLOOKUP($S62,#REF!,$C$8+1)/1000)+VLOOKUP($B$6,$A$25:$E$52,5)),VLOOKUP($B$6,$A$25:$E$52,IF($B$8=$A$22,3,2))) -> 
H63: 38 | I63: =VLOOKUP($H63,P_All!$A$5:$D$205,3*($C$8-1)+2) -> 19748 | J63: =VLOOKUP($H63,P_All!$A$5:$D$205,3*($C$8-1)+3) -> 20901 | K63: =VLOOKUP($H63,P_All!$A$5:$D$205,3*($C$8-1)+4) -> 22221 | L63: =IF(ISNA(VLOOKUP($B$6,$A$25:$E$51,IF($B$8=$A$22,3,2))),EXP(VLOOKUP($B$6,$A$25:$E$51,4)*LN(VLOOKUP($H63,#REF!,$C$8+1)/1000)+VLOOKUP($B$6,$A$25:$E$51,5)),VLOOKUP($B$6,$A$25:$E$51,IF($B$8=$A$22,3,2))) ->  | M63: 38 | N63: =VLOOKUP($H63,Other_All!$A$5:$D$205,3*($C$8-1)+2) -> 21097 | O63: =VLOOKUP($H63,Other_All!$A$5:$D$205,3*($C$8-1)+3) -> 24222 | P63: =VLOOKUP($H63,Other_All!$A$5:$D$205,3*($C$8-1)+4) -> 27378 | Q63: =IF(ISNA(VLOOKUP($B$6,$A$25:$E$51,IF($B$8=$A$22,3,2))),EXP(VLOOKUP($B$6,$A$25:$E$51,4)*LN(VLOOKUP($H63,#REF!,$C$8+1)/1000)+VLOOKUP($B$6,$A$25:$E$51,5)),VLOOKUP($B$6,$A$25:$E$51,IF($B$8=$A$22,3,2))) ->  | S63: 43.16666667 | T63: =VLOOKUP($S63,P_All!$X$5:$AS$245,3*($C$8-1)+2) -> 15510 | U63: =VLOOKUP($S63,P_All!$X$5:$AS$245,3*($C$8-1)+3) -> 16323 | V63: =VLOOKUP($S63,P_All!$X$5:$AS$245,3*($C$8-1)+4) -> 17176 | W63: =IF(ISNA(VLOOKUP($B$6,$A$25:$E$52,IF($B$8=$A$22,3,2))),EXP(VLOOKUP($B$6,$A$25:$E$52,4)*LN(VLOOKUP($S63,#REF!,$C$8+1)/1000)+VLOOKUP($B$6,$A$25:$E$52,5)),VLOOKUP($B$6,$A$25:$E$52,IF($B$8=$A$22,3,2))) -> 
H64: 39 | I64: =VLOOKUP($H64,P_All!$A$5:$D$205,3*($C$8-1)+2) -> 18478 | J64: =VLOOKUP($H64,P_All!$A$5:$D$205,3*($C$8-1)+3) -> 19513 | K64: =VLOOKUP($H64,P_All!$A$5:$D$205,3*($C$8-1)+4) -> 20672 | L64: =IF(ISNA(VLOOKUP($B$6,$A$25:$E$51,IF($B$8=$A$22,3,2))),EXP(VLOOKUP($B$6,$A$25:$E$51,4)*LN(VLOOKUP($H64,#REF!,$C$8+1)/1000)+VLOOKUP($B$6,$A$25:$E$51,5)),VLOOKUP($B$6,$A$25:$E$51,IF($B$8=$A$22,3,2))) ->  | M64: 39 | N64: =VLOOKUP($H64,Other_All!$A$5:$D$205,3*($C$8-1)+2) -> 20608 | O64: =VLOOKUP($H64,Other_All!$A$5:$D$205,3*($C$8-1)+3) -> 23725 | P64: =VLOOKUP($H64,Other_All!$A$5:$D$205,3*($C$8-1)+4) -> 27139 | Q64: =IF(ISNA(VLOOKUP($B$6,$A$25:$E$51,IF($B$8=$A$22,3,2))),EXP(VLOOKUP($B$6,$A$25:$E$51,4)*LN(VLOOKUP($H64,#REF!,$C$8+1)/1000)+VLOOKUP($B$6,$A$25:$E$51,5)),VLOOKUP($B$6,$A$25:$E$51,IF($B$8=$A$22,3,2))) ->  | S64: 43.25 | T64: =VLOOKUP($S64,P_All!$X$5:$AS$245,3*($C$8-1)+2) -> 15553 | U64: =VLOOKUP($S64,P_All!$X$5:$AS$245,3*($C$8-1)+3) -> 16335 | V64: =VLOOKUP($S64,P_All!$X$5:$AS$245,3*($C$8-1)+4) -> 17187 | W64: =IF(ISNA(VLOOKUP($B$6,$A$25:$E$52,IF($B$8=$A$22,3,2))),EXP(VLOOKUP($B$6,$A$25:$E$52,4)*LN(VLOOKUP($S64,#REF!,$C$8+1)/1000)+VLOOKUP($B$6,$A$25:$E$52,5)),VLOOKUP($B$6,$A$25:$E$52,IF($B$8=$A$22,3,2))) -> 
H65: 40 | I65: =VLOOKUP($H65,P_All!$A$5:$D$205,3*($C$8-1)+2) -> 17516 | J65: =VLOOKUP($H65,P_All!$A$5:$D$205,3*($C$8-1)+3) -> 18592 | K65: =VLOOKUP($H65,P_All!$A$5:$D$205,3*($C$8-1)+4) -> 19604 | L65: =IF(ISNA(VLOOKUP($B$6,$A$25:$E$51,IF($B$8=$A$22,3,2))),EXP(VLOOKUP($B$6,$A$25:$E$51,4)*LN(VLOOKUP($H65,#REF!,$C$8+1)/1000)+VLOOKUP($B$6,$A$25:$E$51,5)),VLOOKUP($B$6,$A$25:$E$51,IF($B$8=$A$22,3,2))) ->  | M65: 40 | N65: =VLOOKUP($H65,Other_All!$A$5:$D$205,3*($C$8-1)+2) -> 20122 | O65: =VLOOKUP($H65,Other_All!$A$5:$D$205,3*($C$8-1)+3) -> 23276 | P65: =VLOOKUP($H65,Other_All!$A$5:$D$205,3*($C$8-1)+4) -> 26771 | Q65: =IF(ISNA(VLOOKUP($B$6,$A$25:$E$51,IF($B$8=$A$22,3,2))),EXP(VLOOKUP($B$6,$A$25:$E$51,4)*LN(VLOOKUP($H65,#REF!,$C$8+1)/1000)+VLOOKUP($B$6,$A$25:$E$51,5)),VLOOKUP($B$6,$A$25:$E$51,IF($B$8=$A$22,3,2))) ->  | S65: 43.33333333 | T65: =VLOOKUP($S65,P_All!$X$5:$AS$245,3*($C$8-1)+2) -> 15605 | U65: =VLOOKUP($S65,P_All!$X$5:$AS$245,3*($C$8-1)+3) -> 16407 | V65: =VLOOKUP($S65,P_All!$X$5:$AS$245,3*($C$8-1)+4) -> 17232 | W65: =IF(ISNA(VLOOKUP($B$6,$A$25:$E$52,IF($B$8=$A$22,3,2))),EXP(VLOOKUP($B$6,$A$25:$E$52,4)*LN(VLOOKUP($S65,#REF!,$C$8+1)/1000)+VLOOKUP($B$6,$A$25:$E$52,5)),VLOOKUP($B$6,$A$25:$E$52,IF($B$8=$A$22,3,2))) -> 
H66: 41 | I66: =VLOOKUP($H66,P_All!$A$5:$D$205,3*($C$8-1)+2) -> 16651 | J66: =VLOOKUP($H66,P_All!$A$5:$D$205,3*($C$8-1)+3) -> 17665 | K66: =VLOOKUP($H66,P_All!$A$5:$D$205,3*($C$8-1)+4) -> 18560 | L66: =IF(ISNA(VLOOKUP($B$6,$A$25:$E$51,IF($B$8=$A$22,3,2))),EXP(VLOOKUP($B$6,$A$25:$E$51,4)*LN(VLOOKUP($H66,#REF!,$C$8+1)/1000)+VLOOKUP($B$6,$A$25:$E$51,5)),VLOOKUP($B$6,$A$25:$E$51,IF($B$8=$A$22,3,2))) ->  | M66: 41 | N66: =VLOOKUP($H66,Other_All!$A$5:$D$205,3*($C$8-1)+2) -> 19739 | O66: =VLOOKUP($H66,Other_All!$A$5:$D$205,3*($C$8-1)+3) -> 22825 | P66: =VLOOKUP($H66,Other_All!$A$5:$D$205,3*($C$8-1)+4) -> 26135 | Q66: =IF(ISNA(VLOOKUP($B$6,$A$25:$E$51,IF($B$8=$A$22,3,2))),EXP(VLOOKUP($B$6,$A$25:$E$51,4)*LN(VLOOKUP($H66,#REF!,$C$8+1)/1000)+VLOOKUP($B$6,$A$25:$E$51,5)),VLOOKUP($B$6,$A$25:$E$51,IF($B$8=$A$22,3,2))) ->  | S66: 43.41666667 | T66: =VLOOKUP($S66,P_All!$X$5:$AS$245,3*($C$8-1)+2) -> 15586 | U66: =VLOOKUP($S66,P_All!$X$5:$AS$245,3*($C$8-1)+3) -> 16378 | V66: =VLOOKUP($S66,P_All!$X$5:$AS$245,3*($C$8-1)+4) -> 17226 | W66: =IF(ISNA(VLOOKUP($B$6,$A$25:$E$52,IF($B$8=$A$22,3,2))),EXP(VLOOKUP($B$6,$A$25:$E$52,4)*LN(VLOOKUP($S66,#REF!,$C$8+1)/1000)+VLOOKUP($B$6,$A$25:$E$52,5)),VLOOKUP($B$6,$A$25:$E$52,IF($B$8=$A$22,3,2))) -> 
H67: 42 | I67: =VLOOKUP($H67,P_All!$A$5:$D$205,3*($C$8-1)+2) -> 16123 | J67: =VLOOKUP($H67,P_All!$A$5:$D$205,3*($C$8-1)+3) -> 16893 | K67: =VLOOKUP($H67,P_All!$A$5:$D$205,3*($C$8-1)+4) -> 17884 | L67: =IF(ISNA(VLOOKUP($B$6,$A$25:$E$51,IF($B$8=$A$22,3,2))),EXP(VLOOKUP($B$6,$A$25:$E$51,4)*LN(VLOOKUP($H67,#REF!,$C$8+1)/1000)+VLOOKUP($B$6,$A$25:$E$51,5)),VLOOKUP($B$6,$A$25:$E$51,IF($B$8=$A$22,3,2))) ->  | M67: 42 | N67: =VLOOKUP($H67,Other_All!$A$5:$D$205,3*($C$8-1)+2) -> 19505 | O67: =VLOOKUP($H67,Other_All!$A$5:$D$205,3*($C$8-1)+3) -> 22281 | P67: =VLOOKUP($H67,Other_All!$A$5:$D$205,3*($C$8-1)+4) -> 25675 | Q67: =IF(ISNA(VLOOKUP($B$6,$A$25:$E$51,IF($B$8=$A$22,3,2))),EXP(VLOOKUP($B$6,$A$25:$E$51,4)*LN(VLOOKUP($H67,#REF!,$C$8+1)/1000)+VLOOKUP($B$6,$A$25:$E$51,5)),VLOOKUP($B$6,$A$25:$E$51,IF($B$8=$A$22,3,2))) ->  | S67: 43.5 | T67: =VLOOKUP($S67,P_All!$X$5:$AS$245,3*($C$8-1)+2) -> 15464 | U67: =VLOOKUP($S67,P_All!$X$5:$AS$245,3*($C$8-1)+3) -> 16270 | V67: =VLOOKUP($S67,P_All!$X$5:$AS$245,3*($C$8-1)+4) -> 17093 | W67: =IF(ISNA(VLOOKUP($B$6,$A$25:$E$52,IF($B$8=$A$22,3,2))),EXP(VLOOKUP($B$6,$A$25:$E$52,4)*LN(VLOOKUP($S67,#REF!,$C$8+1)/1000)+VLOOKUP($B$6,$A$25:$E$52,5)),VLOOKUP($B$6,$A$25:$E$52,IF($B$8=$A$22,3,2))) -> 
H68: 43 | I68: =VLOOKUP($H68,P_All!$A$5:$D$205,3*($C$8-1)+2) -> 15605 | J68: =VLOOKUP($H68,P_All!$A$5:$D$205,3*($C$8-1)+3) -> 16411 | K68: =VLOOKUP($H68,P_All!$A$5:$D$205,3*($C$8-1)+4) -> 17290 | L68: =IF(ISNA(VLOOKUP($B$6,$A$25:$E$51,IF($B$8=$A$22,3,2))),EXP(VLOOKUP($B$6,$A$25:$E$51,4)*LN(VLOOKUP($H68,#REF!,$C$8+1)/1000)+VLOOKUP($B$6,$A$25:$E$51,5)),VLOOKUP($B$6,$A$25:$E$51,IF($B$8=$A$22,3,2))) ->  | M68: 43 | N68: =VLOOKUP($H68,Other_All!$A$5:$D$205,3*($C$8-1)+2) -> 19231 | O68: =VLOOKUP($H68,Other_All!$A$5:$D$205,3*($C$8-1)+3) -> 21884 | P68: =VLOOKUP($H68,Other_All!$A$5:$D$205,3*($C$8-1)+4) -> 25306 | Q68: =IF(ISNA(VLOOKUP($B$6,$A$25:$E$51,IF($B$8=$A$22,3,2))),EXP(VLOOKUP($B$6,$A$25:$E$51,4)*LN(VLOOKUP($H68,#REF!,$C$8+1)/1000)+VLOOKUP($B$6,$A$25:$E$51,5)),VLOOKUP($B$6,$A$25:$E$51,IF($B$8=$A$22,3,2))) ->  | S68: 43.58333333 | T68: =VLOOKUP($S68,P_All!$X$5:$AS$245,3*($C$8-1)+2) -> 15388 | U68: =VLOOKUP($S68,P_All!$X$5:$AS$245,3*($C$8-1)+3) -> 16228 | V68: =VLOOKUP($S68,P_All!$X$5:$AS$245,3*($C$8-1)+4) -> 17070 | W68: =IF(ISNA(VLOOKUP($B$6,$A$25:$E$52,IF($B$8=$A$22,3,2))),EXP(VLOOKUP($B$6,$A$25:$E$52,4)*LN(VLOOKUP($S68,#REF!,$C$8+1)/1000)+VLOOKUP($B$6,$A$25:$E$52,5)),VLOOKUP($B$6,$A$25:$E$52,IF($B$8=$A$22,3,2))) -> 
H69: 44 | I69: =VLOOKUP($H69,P_All!$A$5:$D$205,3*($C$8-1)+2) -> 15165 | J69: =VLOOKUP($H69,P_All!$A$5:$D$205,3*($C$8-1)+3) -> 15996 | K69: =VLOOKUP($H69,P_All!$A$5:$D$205,3*($C$8-1)+4) -> 16767 | L69: =IF(ISNA(VLOOKUP($B$6,$A$25:$E$51,IF($B$8=$A$22,3,2))),EXP(VLOOKUP($B$6,$A$25:$E$51,4)*LN(VLOOKUP($H69,#REF!,$C$8+1)/1000)+VLOOKUP($B$6,$A$25:$E$51,5)),VLOOKUP($B$6,$A$25:$E$51,IF($B$8=$A$22,3,2))) ->  | M69: 44 | N69: =VLOOKUP($H69,Other_All!$A$5:$D$205,3*($C$8-1)+2) -> 18902 | O69: =VLOOKUP($H69,Other_All!$A$5:$D$205,3*($C$8-1)+3) -> 21564 | P69: =VLOOKUP($H69,Other_All!$A$5:$D$205,3*($C$8-1)+4) -> 24595 | Q69: =IF(ISNA(VLOOKUP($B$6,$A$25:$E$51,IF($B$8=$A$22,3,2))),EXP(VLOOKUP($B$6,$A$25:$E$51,4)*LN(VLOOKUP($H69,#REF!,$C$8+1)/1000)+VLOOKUP($B$6,$A$25:$E$51,5)),VLOOKUP($B$6,$A$25:$E$51,IF($B$8=$A$22,3,2))) ->  | S69: 43.66666667 | T69: =VLOOKUP($S69,P_All!$X$5:$AS$245,3*($C$8-1)+2) -> 15341 | U69: =VLOOKUP($S69,P_All!$X$5:$AS$245,3*($C$8-1)+3) -> 16199 | V69: =VLOOKUP($S69,P_All!$X$5:$AS$245,3*($C$8-1)+4) -> 17046 | W69: =IF(ISNA(VLOOKUP($B$6,$A$25:$E$52,IF($B$8=$A$22,3,2))),EXP(VLOOKUP($B$6,$A$25:$E$52,4)*LN(VLOOKUP($S69,#REF!,$C$8+1)/1000)+VLOOKUP($B$6,$A$25:$E$52,5)),VLOOKUP($B$6,$A$25:$E$52,IF($B$8=$A$22,3,2))) -> 
H70: 45 | I70: =VLOOKUP($H70,P_All!$A$5:$D$205,3*($C$8-1)+2) -> 14857 | J70: =VLOOKUP($H70,P_All!$A$5:$D$205,3*($C$8-1)+3) -> 15621 | K70: =VLOOKUP($H70,P_All!$A$5:$D$205,3*($C$8-1)+4) -> 16459 | L70: =IF(ISNA(VLOOKUP($B$6,$A$25:$E$51,IF($B$8=$A$22,3,2))),EXP(VLOOKUP($B$6,$A$25:$E$51,4)*LN(VLOOKUP($H70,#REF!,$C$8+1)/1000)+VLOOKUP($B$6,$A$25:$E$51,5)),VLOOKUP($B$6,$A$25:$E$51,IF($B$8=$A$22,3,2))) ->  | M70: 45 | N70: =VLOOKUP($H70,Other_All!$A$5:$D$205,3*($C$8-1)+2) -> 18624 | O70: =VLOOKUP($H70,Other_All!$A$5:$D$205,3*($C$8-1)+3) -> 21224 | P70: =VLOOKUP($H70,Other_All!$A$5:$D$205,3*($C$8-1)+4) -> 24258 | Q70: =IF(ISNA(VLOOKUP($B$6,$A$25:$E$51,IF($B$8=$A$22,3,2))),EXP(VLOOKUP($B$6,$A$25:$E$51,4)*LN(VLOOKUP($H70,#REF!,$C$8+1)/1000)+VLOOKUP($B$6,$A$25:$E$51,5)),VLOOKUP($B$6,$A$25:$E$51,IF($B$8=$A$22,3,2))) ->  | S70: 43.75 | T70: =VLOOKUP($S70,P_All!$X$5:$AS$245,3*($C$8-1)+2) -> 15189 | U70: =VLOOKUP($S70,P_All!$X$5:$AS$245,3*($C$8-1)+3) -> 16101 | V70: =VLOOKUP($S70,P_All!$X$5:$AS$245,3*($C$8-1)+4) -> 16962 | W70: =IF(ISNA(VLOOKUP($B$6,$A$25:$E$52,IF($B$8=$A$22,3,2))),EXP(VLOOKUP($B$6,$A$25:$E$52,4)*LN(VLOOKUP($S70,#REF!,$C$8+1)/1000)+VLOOKUP($B$6,$A$25:$E$52,5)),VLOOKUP($B$6,$A$25:$E$52,IF($B$8=$A$22,3,2))) -> 
H71: 46 | I71: =VLOOKUP($H71,P_All!$A$5:$D$205,3*($C$8-1)+2) -> 14568 | J71: =VLOOKUP($H71,P_All!$A$5:$D$205,3*($C$8-1)+3) -> 15291 | K71: =VLOOKUP($H71,P_All!$A$5:$D$205,3*($C$8-1)+4) -> 16195 | L71: =IF(ISNA(VLOOKUP($B$6,$A$25:$E$51,IF($B$8=$A$22,3,2))),EXP(VLOOKUP($B$6,$A$25:$E$51,4)*LN(VLOOKUP($H71,#REF!,$C$8+1)/1000)+VLOOKUP($B$6,$A$25:$E$51,5)),VLOOKUP($B$6,$A$25:$E$51,IF($B$8=$A$22,3,2))) ->  | M71: 46 | N71: =VLOOKUP($H71,Other_All!$A$5:$D$205,3*($C$8-1)+2) -> 18443 | O71: =VLOOKUP($H71,Other_All!$A$5:$D$205,3*($C$8-1)+3) -> 20998 | P71: =VLOOKUP($H71,Other_All!$A$5:$D$205,3*($C$8-1)+4) -> 23906 | Q71: =IF(ISNA(VLOOKUP($B$6,$A$25:$E$51,IF($B$8=$A$22,3,2))),EXP(VLOOKUP($B$6,$A$25:$E$51,4)*LN(VLOOKUP($H71,#REF!,$C$8+1)/1000)+VLOOKUP($B$6,$A$25:$E$51,5)),VLOOKUP($B$6,$A$25:$E$51,IF($B$8=$A$22,3,2))) ->  | S71: 43.83333333 | T71: =VLOOKUP($S71,P_All!$X$5:$AS$245,3*($C$8-1)+2) -> 15121 | U71: =VLOOKUP($S71,P_All!$X$5:$AS$245,3*($C$8-1)+3) -> 16051 | V71: =VLOOKUP($S71,P_All!$X$5:$AS$245,3*($C$8-1)+4) -> 16926 | W71: =IF(ISNA(VLOOKUP($B$6,$A$25:$E$52,IF($B$8=$A$22,3,2))),EXP(VLOOKUP($B$6,$A$25:$E$52,4)*LN(VLOOKUP($S71,#REF!,$C$8+1)/1000)+VLOOKUP($B$6,$A$25:$E$52,5)),VLOOKUP($B$6,$A$25:$E$52,IF($B$8=$A$22,3,2))) -> 
H72: 47 | I72: =VLOOKUP($H72,P_All!$A$5:$D$205,3*($C$8-1)+2) -> 14283 | J72: =VLOOKUP($H72,P_All!$A$5:$D$205,3*($C$8-1)+3) -> 14986 | K72: =VLOOKUP($H72,P_All!$A$5:$D$205,3*($C$8-1)+4) -> 16046 | L72: =IF(ISNA(VLOOKUP($B$6,$A$25:$E$51,IF($B$8=$A$22,3,2))),EXP(VLOOKUP($B$6,$A$25:$E$51,4)*LN(VLOOKUP($H72,#REF!,$C$8+1)/1000)+VLOOKUP($B$6,$A$25:$E$51,5)),VLOOKUP($B$6,$A$25:$E$51,IF($B$8=$A$22,3,2))) ->  | M72: 47 | N72: =VLOOKUP($H72,Other_All!$A$5:$D$205,3*($C$8-1)+2) -> 18216 | O72: =VLOOKUP($H72,Other_All!$A$5:$D$205,3*($C$8-1)+3) -> 20781 | P72: =VLOOKUP($H72,Other_All!$A$5:$D$205,3*($C$8-1)+4) -> 23559 | Q72: =IF(ISNA(VLOOKUP($B$6,$A$25:$E$51,IF($B$8=$A$22,3,2))),EXP(VLOOKUP($B$6,$A$25:$E$51,4)*LN(VLOOKUP($H72,#REF!,$C$8+1)/1000)+VLOOKUP($B$6,$A$25:$E$51,5)),VLOOKUP($B$6,$A$25:$E$51,IF($B$8=$A$22,3,2))) ->  | S72: 43.91666667 | T72: =VLOOKUP($S72,P_All!$X$5:$AS$245,3*($C$8-1)+2) -> 15096 | U72: =VLOOKUP($S72,P_All!$X$5:$AS$245,3*($C$8-1)+3) -> 16006 | V72: =VLOOKUP($S72,P_All!$X$5:$AS$245,3*($C$8-1)+4) -> 16867 | W72: =IF(ISNA(VLOOKUP($B$6,$A$25:$E$52,IF($B$8=$A$22,3,2))),EXP(VLOOKUP($B$6,$A$25:$E$52,4)*LN(VLOOKUP($S72,#REF!,$C$8+1)/1000)+VLOOKUP($B$6,$A$25:$E$52,5)),VLOOKUP($B$6,$A$25:$E$52,IF($B$8=$A$22,3,2))) -> 
H73: 48 | I73: =VLOOKUP($H73,P_All!$A$5:$D$205,3*($C$8-1)+2) -> 14034 | J73: =VLOOKUP($H73,P_All!$A$5:$D$205,3*($C$8-1)+3) -> 14710 | K73: =VLOOKUP($H73,P_All!$A$5:$D$205,3*($C$8-1)+4) -> 16450 | L73: =IF(ISNA(VLOOKUP($B$6,$A$25:$E$51,IF($B$8=$A$22,3,2))),EXP(VLOOKUP($B$6,$A$25:$E$51,4)*LN(VLOOKUP($H73,#REF!,$C$8+1)/1000)+VLOOKUP($B$6,$A$25:$E$51,5)),VLOOKUP($B$6,$A$25:$E$51,IF($B$8=$A$22,3,2))) ->  | M73: 48 | N73: =VLOOKUP($H73,Other_All!$A$5:$D$205,3*($C$8-1)+2) -> 18075 | O73: =VLOOKUP($H73,Other_All!$A$5:$D$205,3*($C$8-1)+3) -> 20719 | P73: =VLOOKUP($H73,Other_All!$A$5:$D$205,3*($C$8-1)+4) -> 23444 | Q73: =IF(ISNA(VLOOKUP($B$6,$A$25:$E$51,IF($B$8=$A$22,3,2))),EXP(VLOOKUP($B$6,$A$25:$E$51,4)*LN(VLOOKUP($H73,#REF!,$C$8+1)/1000)+VLOOKUP($B$6,$A$25:$E$51,5)),VLOOKUP($B$6,$A$25:$E$51,IF($B$8=$A$22,3,2))) ->  | S73: 44 | T73: =VLOOKUP($S73,P_All!$X$5:$AS$245,3*($C$8-1)+2) -> 15071 | U73: =VLOOKUP($S73,P_All!$X$5:$AS$245,3*($C$8-1)+3) -> 15948 | V73: =VLOOKUP($S73,P_All!$X$5:$AS$245,3*($C$8-1)+4) -> 16767 | W73: =IF(ISNA(VLOOKUP($B$6,$A$25:$E$52,IF($B$8=$A$22,3,2))),EXP(VLOOKUP($B$6,$A$25:$E$52,4)*LN(VLOOKUP($S73,#REF!,$C$8+1)/1000)+VLOOKUP($B$6,$A$25:$E$52,5)),VLOOKUP($B$6,$A$25:$E$52,IF($B$8=$A$22,3,2))) -> 
H74: 49 | I74: =VLOOKUP($H74,P_All!$A$5:$D$205,3*($C$8-1)+2) -> 13801 | J74: =VLOOKUP($H74,P_All!$A$5:$D$205,3*($C$8-1)+3) -> 14425 | K74: =VLOOKUP($H74,P_All!$A$5:$D$205,3*($C$8-1)+4) -> 17338 | L74: =IF(ISNA(VLOOKUP($B$6,$A$25:$E$51,IF($B$8=$A$22,3,2))),EXP(VLOOKUP($B$6,$A$25:$E$51,4)*LN(VLOOKUP($H74,#REF!,$C$8+1)/1000)+VLOOKUP($B$6,$A$25:$E$51,5)),VLOOKUP($B$6,$A$25:$E$51,IF($B$8=$A$22,3,2))) ->  | M74: 49 | N74: =VLOOKUP($H74,Other_All!$A$5:$D$205,3*($C$8-1)+2) -> 18194 | O74: =VLOOKUP($H74,Other_All!$A$5:$D$205,3*($C$8-1)+3) -> 20454 | P74: =VLOOKUP($H74,Other_All!$A$5:$D$205,3*($C$8-1)+4) -> 23249 | Q74: =IF(ISNA(VLOOKUP($B$6,$A$25:$E$51,IF($B$8=$A$22,3,2))),EXP(VLOOKUP($B$6,$A$25:$E$51,4)*LN(VLOOKUP($H74,#REF!,$C$8+1)/1000)+VLOOKUP($B$6,$A$25:$E$51,5)),VLOOKUP($B$6,$A$25:$E$51,IF($B$8=$A$22,3,2))) ->  | S74: 44.08333333 | T74: =VLOOKUP($S74,P_All!$X$5:$AS$245,3*($C$8-1)+2) -> 15060 | U74: =VLOOKUP($S74,P_All!$X$5:$AS$245,3*($C$8-1)+3) -> 15921 | V74: =VLOOKUP($S74,P_All!$X$5:$AS$245,3*($C$8-1)+4) -> 16706 | W74: =IF(ISNA(VLOOKUP($B$6,$A$25:$E$52,IF($B$8=$A$22,3,2))),EXP(VLOOKUP($B$6,$A$25:$E$52,4)*LN(VLOOKUP($S74,#REF!,$C$8+1)/1000)+VLOOKUP($B$6,$A$25:$E$52,5)),VLOOKUP($B$6,$A$25:$E$52,IF($B$8=$A$22,3,2))) -> 
H75: 50 | I75: =VLOOKUP($H75,P_All!$A$5:$D$205,3*($C$8-1)+2) -> 13512 | J75: =VLOOKUP($H75,P_All!$A$5:$D$205,3*($C$8-1)+3) -> 14209 | K75: =VLOOKUP($H75,P_All!$A$5:$D$205,3*($C$8-1)+4) -> 18320 | L75: =IF(ISNA(VLOOKUP($B$6,$A$25:$E$51,IF($B$8=$A$22,3,2))),EXP(VLOOKUP($B$6,$A$25:$E$51,4)*LN(VLOOKUP($H75,#REF!,$C$8+1)/1000)+VLOOKUP($B$6,$A$25:$E$51,5)),VLOOKUP($B$6,$A$25:$E$51,IF($B$8=$A$22,3,2))) ->  | M75: 50 | N75: =VLOOKUP($H75,Other_All!$A$5:$D$205,3*($C$8-1)+2) -> 17898 | O75: =VLOOKUP($H75,Other_All!$A$5:$D$205,3*($C$8-1)+3) -> 20385 | P75: =VLOOKUP($H75,Other_All!$A$5:$D$205,3*($C$8-1)+4) -> 22920 | Q75: =IF(ISNA(VLOOKUP($B$6,$A$25:$E$51,IF($B$8=$A$22,3,2))),EXP(VLOOKUP($B$6,$A$25:$E$51,4)*LN(VLOOKUP($H75,#REF!,$C$8+1)/1000)+VLOOKUP($B$6,$A$25:$E$51,5)),VLOOKUP($B$6,$A$25:$E$51,IF($B$8=$A$22,3,2))) ->  | S75: 44.16666667 | T75: =VLOOKUP($S75,P_All!$X$5:$AS$245,3*($C$8-1)+2) -> 15071 | U75: =VLOOKUP($S75,P_All!$X$5:$AS$245,3*($C$8-1)+3) -> 15907 | V75: =VLOOKUP($S75,P_All!$X$5:$AS$245,3*($C$8-1)+4) -> 16667 | W75: =IF(ISNA(VLOOKUP($B$6,$A$25:$E$52,IF($B$8=$A$22,3,2))),EXP(VLOOKUP($B$6,$A$25:$E$52,4)*LN(VLOOKUP($S75,#REF!,$C$8+1)/1000)+VLOOKUP($B$6,$A$25:$E$52,5)),VLOOKUP($B$6,$A$25:$E$52,IF($B$8=$A$22,3,2))) -> 
H76: 51 | I76: =VLOOKUP($H76,P_All!$A$5:$D$205,3*($C$8-1)+2) -> 13283 | J76: =VLOOKUP($H76,P_All!$A$5:$D$205,3*($C$8-1)+3) -> 14005 | K76: =VLOOKUP($H76,P_All!$A$5:$D$205,3*($C$8-1)+4) -> 19385 | L76: =IF(ISNA(VLOOKUP($B$6,$A$25:$E$51,IF($B$8=$A$22,3,2))),EXP(VLOOKUP($B$6,$A$25:$E$51,4)*LN(VLOOKUP($H76,#REF!,$C$8+1)/1000)+VLOOKUP($B$6,$A$25:$E$51,5)),VLOOKUP($B$6,$A$25:$E$51,IF($B$8=$A$22,3,2))) ->  | M76: 51 | N76: =VLOOKUP($H76,Other_All!$A$5:$D$205,3*($C$8-1)+2) -> 17805 | O76: =VLOOKUP($H76,Other_All!$A$5:$D$205,3*($C$8-1)+3) -> 20338 | P76: =VLOOKUP($H76,Other_All!$A$5:$D$205,3*($C$8-1)+4) -> 22646 | Q76: =IF(ISNA(VLOOKUP($B$6,$A$25:$E$51,IF($B$8=$A$22,3,2))),EXP(VLOOKUP($B$6,$A$25:$E$51,4)*LN(VLOOKUP($H76,#REF!,$C$8+1)/1000)+VLOOKUP($B$6,$A$25:$E$51,5)),VLOOKUP($B$6,$A$25:$E$51,IF($B$8=$A$22,3,2))) ->  | S76: 44.25 | T76: =VLOOKUP($S76,P_All!$X$5:$AS$245,3*($C$8-1)+2) -> 15095 | U76: =VLOOKUP($S76,P_All!$X$5:$AS$245,3*($C$8-1)+3) -> 15931 | V76: =VLOOKUP($S76,P_All!$X$5:$AS$245,3*($C$8-1)+4) -> 16662 | W76: =IF(ISNA(VLOOKUP($B$6,$A$25:$E$52,IF($B$8=$A$22,3,2))),EXP(VLOOKUP($B$6,$A$25:$E$52,4)*LN(VLOOKUP($S76,#REF!,$C$8+1)/1000)+VLOOKUP($B$6,$A$25:$E$52,5)),VLOOKUP($B$6,$A$25:$E$52,IF($B$8=$A$22,3,2))) -> 
H77: 52 | I77: =VLOOKUP($H77,P_All!$A$5:$D$205,3*($C$8-1)+2) -> 13049 | J77: =VLOOKUP($H77,P_All!$A$5:$D$205,3*($C$8-1)+3) -> 13860 | K77: =VLOOKUP($H77,P_All!$A$5:$D$205,3*($C$8-1)+4) -> 19970 | L77: =IF(ISNA(VLOOKUP($B$6,$A$25:$E$51,IF($B$8=$A$22,3,2))),EXP(VLOOKUP($B$6,$A$25:$E$51,4)*LN(VLOOKUP($H77,#REF!,$C$8+1)/1000)+VLOOKUP($B$6,$A$25:$E$51,5)),VLOOKUP($B$6,$A$25:$E$51,IF($B$8=$A$22,3,2))) ->  | M77: 52 | N77: =VLOOKUP($H77,Other_All!$A$5:$D$205,3*($C$8-1)+2) -> 17829 | O77: =VLOOKUP($H77,Other_All!$A$5:$D$205,3*($C$8-1)+3) -> 20221 | P77: =VLOOKUP($H77,Other_All!$A$5:$D$205,3*($C$8-1)+4) -> 22686 | Q77: =IF(ISNA(VLOOKUP($B$6,$A$25:$E$51,IF($B$8=$A$22,3,2))),EXP(VLOOKUP($B$6,$A$25:$E$51,4)*LN(VLOOKUP($H77,#REF!,$C$8+1)/1000)+VLOOKUP($B$6,$A$25:$E$51,5)),VLOOKUP($B$6,$A$25:$E$51,IF($B$8=$A$22,3,2))) ->  | S77: 44.33333333 | T77: =VLOOKUP($S77,P_All!$X$5:$AS$245,3*($C$8-1)+2) -> 15163 | U77: =VLOOKUP($S77,P_All!$X$5:$AS$245,3*($C$8-1)+3) -> 15996 | V77: =VLOOKUP($S77,P_All!$X$5:$AS$245,3*($C$8-1)+4) -> 16738 | W77: =IF(ISNA(VLOOKUP($B$6,$A$25:$E$52,IF($B$8=$A$22,3,2))),EXP(VLOOKUP($B$6,$A$25:$E$52,4)*LN(VLOOKUP($S77,#REF!,$C$8+1)/1000)+VLOOKUP($B$6,$A$25:$E$52,5)),VLOOKUP($B$6,$A$25:$E$52,IF($B$8=$A$22,3,2))) -> 
H78: 53 | I78: =VLOOKUP($H78,P_All!$A$5:$D$205,3*($C$8-1)+2) -> 12800 | J78: =VLOOKUP($H78,P_All!$A$5:$D$205,3*($C$8-1)+3) -> 13684 | K78: =VLOOKUP($H78,P_All!$A$5:$D$205,3*($C$8-1)+4) -> 20479 | L78: =IF(ISNA(VLOOKUP($B$6,$A$25:$E$51,IF($B$8=$A$22,3,2))),EXP(VLOOKUP($B$6,$A$25:$E$51,4)*LN(VLOOKUP($H78,#REF!,$C$8+1)/1000)+VLOOKUP($B$6,$A$25:$E$51,5)),VLOOKUP($B$6,$A$25:$E$51,IF($B$8=$A$22,3,2))) ->  | M78: 53 | N78: =VLOOKUP($H78,Other_All!$A$5:$D$205,3*($C$8-1)+2) -> 17636 | O78: =VLOOKUP($H78,Other_All!$A$5:$D$205,3*($C$8-1)+3) -> 20134 | P78: =VLOOKUP($H78,Other_All!$A$5:$D$205,3*($C$8-1)+4) -> 22834 | Q78: =IF(ISNA(VLOOKUP($B$6,$A$25:$E$51,IF($B$8=$A$22,3,2))),EXP(VLOOKUP($B$6,$A$25:$E$51,4)*LN(VLOOKUP($H78,#REF!,$C$8+1)/1000)+VLOOKUP($B$6,$A$25:$E$51,5)),VLOOKUP($B$6,$A$25:$E$51,IF($B$8=$A$22,3,2))) ->  | S78: 44.41666667 | T78: =VLOOKUP($S78,P_All!$X$5:$AS$245,3*($C$8-1)+2) -> 15165 | U78: =VLOOKUP($S78,P_All!$X$5:$AS$245,3*($C$8-1)+3) -> 15964 | V78: =VLOOKUP($S78,P_All!$X$5:$AS$245,3*($C$8-1)+4) -> 16746 | W78: =IF(ISNA(VLOOKUP($B$6,$A$25:$E$52,IF($B$8=$A$22,3,2))),EXP(VLOOKUP($B$6,$A$25:$E$52,4)*LN(VLOOKUP($S78,#REF!,$C$8+1)/1000)+VLOOKUP($B$6,$A$25:$E$52,5)),VLOOKUP($B$6,$A$25:$E$52,IF($B$8=$A$22,3,2))) -> 
H79: 54 | I79: =VLOOKUP($H79,P_All!$A$5:$D$205,3*($C$8-1)+2) -> 12601 | J79: =VLOOKUP($H79,P_All!$A$5:$D$205,3*($C$8-1)+3) -> 13662 | K79: =VLOOKUP($H79,P_All!$A$5:$D$205,3*($C$8-1)+4) -> 21052 | L79: =IF(ISNA(VLOOKUP($B$6,$A$25:$E$51,IF($B$8=$A$22,3,2))),EXP(VLOOKUP($B$6,$A$25:$E$51,4)*LN(VLOOKUP($H79,#REF!,$C$8+1)/1000)+VLOOKUP($B$6,$A$25:$E$51,5)),VLOOKUP($B$6,$A$25:$E$51,IF($B$8=$A$22,3,2))) ->  | M79: 54 | N79: =VLOOKUP($H79,Other_All!$A$5:$D$205,3*($C$8-1)+2) -> 17758 | O79: =VLOOKUP($H79,Other_All!$A$5:$D$205,3*($C$8-1)+3) -> 20068 | P79: =VLOOKUP($H79,Other_All!$A$5:$D$205,3*($C$8-1)+4) -> 22690 | Q79: =IF(ISNA(VLOOKUP($B$6,$A$25:$E$51,IF($B$8=$A$22,3,2))),EXP(VLOOKUP($B$6,$A$25:$E$51,4)*LN(VLOOKUP($H79,#REF!,$C$8+1)/1000)+VLOOKUP($B$6,$A$25:$E$51,5)),VLOOKUP($B$6,$A$25:$E$51,IF($B$8=$A$22,3,2))) ->  | S79: 44.5 | T79: =VLOOKUP($S79,P_All!$X$5:$AS$245,3*($C$8-1)+2) -> 15076 | U79: =VLOOKUP($S79,P_All!$X$5:$AS$245,3*($C$8-1)+3) -> 15835 | V79: =VLOOKUP($S79,P_All!$X$5:$AS$245,3*($C$8-1)+4) -> 16662 | W79: =IF(ISNA(VLOOKUP($B$6,$A$25:$E$52,IF($B$8=$A$22,3,2))),EXP(VLOOKUP($B$6,$A$25:$E$52,4)*LN(VLOOKUP($S79,#REF!,$C$8+1)/1000)+VLOOKUP($B$6,$A$25:$E$52,5)),VLOOKUP($B$6,$A$25:$E$52,IF($B$8=$A$22,3,2))) -> 
H80: 55 | I80: =VLOOKUP($H80,P_All!$A$5:$D$205,3*($C$8-1)+2) -> 12433 | J80: =VLOOKUP($H80,P_All!$A$5:$D$205,3*($C$8-1)+3) -> 13852 | K80: =VLOOKUP($H80,P_All!$A$5:$D$205,3*($C$8-1)+4) -> 21118 | L80: =IF(ISNA(VLOOKUP($B$6,$A$25:$E$51,IF($B$8=$A$22,3,2))),EXP(VLOOKUP($B$6,$A$25:$E$51,4)*LN(VLOOKUP($H80,#REF!,$C$8+1)/1000)+VLOOKUP($B$6,$A$25:$E$51,5)),VLOOKUP($B$6,$A$25:$E$51,IF($B$8=$A$22,3,2))) ->  | M80: 55 | N80: =VLOOKUP($H80,Other_All!$A$5:$D$205,3*($C$8-1)+2) -> 17818 | O80: =VLOOKUP($H80,Other_All!$A$5:$D$205,3*($C$8-1)+3) -> 19971 | P80: =VLOOKUP($H80,Other_All!$A$5:$D$205,3*($C$8-1)+4) -> 22730 | Q80: =IF(ISNA(VLOOKUP($B$6,$A$25:$E$51,IF($B$8=$A$22,3,2))),EXP(VLOOKUP($B$6,$A$25:$E$51,4)*LN(VLOOKUP($H80,#REF!,$C$8+1)/1000)+VLOOKUP($B$6,$A$25:$E$51,5)),VLOOKUP($B$6,$A$25:$E$51,IF($B$8=$A$22,3,2))) ->  | S80: 44.58333333 | T80: =VLOOKUP($S80,P_All!$X$5:$AS$245,3*($C$8-1)+2) -> 14998 | U80: =VLOOKUP($S80,P_All!$X$5:$AS$245,3*($C$8-1)+3) -> 15805 | V80: =VLOOKUP($S80,P_All!$X$5:$AS$245,3*($C$8-1)+4) -> 16659 | W80: =IF(ISNA(VLOOKUP($B$6,$A$25:$E$52,IF($B$8=$A$22,3,2))),EXP(VLOOKUP($B$6,$A$25:$E$52,4)*LN(VLOOKUP($S80,#REF!,$C$8+1)/1000)+VLOOKUP($B$6,$A$25:$E$52,5)),VLOOKUP($B$6,$A$25:$E$52,IF($B$8=$A$22,3,2))) -> 
H81: 56 | I81: =VLOOKUP($H81,P_All!$A$5:$D$205,3*($C$8-1)+2) -> 12298 | J81: =VLOOKUP($H81,P_All!$A$5:$D$205,3*($C$8-1)+3) -> 14860 | K81: =VLOOKUP($H81,P_All!$A$5:$D$205,3*($C$8-1)+4) -> 21073 | L81: =IF(ISNA(VLOOKUP($B$6,$A$25:$E$51,IF($B$8=$A$22,3,2))),EXP(VLOOKUP($B$6,$A$25:$E$51,4)*LN(VLOOKUP($H81,#REF!,$C$8+1)/1000)+VLOOKUP($B$6,$A$25:$E$51,5)),VLOOKUP($B$6,$A$25:$E$51,IF($B$8=$A$22,3,2))) ->  | M81: 56 | N81: =VLOOKUP($H81,Other_All!$A$5:$D$205,3*($C$8-1)+2) -> 17651 | O81: =VLOOKUP($H81,Other_All!$A$5:$D$205,3*($C$8-1)+3) -> 20060 | P81: =VLOOKUP($H81,Other_All!$A$5:$D$205,3*($C$8-1)+4) -> 22629 | Q81: =IF(ISNA(VLOOKUP($B$6,$A$25:$E$51,IF($B$8=$A$22,3,2))),EXP(VLOOKUP($B$6,$A$25:$E$51,4)*LN(VLOOKUP($H81,#REF!,$C$8+1)/1000)+VLOOKUP($B$6,$A$25:$E$51,5)),VLOOKUP($B$6,$A$25:$E$51,IF($B$8=$A$22,3,2))) ->  | S81: 44.66666667 | T81: =VLOOKUP($S81,P_All!$X$5:$AS$245,3*($C$8-1)+2) -> 14951 | U81: =VLOOKUP($S81,P_All!$X$5:$AS$245,3*($C$8-1)+3) -> 15785 | V81: =VLOOKUP($S81,P_All!$X$5:$AS$245,3*($C$8-1)+4) -> 16654 | W81: =IF(ISNA(VLOOKUP($B$6,$A$25:$E$52,IF($B$8=$A$22,3,2))),EXP(VLOOKUP($B$6,$A$25:$E$52,4)*LN(VLOOKUP($S81,#REF!,$C$8+1)/1000)+VLOOKUP($B$6,$A$25:$E$52,5)),VLOOKUP($B$6,$A$25:$E$52,IF($B$8=$A$22,3,2))) -> 
H82: 57 | I82: =VLOOKUP($H82,P_All!$A$5:$D$205,3*($C$8-1)+2) -> 12246 | J82: =VLOOKUP($H82,P_All!$A$5:$D$205,3*($C$8-1)+3) -> 15731 | K82: =VLOOKUP($H82,P_All!$A$5:$D$205,3*($C$8-1)+4) -> 21269 | L82: =IF(ISNA(VLOOKUP($B$6,$A$25:$E$51,IF($B$8=$A$22,3,2))),EXP(VLOOKUP($B$6,$A$25:$E$51,4)*LN(VLOOKUP($H82,#REF!,$C$8+1)/1000)+VLOOKUP($B$6,$A$25:$E$51,5)),VLOOKUP($B$6,$A$25:$E$51,IF($B$8=$A$22,3,2))) ->  | M82: 57 | N82: =VLOOKUP($H82,Other_All!$A$5:$D$205,3*($C$8-1)+2) -> 17516 | O82: =VLOOKUP($H82,Other_All!$A$5:$D$205,3*($C$8-1)+3) -> 19983 | P82: =VLOOKUP($H82,Other_All!$A$5:$D$205,3*($C$8-1)+4) -> 22523 | Q82: =IF(ISNA(VLOOKUP($B$6,$A$25:$E$51,IF($B$8=$A$22,3,2))),EXP(VLOOKUP($B$6,$A$25:$E$51,4)*LN(VLOOKUP($H82,#REF!,$C$8+1)/1000)+VLOOKUP($B$6,$A$25:$E$51,5)),VLOOKUP($B$6,$A$25:$E$51,IF($B$8=$A$22,3,2))) ->  | S82: 44.75 | T82: =VLOOKUP($S82,P_All!$X$5:$AS$245,3*($C$8-1)+2) -> 14829 | U82: =VLOOKUP($S82,P_All!$X$5:$AS$245,3*($C$8-1)+3) -> 15696 | V82: =VLOOKUP($S82,P_All!$X$5:$AS$245,3*($C$8-1)+4) -> 16594 | W82: =IF(ISNA(VLOOKUP($B$6,$A$25:$E$52,IF($B$8=$A$22,3,2))),EXP(VLOOKUP($B$6,$A$25:$E$52,4)*LN(VLOOKUP($S82,#REF!,$C$8+1)/1000)+VLOOKUP($B$6,$A$25:$E$52,5)),VLOOKUP($B$6,$A$25:$E$52,IF($B$8=$A$22,3,2))) -> 
H83: 58 | I83: =VLOOKUP($H83,P_All!$A$5:$D$205,3*($C$8-1)+2) -> 12204 | J83: =VLOOKUP($H83,P_All!$A$5:$D$205,3*($C$8-1)+3) -> 16341 | K83: =VLOOKUP($H83,P_All!$A$5:$D$205,3*($C$8-1)+4) -> 21424 | L83: =IF(ISNA(VLOOKUP($B$6,$A$25:$E$51,IF($B$8=$A$22,3,2))),EXP(VLOOKUP($B$6,$A$25:$E$51,4)*LN(VLOOKUP($H83,#REF!,$C$8+1)/1000)+VLOOKUP($B$6,$A$25:$E$51,5)),VLOOKUP($B$6,$A$25:$E$51,IF($B$8=$A$22,3,2))) ->  | M83: 58 | N83: =VLOOKUP($H83,Other_All!$A$5:$D$205,3*($C$8-1)+2) -> 17251 | O83: =VLOOKUP($H83,Other_All!$A$5:$D$205,3*($C$8-1)+3) -> 20046 | P83: =VLOOKUP($H83,Other_All!$A$5:$D$205,3*($C$8-1)+4) -> 22444 | Q83: =IF(ISNA(VLOOKUP($B$6,$A$25:$E$51,IF($B$8=$A$22,3,2))),EXP(VLOOKUP($B$6,$A$25:$E$51,4)*LN(VLOOKUP($H83,#REF!,$C$8+1)/1000)+VLOOKUP($B$6,$A$25:$E$51,5)),VLOOKUP($B$6,$A$25:$E$51,IF($B$8=$A$22,3,2))) ->  | S83: 44.83333333 | T83: =VLOOKUP($S83,P_All!$X$5:$AS$245,3*($C$8-1)+2) -> 14789 | U83: =VLOOKUP($S83,P_All!$X$5:$AS$245,3*($C$8-1)+3) -> 15652 | V83: =VLOOKUP($S83,P_All!$X$5:$AS$245,3*($C$8-1)+4) -> 16543 | W83: =IF(ISNA(VLOOKUP($B$6,$A$25:$E$52,IF($B$8=$A$22,3,2))),EXP(VLOOKUP($B$6,$A$25:$E$52,4)*LN(VLOOKUP($S83,#REF!,$C$8+1)/1000)+VLOOKUP($B$6,$A$25:$E$52,5)),VLOOKUP($B$6,$A$25:$E$52,IF($B$8=$A$22,3,2))) -> 
H84: 59 | I84: =VLOOKUP($H84,P_All!$A$5:$D$205,3*($C$8-1)+2) -> 12265 | J84: =VLOOKUP($H84,P_All!$A$5:$D$205,3*($C$8-1)+3) -> 16882 | K84: =VLOOKUP($H84,P_All!$A$5:$D$205,3*($C$8-1)+4) -> 21670 | L84: =IF(ISNA(VLOOKUP($B$6,$A$25:$E$51,IF($B$8=$A$22,3,2))),EXP(VLOOKUP($B$6,$A$25:$E$51,4)*LN(VLOOKUP($H84,#REF!,$C$8+1)/1000)+VLOOKUP($B$6,$A$25:$E$51,5)),VLOOKUP($B$6,$A$25:$E$51,IF($B$8=$A$22,3,2))) ->  | M84: 59 | N84: =VLOOKUP($H84,Other_All!$A$5:$D$205,3*($C$8-1)+2) -> 17433 | O84: =VLOOKUP($H84,Other_All!$A$5:$D$205,3*($C$8-1)+3) -> 20084 | P84: =VLOOKUP($H84,Other_All!$A$5:$D$205,3*($C$8-1)+4) -> 22357 | Q84: =IF(ISNA(VLOOKUP($B$6,$A$25:$E$51,IF($B$8=$A$22,3,2))),EXP(VLOOKUP($B$6,$A$25:$E$51,4)*LN(VLOOKUP($H84,#REF!,$C$8+1)/1000)+VLOOKUP($B$6,$A$25:$E$51,5)),VLOOKUP($B$6,$A$25:$E$51,IF($B$8=$A$22,3,2))) ->  | S84: 44.91666667 | T84: =VLOOKUP($S84,P_All!$X$5:$AS$245,3*($C$8-1)+2) -> 14762 | U84: =VLOOKUP($S84,P_All!$X$5:$AS$245,3*($C$8-1)+3) -> 15614 | V84: =VLOOKUP($S84,P_All!$X$5:$AS$245,3*($C$8-1)+4) -> 16490 | W84: =IF(ISNA(VLOOKUP($B$6,$A$25:$E$52,IF($B$8=$A$22,3,2))),EXP(VLOOKUP($B$6,$A$25:$E$52,4)*LN(VLOOKUP($S84,#REF!,$C$8+1)/1000)+VLOOKUP($B$6,$A$25:$E$52,5)),VLOOKUP($B$6,$A$25:$E$52,IF($B$8=$A$22,3,2))) -> 
H85: 60 | I85: =VLOOKUP($H85,P_All!$A$5:$D$205,3*($C$8-1)+2) -> 12272 | J85: =VLOOKUP($H85,P_All!$A$5:$D$205,3*($C$8-1)+3) -> 17153 | K85: =VLOOKUP($H85,P_All!$A$5:$D$205,3*($C$8-1)+4) -> 21845 | L85: =IF(ISNA(VLOOKUP($B$6,$A$25:$E$51,IF($B$8=$A$22,3,2))),EXP(VLOOKUP($B$6,$A$25:$E$51,4)*LN(VLOOKUP($H85,#REF!,$C$8+1)/1000)+VLOOKUP($B$6,$A$25:$E$51,5)),VLOOKUP($B$6,$A$25:$E$51,IF($B$8=$A$22,3,2))) ->  | M85: 60 | N85: =VLOOKUP($H85,Other_All!$A$5:$D$205,3*($C$8-1)+2) -> 17485 | O85: =VLOOKUP($H85,Other_All!$A$5:$D$205,3*($C$8-1)+3) -> 19926 | P85: =VLOOKUP($H85,Other_All!$A$5:$D$205,3*($C$8-1)+4) -> 22159 | Q85: =IF(ISNA(VLOOKUP($B$6,$A$25:$E$51,IF($B$8=$A$22,3,2))),EXP(VLOOKUP($B$6,$A$25:$E$51,4)*LN(VLOOKUP($H85,#REF!,$C$8+1)/1000)+VLOOKUP($B$6,$A$25:$E$51,5)),VLOOKUP($B$6,$A$25:$E$51,IF($B$8=$A$22,3,2))) ->  | S85: 45 | T85: =VLOOKUP($S85,P_All!$X$5:$AS$245,3*($C$8-1)+2) -> 14730 | U85: =VLOOKUP($S85,P_All!$X$5:$AS$245,3*($C$8-1)+3) -> 15568 | V85: =VLOOKUP($S85,P_All!$X$5:$AS$245,3*($C$8-1)+4) -> 16408 | W85: =IF(ISNA(VLOOKUP($B$6,$A$25:$E$52,IF($B$8=$A$22,3,2))),EXP(VLOOKUP($B$6,$A$25:$E$52,4)*LN(VLOOKUP($S85,#REF!,$C$8+1)/1000)+VLOOKUP($B$6,$A$25:$E$52,5)),VLOOKUP($B$6,$A$25:$E$52,IF($B$8=$A$22,3,2))) -> 
H86: 61 | I86: =VLOOKUP($H86,P_All!$A$5:$D$205,3*($C$8-1)+2) -> 12439 | J86: =VLOOKUP($H86,P_All!$A$5:$D$205,3*($C$8-1)+3) -> 17381 | K86: =VLOOKUP($H86,P_All!$A$5:$D$205,3*($C$8-1)+4) -> 22086 | L86: =IF(ISNA(VLOOKUP($B$6,$A$25:$E$51,IF($B$8=$A$22,3,2))),EXP(VLOOKUP($B$6,$A$25:$E$51,4)*LN(VLOOKUP($H86,#REF!,$C$8+1)/1000)+VLOOKUP($B$6,$A$25:$E$51,5)),VLOOKUP($B$6,$A$25:$E$51,IF($B$8=$A$22,3,2))) ->  | M86: 61 | N86: =VLOOKUP($H86,Other_All!$A$5:$D$205,3*($C$8-1)+2) -> 17419 | O86: =VLOOKUP($H86,Other_All!$A$5:$D$205,3*($C$8-1)+3) -> 19775 | P86: =VLOOKUP($H86,Other_All!$A$5:$D$205,3*($C$8-1)+4) -> 22446 | Q86: =IF(ISNA(VLOOKUP($B$6,$A$25:$E$51,IF($B$8=$A$22,3,2))),EXP(VLOOKUP($B$6,$A$25:$E$51,4)*LN(VLOOKUP($H86,#REF!,$C$8+1)/1000)+VLOOKUP($B$6,$A$25:$E$51,5)),VLOOKUP($B$6,$A$25:$E$51,IF($B$8=$A$22,3,2))) ->  | S86: 45.08333333 | T86: =VLOOKUP($S86,P_All!$X$5:$AS$245,3*($C$8-1)+2) -> 14724 | U86: =VLOOKUP($S86,P_All!$X$5:$AS$245,3*($C$8-1)+3) -> 15534 | V86: =VLOOKUP($S86,P_All!$X$5:$AS$245,3*($C$8-1)+4) -> 16370 | W86: =IF(ISNA(VLOOKUP($B$6,$A$25:$E$52,IF($B$8=$A$22,3,2))),EXP(VLOOKUP($B$6,$A$25:$E$52,4)*LN(VLOOKUP($S86,#REF!,$C$8+1)/1000)+VLOOKUP($B$6,$A$25:$E$52,5)),VLOOKUP($B$6,$A$25:$E$52,IF($B$8=$A$22,3,2))) -> 
H87: 62 | I87: =VLOOKUP($H87,P_All!$A$5:$D$205,3*($C$8-1)+2) -> 12561 | J87: =VLOOKUP($H87,P_All!$A$5:$D$205,3*($C$8-1)+3) -> 17809 | K87: =VLOOKUP($H87,P_All!$A$5:$D$205,3*($C$8-1)+4) -> 22101 | L87: =IF(ISNA(VLOOKUP($B$6,$A$25:$E$51,IF($B$8=$A$22,3,2))),EXP(VLOOKUP($B$6,$A$25:$E$51,4)*LN(VLOOKUP($H87,#REF!,$C$8+1)/1000)+VLOOKUP($B$6,$A$25:$E$51,5)),VLOOKUP($B$6,$A$25:$E$51,IF($B$8=$A$22,3,2))) ->  | M87: 62 | N87: =VLOOKUP($H87,Other_All!$A$5:$D$205,3*($C$8-1)+2) -> 17514 | O87: =VLOOKUP($H87,Other_All!$A$5:$D$205,3*($C$8-1)+3) -> 19682 | P87: =VLOOKUP($H87,Other_All!$A$5:$D$205,3*($C$8-1)+4) -> 22137 | Q87: =IF(ISNA(VLOOKUP($B$6,$A$25:$E$51,IF($B$8=$A$22,3,2))),EXP(VLOOKUP($B$6,$A$25:$E$51,4)*LN(VLOOKUP($H87,#REF!,$C$8+1)/1000)+VLOOKUP($B$6,$A$25:$E$51,5)),VLOOKUP($B$6,$A$25:$E$51,IF($B$8=$A$22,3,2))) ->  | S87: 45.16666667 | T87: =VLOOKUP($S87,P_All!$X$5:$AS$245,3*($C$8-1)+2) -> 14746 | U87: =VLOOKUP($S87,P_All!$X$5:$AS$245,3*($C$8-1)+3) -> 15529 | V87: =VLOOKUP($S87,P_All!$X$5:$AS$245,3*($C$8-1)+4) -> 16357 | W87: =IF(ISNA(VLOOKUP($B$6,$A$25:$E$52,IF($B$8=$A$22,3,2))),EXP(VLOOKUP($B$6,$A$25:$E$52,4)*LN(VLOOKUP($S87,#REF!,$C$8+1)/1000)+VLOOKUP($B$6,$A$25:$E$52,5)),VLOOKUP($B$6,$A$25:$E$52,IF($B$8=$A$22,3,2))) -> 
H88: 63 | I88: =VLOOKUP($H88,P_All!$A$5:$D$205,3*($C$8-1)+2) -> 12974 | J88: =VLOOKUP($H88,P_All!$A$5:$D$205,3*($C$8-1)+3) -> 18196 | K88: =VLOOKUP($H88,P_All!$A$5:$D$205,3*($C$8-1)+4) -> 22099 | L88: =IF(ISNA(VLOOKUP($B$6,$A$25:$E$51,IF($B$8=$A$22,3,2))),EXP(VLOOKUP($B$6,$A$25:$E$51,4)*LN(VLOOKUP($H88,#REF!,$C$8+1)/1000)+VLOOKUP($B$6,$A$25:$E$51,5)),VLOOKUP($B$6,$A$25:$E$51,IF($B$8=$A$22,3,2))) ->  | M88: 63 | N88: =VLOOKUP($H88,Other_All!$A$5:$D$205,3*($C$8-1)+2) -> 17386 | O88: =VLOOKUP($H88,Other_All!$A$5:$D$205,3*($C$8-1)+3) -> 19819 | P88: =VLOOKUP($H88,Other_All!$A$5:$D$205,3*($C$8-1)+4) -> 22295 | Q88: =IF(ISNA(VLOOKUP($B$6,$A$25:$E$51,IF($B$8=$A$22,3,2))),EXP(VLOOKUP($B$6,$A$25:$E$51,4)*LN(VLOOKUP($H88,#REF!,$C$8+1)/1000)+VLOOKUP($B$6,$A$25:$E$51,5)),VLOOKUP($B$6,$A$25:$E$51,IF($B$8=$A$22,3,2))) ->  | S88: 45.25 | T88: =VLOOKUP($S88,P_All!$X$5:$AS$245,3*($C$8-1)+2) -> 14798 | U88: =VLOOKUP($S88,P_All!$X$5:$AS$245,3*($C$8-1)+3) -> 15565 | V88: =VLOOKUP($S88,P_All!$X$5:$AS$245,3*($C$8-1)+4) -> 16392 | W88: =IF(ISNA(VLOOKUP($B$6,$A$25:$E$52,IF($B$8=$A$22,3,2))),EXP(VLOOKUP($B$6,$A$25:$E$52,4)*LN(VLOOKUP($S88,#REF!,$C$8+1)/1000)+VLOOKUP($B$6,$A$25:$E$52,5)),VLOOKUP($B$6,$A$25:$E$52,IF($B$8=$A$22,3,2))) -> 
H89: 64 | I89: =VLOOKUP($H89,P_All!$A$5:$D$205,3*($C$8-1)+2) -> 13648 | J89: =VLOOKUP($H89,P_All!$A$5:$D$205,3*($C$8-1)+3) -> 18466 | K89: =VLOOKUP($H89,P_All!$A$5:$D$205,3*($C$8-1)+4) -> 22653 | L89: =IF(ISNA(VLOOKUP($B$6,$A$25:$E$51,IF($B$8=$A$22,3,2))),EXP(VLOOKUP($B$6,$A$25:$E$51,4)*LN(VLOOKUP($H89,#REF!,$C$8+1)/1000)+VLOOKUP($B$6,$A$25:$E$51,5)),VLOOKUP($B$6,$A$25:$E$51,IF($B$8=$A$22,3,2))) ->  | M89: 64 | N89: =VLOOKUP($H89,Other_All!$A$5:$D$205,3*($C$8-1)+2) -> 17335 | O89: =VLOOKUP($H89,Other_All!$A$5:$D$205,3*($C$8-1)+3) -> 19721 | P89: =VLOOKUP($H89,Other_All!$A$5:$D$205,3*($C$8-1)+4) -> 22243 | Q89: =IF(ISNA(VLOOKUP($B$6,$A$25:$E$51,IF($B$8=$A$22,3,2))),EXP(VLOOKUP($B$6,$A$25:$E$51,4)*LN(VLOOKUP($H89,#REF!,$C$8+1)/1000)+VLOOKUP($B$6,$A$25:$E$51,5)),VLOOKUP($B$6,$A$25:$E$51,IF($B$8=$A$22,3,2))) ->  | S89: 45.33333333 | T89: =VLOOKUP($S89,P_All!$X$5:$AS$245,3*($C$8-1)+2) -> 14857 | U89: =VLOOKUP($S89,P_All!$X$5:$AS$245,3*($C$8-1)+3) -> 15621 | V89: =VLOOKUP($S89,P_All!$X$5:$AS$245,3*($C$8-1)+4) -> 16459 | W89: =IF(ISNA(VLOOKUP($B$6,$A$25:$E$52,IF($B$8=$A$22,3,2))),EXP(VLOOKUP($B$6,$A$25:$E$52,4)*LN(VLOOKUP($S89,#REF!,$C$8+1)/1000)+VLOOKUP($B$6,$A$25:$E$52,5)),VLOOKUP($B$6,$A$25:$E$52,IF($B$8=$A$22,3,2))) -> 
H90: 65 | I90: =VLOOKUP($H90,P_All!$A$5:$D$205,3*($C$8-1)+2) -> 14456 | J90: =VLOOKUP($H90,P_All!$A$5:$D$205,3*($C$8-1)+3) -> 18599 | K90: =VLOOKUP($H90,P_All!$A$5:$D$205,3*($C$8-1)+4) -> 22858 | L90: =IF(ISNA(VLOOKUP($B$6,$A$25:$E$51,IF($B$8=$A$22,3,2))),EXP(VLOOKUP($B$6,$A$25:$E$51,4)*LN(VLOOKUP($H90,#REF!,$C$8+1)/1000)+VLOOKUP($B$6,$A$25:$E$51,5)),VLOOKUP($B$6,$A$25:$E$51,IF($B$8=$A$22,3,2))) ->  | M90: 65 | N90: =VLOOKUP($H90,Other_All!$A$5:$D$205,3*($C$8-1)+2) -> 17316 | O90: =VLOOKUP($H90,Other_All!$A$5:$D$205,3*($C$8-1)+3) -> 19606 | P90: =VLOOKUP($H90,Other_All!$A$5:$D$205,3*($C$8-1)+4) -> 22471 | Q90: =IF(ISNA(VLOOKUP($B$6,$A$25:$E$51,IF($B$8=$A$22,3,2))),EXP(VLOOKUP($B$6,$A$25:$E$51,4)*LN(VLOOKUP($H90,#REF!,$C$8+1)/1000)+VLOOKUP($B$6,$A$25:$E$51,5)),VLOOKUP($B$6,$A$25:$E$51,IF($B$8=$A$22,3,2))) ->  | S90: 45.41666667 | T90: =VLOOKUP($S90,P_All!$X$5:$AS$245,3*($C$8-1)+2) -> 14847 | U90: =VLOOKUP($S90,P_All!$X$5:$AS$245,3*($C$8-1)+3) -> 15606 | V90: =VLOOKUP($S90,P_All!$X$5:$AS$245,3*($C$8-1)+4) -> 16429 | W90: =IF(ISNA(VLOOKUP($B$6,$A$25:$E$52,IF($B$8=$A$22,3,2))),EXP(VLOOKUP($B$6,$A$25:$E$52,4)*LN(VLOOKUP($S90,#REF!,$C$8+1)/1000)+VLOOKUP($B$6,$A$25:$E$52,5)),VLOOKUP($B$6,$A$25:$E$52,IF($B$8=$A$22,3,2))) -> 
H91: 66 | I91: =VLOOKUP($H91,P_All!$A$5:$D$205,3*($C$8-1)+2) -> 15082 | J91: =VLOOKUP($H91,P_All!$A$5:$D$205,3*($C$8-1)+3) -> 18837 | K91: =VLOOKUP($H91,P_All!$A$5:$D$205,3*($C$8-1)+4) -> 22571 | L91: =IF(ISNA(VLOOKUP($B$6,$A$25:$E$51,IF($B$8=$A$22,3,2))),EXP(VLOOKUP($B$6,$A$25:$E$51,4)*LN(VLOOKUP($H91,#REF!,$C$8+1)/1000)+VLOOKUP($B$6,$A$25:$E$51,5)),VLOOKUP($B$6,$A$25:$E$51,IF($B$8=$A$22,3,2))) ->  | M91: 66 | N91: =VLOOKUP($H91,Other_All!$A$5:$D$205,3*($C$8-1)+2) -> 17414 | O91: =VLOOKUP($H91,Other_All!$A$5:$D$205,3*($C$8-1)+3) -> 19676 | P91: =VLOOKUP($H91,Other_All!$A$5:$D$205,3*($C$8-1)+4) -> 22304 | Q91: =IF(ISNA(VLOOKUP($B$6,$A$25:$E$51,IF($B$8=$A$22,3,2))),EXP(VLOOKUP($B$6,$A$25:$E$51,4)*LN(VLOOKUP($H91,#REF!,$C$8+1)/1000)+VLOOKUP($B$6,$A$25:$E$51,5)),VLOOKUP($B$6,$A$25:$E$51,IF($B$8=$A$22,3,2))) ->  | S91: =S90+1/12 -> 45.5 | T91: =VLOOKUP($S91,P_All!$X$5:$AS$245,3*($C$8-1)+2) -> 14741 | U91: =VLOOKUP($S91,P_All!$X$5:$AS$245,3*($C$8-1)+3) -> 15489 | V91: =VLOOKUP($S91,P_All!$X$5:$AS$245,3*($C$8-1)+4) -> 16323 | W91: =IF(ISNA(VLOOKUP($B$6,$A$25:$E$52,IF($B$8=$A$22,3,2))),EXP(VLOOKUP($B$6,$A$25:$E$52,4)*LN(VLOOKUP($S91,#REF!,$C$8+1)/1000)+VLOOKUP($B$6,$A$25:$E$52,5)),VLOOKUP($B$6,$A$25:$E$52,IF($B$8=$A$22,3,2))) -> 
H92: 67 | I92: =VLOOKUP($H92,P_All!$A$5:$D$205,3*($C$8-1)+2) -> 15672 | J92: =VLOOKUP($H92,P_All!$A$5:$D$205,3*($C$8-1)+3) -> 18943 | K92: =VLOOKUP($H92,P_All!$A$5:$D$205,3*($C$8-1)+4) -> 22532 | L92: =IF(ISNA(VLOOKUP($B$6,$A$25:$E$51,IF($B$8=$A$22,3,2))),EXP(VLOOKUP($B$6,$A$25:$E$51,4)*LN(VLOOKUP($H92,#REF!,$C$8+1)/1000)+VLOOKUP($B$6,$A$25:$E$51,5)),VLOOKUP($B$6,$A$25:$E$51,IF($B$8=$A$22,3,2))) ->  | M92: 67 | N92: =VLOOKUP($H92,Other_All!$A$5:$D$205,3*($C$8-1)+2) -> 17306 | O92: =VLOOKUP($H92,Other_All!$A$5:$D$205,3*($C$8-1)+3) -> 19649 | P92: =VLOOKUP($H92,Other_All!$A$5:$D$205,3*($C$8-1)+4) -> 22490 | Q92: =IF(ISNA(VLOOKUP($B$6,$A$25:$E$51,IF($B$8=$A$22,3,2))),EXP(VLOOKUP($B$6,$A$25:$E$51,4)*LN(VLOOKUP($H92,#REF!,$C$8+1)/1000)+VLOOKUP($B$6,$A$25:$E$51,5)),VLOOKUP($B$6,$A$25:$E$51,IF($B$8=$A$22,3,2))) ->  | S92: 45.58333333 | T92: =VLOOKUP($S92,P_All!$X$5:$AS$245,3*($C$8-1)+2) -> 14669 | U92: =VLOOKUP($S92,P_All!$X$5:$AS$245,3*($C$8-1)+3) -> 15440 | V92: =VLOOKUP($S92,P_All!$X$5:$AS$245,3*($C$8-1)+4) -> 16315 | W92: =IF(ISNA(VLOOKUP($B$6,$A$25:$E$52,IF($B$8=$A$22,3,2))),EXP(VLOOKUP($B$6,$A$25:$E$52,4)*LN(VLOOKUP($S92,#REF!,$C$8+1)/1000)+VLOOKUP($B$6,$A$25:$E$52,5)),VLOOKUP($B$6,$A$25:$E$52,IF($B$8=$A$22,3,2))) -> 
H93: 68 | I93: =VLOOKUP($H93,P_All!$A$5:$D$205,3*($C$8-1)+2) -> 16104 | J93: =VLOOKUP($H93,P_All!$A$5:$D$205,3*($C$8-1)+3) -> 19173 | K93: =VLOOKUP($H93,P_All!$A$5:$D$205,3*($C$8-1)+4) -> 22555 | L93: =IF(ISNA(VLOOKUP($B$6,$A$25:$E$51,IF($B$8=$A$22,3,2))),EXP(VLOOKUP($B$6,$A$25:$E$51,4)*LN(VLOOKUP($H93,#REF!,$C$8+1)/1000)+VLOOKUP($B$6,$A$25:$E$51,5)),VLOOKUP($B$6,$A$25:$E$51,IF($B$8=$A$22,3,2))) ->  | M93: 68 | N93: =VLOOKUP($H93,Other_All!$A$5:$D$205,3*($C$8-1)+2) -> 17382 | O93: =VLOOKUP($H93,Other_All!$A$5:$D$205,3*($C$8-1)+3) -> 19638 | P93: =VLOOKUP($H93,Other_All!$A$5:$D$205,3*($C$8-1)+4) -> 22312 | Q93: =IF(ISNA(VLOOKUP($B$6,$A$25:$E$51,IF($B$8=$A$22,3,2))),EXP(VLOOKUP($B$6,$A$25:$E$51,4)*LN(VLOOKUP($H93,#REF!,$C$8+1)/1000)+VLOOKUP($B$6,$A$25:$E$51,5)),VLOOKUP($B$6,$A$25:$E$51,IF($B$8=$A$22,3,2))) ->  | S93: 45.66666667 | T93: =VLOOKUP($S93,P_All!$X$5:$AS$245,3*($C$8-1)+2) -> 14640 | U93: =VLOOKUP($S93,P_All!$X$5:$AS$245,3*($C$8-1)+3) -> 15408 | V93: =VLOOKUP($S93,P_All!$X$5:$AS$245,3*($C$8-1)+4) -> 16342 | W93: =IF(ISNA(VLOOKUP($B$6,$A$25:$E$52,IF($B$8=$A$22,3,2))),EXP(VLOOKUP($B$6,$A$25:$E$52,4)*LN(VLOOKUP($S93,#REF!,$C$8+1)/1000)+VLOOKUP($B$6,$A$25:$E$52,5)),VLOOKUP($B$6,$A$25:$E$52,IF($B$8=$A$22,3,2))) -> 
H94: 69 | I94: =VLOOKUP($H94,P_All!$A$5:$D$205,3*($C$8-1)+2) -> 16339 | J94: =VLOOKUP($H94,P_All!$A$5:$D$205,3*($C$8-1)+3) -> 19386 | K94: =VLOOKUP($H94,P_All!$A$5:$D$205,3*($C$8-1)+4) -> 22836 | L94: =IF(ISNA(VLOOKUP($B$6,$A$25:$E$51,IF($B$8=$A$22,3,2))),EXP(VLOOKUP($B$6,$A$25:$E$51,4)*LN(VLOOKUP($H94,#REF!,$C$8+1)/1000)+VLOOKUP($B$6,$A$25:$E$51,5)),VLOOKUP($B$6,$A$25:$E$51,IF($B$8=$A$22,3,2))) ->  | M94: 69 | N94: =VLOOKUP($H94,Other_All!$A$5:$D$205,3*($C$8-1)+2) -> 17440 | O94: =VLOOKUP($H94,Other_All!$A$5:$D$205,3*($C$8-1)+3) -> 19678 | P94: =VLOOKUP($H94,Other_All!$A$5:$D$205,3*($C$8-1)+4) -> 22411 | Q94: =IF(ISNA(VLOOKUP($B$6,$A$25:$E$51,IF($B$8=$A$22,3,2))),EXP(VLOOKUP($B$6,$A$25:$E$51,4)*LN(VLOOKUP($H94,#REF!,$C$8+1)/1000)+VLOOKUP($B$6,$A$25:$E$51,5)),VLOOKUP($B$6,$A$25:$E$51,IF($B$8=$A$22,3,2))) ->  | S94: 45.75 | T94: =VLOOKUP($S94,P_All!$X$5:$AS$245,3*($C$8-1)+2) -> 14511 | U94: =VLOOKUP($S94,P_All!$X$5:$AS$245,3*($C$8-1)+3) -> 15318 | V94: =VLOOKUP($S94,P_All!$X$5:$AS$245,3*($C$8-1)+4) -> 16292 | W94: =IF(ISNA(VLOOKUP($B$6,$A$25:$E$52,IF($B$8=$A$22,3,2))),EXP(VLOOKUP($B$6,$A$25:$E$52,4)*LN(VLOOKUP($S94,#REF!,$C$8+1)/1000)+VLOOKUP($B$6,$A$25:$E$52,5)),VLOOKUP($B$6,$A$25:$E$52,IF($B$8=$A$22,3,2))) -> 
H95: 70 | I95: =VLOOKUP($H95,P_All!$A$5:$D$205,3*($C$8-1)+2) -> 16706 | J95: =VLOOKUP($H95,P_All!$A$5:$D$205,3*($C$8-1)+3) -> 19602 | K95: =VLOOKUP($H95,P_All!$A$5:$D$205,3*($C$8-1)+4) -> 23067 | L95: =IF(ISNA(VLOOKUP($B$6,$A$25:$E$51,IF($B$8=$A$22,3,2))),EXP(VLOOKUP($B$6,$A$25:$E$51,4)*LN(VLOOKUP($H95,#REF!,$C$8+1)/1000)+VLOOKUP($B$6,$A$25:$E$51,5)),VLOOKUP($B$6,$A$25:$E$51,IF($B$8=$A$22,3,2))) ->  | M95: 70 | N95: =VLOOKUP($H95,Other_All!$A$5:$D$205,3*($C$8-1)+2) -> 17418 | O95: =VLOOKUP($H95,Other_All!$A$5:$D$205,3*($C$8-1)+3) -> 19793 | P95: =VLOOKUP($H95,Other_All!$A$5:$D$205,3*($C$8-1)+4) -> 22384 | Q95: =IF(ISNA(VLOOKUP($B$6,$A$25:$E$51,IF($B$8=$A$22,3,2))),EXP(VLOOKUP($B$6,$A$25:$E$51,4)*LN(VLOOKUP($H95,#REF!,$C$8+1)/1000)+VLOOKUP($B$6,$A$25:$E$51,5)),VLOOKUP($B$6,$A$25:$E$51,IF($B$8=$A$22,3,2))) ->  | S95: 45.83333333 | T95: =VLOOKUP($S95,P_All!$X$5:$AS$245,3*($C$8-1)+2) -> 14462 | U95: =VLOOKUP($S95,P_All!$X$5:$AS$245,3*($C$8-1)+3) -> 15274 | V95: =VLOOKUP($S95,P_All!$X$5:$AS$245,3*($C$8-1)+4) -> 16267 | W95: =IF(ISNA(VLOOKUP($B$6,$A$25:$E$52,IF($B$8=$A$22,3,2))),EXP(VLOOKUP($B$6,$A$25:$E$52,4)*LN(VLOOKUP($S95,#REF!,$C$8+1)/1000)+VLOOKUP($B$6,$A$25:$E$52,5)),VLOOKUP($B$6,$A$25:$E$52,IF($B$8=$A$22,3,2))) -> 
H96: 71 | I96: =VLOOKUP($H96,P_All!$A$5:$D$205,3*($C$8-1)+2) -> 16986 | J96: =VLOOKUP($H96,P_All!$A$5:$D$205,3*($C$8-1)+3) -> 19576 | K96: =VLOOKUP($H96,P_All!$A$5:$D$205,3*($C$8-1)+4) -> 23033 | L96: =IF(ISNA(VLOOKUP($B$6,$A$25:$E$51,IF($B$8=$A$22,3,2))),EXP(VLOOKUP($B$6,$A$25:$E$51,4)*LN(VLOOKUP($H96,#REF!,$C$8+1)/1000)+VLOOKUP($B$6,$A$25:$E$51,5)),VLOOKUP($B$6,$A$25:$E$51,IF($B$8=$A$22,3,2))) ->  | M96: 71 | N96: =VLOOKUP($H96,Other_All!$A$5:$D$205,3*($C$8-1)+2) -> 17324 | O96: =VLOOKUP($H96,Other_All!$A$5:$D$205,3*($C$8-1)+3) -> 19692 | P96: =VLOOKUP($H96,Other_All!$A$5:$D$205,3*($C$8-1)+4) -> 22372 | Q96: =IF(ISNA(VLOOKUP($B$6,$A$25:$E$51,IF($B$8=$A$22,3,2))),EXP(VLOOKUP($B$6,$A$25:$E$51,4)*LN(VLOOKUP($H96,#REF!,$C$8+1)/1000)+VLOOKUP($B$6,$A$25:$E$51,5)),VLOOKUP($B$6,$A$25:$E$51,IF($B$8=$A$22,3,2))) ->  | S96: 45.91666667 | T96: =VLOOKUP($S96,P_All!$X$5:$AS$245,3*($C$8-1)+2) -> 14435 | U96: =VLOOKUP($S96,P_All!$X$5:$AS$245,3*($C$8-1)+3) -> 15244 | V96: =VLOOKUP($S96,P_All!$X$5:$AS$245,3*($C$8-1)+4) -> 16228 | W96: =IF(ISNA(VLOOKUP($B$6,$A$25:$E$52,IF($B$8=$A$22,3,2))),EXP(VLOOKUP($B$6,$A$25:$E$52,4)*LN(VLOOKUP($S96,#REF!,$C$8+1)/1000)+VLOOKUP($B$6,$A$25:$E$52,5)),VLOOKUP($B$6,$A$25:$E$52,IF($B$8=$A$22,3,2))) -> 
H97: 72 | I97: =VLOOKUP($H97,P_All!$A$5:$D$205,3*($C$8-1)+2) -> 17104 | J97: =VLOOKUP($H97,P_All!$A$5:$D$205,3*($C$8-1)+3) -> 19525 | K97: =VLOOKUP($H97,P_All!$A$5:$D$205,3*($C$8-1)+4) -> 23068 | L97: =IF(ISNA(VLOOKUP($B$6,$A$25:$E$51,IF($B$8=$A$22,3,2))),EXP(VLOOKUP($B$6,$A$25:$E$51,4)*LN(VLOOKUP($H97,#REF!,$C$8+1)/1000)+VLOOKUP($B$6,$A$25:$E$51,5)),VLOOKUP($B$6,$A$25:$E$51,IF($B$8=$A$22,3,2))) ->  | M97: 72 | N97: =VLOOKUP($H97,Other_All!$A$5:$D$205,3*($C$8-1)+2) -> 17352 | O97: =VLOOKUP($H97,Other_All!$A$5:$D$205,3*($C$8-1)+3) -> 19535 | P97: =VLOOKUP($H97,Other_All!$A$5:$D$205,3*($C$8-1)+4) -> 22264 | Q97: =IF(ISNA(VLOOKUP($B$6,$A$25:$E$51,IF($B$8=$A$22,3,2))),EXP(VLOOKUP($B$6,$A$25:$E$51,4)*LN(VLOOKUP($H97,#REF!,$C$8+1)/1000)+VLOOKUP($B$6,$A$25:$E$51,5)),VLOOKUP($B$6,$A$25:$E$51,IF($B$8=$A$22,3,2))) ->  | S97: 46 | T97: =VLOOKUP($S97,P_All!$X$5:$AS$245,3*($C$8-1)+2) -> 14412 | U97: =VLOOKUP($S97,P_All!$X$5:$AS$245,3*($C$8-1)+3) -> 15199 | V97: =VLOOKUP($S97,P_All!$X$5:$AS$245,3*($C$8-1)+4) -> 16154 | W97: =IF(ISNA(VLOOKUP($B$6,$A$25:$E$52,IF($B$8=$A$22,3,2))),EXP(VLOOKUP($B$6,$A$25:$E$52,4)*LN(VLOOKUP($S97,#REF!,$C$8+1)/1000)+VLOOKUP($B$6,$A$25:$E$52,5)),VLOOKUP($B$6,$A$25:$E$52,IF($B$8=$A$22,3,2))) -> 
H98: 73 | I98: =VLOOKUP($H98,P_All!$A$5:$D$205,3*($C$8-1)+2) -> 17190 | J98: =VLOOKUP($H98,P_All!$A$5:$D$205,3*($C$8-1)+3) -> 19617 | K98: =VLOOKUP($H98,P_All!$A$5:$D$205,3*($C$8-1)+4) -> 23126 | L98: =IF(ISNA(VLOOKUP($B$6,$A$25:$E$51,IF($B$8=$A$22,3,2))),EXP(VLOOKUP($B$6,$A$25:$E$51,4)*LN(VLOOKUP($H98,#REF!,$C$8+1)/1000)+VLOOKUP($B$6,$A$25:$E$51,5)),VLOOKUP($B$6,$A$25:$E$51,IF($B$8=$A$22,3,2))) ->  | M98: 73 | N98: =VLOOKUP($H98,Other_All!$A$5:$D$205,3*($C$8-1)+2) -> 17324 | O98: =VLOOKUP($H98,Other_All!$A$5:$D$205,3*($C$8-1)+3) -> 19399 | P98: =VLOOKUP($H98,Other_All!$A$5:$D$205,3*($C$8-1)+4) -> 22219 | Q98: =IF(ISNA(VLOOKUP($B$6,$A$25:$E$51,IF($B$8=$A$22,3,2))),EXP(VLOOKUP($B$6,$A$25:$E$51,4)*LN(VLOOKUP($H98,#REF!,$C$8+1)/1000)+VLOOKUP($B$6,$A$25:$E$51,5)),VLOOKUP($B$6,$A$25:$E$51,IF($B$8=$A$22,3,2))) ->  | S98: 46.08333333 | T98: =VLOOKUP($S98,P_All!$X$5:$AS$245,3*($C$8-1)+2) -> 14411 | U98: =VLOOKUP($S98,P_All!$X$5:$AS$245,3*($C$8-1)+3) -> 15175 | V98: =VLOOKUP($S98,P_All!$X$5:$AS$245,3*($C$8-1)+4) -> 16121 | W98: =IF(ISNA(VLOOKUP($B$6,$A$25:$E$52,IF($B$8=$A$22,3,2))),EXP(VLOOKUP($B$6,$A$25:$E$52,4)*LN(VLOOKUP($S98,#REF!,$C$8+1)/1000)+VLOOKUP($B$6,$A$25:$E$52,5)),VLOOKUP($B$6,$A$25:$E$52,IF($B$8=$A$22,3,2))) -> 
H99: 74 | I99: =VLOOKUP($H99,P_All!$A$5:$D$205,3*($C$8-1)+2) -> 17086 | J99: =VLOOKUP($H99,P_All!$A$5:$D$205,3*($C$8-1)+3) -> 19789 | K99: =VLOOKUP($H99,P_All!$A$5:$D$205,3*($C$8-1)+4) -> 23099 | L99: =IF(ISNA(VLOOKUP($B$6,$A$25:$E$51,IF($B$8=$A$22,3,2))),EXP(VLOOKUP($B$6,$A$25:$E$51,4)*LN(VLOOKUP($H99,#REF!,$C$8+1)/1000)+VLOOKUP($B$6,$A$25:$E$51,5)),VLOOKUP($B$6,$A$25:$E$51,IF($B$8=$A$22,3,2))) ->  | M99: 74 | N99: =VLOOKUP($H99,Other_All!$A$5:$D$205,3*($C$8-1)+2) -> 17243 | O99: =VLOOKUP($H99,Other_All!$A$5:$D$205,3*($C$8-1)+3) -> 19435 | P99: =VLOOKUP($H99,Other_All!$A$5:$D$205,3*($C$8-1)+4) -> 22220 | Q99: =IF(ISNA(VLOOKUP($B$6,$A$25:$E$51,IF($B$8=$A$22,3,2))),EXP(VLOOKUP($B$6,$A$25:$E$51,4)*LN(VLOOKUP($H99,#REF!,$C$8+1)/1000)+VLOOKUP($B$6,$A$25:$E$51,5)),VLOOKUP($B$6,$A$25:$E$51,IF($B$8=$A$22,3,2))) ->  | S99: 46.16666667 | T99: =VLOOKUP($S99,P_All!$X$5:$AS$245,3*($C$8-1)+2) -> 14421 | U99: =VLOOKUP($S99,P_All!$X$5:$AS$245,3*($C$8-1)+3) -> 15170 | V99: =VLOOKUP($S99,P_All!$X$5:$AS$245,3*($C$8-1)+4) -> 16132 | W99: =IF(ISNA(VLOOKUP($B$6,$A$25:$E$52,IF($B$8=$A$22,3,2))),EXP(VLOOKUP($B$6,$A$25:$E$52,4)*LN(VLOOKUP($S99,#REF!,$C$8+1)/1000)+VLOOKUP($B$6,$A$25:$E$52,5)),VLOOKUP($B$6,$A$25:$E$52,IF($B$8=$A$22,3,2))) -> 
H100: 75 | I100: =VLOOKUP($H100,P_All!$A$5:$D$205,3*($C$8-1)+2) -> 17133 | J100: =VLOOKUP($H100,P_All!$A$5:$D$205,3*($C$8-1)+3) -> 19872 | K100: =VLOOKUP($H100,P_All!$A$5:$D$205,3*($C$8-1)+4) -> 23101 | L100: =IF(ISNA(VLOOKUP($B$6,$A$25:$E$51,IF($B$8=$A$22,3,2))),EXP(VLOOKUP($B$6,$A$25:$E$51,4)*LN(VLOOKUP($H100,#REF!,$C$8+1)/1000)+VLOOKUP($B$6,$A$25:$E$51,5)),VLOOKUP($B$6,$A$25:$E$51,IF($B$8=$A$22,3,2))) ->  | M100: 75 | N100: =VLOOKUP($H100,Other_All!$A$5:$D$205,3*($C$8-1)+2) -> 17088 | O100: =VLOOKUP($H100,Other_All!$A$5:$D$205,3*($C$8-1)+3) -> 19639 | P100: =VLOOKUP($H100,Other_All!$A$5:$D$205,3*($C$8-1)+4) -> 22168 | Q100: =IF(ISNA(VLOOKUP($B$6,$A$25:$E$51,IF($B$8=$A$22,3,2))),EXP(VLOOKUP($B$6,$A$25:$E$51,4)*LN(VLOOKUP($H100,#REF!,$C$8+1)/1000)+VLOOKUP($B$6,$A$25:$E$51,5)),VLOOKUP($B$6,$A$25:$E$51,IF($B$8=$A$22,3,2))) ->  | S100: 46.25 | T100: =VLOOKUP($S100,P_All!$X$5:$AS$245,3*($C$8-1)+2) -> 14479 | U100: =VLOOKUP($S100,P_All!$X$5:$AS$245,3*($C$8-1)+3) -> 15225 | V100: =VLOOKUP($S100,P_All!$X$5:$AS$245,3*($C$8-1)+4) -> 16149 | W100: =IF(ISNA(VLOOKUP($B$6,$A$25:$E$52,IF($B$8=$A$22,3,2))),EXP(VLOOKUP($B$6,$A$25:$E$52,4)*LN(VLOOKUP($S100,#REF!,$C$8+1)/1000)+VLOOKUP($B$6,$A$25:$E$52,5)),VLOOKUP($B$6,$A$25:$E$52,IF($B$8=$A$22,3,2))) -> 
H101: 76 | I101: =VLOOKUP($H101,P_All!$A$5:$D$205,3*($C$8-1)+2) -> 17148 | J101: =VLOOKUP($H101,P_All!$A$5:$D$205,3*($C$8-1)+3) -> 19987 | K101: =VLOOKUP($H101,P_All!$A$5:$D$205,3*($C$8-1)+4) -> 23252 | L101: =IF(ISNA(VLOOKUP($B$6,$A$25:$E$51,IF($B$8=$A$22,3,2))),EXP(VLOOKUP($B$6,$A$25:$E$51,4)*LN(VLOOKUP($H101,#REF!,$C$8+1)/1000)+VLOOKUP($B$6,$A$25:$E$51,5)),VLOOKUP($B$6,$A$25:$E$51,IF($B$8=$A$22,3,2))) ->  | M101: 76 | N101: =VLOOKUP($H101,Other_All!$A$5:$D$205,3*($C$8-1)+2) -> 17107 | O101: =VLOOKUP($H101,Other_All!$A$5:$D$205,3*($C$8-1)+3) -> 19607 | P101: =VLOOKUP($H101,Other_All!$A$5:$D$205,3*($C$8-1)+4) -> 22114 | Q101: =IF(ISNA(VLOOKUP($B$6,$A$25:$E$51,IF($B$8=$A$22,3,2))),EXP(VLOOKUP($B$6,$A$25:$E$51,4)*LN(VLOOKUP($H101,#REF!,$C$8+1)/1000)+VLOOKUP($B$6,$A$25:$E$51,5)),VLOOKUP($B$6,$A$25:$E$51,IF($B$8=$A$22,3,2))) ->  | S101: 46.33333333 | T101: =VLOOKUP($S101,P_All!$X$5:$AS$245,3*($C$8-1)+2) -> 14568 | U101: =VLOOKUP($S101,P_All!$X$5:$AS$245,3*($C$8-1)+3) -> 15291 | V101: =VLOOKUP($S101,P_All!$X$5:$AS$245,3*($C$8-1)+4) -> 16195 | W101: =IF(ISNA(VLOOKUP($B$6,$A$25:$E$52,IF($B$8=$A$22,3,2))),EXP(VLOOKUP($B$6,$A$25:$E$52,4)*LN(VLOOKUP($S101,#REF!,$C$8+1)/1000)+VLOOKUP($B$6,$A$25:$E$52,5)),VLOOKUP($B$6,$A$25:$E$52,IF($B$8=$A$22,3,2))) -> 
H102: 77 | I102: =VLOOKUP($H102,P_All!$A$5:$D$205,3*($C$8-1)+2) -> 17174 | J102: =VLOOKUP($H102,P_All!$A$5:$D$205,3*($C$8-1)+3) -> 19970 | K102: =VLOOKUP($H102,P_All!$A$5:$D$205,3*($C$8-1)+4) -> 23023 | L102: =IF(ISNA(VLOOKUP($B$6,$A$25:$E$51,IF($B$8=$A$22,3,2))),EXP(VLOOKUP($B$6,$A$25:$E$51,4)*LN(VLOOKUP($H102,#REF!,$C$8+1)/1000)+VLOOKUP($B$6,$A$25:$E$51,5)),VLOOKUP($B$6,$A$25:$E$51,IF($B$8=$A$22,3,2))) ->  | M102: 77 | N102: =VLOOKUP($H102,Other_All!$A$5:$D$205,3*($C$8-1)+2) -> 17055 | O102: =VLOOKUP($H102,Other_All!$A$5:$D$205,3*($C$8-1)+3) -> 19568 | P102: =VLOOKUP($H102,Other_All!$A$5:$D$205,3*($C$8-1)+4) -> 22242 | Q102: =IF(ISNA(VLOOKUP($B$6,$A$25:$E$51,IF($B$8=$A$22,3,2))),EXP(VLOOKUP($B$6,$A$25:$E$51,4)*LN(VLOOKUP($H102,#REF!,$C$8+1)/1000)+VLOOKUP($B$6,$A$25:$E$51,5)),VLOOKUP($B$6,$A$25:$E$51,IF($B$8=$A$22,3,2))) ->  | S102: 46.41666667 | T102: =VLOOKUP($S102,P_All!$X$5:$AS$245,3*($C$8-1)+2) -> 14541 | U102: =VLOOKUP($S102,P_All!$X$5:$AS$245,3*($C$8-1)+3) -> 15270 | V102: =VLOOKUP($S102,P_All!$X$5:$AS$245,3*($C$8-1)+4) -> 16171 | W102: =IF(ISNA(VLOOKUP($B$6,$A$25:$E$52,IF($B$8=$A$22,3,2))),EXP(VLOOKUP($B$6,$A$25:$E$52,4)*LN(VLOOKUP($S102,#REF!,$C$8+1)/1000)+VLOOKUP($B$6,$A$25:$E$52,5)),VLOOKUP($B$6,$A$25:$E$52,IF($B$8=$A$22,3,2))) -> 
H103: 78 | I103: =VLOOKUP($H103,P_All!$A$5:$D$205,3*($C$8-1)+2) -> 17559 | J103: =VLOOKUP($H103,P_All!$A$5:$D$205,3*($C$8-1)+3) -> 19997 | K103: =VLOOKUP($H103,P_All!$A$5:$D$205,3*($C$8-1)+4) -> 23180 | L103: =IF(ISNA(VLOOKUP($B$6,$A$25:$E$51,IF($B$8=$A$22,3,2))),EXP(VLOOKUP($B$6,$A$25:$E$51,4)*LN(VLOOKUP($H103,#REF!,$C$8+1)/1000)+VLOOKUP($B$6,$A$25:$E$51,5)),VLOOKUP($B$6,$A$25:$E$51,IF($B$8=$A$22,3,2))) ->  | M103: 78 | N103: =VLOOKUP($H103,Other_All!$A$5:$D$205,3*($C$8-1)+2) -> 17155 | O103: =VLOOKUP($H103,Other_All!$A$5:$D$205,3*($C$8-1)+3) -> 19638 | P103: =VLOOKUP($H103,Other_All!$A$5:$D$205,3*($C$8-1)+4) -> 22159 | Q103: =IF(ISNA(VLOOKUP($B$6,$A$25:$E$51,IF($B$8=$A$22,3,2))),EXP(VLOOKUP($B$6,$A$25:$E$51,4)*LN(VLOOKUP($H103,#REF!,$C$8+1)/1000)+VLOOKUP($B$6,$A$25:$E$51,5)),VLOOKUP($B$6,$A$25:$E$51,IF($B$8=$A$22,3,2))) ->  | S103: 46.5 | T103: =VLOOKUP($S103,P_All!$X$5:$AS$245,3*($C$8-1)+2) -> 14463 | U103: =VLOOKUP($S103,P_All!$X$5:$AS$245,3*($C$8-1)+3) -> 15156 | V103: =VLOOKUP($S103,P_All!$X$5:$AS$245,3*($C$8-1)+4) -> 16056 | W103: =IF(ISNA(VLOOKUP($B$6,$A$25:$E$52,IF($B$8=$A$22,3,2))),EXP(VLOOKUP($B$6,$A$25:$E$52,4)*LN(VLOOKUP($S103,#REF!,$C$8+1)/1000)+VLOOKUP($B$6,$A$25:$E$52,5)),VLOOKUP($B$6,$A$25:$E$52,IF($B$8=$A$22,3,2))) -> 
H104: 79 | I104: =VLOOKUP($H104,P_All!$A$5:$D$205,3*($C$8-1)+2) -> 17434 | J104: =VLOOKUP($H104,P_All!$A$5:$D$205,3*($C$8-1)+3) -> 20139 | K104: =VLOOKUP($H104,P_All!$A$5:$D$205,3*($C$8-1)+4) -> 23275 | L104: =IF(ISNA(VLOOKUP($B$6,$A$25:$E$51,IF($B$8=$A$22,3,2))),EXP(VLOOKUP($B$6,$A$25:$E$51,4)*LN(VLOOKUP($H104,#REF!,$C$8+1)/1000)+VLOOKUP($B$6,$A$25:$E$51,5)),VLOOKUP($B$6,$A$25:$E$51,IF($B$8=$A$22,3,2))) ->  | M104: 79 | N104: =VLOOKUP($H104,Other_All!$A$5:$D$205,3*($C$8-1)+2) -> 17068 | O104: =VLOOKUP($H104,Other_All!$A$5:$D$205,3*($C$8-1)+3) -> 19551 | P104: =VLOOKUP($H104,Other_All!$A$5:$D$205,3*($C$8-1)+4) -> 22077 | Q104: =IF(ISNA(VLOOKUP($B$6,$A$25:$E$51,IF($B$8=$A$22,3,2))),EXP(VLOOKUP($B$6,$A$25:$E$51,4)*LN(VLOOKUP($H104,#REF!,$C$8+1)/1000)+VLOOKUP($B$6,$A$25:$E$51,5)),VLOOKUP($B$6,$A$25:$E$51,IF($B$8=$A$22,3,2))) ->  | S104: 46.58333333 | T104: =VLOOKUP($S104,P_All!$X$5:$AS$245,3*($C$8-1)+2) -> 14385 | U104: =VLOOKUP($S104,P_All!$X$5:$AS$245,3*($C$8-1)+3) -> 15125 | V104: =VLOOKUP($S104,P_All!$X$5:$AS$245,3*($C$8-1)+4) -> 16053 | W104: =IF(ISNA(VLOOKUP($B$6,$A$25:$E$52,IF($B$8=$A$22,3,2))),EXP(VLOOKUP($B$6,$A$25:$E$52,4)*LN(VLOOKUP($S104,#REF!,$C$8+1)/1000)+VLOOKUP($B$6,$A$25:$E$52,5)),VLOOKUP($B$6,$A$25:$E$52,IF($B$8=$A$22,3,2))) -> 
H105: 80 | I105: =VLOOKUP($H105,P_All!$A$5:$D$205,3*($C$8-1)+2) -> 17361 | J105: =VLOOKUP($H105,P_All!$A$5:$D$205,3*($C$8-1)+3) -> 20047 | K105: =VLOOKUP($H105,P_All!$A$5:$D$205,3*($C$8-1)+4) -> 23176 | L105: =IF(ISNA(VLOOKUP($B$6,$A$25:$E$51,IF($B$8=$A$22,3,2))),EXP(VLOOKUP($B$6,$A$25:$E$51,4)*LN(VLOOKUP($H105,#REF!,$C$8+1)/1000)+VLOOKUP($B$6,$A$25:$E$51,5)),VLOOKUP($B$6,$A$25:$E$51,IF($B$8=$A$22,3,2))) ->  | M105: 80 | N105: =VLOOKUP($H105,Other_All!$A$5:$D$205,3*($C$8-1)+2) -> 16946 | O105: =VLOOKUP($H105,Other_All!$A$5:$D$205,3*($C$8-1)+3) -> 19462 | P105: =VLOOKUP($H105,Other_All!$A$5:$D$205,3*($C$8-1)+4) -> 22258 | Q105: =IF(ISNA(VLOOKUP($B$6,$A$25:$E$51,IF($B$8=$A$22,3,2))),EXP(VLOOKUP($B$6,$A$25:$E$51,4)*LN(VLOOKUP($H105,#REF!,$C$8+1)/1000)+VLOOKUP($B$6,$A$25:$E$51,5)),VLOOKUP($B$6,$A$25:$E$51,IF($B$8=$A$22,3,2))) ->  | S105: 46.66666667 | T105: =VLOOKUP($S105,P_All!$X$5:$AS$245,3*($C$8-1)+2) -> 14339 | U105: =VLOOKUP($S105,P_All!$X$5:$AS$245,3*($C$8-1)+3) -> 15108 | V105: =VLOOKUP($S105,P_All!$X$5:$AS$245,3*($C$8-1)+4) -> 16105 | W105: =IF(ISNA(VLOOKUP($B$6,$A$25:$E$52,IF($B$8=$A$22,3,2))),EXP(VLOOKUP($B$6,$A$25:$E$52,4)*LN(VLOOKUP($S105,#REF!,$C$8+1)/1000)+VLOOKUP($B$6,$A$25:$E$52,5)),VLOOKUP($B$6,$A$25:$E$52,IF($B$8=$A$22,3,2))) -> 
H106: 81 | I106: =VLOOKUP($H106,P_All!$A$5:$D$205,3*($C$8-1)+2) -> 17387 | J106: =VLOOKUP($H106,P_All!$A$5:$D$205,3*($C$8-1)+3) -> 20160 | K106: =VLOOKUP($H106,P_All!$A$5:$D$205,3*($C$8-1)+4) -> 23435 | L106: =IF(ISNA(VLOOKUP($B$6,$A$25:$E$51,IF($B$8=$A$22,3,2))),EXP(VLOOKUP($B$6,$A$25:$E$51,4)*LN(VLOOKUP($H106,#REF!,$C$8+1)/1000)+VLOOKUP($B$6,$A$25:$E$51,5)),VLOOKUP($B$6,$A$25:$E$51,IF($B$8=$A$22,3,2))) ->  | M106: 81 | N106: =VLOOKUP($H106,Other_All!$A$5:$D$205,3*($C$8-1)+2) -> 16958 | O106: =VLOOKUP($H106,Other_All!$A$5:$D$205,3*($C$8-1)+3) -> 19526 | P106: =VLOOKUP($H106,Other_All!$A$5:$D$205,3*($C$8-1)+4) -> 22141 | Q106: =IF(ISNA(VLOOKUP($B$6,$A$25:$E$51,IF($B$8=$A$22,3,2))),EXP(VLOOKUP($B$6,$A$25:$E$51,4)*LN(VLOOKUP($H106,#REF!,$C$8+1)/1000)+VLOOKUP($B$6,$A$25:$E$51,5)),VLOOKUP($B$6,$A$25:$E$51,IF($B$8=$A$22,3,2))) ->  | S106: 46.75 | T106: =VLOOKUP($S106,P_All!$X$5:$AS$245,3*($C$8-1)+2) -> 14206 | U106: =VLOOKUP($S106,P_All!$X$5:$AS$245,3*($C$8-1)+3) -> 15014 | V106: =VLOOKUP($S106,P_All!$X$5:$AS$245,3*($C$8-1)+4) -> 16086 | W106: =IF(ISNA(VLOOKUP($B$6,$A$25:$E$52,IF($B$8=$A$22,3,2))),EXP(VLOOKUP($B$6,$A$25:$E$52,4)*LN(VLOOKUP($S106,#REF!,$C$8+1)/1000)+VLOOKUP($B$6,$A$25:$E$52,5)),VLOOKUP($B$6,$A$25:$E$52,IF($B$8=$A$22,3,2))) -> 
H107: 82 | I107: =VLOOKUP($H107,P_All!$A$5:$D$205,3*($C$8-1)+2) -> 17437 | J107: =VLOOKUP($H107,P_All!$A$5:$D$205,3*($C$8-1)+3) -> 20133 | K107: =VLOOKUP($H107,P_All!$A$5:$D$205,3*($C$8-1)+4) -> 23334 | L107: =IF(ISNA(VLOOKUP($B$6,$A$25:$E$51,IF($B$8=$A$22,3,2))),EXP(VLOOKUP($B$6,$A$25:$E$51,4)*LN(VLOOKUP($H107,#REF!,$C$8+1)/1000)+VLOOKUP($B$6,$A$25:$E$51,5)),VLOOKUP($B$6,$A$25:$E$51,IF($B$8=$A$22,3,2))) ->  | M107: 82 | N107: =VLOOKUP($H107,Other_All!$A$5:$D$205,3*($C$8-1)+2) -> 17098 | O107: =VLOOKUP($H107,Other_All!$A$5:$D$205,3*($C$8-1)+3) -> 19465 | P107: =VLOOKUP($H107,Other_All!$A$5:$D$205,3*($C$8-1)+4) -> 22180 | Q107: =IF(ISNA(VLOOKUP($B$6,$A$25:$E$51,IF($B$8=$A$22,3,2))),EXP(VLOOKUP($B$6,$A$25:$E$51,4)*LN(VLOOKUP($H107,#REF!,$C$8+1)/1000)+VLOOKUP($B$6,$A$25:$E$51,5)),VLOOKUP($B$6,$A$25:$E$51,IF($B$8=$A$22,3,2))) ->  | S107: 46.83333333 | T107: =VLOOKUP($S107,P_All!$X$5:$AS$245,3*($C$8-1)+2) -> 14131 | U107: =VLOOKUP($S107,P_All!$X$5:$AS$245,3*($C$8-1)+3) -> 14975 | V107: =VLOOKUP($S107,P_All!$X$5:$AS$245,3*($C$8-1)+4) -> 16041 | W107: =IF(ISNA(VLOOKUP($B$6,$A$25:$E$52,IF($B$8=$A$22,3,2))),EXP(VLOOKUP($B$6,$A$25:$E$52,4)*LN(VLOOKUP($S107,#REF!,$C$8+1)/1000)+VLOOKUP($B$6,$A$25:$E$52,5)),VLOOKUP($B$6,$A$25:$E$52,IF($B$8=$A$22,3,2))) -> 
H108: 83 | I108: =VLOOKUP($H108,P_All!$A$5:$D$205,3*($C$8-1)+2) -> 17477 | J108: =VLOOKUP($H108,P_All!$A$5:$D$205,3*($C$8-1)+3) -> 20090 | K108: =VLOOKUP($H108,P_All!$A$5:$D$205,3*($C$8-1)+4) -> 23591 | L108: =IF(ISNA(VLOOKUP($B$6,$A$25:$E$51,IF($B$8=$A$22,3,2))),EXP(VLOOKUP($B$6,$A$25:$E$51,4)*LN(VLOOKUP($H108,#REF!,$C$8+1)/1000)+VLOOKUP($B$6,$A$25:$E$51,5)),VLOOKUP($B$6,$A$25:$E$51,IF($B$8=$A$22,3,2))) ->  | M108: 83 | N108: =VLOOKUP($H108,Other_All!$A$5:$D$205,3*($C$8-1)+2) -> 17073 | O108: =VLOOKUP($H108,Other_All!$A$5:$D$205,3*($C$8-1)+3) -> 19574 | P108: =VLOOKUP($H108,Other_All!$A$5:$D$205,3*($C$8-1)+4) -> 22272 | Q108: =IF(ISNA(VLOOKUP($B$6,$A$25:$E$51,IF($B$8=$A$22,3,2))),EXP(VLOOKUP($B$6,$A$25:$E$51,4)*LN(VLOOKUP($H108,#REF!,$C$8+1)/1000)+VLOOKUP($B$6,$A$25:$E$51,5)),VLOOKUP($B$6,$A$25:$E$51,IF($B$8=$A$22,3,2))) ->  | S108: 46.91666667 | T108: =VLOOKUP($S108,P_All!$X$5:$AS$245,3*($C$8-1)+2) -> 14122 | U108: =VLOOKUP($S108,P_All!$X$5:$AS$245,3*($C$8-1)+3) -> 14951 | V108: =VLOOKUP($S108,P_All!$X$5:$AS$245,3*($C$8-1)+4) -> 16022 | W108: =IF(ISNA(VLOOKUP($B$6,$A$25:$E$52,IF($B$8=$A$22,3,2))),EXP(VLOOKUP($B$6,$A$25:$E$52,4)*LN(VLOOKUP($S108,#REF!,$C$8+1)/1000)+VLOOKUP($B$6,$A$25:$E$52,5)),VLOOKUP($B$6,$A$25:$E$52,IF($B$8=$A$22,3,2))) -> 
H109: 84 | I109: =VLOOKUP($H109,P_All!$A$5:$D$205,3*($C$8-1)+2) -> 17340 | J109: =VLOOKUP($H109,P_All!$A$5:$D$205,3*($C$8-1)+3) -> 20148 | K109: =VLOOKUP($H109,P_All!$A$5:$D$205,3*($C$8-1)+4) -> 23780 | L109: =IF(ISNA(VLOOKUP($B$6,$A$25:$E$51,IF($B$8=$A$22,3,2))),EXP(VLOOKUP($B$6,$A$25:$E$51,4)*LN(VLOOKUP($H109,#REF!,$C$8+1)/1000)+VLOOKUP($B$6,$A$25:$E$51,5)),VLOOKUP($B$6,$A$25:$E$51,IF($B$8=$A$22,3,2))) ->  | M109: 84 | N109: =VLOOKUP($H109,Other_All!$A$5:$D$205,3*($C$8-1)+2) -> 17054 | O109: =VLOOKUP($H109,Other_All!$A$5:$D$205,3*($C$8-1)+3) -> 19641 | P109: =VLOOKUP($H109,Other_All!$A$5:$D$205,3*($C$8-1)+4) -> 22364 | Q109: =IF(ISNA(VLOOKUP($B$6,$A$25:$E$51,IF($B$8=$A$22,3,2))),EXP(VLOOKUP($B$6,$A$25:$E$51,4)*LN(VLOOKUP($H109,#REF!,$C$8+1)/1000)+VLOOKUP($B$6,$A$25:$E$51,5)),VLOOKUP($B$6,$A$25:$E$51,IF($B$8=$A$22,3,2))) ->  | S109: 47 | T109: =VLOOKUP($S109,P_All!$X$5:$AS$245,3*($C$8-1)+2) -> 14094 | U109: =VLOOKUP($S109,P_All!$X$5:$AS$245,3*($C$8-1)+3) -> 14908 | V109: =VLOOKUP($S109,P_All!$X$5:$AS$245,3*($C$8-1)+4) -> 15961 | W109: =IF(ISNA(VLOOKUP($B$6,$A$25:$E$52,IF($B$8=$A$22,3,2))),EXP(VLOOKUP($B$6,$A$25:$E$52,4)*LN(VLOOKUP($S109,#REF!,$C$8+1)/1000)+VLOOKUP($B$6,$A$25:$E$52,5)),VLOOKUP($B$6,$A$25:$E$52,IF($B$8=$A$22,3,2))) -> 
H110: 85 | I110: =VLOOKUP($H110,P_All!$A$5:$D$205,3*($C$8-1)+2) -> 17385 | J110: =VLOOKUP($H110,P_All!$A$5:$D$205,3*($C$8-1)+3) -> 20113 | K110: =VLOOKUP($H110,P_All!$A$5:$D$205,3*($C$8-1)+4) -> 23799 | L110: =IF(ISNA(VLOOKUP($B$6,$A$25:$E$51,IF($B$8=$A$22,3,2))),EXP(VLOOKUP($B$6,$A$25:$E$51,4)*LN(VLOOKUP($H110,#REF!,$C$8+1)/1000)+VLOOKUP($B$6,$A$25:$E$51,5)),VLOOKUP($B$6,$A$25:$E$51,IF($B$8=$A$22,3,2))) ->  | M110: 85 | N110: =VLOOKUP($H110,Other_All!$A$5:$D$205,3*($C$8-1)+2) -> 17063 | O110: =VLOOKUP($H110,Other_All!$A$5:$D$205,3*($C$8-1)+3) -> 19569 | P110: =VLOOKUP($H110,Other_All!$A$5:$D$205,3*($C$8-1)+4) -> 22227 | Q110: =IF(ISNA(VLOOKUP($B$6,$A$25:$E$51,IF($B$8=$A$22,3,2))),EXP(VLOOKUP($B$6,$A$25:$E$51,4)*LN(VLOOKUP($H110,#REF!,$C$8+1)/1000)+VLOOKUP($B$6,$A$25:$E$51,5)),VLOOKUP($B$6,$A$25:$E$51,IF($B$8=$A$22,3,2))) ->  | S110: 47.08333333 | T110: =VLOOKUP($S110,P_All!$X$5:$AS$245,3*($C$8-1)+2) -> 14101 | U110: =VLOOKUP($S110,P_All!$X$5:$AS$245,3*($C$8-1)+3) -> 14884 | V110: =VLOOKUP($S110,P_All!$X$5:$AS$245,3*($C$8-1)+4) -> 15926 | W110: =IF(ISNA(VLOOKUP($B$6,$A$25:$E$52,IF($B$8=$A$22,3,2))),EXP(VLOOKUP($B$6,$A$25:$E$52,4)*LN(VLOOKUP($S110,#REF!,$C$8+1)/1000)+VLOOKUP($B$6,$A$25:$E$52,5)),VLOOKUP($B$6,$A$25:$E$52,IF($B$8=$A$22,3,2))) -> 
H111: 86 | I111: =VLOOKUP($H111,P_All!$A$5:$D$205,3*($C$8-1)+2) -> 17472 | J111: =VLOOKUP($H111,P_All!$A$5:$D$205,3*($C$8-1)+3) -> 20240 | K111: =VLOOKUP($H111,P_All!$A$5:$D$205,3*($C$8-1)+4) -> 23768 | L111: =IF(ISNA(VLOOKUP($B$6,$A$25:$E$51,IF($B$8=$A$22,3,2))),EXP(VLOOKUP($B$6,$A$25:$E$51,4)*LN(VLOOKUP($H111,#REF!,$C$8+1)/1000)+VLOOKUP($B$6,$A$25:$E$51,5)),VLOOKUP($B$6,$A$25:$E$51,IF($B$8=$A$22,3,2))) ->  | M111: 86 | N111: =VLOOKUP($H111,Other_All!$A$5:$D$205,3*($C$8-1)+2) -> 17093 | O111: =VLOOKUP($H111,Other_All!$A$5:$D$205,3*($C$8-1)+3) -> 19496 | P111: =VLOOKUP($H111,Other_All!$A$5:$D$205,3*($C$8-1)+4) -> 22241 | Q111: =IF(ISNA(VLOOKUP($B$6,$A$25:$E$51,IF($B$8=$A$22,3,2))),EXP(VLOOKUP($B$6,$A$25:$E$51,4)*LN(VLOOKUP($H111,#REF!,$C$8+1)/1000)+VLOOKUP($B$6,$A$25:$E$51,5)),VLOOKUP($B$6,$A$25:$E$51,IF($B$8=$A$22,3,2))) ->  | S111: 47.16666667 | T111: =VLOOKUP($S111,P_All!$X$5:$AS$245,3*($C$8-1)+2) -> 14135 | U111: =VLOOKUP($S111,P_All!$X$5:$AS$245,3*($C$8-1)+3) -> 14875 | V111: =VLOOKUP($S111,P_All!$X$5:$AS$245,3*($C$8-1)+4) -> 15889 | W111: =IF(ISNA(VLOOKUP($B$6,$A$25:$E$52,IF($B$8=$A$22,3,2))),EXP(VLOOKUP($B$6,$A$25:$E$52,4)*LN(VLOOKUP($S111,#REF!,$C$8+1)/1000)+VLOOKUP($B$6,$A$25:$E$52,5)),VLOOKUP($B$6,$A$25:$E$52,IF($B$8=$A$22,3,2))) -> 
H112: 87 | I112: =VLOOKUP($H112,P_All!$A$5:$D$205,3*($C$8-1)+2) -> 17332 | J112: =VLOOKUP($H112,P_All!$A$5:$D$205,3*($C$8-1)+3) -> 20228 | K112: =VLOOKUP($H112,P_All!$A$5:$D$205,3*($C$8-1)+4) -> 23710 | L112: =IF(ISNA(VLOOKUP($B$6,$A$25:$E$51,IF($B$8=$A$22,3,2))),EXP(VLOOKUP($B$6,$A$25:$E$51,4)*LN(VLOOKUP($H112,#REF!,$C$8+1)/1000)+VLOOKUP($B$6,$A$25:$E$51,5)),VLOOKUP($B$6,$A$25:$E$51,IF($B$8=$A$22,3,2))) ->  | M112: 87 | N112: =VLOOKUP($H112,Other_All!$A$5:$D$205,3*($C$8-1)+2) -> 17061 | O112: =VLOOKUP($H112,Other_All!$A$5:$D$205,3*($C$8-1)+3) -> 19426 | P112: =VLOOKUP($H112,Other_All!$A$5:$D$205,3*($C$8-1)+4) -> 22179 | Q112: =IF(ISNA(VLOOKUP($B$6,$A$25:$E$51,IF($B$8=$A$22,3,2))),EXP(VLOOKUP($B$6,$A$25:$E$51,4)*LN(VLOOKUP($H112,#REF!,$C$8+1)/1000)+VLOOKUP($B$6,$A$25:$E$51,5)),VLOOKUP($B$6,$A$25:$E$51,IF($B$8=$A$22,3,2))) ->  | S112: 47.25 | T112: =VLOOKUP($S112,P_All!$X$5:$AS$245,3*($C$8-1)+2) -> 14206 | U112: =VLOOKUP($S112,P_All!$X$5:$AS$245,3*($C$8-1)+3) -> 14918 | V112: =VLOOKUP($S112,P_All!$X$5:$AS$245,3*($C$8-1)+4) -> 15929 | W112: =IF(ISNA(VLOOKUP($B$6,$A$25:$E$52,IF($B$8=$A$22,3,2))),EXP(VLOOKUP($B$6,$A$25:$E$52,4)*LN(VLOOKUP($S112,#REF!,$C$8+1)/1000)+VLOOKUP($B$6,$A$25:$E$52,5)),VLOOKUP($B$6,$A$25:$E$52,IF($B$8=$A$22,3,2))) -> 
H113: 88 | I113: =VLOOKUP($H113,P_All!$A$5:$D$205,3*($C$8-1)+2) -> 17494 | J113: =VLOOKUP($H113,P_All!$A$5:$D$205,3*($C$8-1)+3) -> 20110 | K113: =VLOOKUP($H113,P_All!$A$5:$D$205,3*($C$8-1)+4) -> 23759 | L113: =IF(ISNA(VLOOKUP($B$6,$A$25:$E$51,IF($B$8=$A$22,3,2))),EXP(VLOOKUP($B$6,$A$25:$E$51,4)*LN(VLOOKUP($H113,#REF!,$C$8+1)/1000)+VLOOKUP($B$6,$A$25:$E$51,5)),VLOOKUP($B$6,$A$25:$E$51,IF($B$8=$A$22,3,2))) ->  | M113: 88 | N113: =VLOOKUP($H113,Other_All!$A$5:$D$205,3*($C$8-1)+2) -> 17223 | O113: =VLOOKUP($H113,Other_All!$A$5:$D$205,3*($C$8-1)+3) -> 19373 | P113: =VLOOKUP($H113,Other_All!$A$5:$D$205,3*($C$8-1)+4) -> 22378 | Q113: =IF(ISNA(VLOOKUP($B$6,$A$25:$E$51,IF($B$8=$A$22,3,2))),EXP(VLOOKUP($B$6,$A$25:$E$51,4)*LN(VLOOKUP($H113,#REF!,$C$8+1)/1000)+VLOOKUP($B$6,$A$25:$E$51,5)),VLOOKUP($B$6,$A$25:$E$51,IF($B$8=$A$22,3,2))) ->  | S113: 47.33333333 | T113: =VLOOKUP($S113,P_All!$X$5:$AS$245,3*($C$8-1)+2) -> 14283 | U113: =VLOOKUP($S113,P_All!$X$5:$AS$245,3*($C$8-1)+3) -> 14986 | V113: =VLOOKUP($S113,P_All!$X$5:$AS$245,3*($C$8-1)+4) -> 16037 | W113: =IF(ISNA(VLOOKUP($B$6,$A$25:$E$52,IF($B$8=$A$22,3,2))),EXP(VLOOKUP($B$6,$A$25:$E$52,4)*LN(VLOOKUP($S113,#REF!,$C$8+1)/1000)+VLOOKUP($B$6,$A$25:$E$52,5)),VLOOKUP($B$6,$A$25:$E$52,IF($B$8=$A$22,3,2))) -> 
H114: 89 | I114: =VLOOKUP($H114,P_All!$A$5:$D$205,3*($C$8-1)+2) -> 17691 | J114: =VLOOKUP($H114,P_All!$A$5:$D$205,3*($C$8-1)+3) -> 20079 | K114: =VLOOKUP($H114,P_All!$A$5:$D$205,3*($C$8-1)+4) -> 23977 | L114: =IF(ISNA(VLOOKUP($B$6,$A$25:$E$51,IF($B$8=$A$22,3,2))),EXP(VLOOKUP($B$6,$A$25:$E$51,4)*LN(VLOOKUP($H114,#REF!,$C$8+1)/1000)+VLOOKUP($B$6,$A$25:$E$51,5)),VLOOKUP($B$6,$A$25:$E$51,IF($B$8=$A$22,3,2))) ->  | M114: 89 | N114: =VLOOKUP($H114,Other_All!$A$5:$D$205,3*($C$8-1)+2) -> 17407 | O114: =VLOOKUP($H114,Other_All!$A$5:$D$205,3*($C$8-1)+3) -> 19453 | P114: =VLOOKUP($H114,Other_All!$A$5:$D$205,3*($C$8-1)+4) -> 22311 | Q114: =IF(ISNA(VLOOKUP($B$6,$A$25:$E$51,IF($B$8=$A$22,3,2))),EXP(VLOOKUP($B$6,$A$25:$E$51,4)*LN(VLOOKUP($H114,#REF!,$C$8+1)/1000)+VLOOKUP($B$6,$A$25:$E$51,5)),VLOOKUP($B$6,$A$25:$E$51,IF($B$8=$A$22,3,2))) ->  | S114: 47.41666667 | T114: =VLOOKUP($S114,P_All!$X$5:$AS$245,3*($C$8-1)+2) -> 14274 | U114: =VLOOKUP($S114,P_All!$X$5:$AS$245,3*($C$8-1)+3) -> 14960 | V114: =VLOOKUP($S114,P_All!$X$5:$AS$245,3*($C$8-1)+4) -> 16046 | W114: =IF(ISNA(VLOOKUP($B$6,$A$25:$E$52,IF($B$8=$A$22,3,2))),EXP(VLOOKUP($B$6,$A$25:$E$52,4)*LN(VLOOKUP($S114,#REF!,$C$8+1)/1000)+VLOOKUP($B$6,$A$25:$E$52,5)),VLOOKUP($B$6,$A$25:$E$52,IF($B$8=$A$22,3,2))) -> 
H115: 90 | I115: =VLOOKUP($H115,P_All!$A$5:$D$205,3*($C$8-1)+2) -> 17637 | J115: =VLOOKUP($H115,P_All!$A$5:$D$205,3*($C$8-1)+3) -> 19991 | K115: =VLOOKUP($H115,P_All!$A$5:$D$205,3*($C$8-1)+4) -> 24106 | L115: =IF(ISNA(VLOOKUP($B$6,$A$25:$E$51,IF($B$8=$A$22,3,2))),EXP(VLOOKUP($B$6,$A$25:$E$51,4)*LN(VLOOKUP($H115,#REF!,$C$8+1)/1000)+VLOOKUP($B$6,$A$25:$E$51,5)),VLOOKUP($B$6,$A$25:$E$51,IF($B$8=$A$22,3,2))) ->  | M115: 90 | N115: =VLOOKUP($H115,Other_All!$A$5:$D$205,3*($C$8-1)+2) -> 17283 | O115: =VLOOKUP($H115,Other_All!$A$5:$D$205,3*($C$8-1)+3) -> 19534 | P115: =VLOOKUP($H115,Other_All!$A$5:$D$205,3*($C$8-1)+4) -> 22210 | Q115: =IF(ISNA(VLOOKUP($B$6,$A$25:$E$51,IF($B$8=$A$22,3,2))),EXP(VLOOKUP($B$6,$A$25:$E$51,4)*LN(VLOOKUP($H115,#REF!,$C$8+1)/1000)+VLOOKUP($B$6,$A$25:$E$51,5)),VLOOKUP($B$6,$A$25:$E$51,IF($B$8=$A$22,3,2))) ->  | S115: 47.5 | T115: =VLOOKUP($S115,P_All!$X$5:$AS$245,3*($C$8-1)+2) -> 14172 | U115: =VLOOKUP($S115,P_All!$X$5:$AS$245,3*($C$8-1)+3) -> 14858 | V115: =VLOOKUP($S115,P_All!$X$5:$AS$245,3*($C$8-1)+4) -> 15921 | W115: =IF(ISNA(VLOOKUP($B$6,$A$25:$E$52,IF($B$8=$A$22,3,2))),EXP(VLOOKUP($B$6,$A$25:$E$52,4)*LN(VLOOKUP($S115,#REF!,$C$8+1)/1000)+VLOOKUP($B$6,$A$25:$E$52,5)),VLOOKUP($B$6,$A$25:$E$52,IF($B$8=$A$22,3,2))) -> 
H116: 91 | I116: =VLOOKUP($H116,P_All!$A$5:$D$205,3*($C$8-1)+2) -> 17632 | J116: =VLOOKUP($H116,P_All!$A$5:$D$205,3*($C$8-1)+3) -> 20039 | K116: =VLOOKUP($H116,P_All!$A$5:$D$205,3*($C$8-1)+4) -> 23707 | L116: =IF(ISNA(VLOOKUP($B$6,$A$25:$E$51,IF($B$8=$A$22,3,2))),EXP(VLOOKUP($B$6,$A$25:$E$51,4)*LN(VLOOKUP($H116,#REF!,$C$8+1)/1000)+VLOOKUP($B$6,$A$25:$E$51,5)),VLOOKUP($B$6,$A$25:$E$51,IF($B$8=$A$22,3,2))) ->  | M116: 91 | N116: =VLOOKUP($H116,Other_All!$A$5:$D$205,3*($C$8-1)+2) -> 17295 | O116: =VLOOKUP($H116,Other_All!$A$5:$D$205,3*($C$8-1)+3) -> 19452 | P116: =VLOOKUP($H116,Other_All!$A$5:$D$205,3*($C$8-1)+4) -> 22119 | Q116: =IF(ISNA(VLOOKUP($B$6,$A$25:$E$51,IF($B$8=$A$22,3,2))),EXP(VLOOKUP($B$6,$A$25:$E$51,4)*LN(VLOOKUP($H116,#REF!,$C$8+1)/1000)+VLOOKUP($B$6,$A$25:$E$51,5)),VLOOKUP($B$6,$A$25:$E$51,IF($B$8=$A$22,3,2))) ->  | S116: 47.58333333 | T116: =VLOOKUP($S116,P_All!$X$5:$AS$245,3*($C$8-1)+2) -> 14116 | U116: =VLOOKUP($S116,P_All!$X$5:$AS$245,3*($C$8-1)+3) -> 14829 | V116: =VLOOKUP($S116,P_All!$X$5:$AS$245,3*($C$8-1)+4) -> 15937 | W116: =IF(ISNA(VLOOKUP($B$6,$A$25:$E$52,IF($B$8=$A$22,3,2))),EXP(VLOOKUP($B$6,$A$25:$E$52,4)*LN(VLOOKUP($S116,#REF!,$C$8+1)/1000)+VLOOKUP($B$6,$A$25:$E$52,5)),VLOOKUP($B$6,$A$25:$E$52,IF($B$8=$A$22,3,2))) -> 
H117: 92 | I117: =VLOOKUP($H117,P_All!$A$5:$D$205,3*($C$8-1)+2) -> 17569 | J117: =VLOOKUP($H117,P_All!$A$5:$D$205,3*($C$8-1)+3) -> 20243 | K117: =VLOOKUP($H117,P_All!$A$5:$D$205,3*($C$8-1)+4) -> 23891 | L117: =IF(ISNA(VLOOKUP($B$6,$A$25:$E$51,IF($B$8=$A$22,3,2))),EXP(VLOOKUP($B$6,$A$25:$E$51,4)*LN(VLOOKUP($H117,#REF!,$C$8+1)/1000)+VLOOKUP($B$6,$A$25:$E$51,5)),VLOOKUP($B$6,$A$25:$E$51,IF($B$8=$A$22,3,2))) ->  | M117: 92 | N117: =VLOOKUP($H117,Other_All!$A$5:$D$205,3*($C$8-1)+2) -> 17399 | O117: =VLOOKUP($H117,Other_All!$A$5:$D$205,3*($C$8-1)+3) -> 19498 | P117: =VLOOKUP($H117,Other_All!$A$5:$D$205,3*($C$8-1)+4) -> 22246 | Q117: =IF(ISNA(VLOOKUP($B$6,$A$25:$E$51,IF($B$8=$A$22,3,2))),EXP(VLOOKUP($B$6,$A$25:$E$51,4)*LN(VLOOKUP($H117,#REF!,$C$8+1)/1000)+VLOOKUP($B$6,$A$25:$E$51,5)),VLOOKUP($B$6,$A$25:$E$51,IF($B$8=$A$22,3,2))) ->  | S117: 47.66666667 | T117: =VLOOKUP($S117,P_All!$X$5:$AS$245,3*($C$8-1)+2) -> 14065 | U117: =VLOOKUP($S117,P_All!$X$5:$AS$245,3*($C$8-1)+3) -> 14824 | V117: =VLOOKUP($S117,P_All!$X$5:$AS$245,3*($C$8-1)+4) -> 15929 | W117: =IF(ISNA(VLOOKUP($B$6,$A$25:$E$52,IF($B$8=$A$22,3,2))),EXP(VLOOKUP($B$6,$A$25:$E$52,4)*LN(VLOOKUP($S117,#REF!,$C$8+1)/1000)+VLOOKUP($B$6,$A$25:$E$52,5)),VLOOKUP($B$6,$A$25:$E$52,IF($B$8=$A$22,3,2))) -> 
H118: 93 | I118: =VLOOKUP($H118,P_All!$A$5:$D$205,3*($C$8-1)+2) -> 17578 | J118: =VLOOKUP($H118,P_All!$A$5:$D$205,3*($C$8-1)+3) -> 20177 | K118: =VLOOKUP($H118,P_All!$A$5:$D$205,3*($C$8-1)+4) -> 23838 | L118: =IF(ISNA(VLOOKUP($B$6,$A$25:$E$51,IF($B$8=$A$22,3,2))),EXP(VLOOKUP($B$6,$A$25:$E$51,4)*LN(VLOOKUP($H118,#REF!,$C$8+1)/1000)+VLOOKUP($B$6,$A$25:$E$51,5)),VLOOKUP($B$6,$A$25:$E$51,IF($B$8=$A$22,3,2))) ->  | M118: 93 | N118: =VLOOKUP($H118,Other_All!$A$5:$D$205,3*($C$8-1)+2) -> 17212 | O118: =VLOOKUP($H118,Other_All!$A$5:$D$205,3*($C$8-1)+3) -> 19527 | P118: =VLOOKUP($H118,Other_All!$A$5:$D$205,3*($C$8-1)+4) -> 22292 | Q118: =IF(ISNA(VLOOKUP($B$6,$A$25:$E$51,IF($B$8=$A$22,3,2))),EXP(VLOOKUP($B$6,$A$25:$E$51,4)*LN(VLOOKUP($H118,#REF!,$C$8+1)/1000)+VLOOKUP($B$6,$A$25:$E$51,5)),VLOOKUP($B$6,$A$25:$E$51,IF($B$8=$A$22,3,2))) ->  | S118: 47.75 | T118: =VLOOKUP($S118,P_All!$X$5:$AS$245,3*($C$8-1)+2) -> 13919 | U118: =VLOOKUP($S118,P_All!$X$5:$AS$245,3*($C$8-1)+3) -> 14722 | V118: =VLOOKUP($S118,P_All!$X$5:$AS$245,3*($C$8-1)+4) -> 15910 | W118: =IF(ISNA(VLOOKUP($B$6,$A$25:$E$52,IF($B$8=$A$22,3,2))),EXP(VLOOKUP($B$6,$A$25:$E$52,4)*LN(VLOOKUP($S118,#REF!,$C$8+1)/1000)+VLOOKUP($B$6,$A$25:$E$52,5)),VLOOKUP($B$6,$A$25:$E$52,IF($B$8=$A$22,3,2))) -> 
H119: 94 | I119: =VLOOKUP($H119,P_All!$A$5:$D$205,3*($C$8-1)+2) -> 17614 | J119: =VLOOKUP($H119,P_All!$A$5:$D$205,3*($C$8-1)+3) -> 20357 | K119: =VLOOKUP($H119,P_All!$A$5:$D$205,3*($C$8-1)+4) -> 23809 | L119: =IF(ISNA(VLOOKUP($B$6,$A$25:$E$51,IF($B$8=$A$22,3,2))),EXP(VLOOKUP($B$6,$A$25:$E$51,4)*LN(VLOOKUP($H119,#REF!,$C$8+1)/1000)+VLOOKUP($B$6,$A$25:$E$51,5)),VLOOKUP($B$6,$A$25:$E$51,IF($B$8=$A$22,3,2))) ->  | M119: 94 | N119: =VLOOKUP($H119,Other_All!$A$5:$D$205,3*($C$8-1)+2) -> 17235 | O119: =VLOOKUP($H119,Other_All!$A$5:$D$205,3*($C$8-1)+3) -> 19655 | P119: =VLOOKUP($H119,Other_All!$A$5:$D$205,3*($C$8-1)+4) -> 22168 | Q119: =IF(ISNA(VLOOKUP($B$6,$A$25:$E$51,IF($B$8=$A$22,3,2))),EXP(VLOOKUP($B$6,$A$25:$E$51,4)*LN(VLOOKUP($H119,#REF!,$C$8+1)/1000)+VLOOKUP($B$6,$A$25:$E$51,5)),VLOOKUP($B$6,$A$25:$E$51,IF($B$8=$A$22,3,2))) ->  | S119: 47.83333333 | T119: =VLOOKUP($S119,P_All!$X$5:$AS$245,3*($C$8-1)+2) -> 13832 | U119: =VLOOKUP($S119,P_All!$X$5:$AS$245,3*($C$8-1)+3) -> 14677 | V119: =VLOOKUP($S119,P_All!$X$5:$AS$245,3*($C$8-1)+4) -> 15915 | W119: =IF(ISNA(VLOOKUP($B$6,$A$25:$E$52,IF($B$8=$A$22,3,2))),EXP(VLOOKUP($B$6,$A$25:$E$52,4)*LN(VLOOKUP($S119,#REF!,$C$8+1)/1000)+VLOOKUP($B$6,$A$25:$E$52,5)),VLOOKUP($B$6,$A$25:$E$52,IF($B$8=$A$22,3,2))) -> 
H120: 95 | I120: =VLOOKUP($H120,P_All!$A$5:$D$205,3*($C$8-1)+2) -> 17620 | J120: =VLOOKUP($H120,P_All!$A$5:$D$205,3*($C$8-1)+3) -> 20480 | K120: =VLOOKUP($H120,P_All!$A$5:$D$205,3*($C$8-1)+4) -> 23711 | L120: =IF(ISNA(VLOOKUP($B$6,$A$25:$E$51,IF($B$8=$A$22,3,2))),EXP(VLOOKUP($B$6,$A$25:$E$51,4)*LN(VLOOKUP($H120,#REF!,$C$8+1)/1000)+VLOOKUP($B$6,$A$25:$E$51,5)),VLOOKUP($B$6,$A$25:$E$51,IF($B$8=$A$22,3,2))) ->  | M120: 95 | N120: =VLOOKUP($H120,Other_All!$A$5:$D$205,3*($C$8-1)+2) -> 17066 | O120: =VLOOKUP($H120,Other_All!$A$5:$D$205,3*($C$8-1)+3) -> 19577 | P120: =VLOOKUP($H120,Other_All!$A$5:$D$205,3*($C$8-1)+4) -> 22269 | Q120: =IF(ISNA(VLOOKUP($B$6,$A$25:$E$51,IF($B$8=$A$22,3,2))),EXP(VLOOKUP($B$6,$A$25:$E$51,4)*LN(VLOOKUP($H120,#REF!,$C$8+1)/1000)+VLOOKUP($B$6,$A$25:$E$51,5)),VLOOKUP($B$6,$A$25:$E$51,IF($B$8=$A$22,3,2))) ->  | S120: 47.91666667 | T120: =VLOOKUP($S120,P_All!$X$5:$AS$245,3*($C$8-1)+2) -> 13816 | U120: =VLOOKUP($S120,P_All!$X$5:$AS$245,3*($C$8-1)+3) -> 14656 | V120: =VLOOKUP($S120,P_All!$X$5:$AS$245,3*($C$8-1)+4) -> 15963 | W120: =IF(ISNA(VLOOKUP($B$6,$A$25:$E$52,IF($B$8=$A$22,3,2))),EXP(VLOOKUP($B$6,$A$25:$E$52,4)*LN(VLOOKUP($S120,#REF!,$C$8+1)/1000)+VLOOKUP($B$6,$A$25:$E$52,5)),VLOOKUP($B$6,$A$25:$E$52,IF($B$8=$A$22,3,2))) -> 
H121: 96 | I121: =VLOOKUP($H121,P_All!$A$5:$D$205,3*($C$8-1)+2) -> 17633 | J121: =VLOOKUP($H121,P_All!$A$5:$D$205,3*($C$8-1)+3) -> 20375 | K121: =VLOOKUP($H121,P_All!$A$5:$D$205,3*($C$8-1)+4) -> 23844 | L121: =IF(ISNA(VLOOKUP($B$6,$A$25:$E$51,IF($B$8=$A$22,3,2))),EXP(VLOOKUP($B$6,$A$25:$E$51,4)*LN(VLOOKUP($H121,#REF!,$C$8+1)/1000)+VLOOKUP($B$6,$A$25:$E$51,5)),VLOOKUP($B$6,$A$25:$E$51,IF($B$8=$A$22,3,2))) ->  | M121: 96 | N121: =VLOOKUP($H121,Other_All!$A$5:$D$205,3*($C$8-1)+2) -> 17169 | O121: =VLOOKUP($H121,Other_All!$A$5:$D$205,3*($C$8-1)+3) -> 19552 | P121: =VLOOKUP($H121,Other_All!$A$5:$D$205,3*($C$8-1)+4) -> 22339 | Q121: =IF(ISNA(VLOOKUP($B$6,$A$25:$E$51,IF($B$8=$A$22,3,2))),EXP(VLOOKUP($B$6,$A$25:$E$51,4)*LN(VLOOKUP($H121,#REF!,$C$8+1)/1000)+VLOOKUP($B$6,$A$25:$E$51,5)),VLOOKUP($B$6,$A$25:$E$51,IF($B$8=$A$22,3,2))) ->  | S121: 48 | T121: =VLOOKUP($S121,P_All!$X$5:$AS$245,3*($C$8-1)+2) -> 13817 | U121: =VLOOKUP($S121,P_All!$X$5:$AS$245,3*($C$8-1)+3) -> 14614 | V121: =VLOOKUP($S121,P_All!$X$5:$AS$245,3*($C$8-1)+4) -> 15890 | W121: =IF(ISNA(VLOOKUP($B$6,$A$25:$E$52,IF($B$8=$A$22,3,2))),EXP(VLOOKUP($B$6,$A$25:$E$52,4)*LN(VLOOKUP($S121,#REF!,$C$8+1)/1000)+VLOOKUP($B$6,$A$25:$E$52,5)),VLOOKUP($B$6,$A$25:$E$52,IF($B$8=$A$22,3,2))) -> 
H122: 97 | I122: =VLOOKUP($H122,P_All!$A$5:$D$205,3*($C$8-1)+2) -> 17696 | J122: =VLOOKUP($H122,P_All!$A$5:$D$205,3*($C$8-1)+3) -> 20326 | K122: =VLOOKUP($H122,P_All!$A$5:$D$205,3*($C$8-1)+4) -> 23865 | L122: =IF(ISNA(VLOOKUP($B$6,$A$25:$E$51,IF($B$8=$A$22,3,2))),EXP(VLOOKUP($B$6,$A$25:$E$51,4)*LN(VLOOKUP($H122,#REF!,$C$8+1)/1000)+VLOOKUP($B$6,$A$25:$E$51,5)),VLOOKUP($B$6,$A$25:$E$51,IF($B$8=$A$22,3,2))) ->  | M122: 97 | N122: =VLOOKUP($H122,Other_All!$A$5:$D$205,3*($C$8-1)+2) -> 17277 | O122: =VLOOKUP($H122,Other_All!$A$5:$D$205,3*($C$8-1)+3) -> 19649 | P122: =VLOOKUP($H122,Other_All!$A$5:$D$205,3*($C$8-1)+4) -> 22411 | Q122: =IF(ISNA(VLOOKUP($B$6,$A$25:$E$51,IF($B$8=$A$22,3,2))),EXP(VLOOKUP($B$6,$A$25:$E$51,4)*LN(VLOOKUP($H122,#REF!,$C$8+1)/1000)+VLOOKUP($B$6,$A$25:$E$51,5)),VLOOKUP($B$6,$A$25:$E$51,IF($B$8=$A$22,3,2))) ->  | S122: 48.08333333 | T122: =VLOOKUP($S122,P_All!$X$5:$AS$245,3*($C$8-1)+2) -> 13830 | U122: =VLOOKUP($S122,P_All!$X$5:$AS$245,3*($C$8-1)+3) -> 14589 | V122: =VLOOKUP($S122,P_All!$X$5:$AS$245,3*($C$8-1)+4) -> 15824 | W122: =IF(ISNA(VLOOKUP($B$6,$A$25:$E$52,IF($B$8=$A$22,3,2))),EXP(VLOOKUP($B$6,$A$25:$E$52,4)*LN(VLOOKUP($S122,#REF!,$C$8+1)/1000)+VLOOKUP($B$6,$A$25:$E$52,5)),VLOOKUP($B$6,$A$25:$E$52,IF($B$8=$A$22,3,2))) -> 
H123: 98 | I123: =VLOOKUP($H123,P_All!$A$5:$D$205,3*($C$8-1)+2) -> 17619 | J123: =VLOOKUP($H123,P_All!$A$5:$D$205,3*($C$8-1)+3) -> 20657 | K123: =VLOOKUP($H123,P_All!$A$5:$D$205,3*($C$8-1)+4) -> 23973 | L123: =IF(ISNA(VLOOKUP($B$6,$A$25:$E$51,IF($B$8=$A$22,3,2))),EXP(VLOOKUP($B$6,$A$25:$E$51,4)*LN(VLOOKUP($H123,#REF!,$C$8+1)/1000)+VLOOKUP($B$6,$A$25:$E$51,5)),VLOOKUP($B$6,$A$25:$E$51,IF($B$8=$A$22,3,2))) ->  | M123: 98 | N123: =VLOOKUP($H123,Other_All!$A$5:$D$205,3*($C$8-1)+2) -> 17341 | O123: =VLOOKUP($H123,Other_All!$A$5:$D$205,3*($C$8-1)+3) -> 19742 | P123: =VLOOKUP($H123,Other_All!$A$5:$D$205,3*($C$8-1)+4) -> 22565 | Q123: =IF(ISNA(VLOOKUP($B$6,$A$25:$E$51,IF($B$8=$A$22,3,2))),EXP(VLOOKUP($B$6,$A$25:$E$51,4)*LN(VLOOKUP($H123,#REF!,$C$8+1)/1000)+VLOOKUP($B$6,$A$25:$E$51,5)),VLOOKUP($B$6,$A$25:$E$51,IF($B$8=$A$22,3,2))) ->  | S123: 48.16666667 | T123: =VLOOKUP($S123,P_All!$X$5:$AS$245,3*($C$8-1)+2) -> 13857 | U123: =VLOOKUP($S123,P_All!$X$5:$AS$245,3*($C$8-1)+3) -> 14583 | V123: =VLOOKUP($S123,P_All!$X$5:$AS$245,3*($C$8-1)+4) -> 15785 | W123: =IF(ISNA(VLOOKUP($B$6,$A$25:$E$52,IF($B$8=$A$22,3,2))),EXP(VLOOKUP($B$6,$A$25:$E$52,4)*LN(VLOOKUP($S123,#REF!,$C$8+1)/1000)+VLOOKUP($B$6,$A$25:$E$52,5)),VLOOKUP($B$6,$A$25:$E$52,IF($B$8=$A$22,3,2))) -> 
H124: 99 | I124: =VLOOKUP($H124,P_All!$A$5:$D$205,3*($C$8-1)+2) -> 17650 | J124: =VLOOKUP($H124,P_All!$A$5:$D$205,3*($C$8-1)+3) -> 20469 | K124: =VLOOKUP($H124,P_All!$A$5:$D$205,3*($C$8-1)+4) -> 24023 | L124: =IF(ISNA(VLOOKUP($B$6,$A$25:$E$51,IF($B$8=$A$22,3,2))),EXP(VLOOKUP($B$6,$A$25:$E$51,4)*LN(VLOOKUP($H124,#REF!,$C$8+1)/1000)+VLOOKUP($B$6,$A$25:$E$51,5)),VLOOKUP($B$6,$A$25:$E$51,IF($B$8=$A$22,3,2))) ->  | M124: 99 | N124: =VLOOKUP($H124,Other_All!$A$5:$D$205,3*($C$8-1)+2) -> 17340 | O124: =VLOOKUP($H124,Other_All!$A$5:$D$205,3*($C$8-1)+3) -> 19661 | P124: =VLOOKUP($H124,Other_All!$A$5:$D$205,3*($C$8-1)+4) -> 22535 | Q124: =IF(ISNA(VLOOKUP($B$6,$A$25:$E$51,IF($B$8=$A$22,3,2))),EXP(VLOOKUP($B$6,$A$25:$E$51,4)*LN(VLOOKUP($H124,#REF!,$C$8+1)/1000)+VLOOKUP($B$6,$A$25:$E$51,5)),VLOOKUP($B$6,$A$25:$E$51,IF($B$8=$A$22,3,2))) ->  | S124: 48.25 | T124: =VLOOKUP($S124,P_All!$X$5:$AS$245,3*($C$8-1)+2) -> 13926 | U124: =VLOOKUP($S124,P_All!$X$5:$AS$245,3*($C$8-1)+3) -> 14627 | V124: =VLOOKUP($S124,P_All!$X$5:$AS$245,3*($C$8-1)+4) -> 15836 | W124: =IF(ISNA(VLOOKUP($B$6,$A$25:$E$52,IF($B$8=$A$22,3,2))),EXP(VLOOKUP($B$6,$A$25:$E$52,4)*LN(VLOOKUP($S124,#REF!,$C$8+1)/1000)+VLOOKUP($B$6,$A$25:$E$52,5)),VLOOKUP($B$6,$A$25:$E$52,IF($B$8=$A$22,3,2))) -> 
H125: 100 | I125: =VLOOKUP($H125,P_All!$A$5:$D$205,3*($C$8-1)+2) -> 17670 | J125: =VLOOKUP($H125,P_All!$A$5:$D$205,3*($C$8-1)+3) -> 20307 | K125: =VLOOKUP($H125,P_All!$A$5:$D$205,3*($C$8-1)+4) -> 23791 | L125: =IF(ISNA(VLOOKUP($B$6,$A$25:$E$51,IF($B$8=$A$22,3,2))),EXP(VLOOKUP($B$6,$A$25:$E$51,4)*LN(VLOOKUP($H125,#REF!,$C$8+1)/1000)+VLOOKUP($B$6,$A$25:$E$51,5)),VLOOKUP($B$6,$A$25:$E$51,IF($B$8=$A$22,3,2))) ->  | M125: 100 | N125: =VLOOKUP($H125,Other_All!$A$5:$D$205,3*($C$8-1)+2) -> 17153 | O125: =VLOOKUP($H125,Other_All!$A$5:$D$205,3*($C$8-1)+3) -> 19632 | P125: =VLOOKUP($H125,Other_All!$A$5:$D$205,3*($C$8-1)+4) -> 22209 | Q125: =IF(ISNA(VLOOKUP($B$6,$A$25:$E$51,IF($B$8=$A$22,3,2))),EXP(VLOOKUP($B$6,$A$25:$E$51,4)*LN(VLOOKUP($H125,#REF!,$C$8+1)/1000)+VLOOKUP($B$6,$A$25:$E$51,5)),VLOOKUP($B$6,$A$25:$E$51,IF($B$8=$A$22,3,2))) ->  | S125: 48.33333333 | T125: =VLOOKUP($S125,P_All!$X$5:$AS$245,3*($C$8-1)+2) -> 14034 | U125: =VLOOKUP($S125,P_All!$X$5:$AS$245,3*($C$8-1)+3) -> 14703 | V125: =VLOOKUP($S125,P_All!$X$5:$AS$245,3*($C$8-1)+4) -> 16044 | W125: =IF(ISNA(VLOOKUP($B$6,$A$25:$E$52,IF($B$8=$A$22,3,2))),EXP(VLOOKUP($B$6,$A$25:$E$52,4)*LN(VLOOKUP($S125,#REF!,$C$8+1)/1000)+VLOOKUP($B$6,$A$25:$E$52,5)),VLOOKUP($B$6,$A$25:$E$52,IF($B$8=$A$22,3,2))) -> 
H126: 101 | I126: =VLOOKUP($H126,P_All!$A$5:$D$205,3*($C$8-1)+2) -> 17755 | J126: =VLOOKUP($H126,P_All!$A$5:$D$205,3*($C$8-1)+3) -> 20249 | K126: =VLOOKUP($H126,P_All!$A$5:$D$205,3*($C$8-1)+4) -> 23809 | L126: =IF(ISNA(VLOOKUP($B$6,$A$25:$E$51,IF($B$8=$A$22,3,2))),EXP(VLOOKUP($B$6,$A$25:$E$51,4)*LN(VLOOKUP($H126,#REF!,$C$8+1)/1000)+VLOOKUP($B$6,$A$25:$E$51,5)),VLOOKUP($B$6,$A$25:$E$51,IF($B$8=$A$22,3,2))) ->  | M126: 101 | N126: =VLOOKUP($H126,Other_All!$A$5:$D$205,3*($C$8-1)+2) -> 17244 | O126: =VLOOKUP($H126,Other_All!$A$5:$D$205,3*($C$8-1)+3) -> 19625 | P126: =VLOOKUP($H126,Other_All!$A$5:$D$205,3*($C$8-1)+4) -> 22419 | Q126: =IF(ISNA(VLOOKUP($B$6,$A$25:$E$51,IF($B$8=$A$22,3,2))),EXP(VLOOKUP($B$6,$A$25:$E$51,4)*LN(VLOOKUP($H126,#REF!,$C$8+1)/1000)+VLOOKUP($B$6,$A$25:$E$51,5)),VLOOKUP($B$6,$A$25:$E$51,IF($B$8=$A$22,3,2))) ->  | S126: 48.41666667 | T126: =VLOOKUP($S126,P_All!$X$5:$AS$245,3*($C$8-1)+2) -> 14033 | U126: =VLOOKUP($S126,P_All!$X$5:$AS$245,3*($C$8-1)+3) -> 14710 | V126: =VLOOKUP($S126,P_All!$X$5:$AS$245,3*($C$8-1)+4) -> 16190 | W126: =IF(ISNA(VLOOKUP($B$6,$A$25:$E$52,IF($B$8=$A$22,3,2))),EXP(VLOOKUP($B$6,$A$25:$E$52,4)*LN(VLOOKUP($S126,#REF!,$C$8+1)/1000)+VLOOKUP($B$6,$A$25:$E$52,5)),VLOOKUP($B$6,$A$25:$E$52,IF($B$8=$A$22,3,2))) -> 
H127: 102 | I127: =VLOOKUP($H127,P_All!$A$5:$D$205,3*($C$8-1)+2) -> 17607 | J127: =VLOOKUP($H127,P_All!$A$5:$D$205,3*($C$8-1)+3) -> 20214 | K127: =VLOOKUP($H127,P_All!$A$5:$D$205,3*($C$8-1)+4) -> 23681 | L127: =IF(ISNA(VLOOKUP($B$6,$A$25:$E$51,IF($B$8=$A$22,3,2))),EXP(VLOOKUP($B$6,$A$25:$E$51,4)*LN(VLOOKUP($H127,#REF!,$C$8+1)/1000)+VLOOKUP($B$6,$A$25:$E$51,5)),VLOOKUP($B$6,$A$25:$E$51,IF($B$8=$A$22,3,2))) ->  | M127: 102 | N127: =VLOOKUP($H127,Other_All!$A$5:$D$205,3*($C$8-1)+2) -> 17194 | O127: =VLOOKUP($H127,Other_All!$A$5:$D$205,3*($C$8-1)+3) -> 19621 | P127: =VLOOKUP($H127,Other_All!$A$5:$D$205,3*($C$8-1)+4) -> 22426 | Q127: =IF(ISNA(VLOOKUP($B$6,$A$25:$E$51,IF($B$8=$A$22,3,2))),EXP(VLOOKUP($B$6,$A$25:$E$51,4)*LN(VLOOKUP($H127,#REF!,$C$8+1)/1000)+VLOOKUP($B$6,$A$25:$E$51,5)),VLOOKUP($B$6,$A$25:$E$51,IF($B$8=$A$22,3,2))) ->  | S127: 48.5 | T127: =VLOOKUP($S127,P_All!$X$5:$AS$245,3*($C$8-1)+2) -> 13893 | U127: =VLOOKUP($S127,P_All!$X$5:$AS$245,3*($C$8-1)+3) -> 14579 | V127: =VLOOKUP($S127,P_All!$X$5:$AS$245,3*($C$8-1)+4) -> 16152 | W127: =IF(ISNA(VLOOKUP($B$6,$A$25:$E$52,IF($B$8=$A$22,3,2))),EXP(VLOOKUP($B$6,$A$25:$E$52,4)*LN(VLOOKUP($S127,#REF!,$C$8+1)/1000)+VLOOKUP($B$6,$A$25:$E$52,5)),VLOOKUP($B$6,$A$25:$E$52,IF($B$8=$A$22,3,2))) -> 
H128: 103 | I128: =VLOOKUP($H128,P_All!$A$5:$D$205,3*($C$8-1)+2) -> 17393 | J128: =VLOOKUP($H128,P_All!$A$5:$D$205,3*($C$8-1)+3) -> 20178 | K128: =VLOOKUP($H128,P_All!$A$5:$D$205,3*($C$8-1)+4) -> 23647 | L128: =IF(ISNA(VLOOKUP($B$6,$A$25:$E$51,IF($B$8=$A$22,3,2))),EXP(VLOOKUP($B$6,$A$25:$E$51,4)*LN(VLOOKUP($H128,#REF!,$C$8+1)/1000)+VLOOKUP($B$6,$A$25:$E$51,5)),VLOOKUP($B$6,$A$25:$E$51,IF($B$8=$A$22,3,2))) ->  | M128: 103 | N128: =VLOOKUP($H128,Other_All!$A$5:$D$205,3*($C$8-1)+2) -> 17142 | O128: =VLOOKUP($H128,Other_All!$A$5:$D$205,3*($C$8-1)+3) -> 19624 | P128: =VLOOKUP($H128,Other_All!$A$5:$D$205,3*($C$8-1)+4) -> 22334 | Q128: =IF(ISNA(VLOOKUP($B$6,$A$25:$E$51,IF($B$8=$A$22,3,2))),EXP(VLOOKUP($B$6,$A$25:$E$51,4)*LN(VLOOKUP($H128,#REF!,$C$8+1)/1000)+VLOOKUP($B$6,$A$25:$E$51,5)),VLOOKUP($B$6,$A$25:$E$51,IF($B$8=$A$22,3,2))) ->  | S128: 48.58333333 | T128: =VLOOKUP($S128,P_All!$X$5:$AS$245,3*($C$8-1)+2) -> 13863 | U128: =VLOOKUP($S128,P_All!$X$5:$AS$245,3*($C$8-1)+3) -> 14546 | V128: =VLOOKUP($S128,P_All!$X$5:$AS$245,3*($C$8-1)+4) -> 16179 | W128: =IF(ISNA(VLOOKUP($B$6,$A$25:$E$52,IF($B$8=$A$22,3,2))),EXP(VLOOKUP($B$6,$A$25:$E$52,4)*LN(VLOOKUP($S128,#REF!,$C$8+1)/1000)+VLOOKUP($B$6,$A$25:$E$52,5)),VLOOKUP($B$6,$A$25:$E$52,IF($B$8=$A$22,3,2))) -> 
H129: 104 | I129: =VLOOKUP($H129,P_All!$A$5:$D$205,3*($C$8-1)+2) -> 17451 | J129: =VLOOKUP($H129,P_All!$A$5:$D$205,3*($C$8-1)+3) -> 20104 | K129: =VLOOKUP($H129,P_All!$A$5:$D$205,3*($C$8-1)+4) -> 23589 | L129: =IF(ISNA(VLOOKUP($B$6,$A$25:$E$51,IF($B$8=$A$22,3,2))),EXP(VLOOKUP($B$6,$A$25:$E$51,4)*LN(VLOOKUP($H129,#REF!,$C$8+1)/1000)+VLOOKUP($B$6,$A$25:$E$51,5)),VLOOKUP($B$6,$A$25:$E$51,IF($B$8=$A$22,3,2))) ->  | M129: 104 | N129: =VLOOKUP($H129,Other_All!$A$5:$D$205,3*($C$8-1)+2) -> 17028 | O129: =VLOOKUP($H129,Other_All!$A$5:$D$205,3*($C$8-1)+3) -> 19458 | P129: =VLOOKUP($H129,Other_All!$A$5:$D$205,3*($C$8-1)+4) -> 22177 | Q129: =IF(ISNA(VLOOKUP($B$6,$A$25:$E$51,IF($B$8=$A$22,3,2))),EXP(VLOOKUP($B$6,$A$25:$E$51,4)*LN(VLOOKUP($H129,#REF!,$C$8+1)/1000)+VLOOKUP($B$6,$A$25:$E$51,5)),VLOOKUP($B$6,$A$25:$E$51,IF($B$8=$A$22,3,2))) ->  | S129: 48.66666667 | T129: =VLOOKUP($S129,P_All!$X$5:$AS$245,3*($C$8-1)+2) -> 13841 | U129: =VLOOKUP($S129,P_All!$X$5:$AS$245,3*($C$8-1)+3) -> 14530 | V129: =VLOOKUP($S129,P_All!$X$5:$AS$245,3*($C$8-1)+4) -> 16231 | W129: =IF(ISNA(VLOOKUP($B$6,$A$25:$E$52,IF($B$8=$A$22,3,2))),EXP(VLOOKUP($B$6,$A$25:$E$52,4)*LN(VLOOKUP($S129,#REF!,$C$8+1)/1000)+VLOOKUP($B$6,$A$25:$E$52,5)),VLOOKUP($B$6,$A$25:$E$52,IF($B$8=$A$22,3,2))) -> 
H130: 105 | I130: =VLOOKUP($H130,P_All!$A$5:$D$205,3*($C$8-1)+2) -> 17488 | J130: =VLOOKUP($H130,P_All!$A$5:$D$205,3*($C$8-1)+3) -> 20013 | K130: =VLOOKUP($H130,P_All!$A$5:$D$205,3*($C$8-1)+4) -> 23697 | L130: =IF(ISNA(VLOOKUP($B$6,$A$25:$E$51,IF($B$8=$A$22,3,2))),EXP(VLOOKUP($B$6,$A$25:$E$51,4)*LN(VLOOKUP($H130,#REF!,$C$8+1)/1000)+VLOOKUP($B$6,$A$25:$E$51,5)),VLOOKUP($B$6,$A$25:$E$51,IF($B$8=$A$22,3,2))) ->  | M130: 105 | N130: =VLOOKUP($H130,Other_All!$A$5:$D$205,3*($C$8-1)+2) -> 17102 | O130: =VLOOKUP($H130,Other_All!$A$5:$D$205,3*($C$8-1)+3) -> 19456 | P130: =VLOOKUP($H130,Other_All!$A$5:$D$205,3*($C$8-1)+4) -> 22321 | Q130: =IF(ISNA(VLOOKUP($B$6,$A$25:$E$51,IF($B$8=$A$22,3,2))),EXP(VLOOKUP($B$6,$A$25:$E$51,4)*LN(VLOOKUP($H130,#REF!,$C$8+1)/1000)+VLOOKUP($B$6,$A$25:$E$51,5)),VLOOKUP($B$6,$A$25:$E$51,IF($B$8=$A$22,3,2))) ->  | S130: 48.75 | T130: =VLOOKUP($S130,P_All!$X$5:$AS$245,3*($C$8-1)+2) -> 13733 | U130: =VLOOKUP($S130,P_All!$X$5:$AS$245,3*($C$8-1)+3) -> 14461 | V130: =VLOOKUP($S130,P_All!$X$5:$AS$245,3*($C$8-1)+4) -> 16240 | W130: =IF(ISNA(VLOOKUP($B$6,$A$25:$E$52,IF($B$8=$A$22,3,2))),EXP(VLOOKUP($B$6,$A$25:$E$52,4)*LN(VLOOKUP($S130,#REF!,$C$8+1)/1000)+VLOOKUP($B$6,$A$25:$E$52,5)),VLOOKUP($B$6,$A$25:$E$52,IF($B$8=$A$22,3,2))) -> 
H131: 106 | I131: =VLOOKUP($H131,P_All!$A$5:$D$205,3*($C$8-1)+2) -> 17313 | J131: =VLOOKUP($H131,P_All!$A$5:$D$205,3*($C$8-1)+3) -> 19977 | K131: =VLOOKUP($H131,P_All!$A$5:$D$205,3*($C$8-1)+4) -> 23690 | L131: =IF(ISNA(VLOOKUP($B$6,$A$25:$E$51,IF($B$8=$A$22,3,2))),EXP(VLOOKUP($B$6,$A$25:$E$51,4)*LN(VLOOKUP($H131,#REF!,$C$8+1)/1000)+VLOOKUP($B$6,$A$25:$E$51,5)),VLOOKUP($B$6,$A$25:$E$51,IF($B$8=$A$22,3,2))) ->  | M131: 106 | N131: =VLOOKUP($H131,Other_All!$A$5:$D$205,3*($C$8-1)+2) -> 16990 | O131: =VLOOKUP($H131,Other_All!$A$5:$D$205,3*($C$8-1)+3) -> 19343 | P131: =VLOOKUP($H131,Other_All!$A$5:$D$205,3*($C$8-1)+4) -> 22245 | Q131: =IF(ISNA(VLOOKUP($B$6,$A$25:$E$51,IF($B$8=$A$22,3,2))),EXP(VLOOKUP($B$6,$A$25:$E$51,4)*LN(VLOOKUP($H131,#REF!,$C$8+1)/1000)+VLOOKUP($B$6,$A$25:$E$51,5)),VLOOKUP($B$6,$A$25:$E$51,IF($B$8=$A$22,3,2))) ->  | S131: 48.83333333 | T131: =VLOOKUP($S131,P_All!$X$5:$AS$245,3*($C$8-1)+2) -> 13695 | U131: =VLOOKUP($S131,P_All!$X$5:$AS$245,3*($C$8-1)+3) -> 14418 | V131: =VLOOKUP($S131,P_All!$X$5:$AS$245,3*($C$8-1)+4) -> 16351 | W131: =IF(ISNA(VLOOKUP($B$6,$A$25:$E$52,IF($B$8=$A$22,3,2))),EXP(VLOOKUP($B$6,$A$25:$E$52,4)*LN(VLOOKUP($S131,#REF!,$C$8+1)/1000)+VLOOKUP($B$6,$A$25:$E$52,5)),VLOOKUP($B$6,$A$25:$E$52,IF($B$8=$A$22,3,2))) -> 
H132: 107 | I132: =VLOOKUP($H132,P_All!$A$5:$D$205,3*($C$8-1)+2) -> 17408 | J132: =VLOOKUP($H132,P_All!$A$5:$D$205,3*($C$8-1)+3) -> 19898 | K132: =VLOOKUP($H132,P_All!$A$5:$D$205,3*($C$8-1)+4) -> 23765 | L132: =IF(ISNA(VLOOKUP($B$6,$A$25:$E$51,IF($B$8=$A$22,3,2))),EXP(VLOOKUP($B$6,$A$25:$E$51,4)*LN(VLOOKUP($H132,#REF!,$C$8+1)/1000)+VLOOKUP($B$6,$A$25:$E$51,5)),VLOOKUP($B$6,$A$25:$E$51,IF($B$8=$A$22,3,2))) ->  | M132: 107 | N132: =VLOOKUP($H132,Other_All!$A$5:$D$205,3*($C$8-1)+2) -> 16996 | O132: =VLOOKUP($H132,Other_All!$A$5:$D$205,3*($C$8-1)+3) -> 19330 | P132: =VLOOKUP($H132,Other_All!$A$5:$D$205,3*($C$8-1)+4) -> 22203 | Q132: =IF(ISNA(VLOOKUP($B$6,$A$25:$E$51,IF($B$8=$A$22,3,2))),EXP(VLOOKUP($B$6,$A$25:$E$51,4)*LN(VLOOKUP($H132,#REF!,$C$8+1)/1000)+VLOOKUP($B$6,$A$25:$E$51,5)),VLOOKUP($B$6,$A$25:$E$51,IF($B$8=$A$22,3,2))) ->  | S132: 48.91666667 | T132: =VLOOKUP($S132,P_All!$X$5:$AS$245,3*($C$8-1)+2) -> 13675 | U132: =VLOOKUP($S132,P_All!$X$5:$AS$245,3*($C$8-1)+3) -> 14397 | V132: =VLOOKUP($S132,P_All!$X$5:$AS$245,3*($C$8-1)+4) -> 16450 | W132: =IF(ISNA(VLOOKUP($B$6,$A$25:$E$52,IF($B$8=$A$22,3,2))),EXP(VLOOKUP($B$6,$A$25:$E$52,4)*LN(VLOOKUP($S132,#REF!,$C$8+1)/1000)+VLOOKUP($B$6,$A$25:$E$52,5)),VLOOKUP($B$6,$A$25:$E$52,IF($B$8=$A$22,3,2))) -> 
H133: 108 | I133: =VLOOKUP($H133,P_All!$A$5:$D$205,3*($C$8-1)+2) -> 17498 | J133: =VLOOKUP($H133,P_All!$A$5:$D$205,3*($C$8-1)+3) -> 20037 | K133: =VLOOKUP($H133,P_All!$A$5:$D$205,3*($C$8-1)+4) -> 23949 | L133: =IF(ISNA(VLOOKUP($B$6,$A$25:$E$51,IF($B$8=$A$22,3,2))),EXP(VLOOKUP($B$6,$A$25:$E$51,4)*LN(VLOOKUP($H133,#REF!,$C$8+1)/1000)+VLOOKUP($B$6,$A$25:$E$51,5)),VLOOKUP($B$6,$A$25:$E$51,IF($B$8=$A$22,3,2))) ->  | M133: 108 | N133: =VLOOKUP($H133,Other_All!$A$5:$D$205,3*($C$8-1)+2) -> 17152 | O133: =VLOOKUP($H133,Other_All!$A$5:$D$205,3*($C$8-1)+3) -> 19307 | P133: =VLOOKUP($H133,Other_All!$A$5:$D$205,3*($C$8-1)+4) -> 22168 | Q133: =IF(ISNA(VLOOKUP($B$6,$A$25:$E$51,IF($B$8=$A$22,3,2))),EXP(VLOOKUP($B$6,$A$25:$E$51,4)*LN(VLOOKUP($H133,#REF!,$C$8+1)/1000)+VLOOKUP($B$6,$A$25:$E$51,5)),VLOOKUP($B$6,$A$25:$E$51,IF($B$8=$A$22,3,2))) ->  | S133: 49 | T133: =VLOOKUP($S133,P_All!$X$5:$AS$245,3*($C$8-1)+2) -> 13652 | U133: =VLOOKUP($S133,P_All!$X$5:$AS$245,3*($C$8-1)+3) -> 14365 | V133: =VLOOKUP($S133,P_All!$X$5:$AS$245,3*($C$8-1)+4) -> 16582 | W133: =IF(ISNA(VLOOKUP($B$6,$A$25:$E$52,IF($B$8=$A$22,3,2))),EXP(VLOOKUP($B$6,$A$25:$E$52,4)*LN(VLOOKUP($S133,#REF!,$C$8+1)/1000)+VLOOKUP($B$6,$A$25:$E$52,5)),VLOOKUP($B$6,$A$25:$E$52,IF($B$8=$A$22,3,2))) -> 
H134: 109 | I134: =VLOOKUP($H134,P_All!$A$5:$D$205,3*($C$8-1)+2) -> 17622 | J134: =VLOOKUP($H134,P_All!$A$5:$D$205,3*($C$8-1)+3) -> 20086 | K134: =VLOOKUP($H134,P_All!$A$5:$D$205,3*($C$8-1)+4) -> 24067 | L134: =IF(ISNA(VLOOKUP($B$6,$A$25:$E$51,IF($B$8=$A$22,3,2))),EXP(VLOOKUP($B$6,$A$25:$E$51,4)*LN(VLOOKUP($H134,#REF!,$C$8+1)/1000)+VLOOKUP($B$6,$A$25:$E$51,5)),VLOOKUP($B$6,$A$25:$E$51,IF($B$8=$A$22,3,2))) ->  | M134: 109 | N134: =VLOOKUP($H134,Other_All!$A$5:$D$205,3*($C$8-1)+2) -> 17362 | O134: =VLOOKUP($H134,Other_All!$A$5:$D$205,3*($C$8-1)+3) -> 19392 | P134: =VLOOKUP($H134,Other_All!$A$5:$D$205,3*($C$8-1)+4) -> 22106 | Q134: =IF(ISNA(VLOOKUP($B$6,$A$25:$E$51,IF($B$8=$A$22,3,2))),EXP(VLOOKUP($B$6,$A$25:$E$51,4)*LN(VLOOKUP($H134,#REF!,$C$8+1)/1000)+VLOOKUP($B$6,$A$25:$E$51,5)),VLOOKUP($B$6,$A$25:$E$51,IF($B$8=$A$22,3,2))) ->  | S134: 49.08333333 | T134: =VLOOKUP($S134,P_All!$X$5:$AS$245,3*($C$8-1)+2) -> 13654 | U134: =VLOOKUP($S134,P_All!$X$5:$AS$245,3*($C$8-1)+3) -> 14333 | V134: =VLOOKUP($S134,P_All!$X$5:$AS$245,3*($C$8-1)+4) -> 16709 | W134: =IF(ISNA(VLOOKUP($B$6,$A$25:$E$52,IF($B$8=$A$22,3,2))),EXP(VLOOKUP($B$6,$A$25:$E$52,4)*LN(VLOOKUP($S134,#REF!,$C$8+1)/1000)+VLOOKUP($B$6,$A$25:$E$52,5)),VLOOKUP($B$6,$A$25:$E$52,IF($B$8=$A$22,3,2))) -> 
H135: 110 | I135: =VLOOKUP($H135,P_All!$A$5:$D$205,3*($C$8-1)+2) -> 17515 | J135: =VLOOKUP($H135,P_All!$A$5:$D$205,3*($C$8-1)+3) -> 20019 | K135: =VLOOKUP($H135,P_All!$A$5:$D$205,3*($C$8-1)+4) -> 23959 | L135: =IF(ISNA(VLOOKUP($B$6,$A$25:$E$51,IF($B$8=$A$22,3,2))),EXP(VLOOKUP($B$6,$A$25:$E$51,4)*LN(VLOOKUP($H135,#REF!,$C$8+1)/1000)+VLOOKUP($B$6,$A$25:$E$51,5)),VLOOKUP($B$6,$A$25:$E$51,IF($B$8=$A$22,3,2))) ->  | M135: 110 | N135: =VLOOKUP($H135,Other_All!$A$5:$D$205,3*($C$8-1)+2) -> 17220 | O135: =VLOOKUP($H135,Other_All!$A$5:$D$205,3*($C$8-1)+3) -> 19395 | P135: =VLOOKUP($H135,Other_All!$A$5:$D$205,3*($C$8-1)+4) -> 22221 | Q135: =IF(ISNA(VLOOKUP($B$6,$A$25:$E$51,IF($B$8=$A$22,3,2))),EXP(VLOOKUP($B$6,$A$25:$E$51,4)*LN(VLOOKUP($H135,#REF!,$C$8+1)/1000)+VLOOKUP($B$6,$A$25:$E$51,5)),VLOOKUP($B$6,$A$25:$E$51,IF($B$8=$A$22,3,2))) ->  | S135: 49.16666667 | T135: =VLOOKUP($S135,P_All!$X$5:$AS$245,3*($C$8-1)+2) -> 13658 | U135: =VLOOKUP($S135,P_All!$X$5:$AS$245,3*($C$8-1)+3) -> 14333 | V135: =VLOOKUP($S135,P_All!$X$5:$AS$245,3*($C$8-1)+4) -> 16857 | W135: =IF(ISNA(VLOOKUP($B$6,$A$25:$E$52,IF($B$8=$A$22,3,2))),EXP(VLOOKUP($B$6,$A$25:$E$52,4)*LN(VLOOKUP($S135,#REF!,$C$8+1)/1000)+VLOOKUP($B$6,$A$25:$E$52,5)),VLOOKUP($B$6,$A$25:$E$52,IF($B$8=$A$22,3,2))) -> 
H136: 111 | I136: =VLOOKUP($H136,P_All!$A$5:$D$205,3*($C$8-1)+2) -> 17594 | J136: =VLOOKUP($H136,P_All!$A$5:$D$205,3*($C$8-1)+3) -> 20055 | K136: =VLOOKUP($H136,P_All!$A$5:$D$205,3*($C$8-1)+4) -> 23899 | L136: =IF(ISNA(VLOOKUP($B$6,$A$25:$E$51,IF($B$8=$A$22,3,2))),EXP(VLOOKUP($B$6,$A$25:$E$51,4)*LN(VLOOKUP($H136,#REF!,$C$8+1)/1000)+VLOOKUP($B$6,$A$25:$E$51,5)),VLOOKUP($B$6,$A$25:$E$51,IF($B$8=$A$22,3,2))) ->  | M136: 111 | N136: =VLOOKUP($H136,Other_All!$A$5:$D$205,3*($C$8-1)+2) -> 17168 | O136: =VLOOKUP($H136,Other_All!$A$5:$D$205,3*($C$8-1)+3) -> 19385 | P136: =VLOOKUP($H136,Other_All!$A$5:$D$205,3*($C$8-1)+4) -> 22227 | Q136: =IF(ISNA(VLOOKUP($B$6,$A$25:$E$51,IF($B$8=$A$22,3,2))),EXP(VLOOKUP($B$6,$A$25:$E$51,4)*LN(VLOOKUP($H136,#REF!,$C$8+1)/1000)+VLOOKUP($B$6,$A$25:$E$51,5)),VLOOKUP($B$6,$A$25:$E$51,IF($B$8=$A$22,3,2))) ->  | S136: 49.25 | T136: =VLOOKUP($S136,P_All!$X$5:$AS$245,3*($C$8-1)+2) -> 13734 | U136: =VLOOKUP($S136,P_All!$X$5:$AS$245,3*($C$8-1)+3) -> 14371 | V136: =VLOOKUP($S136,P_All!$X$5:$AS$245,3*($C$8-1)+4) -> 17024 | W136: =IF(ISNA(VLOOKUP($B$6,$A$25:$E$52,IF($B$8=$A$22,3,2))),EXP(VLOOKUP($B$6,$A$25:$E$52,4)*LN(VLOOKUP($S136,#REF!,$C$8+1)/1000)+VLOOKUP($B$6,$A$25:$E$52,5)),VLOOKUP($B$6,$A$25:$E$52,IF($B$8=$A$22,3,2))) -> 
H137: 112 | I137: =VLOOKUP($H137,P_All!$A$5:$D$205,3*($C$8-1)+2) -> 17655 | J137: =VLOOKUP($H137,P_All!$A$5:$D$205,3*($C$8-1)+3) -> 20151 | K137: =VLOOKUP($H137,P_All!$A$5:$D$205,3*($C$8-1)+4) -> 23796 | L137: =IF(ISNA(VLOOKUP($B$6,$A$25:$E$51,IF($B$8=$A$22,3,2))),EXP(VLOOKUP($B$6,$A$25:$E$51,4)*LN(VLOOKUP($H137,#REF!,$C$8+1)/1000)+VLOOKUP($B$6,$A$25:$E$51,5)),VLOOKUP($B$6,$A$25:$E$51,IF($B$8=$A$22,3,2))) ->  | M137: 112 | N137: =VLOOKUP($H137,Other_All!$A$5:$D$205,3*($C$8-1)+2) -> 17279 | O137: =VLOOKUP($H137,Other_All!$A$5:$D$205,3*($C$8-1)+3) -> 19438 | P137: =VLOOKUP($H137,Other_All!$A$5:$D$205,3*($C$8-1)+4) -> 22194 | Q137: =IF(ISNA(VLOOKUP($B$6,$A$25:$E$51,IF($B$8=$A$22,3,2))),EXP(VLOOKUP($B$6,$A$25:$E$51,4)*LN(VLOOKUP($H137,#REF!,$C$8+1)/1000)+VLOOKUP($B$6,$A$25:$E$51,5)),VLOOKUP($B$6,$A$25:$E$51,IF($B$8=$A$22,3,2))) ->  | S137: 49.33333333 | T137: =VLOOKUP($S137,P_All!$X$5:$AS$245,3*($C$8-1)+2) -> 13801 | U137: =VLOOKUP($S137,P_All!$X$5:$AS$245,3*($C$8-1)+3) -> 14425 | V137: =VLOOKUP($S137,P_All!$X$5:$AS$245,3*($C$8-1)+4) -> 17229 | W137: =IF(ISNA(VLOOKUP($B$6,$A$25:$E$52,IF($B$8=$A$22,3,2))),EXP(VLOOKUP($B$6,$A$25:$E$52,4)*LN(VLOOKUP($S137,#REF!,$C$8+1)/1000)+VLOOKUP($B$6,$A$25:$E$52,5)),VLOOKUP($B$6,$A$25:$E$52,IF($B$8=$A$22,3,2))) -> 
H138: 113 | I138: =VLOOKUP($H138,P_All!$A$5:$D$205,3*($C$8-1)+2) -> 17744 | J138: =VLOOKUP($H138,P_All!$A$5:$D$205,3*($C$8-1)+3) -> 20226 | K138: =VLOOKUP($H138,P_All!$A$5:$D$205,3*($C$8-1)+4) -> 23847 | L138: =IF(ISNA(VLOOKUP($B$6,$A$25:$E$51,IF($B$8=$A$22,3,2))),EXP(VLOOKUP($B$6,$A$25:$E$51,4)*LN(VLOOKUP($H138,#REF!,$C$8+1)/1000)+VLOOKUP($B$6,$A$25:$E$51,5)),VLOOKUP($B$6,$A$25:$E$51,IF($B$8=$A$22,3,2))) ->  | M138: 113 | N138: =VLOOKUP($H138,Other_All!$A$5:$D$205,3*($C$8-1)+2) -> 17309 | O138: =VLOOKUP($H138,Other_All!$A$5:$D$205,3*($C$8-1)+3) -> 19581 | P138: =VLOOKUP($H138,Other_All!$A$5:$D$205,3*($C$8-1)+4) -> 22381 | Q138: =IF(ISNA(VLOOKUP($B$6,$A$25:$E$51,IF($B$8=$A$22,3,2))),EXP(VLOOKUP($B$6,$A$25:$E$51,4)*LN(VLOOKUP($H138,#REF!,$C$8+1)/1000)+VLOOKUP($B$6,$A$25:$E$51,5)),VLOOKUP($B$6,$A$25:$E$51,IF($B$8=$A$22,3,2))) ->  | S138: 49.41666667 | T138: =VLOOKUP($S138,P_All!$X$5:$AS$245,3*($C$8-1)+2) -> 13758 | U138: =VLOOKUP($S138,P_All!$X$5:$AS$245,3*($C$8-1)+3) -> 14401 | V138: =VLOOKUP($S138,P_All!$X$5:$AS$245,3*($C$8-1)+4) -> 17286 | W138: =IF(ISNA(VLOOKUP($B$6,$A$25:$E$52,IF($B$8=$A$22,3,2))),EXP(VLOOKUP($B$6,$A$25:$E$52,4)*LN(VLOOKUP($S138,#REF!,$C$8+1)/1000)+VLOOKUP($B$6,$A$25:$E$52,5)),VLOOKUP($B$6,$A$25:$E$52,IF($B$8=$A$22,3,2))) -> 
H139: 114 | I139: =VLOOKUP($H139,P_All!$A$5:$D$205,3*($C$8-1)+2) -> 17699 | J139: =VLOOKUP($H139,P_All!$A$5:$D$205,3*($C$8-1)+3) -> 20258 | K139: =VLOOKUP($H139,P_All!$A$5:$D$205,3*($C$8-1)+4) -> 23730 | L139: =IF(ISNA(VLOOKUP($B$6,$A$25:$E$51,IF($B$8=$A$22,3,2))),EXP(VLOOKUP($B$6,$A$25:$E$51,4)*LN(VLOOKUP($H139,#REF!,$C$8+1)/1000)+VLOOKUP($B$6,$A$25:$E$51,5)),VLOOKUP($B$6,$A$25:$E$51,IF($B$8=$A$22,3,2))) ->  | M139: 114 | N139: =VLOOKUP($H139,Other_All!$A$5:$D$205,3*($C$8-1)+2) -> 17429 | O139: =VLOOKUP($H139,Other_All!$A$5:$D$205,3*($C$8-1)+3) -> 19530 | P139: =VLOOKUP($H139,Other_All!$A$5:$D$205,3*($C$8-1)+4) -> 22308 | Q139: =IF(ISNA(VLOOKUP($B$6,$A$25:$E$51,IF($B$8=$A$22,3,2))),EXP(VLOOKUP($B$6,$A$25:$E$51,4)*LN(VLOOKUP($H139,#REF!,$C$8+1)/1000)+VLOOKUP($B$6,$A$25:$E$51,5)),VLOOKUP($B$6,$A$25:$E$51,IF($B$8=$A$22,3,2))) ->  | S139: 49.5 | T139: =VLOOKUP($S139,P_All!$X$5:$AS$245,3*($C$8-1)+2) -> 13634 | U139: =VLOOKUP($S139,P_All!$X$5:$AS$245,3*($C$8-1)+3) -> 14314 | V139: =VLOOKUP($S139,P_All!$X$5:$AS$245,3*($C$8-1)+4) -> 17151 | W139: =IF(ISNA(VLOOKUP($B$6,$A$25:$E$52,IF($B$8=$A$22,3,2))),EXP(VLOOKUP($B$6,$A$25:$E$52,4)*LN(VLOOKUP($S139,#REF!,$C$8+1)/1000)+VLOOKUP($B$6,$A$25:$E$52,5)),VLOOKUP($B$6,$A$25:$E$52,IF($B$8=$A$22,3,2))) -> 
H140: 115 | I140: =VLOOKUP($H140,P_All!$A$5:$D$205,3*($C$8-1)+2) -> 17530 | J140: =VLOOKUP($H140,P_All!$A$5:$D$205,3*($C$8-1)+3) -> 20304 | K140: =VLOOKUP($H140,P_All!$A$5:$D$205,3*($C$8-1)+4) -> 23701 | L140: =IF(ISNA(VLOOKUP($B$6,$A$25:$E$51,IF($B$8=$A$22,3,2))),EXP(VLOOKUP($B$6,$A$25:$E$51,4)*LN(VLOOKUP($H140,#REF!,$C$8+1)/1000)+VLOOKUP($B$6,$A$25:$E$51,5)),VLOOKUP($B$6,$A$25:$E$51,IF($B$8=$A$22,3,2))) ->  | M140: 115 | N140: =VLOOKUP($H140,Other_All!$A$5:$D$205,3*($C$8-1)+2) -> 17261 | O140: =VLOOKUP($H140,Other_All!$A$5:$D$205,3*($C$8-1)+3) -> 19542 | P140: =VLOOKUP($H140,Other_All!$A$5:$D$205,3*($C$8-1)+4) -> 22177 | Q140: =IF(ISNA(VLOOKUP($B$6,$A$25:$E$51,IF($B$8=$A$22,3,2))),EXP(VLOOKUP($B$6,$A$25:$E$51,4)*LN(VLOOKUP($H140,#REF!,$C$8+1)/1000)+VLOOKUP($B$6,$A$25:$E$51,5)),VLOOKUP($B$6,$A$25:$E$51,IF($B$8=$A$22,3,2))) ->  | S140: 49.58333333 | T140: =VLOOKUP($S140,P_All!$X$5:$AS$245,3*($C$8-1)+2) -> 13564 | U140: =VLOOKUP($S140,P_All!$X$5:$AS$245,3*($C$8-1)+3) -> 14288 | V140: =VLOOKUP($S140,P_All!$X$5:$AS$245,3*($C$8-1)+4) -> 17126 | W140: =IF(ISNA(VLOOKUP($B$6,$A$25:$E$52,IF($B$8=$A$22,3,2))),EXP(VLOOKUP($B$6,$A$25:$E$52,4)*LN(VLOOKUP($S140,#REF!,$C$8+1)/1000)+VLOOKUP($B$6,$A$25:$E$52,5)),VLOOKUP($B$6,$A$25:$E$52,IF($B$8=$A$22,3,2))) -> 
H141: 116 | I141: =VLOOKUP($H141,P_All!$A$5:$D$205,3*($C$8-1)+2) -> 17539 | J141: =VLOOKUP($H141,P_All!$A$5:$D$205,3*($C$8-1)+3) -> 20250 | K141: =VLOOKUP($H141,P_All!$A$5:$D$205,3*($C$8-1)+4) -> 23592 | L141: =IF(ISNA(VLOOKUP($B$6,$A$25:$E$51,IF($B$8=$A$22,3,2))),EXP(VLOOKUP($B$6,$A$25:$E$51,4)*LN(VLOOKUP($H141,#REF!,$C$8+1)/1000)+VLOOKUP($B$6,$A$25:$E$51,5)),VLOOKUP($B$6,$A$25:$E$51,IF($B$8=$A$22,3,2))) ->  | M141: 116 | N141: =VLOOKUP($H141,Other_All!$A$5:$D$205,3*($C$8-1)+2) -> 17271 | O141: =VLOOKUP($H141,Other_All!$A$5:$D$205,3*($C$8-1)+3) -> 19558 | P141: =VLOOKUP($H141,Other_All!$A$5:$D$205,3*($C$8-1)+4) -> 22242 | Q141: =IF(ISNA(VLOOKUP($B$6,$A$25:$E$51,IF($B$8=$A$22,3,2))),EXP(VLOOKUP($B$6,$A$25:$E$51,4)*LN(VLOOKUP($H141,#REF!,$C$8+1)/1000)+VLOOKUP($B$6,$A$25:$E$51,5)),VLOOKUP($B$6,$A$25:$E$51,IF($B$8=$A$22,3,2))) ->  | S141: 49.66666667 | T141: =VLOOKUP($S141,P_All!$X$5:$AS$245,3*($C$8-1)+2) -> 13511 | U141: =VLOOKUP($S141,P_All!$X$5:$AS$245,3*($C$8-1)+3) -> 14272 | V141: =VLOOKUP($S141,P_All!$X$5:$AS$245,3*($C$8-1)+4) -> 17338 | W141: =IF(ISNA(VLOOKUP($B$6,$A$25:$E$52,IF($B$8=$A$22,3,2))),EXP(VLOOKUP($B$6,$A$25:$E$52,4)*LN(VLOOKUP($S141,#REF!,$C$8+1)/1000)+VLOOKUP($B$6,$A$25:$E$52,5)),VLOOKUP($B$6,$A$25:$E$52,IF($B$8=$A$22,3,2))) -> 
H142: 117 | I142: =VLOOKUP($H142,P_All!$A$5:$D$205,3*($C$8-1)+2) -> 17554 | J142: =VLOOKUP($H142,P_All!$A$5:$D$205,3*($C$8-1)+3) -> 20255 | K142: =VLOOKUP($H142,P_All!$A$5:$D$205,3*($C$8-1)+4) -> 23545 | L142: =IF(ISNA(VLOOKUP($B$6,$A$25:$E$51,IF($B$8=$A$22,3,2))),EXP(VLOOKUP($B$6,$A$25:$E$51,4)*LN(VLOOKUP($H142,#REF!,$C$8+1)/1000)+VLOOKUP($B$6,$A$25:$E$51,5)),VLOOKUP($B$6,$A$25:$E$51,IF($B$8=$A$22,3,2))) ->  | M142: 117 | N142: =VLOOKUP($H142,Other_All!$A$5:$D$205,3*($C$8-1)+2) -> 17135 | O142: =VLOOKUP($H142,Other_All!$A$5:$D$205,3*($C$8-1)+3) -> 19501 | P142: =VLOOKUP($H142,Other_All!$A$5:$D$205,3*($C$8-1)+4) -> 22055 | Q142: =IF(ISNA(VLOOKUP($B$6,$A$25:$E$51,IF($B$8=$A$22,3,2))),EXP(VLOOKUP($B$6,$A$25:$E$51,4)*LN(VLOOKUP($H142,#REF!,$C$8+1)/1000)+VLOOKUP($B$6,$A$25:$E$51,5)),VLOOKUP($B$6,$A$25:$E$51,IF($B$8=$A$22,3,2))) ->  | S142: 49.75 | T142: =VLOOKUP($S142,P_All!$X$5:$AS$245,3*($C$8-1)+2) -> 13389 | U142: =VLOOKUP($S142,P_All!$X$5:$AS$245,3*($C$8-1)+3) -> 14202 | V142: =VLOOKUP($S142,P_All!$X$5:$AS$245,3*($C$8-1)+4) -> 17164 | W142: =IF(ISNA(VLOOKUP($B$6,$A$25:$E$52,IF($B$8=$A$22,3,2))),EXP(VLOOKUP($B$6,$A$25:$E$52,4)*LN(VLOOKUP($S142,#REF!,$C$8+1)/1000)+VLOOKUP($B$6,$A$25:$E$52,5)),VLOOKUP($B$6,$A$25:$E$52,IF($B$8=$A$22,3,2))) -> 
H143: 118 | I143: =VLOOKUP($H143,P_All!$A$5:$D$205,3*($C$8-1)+2) -> 17402 | J143: =VLOOKUP($H143,P_All!$A$5:$D$205,3*($C$8-1)+3) -> 20286 | K143: =VLOOKUP($H143,P_All!$A$5:$D$205,3*($C$8-1)+4) -> 23534 | L143: =IF(ISNA(VLOOKUP($B$6,$A$25:$E$51,IF($B$8=$A$22,3,2))),EXP(VLOOKUP($B$6,$A$25:$E$51,4)*LN(VLOOKUP($H143,#REF!,$C$8+1)/1000)+VLOOKUP($B$6,$A$25:$E$51,5)),VLOOKUP($B$6,$A$25:$E$51,IF($B$8=$A$22,3,2))) ->  | M143: 118 | N143: =VLOOKUP($H143,Other_All!$A$5:$D$205,3*($C$8-1)+2) -> 16986 | O143: =VLOOKUP($H143,Other_All!$A$5:$D$205,3*($C$8-1)+3) -> 19457 | P143: =VLOOKUP($H143,Other_All!$A$5:$D$205,3*($C$8-1)+4) -> 21870 | Q143: =IF(ISNA(VLOOKUP($B$6,$A$25:$E$51,IF($B$8=$A$22,3,2))),EXP(VLOOKUP($B$6,$A$25:$E$51,4)*LN(VLOOKUP($H143,#REF!,$C$8+1)/1000)+VLOOKUP($B$6,$A$25:$E$51,5)),VLOOKUP($B$6,$A$25:$E$51,IF($B$8=$A$22,3,2))) ->  | S143: 49.83333333 | T143: =VLOOKUP($S143,P_All!$X$5:$AS$245,3*($C$8-1)+2) -> 13329 | U143: =VLOOKUP($S143,P_All!$X$5:$AS$245,3*($C$8-1)+3) -> 14169 | V143: =VLOOKUP($S143,P_All!$X$5:$AS$245,3*($C$8-1)+4) -> 17075 | W143: =IF(ISNA(VLOOKUP($B$6,$A$25:$E$52,IF($B$8=$A$22,3,2))),EXP(VLOOKUP($B$6,$A$25:$E$52,4)*LN(VLOOKUP($S143,#REF!,$C$8+1)/1000)+VLOOKUP($B$6,$A$25:$E$52,5)),VLOOKUP($B$6,$A$25:$E$52,IF($B$8=$A$22,3,2))) -> 
H144: 119 | I144: =VLOOKUP($H144,P_All!$A$5:$D$205,3*($C$8-1)+2) -> 17415 | J144: =VLOOKUP($H144,P_All!$A$5:$D$205,3*($C$8-1)+3) -> 20056 | K144: =VLOOKUP($H144,P_All!$A$5:$D$205,3*($C$8-1)+4) -> 23348 | L144: =IF(ISNA(VLOOKUP($B$6,$A$25:$E$51,IF($B$8=$A$22,3,2))),EXP(VLOOKUP($B$6,$A$25:$E$51,4)*LN(VLOOKUP($H144,#REF!,$C$8+1)/1000)+VLOOKUP($B$6,$A$25:$E$51,5)),VLOOKUP($B$6,$A$25:$E$51,IF($B$8=$A$22,3,2))) ->  | M144: 119 | N144: =VLOOKUP($H144,Other_All!$A$5:$D$205,3*($C$8-1)+2) -> 17199 | O144: =VLOOKUP($H144,Other_All!$A$5:$D$205,3*($C$8-1)+3) -> 19446 | P144: =VLOOKUP($H144,Other_All!$A$5:$D$205,3*($C$8-1)+4) -> 21813 | Q144: =IF(ISNA(VLOOKUP($B$6,$A$25:$E$51,IF($B$8=$A$22,3,2))),EXP(VLOOKUP($B$6,$A$25:$E$51,4)*LN(VLOOKUP($H144,#REF!,$C$8+1)/1000)+VLOOKUP($B$6,$A$25:$E$51,5)),VLOOKUP($B$6,$A$25:$E$51,IF($B$8=$A$22,3,2))) ->  | S144: 49.91666667 | T144: =VLOOKUP($S144,P_All!$X$5:$AS$245,3*($C$8-1)+2) -> 13317 | U144: =VLOOKUP($S144,P_All!$X$5:$AS$245,3*($C$8-1)+3) -> 14151 | V144: =VLOOKUP($S144,P_All!$X$5:$AS$245,3*($C$8-1)+4) -> 17085 | W144: =IF(ISNA(VLOOKUP($B$6,$A$25:$E$52,IF($B$8=$A$22,3,2))),EXP(VLOOKUP($B$6,$A$25:$E$52,4)*LN(VLOOKUP($S144,#REF!,$C$8+1)/1000)+VLOOKUP($B$6,$A$25:$E$52,5)),VLOOKUP($B$6,$A$25:$E$52,IF($B$8=$A$22,3,2))) -> 
H145: 120 | I145: =VLOOKUP($H145,P_All!$A$5:$D$205,3*($C$8-1)+2) -> 17418 | J145: =VLOOKUP($H145,P_All!$A$5:$D$205,3*($C$8-1)+3) -> 20140 | K145: =VLOOKUP($H145,P_All!$A$5:$D$205,3*($C$8-1)+4) -> 23463 | L145: =IF(ISNA(VLOOKUP($B$6,$A$25:$E$51,IF($B$8=$A$22,3,2))),EXP(VLOOKUP($B$6,$A$25:$E$51,4)*LN(VLOOKUP($H145,#REF!,$C$8+1)/1000)+VLOOKUP($B$6,$A$25:$E$51,5)),VLOOKUP($B$6,$A$25:$E$51,IF($B$8=$A$22,3,2))) ->  | M145: 120 | N145: =VLOOKUP($H145,Other_All!$A$5:$D$205,3*($C$8-1)+2) -> 17155 | O145: =VLOOKUP($H145,Other_All!$A$5:$D$205,3*($C$8-1)+3) -> 19483 | P145: =VLOOKUP($H145,Other_All!$A$5:$D$205,3*($C$8-1)+4) -> 21801 | Q145: =IF(ISNA(VLOOKUP($B$6,$A$25:$E$51,IF($B$8=$A$22,3,2))),EXP(VLOOKUP($B$6,$A$25:$E$51,4)*LN(VLOOKUP($H145,#REF!,$C$8+1)/1000)+VLOOKUP($B$6,$A$25:$E$51,5)),VLOOKUP($B$6,$A$25:$E$51,IF($B$8=$A$22,3,2))) ->  | S145: 50 | T145: =VLOOKUP($S145,P_All!$X$5:$AS$245,3*($C$8-1)+2) -> 13285 | U145: =VLOOKUP($S145,P_All!$X$5:$AS$245,3*($C$8-1)+3) -> 14119 | V145: =VLOOKUP($S145,P_All!$X$5:$AS$245,3*($C$8-1)+4) -> 17152 | W145: =IF(ISNA(VLOOKUP($B$6,$A$25:$E$52,IF($B$8=$A$22,3,2))),EXP(VLOOKUP($B$6,$A$25:$E$52,4)*LN(VLOOKUP($S145,#REF!,$C$8+1)/1000)+VLOOKUP($B$6,$A$25:$E$52,5)),VLOOKUP($B$6,$A$25:$E$52,IF($B$8=$A$22,3,2))) -> 
H146: 121 | I146: =VLOOKUP($H146,P_All!$A$5:$D$205,3*($C$8-1)+2) -> 17435 | J146: =VLOOKUP($H146,P_All!$A$5:$D$205,3*($C$8-1)+3) -> 19922 | K146: =VLOOKUP($H146,P_All!$A$5:$D$205,3*($C$8-1)+4) -> 23503 | L146: =IF(ISNA(VLOOKUP($B$6,$A$25:$E$51,IF($B$8=$A$22,3,2))),EXP(VLOOKUP($B$6,$A$25:$E$51,4)*LN(VLOOKUP($H146,#REF!,$C$8+1)/1000)+VLOOKUP($B$6,$A$25:$E$51,5)),VLOOKUP($B$6,$A$25:$E$51,IF($B$8=$A$22,3,2))) ->  | M146: 121 | N146: =VLOOKUP($H146,Other_All!$A$5:$D$205,3*($C$8-1)+2) -> 17126 | O146: =VLOOKUP($H146,Other_All!$A$5:$D$205,3*($C$8-1)+3) -> 19370 | P146: =VLOOKUP($H146,Other_All!$A$5:$D$205,3*($C$8-1)+4) -> 21837 | Q146: =IF(ISNA(VLOOKUP($B$6,$A$25:$E$51,IF($B$8=$A$22,3,2))),EXP(VLOOKUP($B$6,$A$25:$E$51,4)*LN(VLOOKUP($H146,#REF!,$C$8+1)/1000)+VLOOKUP($B$6,$A$25:$E$51,5)),VLOOKUP($B$6,$A$25:$E$51,IF($B$8=$A$22,3,2))) ->  | S146: 50.08333333 | T146: =VLOOKUP($S146,P_All!$X$5:$AS$245,3*($C$8-1)+2) -> 13303 | U146: =VLOOKUP($S146,P_All!$X$5:$AS$245,3*($C$8-1)+3) -> 14106 | V146: =VLOOKUP($S146,P_All!$X$5:$AS$245,3*($C$8-1)+4) -> 17309 | W146: =IF(ISNA(VLOOKUP($B$6,$A$25:$E$52,IF($B$8=$A$22,3,2))),EXP(VLOOKUP($B$6,$A$25:$E$52,4)*LN(VLOOKUP($S146,#REF!,$C$8+1)/1000)+VLOOKUP($B$6,$A$25:$E$52,5)),VLOOKUP($B$6,$A$25:$E$52,IF($B$8=$A$22,3,2))) -> 
H147: 122 | I147: =VLOOKUP($H147,P_All!$A$5:$D$205,3*($C$8-1)+2) -> 17275 | J147: =VLOOKUP($H147,P_All!$A$5:$D$205,3*($C$8-1)+3) -> 20080 | K147: =VLOOKUP($H147,P_All!$A$5:$D$205,3*($C$8-1)+4) -> 23331 | L147: =IF(ISNA(VLOOKUP($B$6,$A$25:$E$51,IF($B$8=$A$22,3,2))),EXP(VLOOKUP($B$6,$A$25:$E$51,4)*LN(VLOOKUP($H147,#REF!,$C$8+1)/1000)+VLOOKUP($B$6,$A$25:$E$51,5)),VLOOKUP($B$6,$A$25:$E$51,IF($B$8=$A$22,3,2))) ->  | M147: 122 | N147: =VLOOKUP($H147,Other_All!$A$5:$D$205,3*($C$8-1)+2) -> 16895 | O147: =VLOOKUP($H147,Other_All!$A$5:$D$205,3*($C$8-1)+3) -> 19472 | P147: =VLOOKUP($H147,Other_All!$A$5:$D$205,3*($C$8-1)+4) -> 22128 | Q147: =IF(ISNA(VLOOKUP($B$6,$A$25:$E$51,IF($B$8=$A$22,3,2))),EXP(VLOOKUP($B$6,$A$25:$E$51,4)*LN(VLOOKUP($H147,#REF!,$C$8+1)/1000)+VLOOKUP($B$6,$A$25:$E$51,5)),VLOOKUP($B$6,$A$25:$E$51,IF($B$8=$A$22,3,2))) ->  | S147: 50.16666667 | T147: =VLOOKUP($S147,P_All!$X$5:$AS$245,3*($C$8-1)+2) -> 13328 | U147: =VLOOKUP($S147,P_All!$X$5:$AS$245,3*($C$8-1)+3) -> 14105 | V147: =VLOOKUP($S147,P_All!$X$5:$AS$245,3*($C$8-1)+4) -> 17476 | W147: =IF(ISNA(VLOOKUP($B$6,$A$25:$E$52,IF($B$8=$A$22,3,2))),EXP(VLOOKUP($B$6,$A$25:$E$52,4)*LN(VLOOKUP($S147,#REF!,$C$8+1)/1000)+VLOOKUP($B$6,$A$25:$E$52,5)),VLOOKUP($B$6,$A$25:$E$52,IF($B$8=$A$22,3,2))) -> 
H148: 123 | I148: =VLOOKUP($H148,P_All!$A$5:$D$205,3*($C$8-1)+2) -> 17453 | J148: =VLOOKUP($H148,P_All!$A$5:$D$205,3*($C$8-1)+3) -> 20017 | K148: =VLOOKUP($H148,P_All!$A$5:$D$205,3*($C$8-1)+4) -> 23483 | L148: =IF(ISNA(VLOOKUP($B$6,$A$25:$E$51,IF($B$8=$A$22,3,2))),EXP(VLOOKUP($B$6,$A$25:$E$51,4)*LN(VLOOKUP($H148,#REF!,$C$8+1)/1000)+VLOOKUP($B$6,$A$25:$E$51,5)),VLOOKUP($B$6,$A$25:$E$51,IF($B$8=$A$22,3,2))) ->  | M148: 123 | N148: =VLOOKUP($H148,Other_All!$A$5:$D$205,3*($C$8-1)+2) -> 17021 | O148: =VLOOKUP($H148,Other_All!$A$5:$D$205,3*($C$8-1)+3) -> 19493 | P148: =VLOOKUP($H148,Other_All!$A$5:$D$205,3*($C$8-1)+4) -> 22065 | Q148: =IF(ISNA(VLOOKUP($B$6,$A$25:$E$51,IF($B$8=$A$22,3,2))),EXP(VLOOKUP($B$6,$A$25:$E$51,4)*LN(VLOOKUP($H148,#REF!,$C$8+1)/1000)+VLOOKUP($B$6,$A$25:$E$51,5)),VLOOKUP($B$6,$A$25:$E$51,IF($B$8=$A$22,3,2))) ->  | S148: 50.25 | T148: =VLOOKUP($S148,P_All!$X$5:$AS$245,3*($C$8-1)+2) -> 13414 | U148: =VLOOKUP($S148,P_All!$X$5:$AS$245,3*($C$8-1)+3) -> 14154 | V148: =VLOOKUP($S148,P_All!$X$5:$AS$245,3*($C$8-1)+4) -> 17677 | W148: =IF(ISNA(VLOOKUP($B$6,$A$25:$E$52,IF($B$8=$A$22,3,2))),EXP(VLOOKUP($B$6,$A$25:$E$52,4)*LN(VLOOKUP($S148,#REF!,$C$8+1)/1000)+VLOOKUP($B$6,$A$25:$E$52,5)),VLOOKUP($B$6,$A$25:$E$52,IF($B$8=$A$22,3,2))) -> 
H149: 124 | I149: =VLOOKUP($H149,P_All!$A$5:$D$205,3*($C$8-1)+2) -> 17511 | J149: =VLOOKUP($H149,P_All!$A$5:$D$205,3*($C$8-1)+3) -> 20038 | K149: =VLOOKUP($H149,P_All!$A$5:$D$205,3*($C$8-1)+4) -> 23941 | L149: =IF(ISNA(VLOOKUP($B$6,$A$25:$E$51,IF($B$8=$A$22,3,2))),EXP(VLOOKUP($B$6,$A$25:$E$51,4)*LN(VLOOKUP($H149,#REF!,$C$8+1)/1000)+VLOOKUP($B$6,$A$25:$E$51,5)),VLOOKUP($B$6,$A$25:$E$51,IF($B$8=$A$22,3,2))) ->  | M149: 124 | N149: =VLOOKUP($H149,Other_All!$A$5:$D$205,3*($C$8-1)+2) -> 17098 | O149: =VLOOKUP($H149,Other_All!$A$5:$D$205,3*($C$8-1)+3) -> 19428 | P149: =VLOOKUP($H149,Other_All!$A$5:$D$205,3*($C$8-1)+4) -> 22210 | Q149: =IF(ISNA(VLOOKUP($B$6,$A$25:$E$51,IF($B$8=$A$22,3,2))),EXP(VLOOKUP($B$6,$A$25:$E$51,4)*LN(VLOOKUP($H149,#REF!,$C$8+1)/1000)+VLOOKUP($B$6,$A$25:$E$51,5)),VLOOKUP($B$6,$A$25:$E$51,IF($B$8=$A$22,3,2))) ->  | S149: 50.33333333 | T149: =VLOOKUP($S149,P_All!$X$5:$AS$245,3*($C$8-1)+2) -> 13512 | U149: =VLOOKUP($S149,P_All!$X$5:$AS$245,3*($C$8-1)+3) -> 14209 | V149: =VLOOKUP($S149,P_All!$X$5:$AS$245,3*($C$8-1)+4) -> 17941 | W149: =IF(ISNA(VLOOKUP($B$6,$A$25:$E$52,IF($B$8=$A$22,3,2))),EXP(VLOOKUP($B$6,$A$25:$E$52,4)*LN(VLOOKUP($S149,#REF!,$C$8+1)/1000)+VLOOKUP($B$6,$A$25:$E$52,5)),VLOOKUP($B$6,$A$25:$E$52,IF($B$8=$A$22,3,2))) -> 
H150: 125 | I150: =VLOOKUP($H150,P_All!$A$5:$D$205,3*($C$8-1)+2) -> 17460 | J150: =VLOOKUP($H150,P_All!$A$5:$D$205,3*($C$8-1)+3) -> 20089 | K150: =VLOOKUP($H150,P_All!$A$5:$D$205,3*($C$8-1)+4) -> 23989 | L150: =IF(ISNA(VLOOKUP($B$6,$A$25:$E$51,IF($B$8=$A$22,3,2))),EXP(VLOOKUP($B$6,$A$25:$E$51,4)*LN(VLOOKUP($H150,#REF!,$C$8+1)/1000)+VLOOKUP($B$6,$A$25:$E$51,5)),VLOOKUP($B$6,$A$25:$E$51,IF($B$8=$A$22,3,2))) ->  | M150: 125 | N150: =VLOOKUP($H150,Other_All!$A$5:$D$205,3*($C$8-1)+2) -> 17225 | O150: =VLOOKUP($H150,Other_All!$A$5:$D$205,3*($C$8-1)+3) -> 19494 | P150: =VLOOKUP($H150,Other_All!$A$5:$D$205,3*($C$8-1)+4) -> 22120 | Q150: =IF(ISNA(VLOOKUP($B$6,$A$25:$E$51,IF($B$8=$A$22,3,2))),EXP(VLOOKUP($B$6,$A$25:$E$51,4)*LN(VLOOKUP($H150,#REF!,$C$8+1)/1000)+VLOOKUP($B$6,$A$25:$E$51,5)),VLOOKUP($B$6,$A$25:$E$51,IF($B$8=$A$22,3,2))) ->  | S150: 50.41666667 | T150: =VLOOKUP($S150,P_All!$X$5:$AS$245,3*($C$8-1)+2) -> 13489 | U150: =VLOOKUP($S150,P_All!$X$5:$AS$245,3*($C$8-1)+3) -> 14193 | V150: =VLOOKUP($S150,P_All!$X$5:$AS$245,3*($C$8-1)+4) -> 18268 | W150: =IF(ISNA(VLOOKUP($B$6,$A$25:$E$52,IF($B$8=$A$22,3,2))),EXP(VLOOKUP($B$6,$A$25:$E$52,4)*LN(VLOOKUP($S150,#REF!,$C$8+1)/1000)+VLOOKUP($B$6,$A$25:$E$52,5)),VLOOKUP($B$6,$A$25:$E$52,IF($B$8=$A$22,3,2))) -> 
H151: 126 | I151: =VLOOKUP($H151,P_All!$A$5:$D$205,3*($C$8-1)+2) -> 17445 | J151: =VLOOKUP($H151,P_All!$A$5:$D$205,3*($C$8-1)+3) -> 20280 | K151: =VLOOKUP($H151,P_All!$A$5:$D$205,3*($C$8-1)+4) -> 24154 | L151: =IF(ISNA(VLOOKUP($B$6,$A$25:$E$51,IF($B$8=$A$22,3,2))),EXP(VLOOKUP($B$6,$A$25:$E$51,4)*LN(VLOOKUP($H151,#REF!,$C$8+1)/1000)+VLOOKUP($B$6,$A$25:$E$51,5)),VLOOKUP($B$6,$A$25:$E$51,IF($B$8=$A$22,3,2))) ->  | M151: 126 | N151: =VLOOKUP($H151,Other_All!$A$5:$D$205,3*($C$8-1)+2) -> 17050 | O151: =VLOOKUP($H151,Other_All!$A$5:$D$205,3*($C$8-1)+3) -> 19519 | P151: =VLOOKUP($H151,Other_All!$A$5:$D$205,3*($C$8-1)+4) -> 22163 | Q151: =IF(ISNA(VLOOKUP($B$6,$A$25:$E$51,IF($B$8=$A$22,3,2))),EXP(VLOOKUP($B$6,$A$25:$E$51,4)*LN(VLOOKUP($H151,#REF!,$C$8+1)/1000)+VLOOKUP($B$6,$A$25:$E$51,5)),VLOOKUP($B$6,$A$25:$E$51,IF($B$8=$A$22,3,2))) ->  | S151: 50.5 | T151: =VLOOKUP($S151,P_All!$X$5:$AS$245,3*($C$8-1)+2) -> 13369 | U151: =VLOOKUP($S151,P_All!$X$5:$AS$245,3*($C$8-1)+3) -> 14062 | V151: =VLOOKUP($S151,P_All!$X$5:$AS$245,3*($C$8-1)+4) -> 18134 | W151: =IF(ISNA(VLOOKUP($B$6,$A$25:$E$52,IF($B$8=$A$22,3,2))),EXP(VLOOKUP($B$6,$A$25:$E$52,4)*LN(VLOOKUP($S151,#REF!,$C$8+1)/1000)+VLOOKUP($B$6,$A$25:$E$52,5)),VLOOKUP($B$6,$A$25:$E$52,IF($B$8=$A$22,3,2))) -> 
H152: 127 | I152: =VLOOKUP($H152,P_All!$A$5:$D$205,3*($C$8-1)+2) -> 17593 | J152: =VLOOKUP($H152,P_All!$A$5:$D$205,3*($C$8-1)+3) -> 20118 | K152: =VLOOKUP($H152,P_All!$A$5:$D$205,3*($C$8-1)+4) -> 24025 | L152: =IF(ISNA(VLOOKUP($B$6,$A$25:$E$51,IF($B$8=$A$22,3,2))),EXP(VLOOKUP($B$6,$A$25:$E$51,4)*LN(VLOOKUP($H152,#REF!,$C$8+1)/1000)+VLOOKUP($B$6,$A$25:$E$51,5)),VLOOKUP($B$6,$A$25:$E$51,IF($B$8=$A$22,3,2))) ->  | M152: 127 | N152: =VLOOKUP($H152,Other_All!$A$5:$D$205,3*($C$8-1)+2) -> 17111 | O152: =VLOOKUP($H152,Other_All!$A$5:$D$205,3*($C$8-1)+3) -> 19431 | P152: =VLOOKUP($H152,Other_All!$A$5:$D$205,3*($C$8-1)+4) -> 22380 | Q152: =IF(ISNA(VLOOKUP($B$6,$A$25:$E$51,IF($B$8=$A$22,3,2))),EXP(VLOOKUP($B$6,$A$25:$E$51,4)*LN(VLOOKUP($H152,#REF!,$C$8+1)/1000)+VLOOKUP($B$6,$A$25:$E$51,5)),VLOOKUP($B$6,$A$25:$E$51,IF($B$8=$A$22,3,2))) ->  | S152: 50.58333333 | T152: =VLOOKUP($S152,P_All!$X$5:$AS$245,3*($C$8-1)+2) -> 13308 | U152: =VLOOKUP($S152,P_All!$X$5:$AS$245,3*($C$8-1)+3) -> 14041 | V152: =VLOOKUP($S152,P_All!$X$5:$AS$245,3*($C$8-1)+4) -> 18244 | W152: =IF(ISNA(VLOOKUP($B$6,$A$25:$E$52,IF($B$8=$A$22,3,2))),EXP(VLOOKUP($B$6,$A$25:$E$52,4)*LN(VLOOKUP($S152,#REF!,$C$8+1)/1000)+VLOOKUP($B$6,$A$25:$E$52,5)),VLOOKUP($B$6,$A$25:$E$52,IF($B$8=$A$22,3,2))) -> 
H153: 128 | I153: =VLOOKUP($H153,P_All!$A$5:$D$205,3*($C$8-1)+2) -> 17796 | J153: =VLOOKUP($H153,P_All!$A$5:$D$205,3*($C$8-1)+3) -> 20225 | K153: =VLOOKUP($H153,P_All!$A$5:$D$205,3*($C$8-1)+4) -> 24027 | L153: =IF(ISNA(VLOOKUP($B$6,$A$25:$E$51,IF($B$8=$A$22,3,2))),EXP(VLOOKUP($B$6,$A$25:$E$51,4)*LN(VLOOKUP($H153,#REF!,$C$8+1)/1000)+VLOOKUP($B$6,$A$25:$E$51,5)),VLOOKUP($B$6,$A$25:$E$51,IF($B$8=$A$22,3,2))) ->  | M153: 128 | N153: =VLOOKUP($H153,Other_All!$A$5:$D$205,3*($C$8-1)+2) -> 17317 | O153: =VLOOKUP($H153,Other_All!$A$5:$D$205,3*($C$8-1)+3) -> 19486 | P153: =VLOOKUP($H153,Other_All!$A$5:$D$205,3*($C$8-1)+4) -> 22323 | Q153: =IF(ISNA(VLOOKUP($B$6,$A$25:$E$51,IF($B$8=$A$22,3,2))),EXP(VLOOKUP($B$6,$A$25:$E$51,4)*LN(VLOOKUP($H153,#REF!,$C$8+1)/1000)+VLOOKUP($B$6,$A$25:$E$51,5)),VLOOKUP($B$6,$A$25:$E$51,IF($B$8=$A$22,3,2))) ->  | S153: 50.66666667 | T153: =VLOOKUP($S153,P_All!$X$5:$AS$245,3*($C$8-1)+2) -> 13289 | U153: =VLOOKUP($S153,P_All!$X$5:$AS$245,3*($C$8-1)+3) -> 14019 | V153: =VLOOKUP($S153,P_All!$X$5:$AS$245,3*($C$8-1)+4) -> 18287 | W153: =IF(ISNA(VLOOKUP($B$6,$A$25:$E$52,IF($B$8=$A$22,3,2))),EXP(VLOOKUP($B$6,$A$25:$E$52,4)*LN(VLOOKUP($S153,#REF!,$C$8+1)/1000)+VLOOKUP($B$6,$A$25:$E$52,5)),VLOOKUP($B$6,$A$25:$E$52,IF($B$8=$A$22,3,2))) -> 
H154: 129 | I154: =VLOOKUP($H154,P_All!$A$5:$D$205,3*($C$8-1)+2) -> 17708 | J154: =VLOOKUP($H154,P_All!$A$5:$D$205,3*($C$8-1)+3) -> 20338 | K154: =VLOOKUP($H154,P_All!$A$5:$D$205,3*($C$8-1)+4) -> 24177 | L154: =IF(ISNA(VLOOKUP($B$6,$A$25:$E$51,IF($B$8=$A$22,3,2))),EXP(VLOOKUP($B$6,$A$25:$E$51,4)*LN(VLOOKUP($H154,#REF!,$C$8+1)/1000)+VLOOKUP($B$6,$A$25:$E$51,5)),VLOOKUP($B$6,$A$25:$E$51,IF($B$8=$A$22,3,2))) ->  | M154: 129 | N154: =VLOOKUP($H154,Other_All!$A$5:$D$205,3*($C$8-1)+2) -> 17364 | O154: =VLOOKUP($H154,Other_All!$A$5:$D$205,3*($C$8-1)+3) -> 19600 | P154: =VLOOKUP($H154,Other_All!$A$5:$D$205,3*($C$8-1)+4) -> 22209 | Q154: =IF(ISNA(VLOOKUP($B$6,$A$25:$E$51,IF($B$8=$A$22,3,2))),EXP(VLOOKUP($B$6,$A$25:$E$51,4)*LN(VLOOKUP($H154,#REF!,$C$8+1)/1000)+VLOOKUP($B$6,$A$25:$E$51,5)),VLOOKUP($B$6,$A$25:$E$51,IF($B$8=$A$22,3,2))) ->  | S154: 50.75 | T154: =VLOOKUP($S154,P_All!$X$5:$AS$245,3*($C$8-1)+2) -> 13157 | U154: =VLOOKUP($S154,P_All!$X$5:$AS$245,3*($C$8-1)+3) -> 13947 | V154: =VLOOKUP($S154,P_All!$X$5:$AS$245,3*($C$8-1)+4) -> 18247 | W154: =IF(ISNA(VLOOKUP($B$6,$A$25:$E$52,IF($B$8=$A$22,3,2))),EXP(VLOOKUP($B$6,$A$25:$E$52,4)*LN(VLOOKUP($S154,#REF!,$C$8+1)/1000)+VLOOKUP($B$6,$A$25:$E$52,5)),VLOOKUP($B$6,$A$25:$E$52,IF($B$8=$A$22,3,2))) -> 
H155: 130 | I155: =VLOOKUP($H155,P_All!$A$5:$D$205,3*($C$8-1)+2) -> 17686 | J155: =VLOOKUP($H155,P_All!$A$5:$D$205,3*($C$8-1)+3) -> 20363 | K155: =VLOOKUP($H155,P_All!$A$5:$D$205,3*($C$8-1)+4) -> 23761 | L155: =IF(ISNA(VLOOKUP($B$6,$A$25:$E$51,IF($B$8=$A$22,3,2))),EXP(VLOOKUP($B$6,$A$25:$E$51,4)*LN(VLOOKUP($H155,#REF!,$C$8+1)/1000)+VLOOKUP($B$6,$A$25:$E$51,5)),VLOOKUP($B$6,$A$25:$E$51,IF($B$8=$A$22,3,2))) ->  | M155: 130 | N155: =VLOOKUP($H155,Other_All!$A$5:$D$205,3*($C$8-1)+2) -> 17387 | O155: =VLOOKUP($H155,Other_All!$A$5:$D$205,3*($C$8-1)+3) -> 19557 | P155: =VLOOKUP($H155,Other_All!$A$5:$D$205,3*($C$8-1)+4) -> 22021 | Q155: =IF(ISNA(VLOOKUP($B$6,$A$25:$E$51,IF($B$8=$A$22,3,2))),EXP(VLOOKUP($B$6,$A$25:$E$51,4)*LN(VLOOKUP($H155,#REF!,$C$8+1)/1000)+VLOOKUP($B$6,$A$25:$E$51,5)),VLOOKUP($B$6,$A$25:$E$51,IF($B$8=$A$22,3,2))) ->  | S155: =S154+1/12 -> 50.83333333 | T155: =VLOOKUP($S155,P_All!$X$5:$AS$245,3*($C$8-1)+2) -> 13111 | U155: =VLOOKUP($S155,P_All!$X$5:$AS$245,3*($C$8-1)+3) -> 13912 | V155: =VLOOKUP($S155,P_All!$X$5:$AS$245,3*($C$8-1)+4) -> 18251 | W155: =IF(ISNA(VLOOKUP($B$6,$A$25:$E$52,IF($B$8=$A$22,3,2))),EXP(VLOOKUP($B$6,$A$25:$E$52,4)*LN(VLOOKUP($S155,#REF!,$C$8+1)/1000)+VLOOKUP($B$6,$A$25:$E$52,5)),VLOOKUP($B$6,$A$25:$E$52,IF($B$8=$A$22,3,2))) -> 
H156: 131 | I156: =VLOOKUP($H156,P_All!$A$5:$D$205,3*($C$8-1)+2) -> 17613 | J156: =VLOOKUP($H156,P_All!$A$5:$D$205,3*($C$8-1)+3) -> 20316 | K156: =VLOOKUP($H156,P_All!$A$5:$D$205,3*($C$8-1)+4) -> 23530 | L156: =IF(ISNA(VLOOKUP($B$6,$A$25:$E$51,IF($B$8=$A$22,3,2))),EXP(VLOOKUP($B$6,$A$25:$E$51,4)*LN(VLOOKUP($H156,#REF!,$C$8+1)/1000)+VLOOKUP($B$6,$A$25:$E$51,5)),VLOOKUP($B$6,$A$25:$E$51,IF($B$8=$A$22,3,2))) ->  | M156: 131 | N156: =VLOOKUP($H156,Other_All!$A$5:$D$205,3*($C$8-1)+2) -> 17322 | O156: =VLOOKUP($H156,Other_All!$A$5:$D$205,3*($C$8-1)+3) -> 19513 | P156: =VLOOKUP($H156,Other_All!$A$5:$D$205,3*($C$8-1)+4) -> 21890 | Q156: =IF(ISNA(VLOOKUP($B$6,$A$25:$E$51,IF($B$8=$A$22,3,2))),EXP(VLOOKUP($B$6,$A$25:$E$51,4)*LN(VLOOKUP($H156,#REF!,$C$8+1)/1000)+VLOOKUP($B$6,$A$25:$E$51,5)),VLOOKUP($B$6,$A$25:$E$51,IF($B$8=$A$22,3,2))) ->  | S156: 50.91666667 | T156: =VLOOKUP($S156,P_All!$X$5:$AS$245,3*($C$8-1)+2) -> 13116 | U156: =VLOOKUP($S156,P_All!$X$5:$AS$245,3*($C$8-1)+3) -> 13896 | V156: =VLOOKUP($S156,P_All!$X$5:$AS$245,3*($C$8-1)+4) -> 18320 | W156: =IF(ISNA(VLOOKUP($B$6,$A$25:$E$52,IF($B$8=$A$22,3,2))),EXP(VLOOKUP($B$6,$A$25:$E$52,4)*LN(VLOOKUP($S156,#REF!,$C$8+1)/1000)+VLOOKUP($B$6,$A$25:$E$52,5)),VLOOKUP($B$6,$A$25:$E$52,IF($B$8=$A$22,3,2))) -> 
H157: 132 | I157: =VLOOKUP($H157,P_All!$A$5:$D$205,3*($C$8-1)+2) -> 17731 | J157: =VLOOKUP($H157,P_All!$A$5:$D$205,3*($C$8-1)+3) -> 20262 | K157: =VLOOKUP($H157,P_All!$A$5:$D$205,3*($C$8-1)+4) -> 23780 | L157: =IF(ISNA(VLOOKUP($B$6,$A$25:$E$51,IF($B$8=$A$22,3,2))),EXP(VLOOKUP($B$6,$A$25:$E$51,4)*LN(VLOOKUP($H157,#REF!,$C$8+1)/1000)+VLOOKUP($B$6,$A$25:$E$51,5)),VLOOKUP($B$6,$A$25:$E$51,IF($B$8=$A$22,3,2))) ->  | M157: 132 | N157: =VLOOKUP($H157,Other_All!$A$5:$D$205,3*($C$8-1)+2) -> 17442 | O157: =VLOOKUP($H157,Other_All!$A$5:$D$205,3*($C$8-1)+3) -> 19629 | P157: =VLOOKUP($H157,Other_All!$A$5:$D$205,3*($C$8-1)+4) -> 22118 | Q157: =IF(ISNA(VLOOKUP($B$6,$A$25:$E$51,IF($B$8=$A$22,3,2))),EXP(VLOOKUP($B$6,$A$25:$E$51,4)*LN(VLOOKUP($H157,#REF!,$C$8+1)/1000)+VLOOKUP($B$6,$A$25:$E$51,5)),VLOOKUP($B$6,$A$25:$E$51,IF($B$8=$A$22,3,2))) ->  | S157: 51 | T157: =VLOOKUP($S157,P_All!$X$5:$AS$245,3*($C$8-1)+2) -> 13097 | U157: =VLOOKUP($S157,P_All!$X$5:$AS$245,3*($C$8-1)+3) -> 13872 | V157: =VLOOKUP($S157,P_All!$X$5:$AS$245,3*($C$8-1)+4) -> 18398 | W157: =IF(ISNA(VLOOKUP($B$6,$A$25:$E$52,IF($B$8=$A$22,3,2))),EXP(VLOOKUP($B$6,$A$25:$E$52,4)*LN(VLOOKUP($S157,#REF!,$C$8+1)/1000)+VLOOKUP($B$6,$A$25:$E$52,5)),VLOOKUP($B$6,$A$25:$E$52,IF($B$8=$A$22,3,2))) -> 
H158: 133 | I158: =VLOOKUP($H158,P_All!$A$5:$D$205,3*($C$8-1)+2) -> 17736 | J158: =VLOOKUP($H158,P_All!$A$5:$D$205,3*($C$8-1)+3) -> 20374 | K158: =VLOOKUP($H158,P_All!$A$5:$D$205,3*($C$8-1)+4) -> 23948 | L158: =IF(ISNA(VLOOKUP($B$6,$A$25:$E$51,IF($B$8=$A$22,3,2))),EXP(VLOOKUP($B$6,$A$25:$E$51,4)*LN(VLOOKUP($H158,#REF!,$C$8+1)/1000)+VLOOKUP($B$6,$A$25:$E$51,5)),VLOOKUP($B$6,$A$25:$E$51,IF($B$8=$A$22,3,2))) ->  | M158: 133 | N158: =VLOOKUP($H158,Other_All!$A$5:$D$205,3*($C$8-1)+2) -> 17471 | O158: =VLOOKUP($H158,Other_All!$A$5:$D$205,3*($C$8-1)+3) -> 19696 | P158: =VLOOKUP($H158,Other_All!$A$5:$D$205,3*($C$8-1)+4) -> 22357 | Q158: =IF(ISNA(VLOOKUP($B$6,$A$25:$E$51,IF($B$8=$A$22,3,2))),EXP(VLOOKUP($B$6,$A$25:$E$51,4)*LN(VLOOKUP($H158,#REF!,$C$8+1)/1000)+VLOOKUP($B$6,$A$25:$E$51,5)),VLOOKUP($B$6,$A$25:$E$51,IF($B$8=$A$22,3,2))) ->  | S158: 51.08333333 | T158: =VLOOKUP($S158,P_All!$X$5:$AS$245,3*($C$8-1)+2) -> 13122 | U158: =VLOOKUP($S158,P_All!$X$5:$AS$245,3*($C$8-1)+3) -> 13860 | V158: =VLOOKUP($S158,P_All!$X$5:$AS$245,3*($C$8-1)+4) -> 18510 | W158: =IF(ISNA(VLOOKUP($B$6,$A$25:$E$52,IF($B$8=$A$22,3,2))),EXP(VLOOKUP($B$6,$A$25:$E$52,4)*LN(VLOOKUP($S158,#REF!,$C$8+1)/1000)+VLOOKUP($B$6,$A$25:$E$52,5)),VLOOKUP($B$6,$A$25:$E$52,IF($B$8=$A$22,3,2))) -> 
H159: 134 | I159: =VLOOKUP($H159,P_All!$A$5:$D$205,3*($C$8-1)+2) -> 17730 | J159: =VLOOKUP($H159,P_All!$A$5:$D$205,3*($C$8-1)+3) -> 20507 | K159: =VLOOKUP($H159,P_All!$A$5:$D$205,3*($C$8-1)+4) -> 23709 | L159: =IF(ISNA(VLOOKUP($B$6,$A$25:$E$51,IF($B$8=$A$22,3,2))),EXP(VLOOKUP($B$6,$A$25:$E$51,4)*LN(VLOOKUP($H159,#REF!,$C$8+1)/1000)+VLOOKUP($B$6,$A$25:$E$51,5)),VLOOKUP($B$6,$A$25:$E$51,IF($B$8=$A$22,3,2))) ->  | M159: 134 | N159: =VLOOKUP($H159,Other_All!$A$5:$D$205,3*($C$8-1)+2) -> 17476 | O159: =VLOOKUP($H159,Other_All!$A$5:$D$205,3*($C$8-1)+3) -> 19755 | P159: =VLOOKUP($H159,Other_All!$A$5:$D$205,3*($C$8-1)+4) -> 22189 | Q159: =IF(ISNA(VLOOKUP($B$6,$A$25:$E$51,IF($B$8=$A$22,3,2))),EXP(VLOOKUP($B$6,$A$25:$E$51,4)*LN(VLOOKUP($H159,#REF!,$C$8+1)/1000)+VLOOKUP($B$6,$A$25:$E$51,5)),VLOOKUP($B$6,$A$25:$E$51,IF($B$8=$A$22,3,2))) ->  | S159: 51.16666667 | T159: =VLOOKUP($S159,P_All!$X$5:$AS$245,3*($C$8-1)+2) -> 13160 | U159: =VLOOKUP($S159,P_All!$X$5:$AS$245,3*($C$8-1)+3) -> 13850 | V159: =VLOOKUP($S159,P_All!$X$5:$AS$245,3*($C$8-1)+4) -> 18643 | W159: =IF(ISNA(VLOOKUP($B$6,$A$25:$E$52,IF($B$8=$A$22,3,2))),EXP(VLOOKUP($B$6,$A$25:$E$52,4)*LN(VLOOKUP($S159,#REF!,$C$8+1)/1000)+VLOOKUP($B$6,$A$25:$E$52,5)),VLOOKUP($B$6,$A$25:$E$52,IF($B$8=$A$22,3,2))) -> 
H160: 135 | I160: =VLOOKUP($H160,P_All!$A$5:$D$205,3*($C$8-1)+2) -> 17773 | J160: =VLOOKUP($H160,P_All!$A$5:$D$205,3*($C$8-1)+3) -> 20448 | K160: =VLOOKUP($H160,P_All!$A$5:$D$205,3*($C$8-1)+4) -> 23688 | L160: =IF(ISNA(VLOOKUP($B$6,$A$25:$E$51,IF($B$8=$A$22,3,2))),EXP(VLOOKUP($B$6,$A$25:$E$51,4)*LN(VLOOKUP($H160,#REF!,$C$8+1)/1000)+VLOOKUP($B$6,$A$25:$E$51,5)),VLOOKUP($B$6,$A$25:$E$51,IF($B$8=$A$22,3,2))) ->  | M160: 135 | N160: =VLOOKUP($H160,Other_All!$A$5:$D$205,3*($C$8-1)+2) -> 17484 | O160: =VLOOKUP($H160,Other_All!$A$5:$D$205,3*($C$8-1)+3) -> 19621 | P160: =VLOOKUP($H160,Other_All!$A$5:$D$205,3*($C$8-1)+4) -> 22138 | Q160: =IF(ISNA(VLOOKUP($B$6,$A$25:$E$51,IF($B$8=$A$22,3,2))),EXP(VLOOKUP($B$6,$A$25:$E$51,4)*LN(VLOOKUP($H160,#REF!,$C$8+1)/1000)+VLOOKUP($B$6,$A$25:$E$51,5)),VLOOKUP($B$6,$A$25:$E$51,IF($B$8=$A$22,3,2))) ->  | S160: 51.25 | T160: =VLOOKUP($S160,P_All!$X$5:$AS$245,3*($C$8-1)+2) -> 13214 | U160: =VLOOKUP($S160,P_All!$X$5:$AS$245,3*($C$8-1)+3) -> 13907 | V160: =VLOOKUP($S160,P_All!$X$5:$AS$245,3*($C$8-1)+4) -> 18808 | W160: =IF(ISNA(VLOOKUP($B$6,$A$25:$E$52,IF($B$8=$A$22,3,2))),EXP(VLOOKUP($B$6,$A$25:$E$52,4)*LN(VLOOKUP($S160,#REF!,$C$8+1)/1000)+VLOOKUP($B$6,$A$25:$E$52,5)),VLOOKUP($B$6,$A$25:$E$52,IF($B$8=$A$22,3,2))) -> 
H161: 136 | I161: =VLOOKUP($H161,P_All!$A$5:$D$205,3*($C$8-1)+2) -> 17653 | J161: =VLOOKUP($H161,P_All!$A$5:$D$205,3*($C$8-1)+3) -> 20465 | K161: =VLOOKUP($H161,P_All!$A$5:$D$205,3*($C$8-1)+4) -> 23709 | L161: =IF(ISNA(VLOOKUP($B$6,$A$25:$E$51,IF($B$8=$A$22,3,2))),EXP(VLOOKUP($B$6,$A$25:$E$51,4)*LN(VLOOKUP($H161,#REF!,$C$8+1)/1000)+VLOOKUP($B$6,$A$25:$E$51,5)),VLOOKUP($B$6,$A$25:$E$51,IF($B$8=$A$22,3,2))) ->  | M161: 136 | N161: =VLOOKUP($H161,Other_All!$A$5:$D$205,3*($C$8-1)+2) -> 17453 | O161: =VLOOKUP($H161,Other_All!$A$5:$D$205,3*($C$8-1)+3) -> 19693 | P161: =VLOOKUP($H161,Other_All!$A$5:$D$205,3*($C$8-1)+4) -> 22017 | Q161: =IF(ISNA(VLOOKUP($B$6,$A$25:$E$51,IF($B$8=$A$22,3,2))),EXP(VLOOKUP($B$6,$A$25:$E$51,4)*LN(VLOOKUP($H161,#REF!,$C$8+1)/1000)+VLOOKUP($B$6,$A$25:$E$51,5)),VLOOKUP($B$6,$A$25:$E$51,IF($B$8=$A$22,3,2))) ->  | S161: 51.33333333 | T161: =VLOOKUP($S161,P_All!$X$5:$AS$245,3*($C$8-1)+2) -> 13283 | U161: =VLOOKUP($S161,P_All!$X$5:$AS$245,3*($C$8-1)+3) -> 14005 | V161: =VLOOKUP($S161,P_All!$X$5:$AS$245,3*($C$8-1)+4) -> 19182 | W161: =IF(ISNA(VLOOKUP($B$6,$A$25:$E$52,IF($B$8=$A$22,3,2))),EXP(VLOOKUP($B$6,$A$25:$E$52,4)*LN(VLOOKUP($S161,#REF!,$C$8+1)/1000)+VLOOKUP($B$6,$A$25:$E$52,5)),VLOOKUP($B$6,$A$25:$E$52,IF($B$8=$A$22,3,2))) -> 
H162: 137 | I162: =VLOOKUP($H162,P_All!$A$5:$D$205,3*($C$8-1)+2) -> 17775 | J162: =VLOOKUP($H162,P_All!$A$5:$D$205,3*($C$8-1)+3) -> 20414 | K162: =VLOOKUP($H162,P_All!$A$5:$D$205,3*($C$8-1)+4) -> 23975 | L162: =IF(ISNA(VLOOKUP($B$6,$A$25:$E$51,IF($B$8=$A$22,3,2))),EXP(VLOOKUP($B$6,$A$25:$E$51,4)*LN(VLOOKUP($H162,#REF!,$C$8+1)/1000)+VLOOKUP($B$6,$A$25:$E$51,5)),VLOOKUP($B$6,$A$25:$E$51,IF($B$8=$A$22,3,2))) ->  | M162: 137 | N162: =VLOOKUP($H162,Other_All!$A$5:$D$205,3*($C$8-1)+2) -> 17487 | O162: =VLOOKUP($H162,Other_All!$A$5:$D$205,3*($C$8-1)+3) -> 19663 | P162: =VLOOKUP($H162,Other_All!$A$5:$D$205,3*($C$8-1)+4) -> 22227 | Q162: =IF(ISNA(VLOOKUP($B$6,$A$25:$E$51,IF($B$8=$A$22,3,2))),EXP(VLOOKUP($B$6,$A$25:$E$51,4)*LN(VLOOKUP($H162,#REF!,$C$8+1)/1000)+VLOOKUP($B$6,$A$25:$E$51,5)),VLOOKUP($B$6,$A$25:$E$51,IF($B$8=$A$22,3,2))) ->  | S162: 51.41666667 | T162: =VLOOKUP($S162,P_All!$X$5:$AS$245,3*($C$8-1)+2) -> 13280 | U162: =VLOOKUP($S162,P_All!$X$5:$AS$245,3*($C$8-1)+3) -> 13997 | V162: =VLOOKUP($S162,P_All!$X$5:$AS$245,3*($C$8-1)+4) -> 19092 | W162: =IF(ISNA(VLOOKUP($B$6,$A$25:$E$52,IF($B$8=$A$22,3,2))),EXP(VLOOKUP($B$6,$A$25:$E$52,4)*LN(VLOOKUP($S162,#REF!,$C$8+1)/1000)+VLOOKUP($B$6,$A$25:$E$52,5)),VLOOKUP($B$6,$A$25:$E$52,IF($B$8=$A$22,3,2))) -> 
H163: 138 | I163: =VLOOKUP($H163,P_All!$A$5:$D$205,3*($C$8-1)+2) -> 17813 | J163: =VLOOKUP($H163,P_All!$A$5:$D$205,3*($C$8-1)+3) -> 20281 | K163: =VLOOKUP($H163,P_All!$A$5:$D$205,3*($C$8-1)+4) -> 23685 | L163: =IF(ISNA(VLOOKUP($B$6,$A$25:$E$51,IF($B$8=$A$22,3,2))),EXP(VLOOKUP($B$6,$A$25:$E$51,4)*LN(VLOOKUP($H163,#REF!,$C$8+1)/1000)+VLOOKUP($B$6,$A$25:$E$51,5)),VLOOKUP($B$6,$A$25:$E$51,IF($B$8=$A$22,3,2))) ->  | M163: 138 | N163: =VLOOKUP($H163,Other_All!$A$5:$D$205,3*($C$8-1)+2) -> 17506 | O163: =VLOOKUP($H163,Other_All!$A$5:$D$205,3*($C$8-1)+3) -> 19639 | P163: =VLOOKUP($H163,Other_All!$A$5:$D$205,3*($C$8-1)+4) -> 22060 | Q163: =IF(ISNA(VLOOKUP($B$6,$A$25:$E$51,IF($B$8=$A$22,3,2))),EXP(VLOOKUP($B$6,$A$25:$E$51,4)*LN(VLOOKUP($H163,#REF!,$C$8+1)/1000)+VLOOKUP($B$6,$A$25:$E$51,5)),VLOOKUP($B$6,$A$25:$E$51,IF($B$8=$A$22,3,2))) ->  | S163: 51.5 | T163: =VLOOKUP($S163,P_All!$X$5:$AS$245,3*($C$8-1)+2) -> 13164 | U163: =VLOOKUP($S163,P_All!$X$5:$AS$245,3*($C$8-1)+3) -> 13917 | V163: =VLOOKUP($S163,P_All!$X$5:$AS$245,3*($C$8-1)+4) -> 19099 | W163: =IF(ISNA(VLOOKUP($B$6,$A$25:$E$52,IF($B$8=$A$22,3,2))),EXP(VLOOKUP($B$6,$A$25:$E$52,4)*LN(VLOOKUP($S163,#REF!,$C$8+1)/1000)+VLOOKUP($B$6,$A$25:$E$52,5)),VLOOKUP($B$6,$A$25:$E$52,IF($B$8=$A$22,3,2))) -> 
H164: 139 | I164: =VLOOKUP($H164,P_All!$A$5:$D$205,3*($C$8-1)+2) -> 17699 | J164: =VLOOKUP($H164,P_All!$A$5:$D$205,3*($C$8-1)+3) -> 20206 | K164: =VLOOKUP($H164,P_All!$A$5:$D$205,3*($C$8-1)+4) -> 23812 | L164: =IF(ISNA(VLOOKUP($B$6,$A$25:$E$51,IF($B$8=$A$22,3,2))),EXP(VLOOKUP($B$6,$A$25:$E$51,4)*LN(VLOOKUP($H164,#REF!,$C$8+1)/1000)+VLOOKUP($B$6,$A$25:$E$51,5)),VLOOKUP($B$6,$A$25:$E$51,IF($B$8=$A$22,3,2))) ->  | M164: 139 | N164: =VLOOKUP($H164,Other_All!$A$5:$D$205,3*($C$8-1)+2) -> 17394 | O164: =VLOOKUP($H164,Other_All!$A$5:$D$205,3*($C$8-1)+3) -> 19554 | P164: =VLOOKUP($H164,Other_All!$A$5:$D$205,3*($C$8-1)+4) -> 22040 | Q164: =IF(ISNA(VLOOKUP($B$6,$A$25:$E$51,IF($B$8=$A$22,3,2))),EXP(VLOOKUP($B$6,$A$25:$E$51,4)*LN(VLOOKUP($H164,#REF!,$C$8+1)/1000)+VLOOKUP($B$6,$A$25:$E$51,5)),VLOOKUP($B$6,$A$25:$E$51,IF($B$8=$A$22,3,2))) ->  | S164: 51.58333333 | T164: =VLOOKUP($S164,P_All!$X$5:$AS$245,3*($C$8-1)+2) -> 13123 | U164: =VLOOKUP($S164,P_All!$X$5:$AS$245,3*($C$8-1)+3) -> 13884 | V164: =VLOOKUP($S164,P_All!$X$5:$AS$245,3*($C$8-1)+4) -> 19112 | W164: =IF(ISNA(VLOOKUP($B$6,$A$25:$E$52,IF($B$8=$A$22,3,2))),EXP(VLOOKUP($B$6,$A$25:$E$52,4)*LN(VLOOKUP($S164,#REF!,$C$8+1)/1000)+VLOOKUP($B$6,$A$25:$E$52,5)),VLOOKUP($B$6,$A$25:$E$52,IF($B$8=$A$22,3,2))) -> 
H165: 140 | I165: =VLOOKUP($H165,P_All!$A$5:$D$205,3*($C$8-1)+2) -> 17750 | J165: =VLOOKUP($H165,P_All!$A$5:$D$205,3*($C$8-1)+3) -> 20187 | K165: =VLOOKUP($H165,P_All!$A$5:$D$205,3*($C$8-1)+4) -> 23696 | L165: =IF(ISNA(VLOOKUP($B$6,$A$25:$E$51,IF($B$8=$A$22,3,2))),EXP(VLOOKUP($B$6,$A$25:$E$51,4)*LN(VLOOKUP($H165,#REF!,$C$8+1)/1000)+VLOOKUP($B$6,$A$25:$E$51,5)),VLOOKUP($B$6,$A$25:$E$51,IF($B$8=$A$22,3,2))) ->  | M165: 140 | N165: =VLOOKUP($H165,Other_All!$A$5:$D$205,3*($C$8-1)+2) -> 17334 | O165: =VLOOKUP($H165,Other_All!$A$5:$D$205,3*($C$8-1)+3) -> 19558 | P165: =VLOOKUP($H165,Other_All!$A$5:$D$205,3*($C$8-1)+4) -> 22234 | Q165: =IF(ISNA(VLOOKUP($B$6,$A$25:$E$51,IF($B$8=$A$22,3,2))),EXP(VLOOKUP($B$6,$A$25:$E$51,4)*LN(VLOOKUP($H165,#REF!,$C$8+1)/1000)+VLOOKUP($B$6,$A$25:$E$51,5)),VLOOKUP($B$6,$A$25:$E$51,IF($B$8=$A$22,3,2))) ->  | S165: 51.66666667 | T165: =VLOOKUP($S165,P_All!$X$5:$AS$245,3*($C$8-1)+2) -> 13078 | U165: =VLOOKUP($S165,P_All!$X$5:$AS$245,3*($C$8-1)+3) -> 13893 | V165: =VLOOKUP($S165,P_All!$X$5:$AS$245,3*($C$8-1)+4) -> 19278 | W165: =IF(ISNA(VLOOKUP($B$6,$A$25:$E$52,IF($B$8=$A$22,3,2))),EXP(VLOOKUP($B$6,$A$25:$E$52,4)*LN(VLOOKUP($S165,#REF!,$C$8+1)/1000)+VLOOKUP($B$6,$A$25:$E$52,5)),VLOOKUP($B$6,$A$25:$E$52,IF($B$8=$A$22,3,2))) -> 
H166: 141 | I166: =VLOOKUP($H166,P_All!$A$5:$D$205,3*($C$8-1)+2) -> 17667 | J166: =VLOOKUP($H166,P_All!$A$5:$D$205,3*($C$8-1)+3) -> 20186 | K166: =VLOOKUP($H166,P_All!$A$5:$D$205,3*($C$8-1)+4) -> 23628 | L166: =IF(ISNA(VLOOKUP($B$6,$A$25:$E$51,IF($B$8=$A$22,3,2))),EXP(VLOOKUP($B$6,$A$25:$E$51,4)*LN(VLOOKUP($H166,#REF!,$C$8+1)/1000)+VLOOKUP($B$6,$A$25:$E$51,5)),VLOOKUP($B$6,$A$25:$E$51,IF($B$8=$A$22,3,2))) ->  | M166: 141 | N166: =VLOOKUP($H166,Other_All!$A$5:$D$205,3*($C$8-1)+2) -> 17362 | O166: =VLOOKUP($H166,Other_All!$A$5:$D$205,3*($C$8-1)+3) -> 19494 | P166: =VLOOKUP($H166,Other_All!$A$5:$D$205,3*($C$8-1)+4) -> 22245 | Q166: =IF(ISNA(VLOOKUP($B$6,$A$25:$E$51,IF($B$8=$A$22,3,2))),EXP(VLOOKUP($B$6,$A$25:$E$51,4)*LN(VLOOKUP($H166,#REF!,$C$8+1)/1000)+VLOOKUP($B$6,$A$25:$E$51,5)),VLOOKUP($B$6,$A$25:$E$51,IF($B$8=$A$22,3,2))) ->  | S166: 51.75 | T166: =VLOOKUP($S166,P_All!$X$5:$AS$245,3*($C$8-1)+2) -> 12947 | U166: =VLOOKUP($S166,P_All!$X$5:$AS$245,3*($C$8-1)+3) -> 13832 | V166: =VLOOKUP($S166,P_All!$X$5:$AS$245,3*($C$8-1)+4) -> 19196 | W166: =IF(ISNA(VLOOKUP($B$6,$A$25:$E$52,IF($B$8=$A$22,3,2))),EXP(VLOOKUP($B$6,$A$25:$E$52,4)*LN(VLOOKUP($S166,#REF!,$C$8+1)/1000)+VLOOKUP($B$6,$A$25:$E$52,5)),VLOOKUP($B$6,$A$25:$E$52,IF($B$8=$A$22,3,2))) -> 
H167: 142 | I167: =VLOOKUP($H167,P_All!$A$5:$D$205,3*($C$8-1)+2) -> 17563 | J167: =VLOOKUP($H167,P_All!$A$5:$D$205,3*($C$8-1)+3) -> 20215 | K167: =VLOOKUP($H167,P_All!$A$5:$D$205,3*($C$8-1)+4) -> 23808 | L167: =IF(ISNA(VLOOKUP($B$6,$A$25:$E$51,IF($B$8=$A$22,3,2))),EXP(VLOOKUP($B$6,$A$25:$E$51,4)*LN(VLOOKUP($H167,#REF!,$C$8+1)/1000)+VLOOKUP($B$6,$A$25:$E$51,5)),VLOOKUP($B$6,$A$25:$E$51,IF($B$8=$A$22,3,2))) ->  | M167: 142 | N167: =VLOOKUP($H167,Other_All!$A$5:$D$205,3*($C$8-1)+2) -> 17312 | O167: =VLOOKUP($H167,Other_All!$A$5:$D$205,3*($C$8-1)+3) -> 19538 | P167: =VLOOKUP($H167,Other_All!$A$5:$D$205,3*($C$8-1)+4) -> 22294 | Q167: =IF(ISNA(VLOOKUP($B$6,$A$25:$E$51,IF($B$8=$A$22,3,2))),EXP(VLOOKUP($B$6,$A$25:$E$51,4)*LN(VLOOKUP($H167,#REF!,$C$8+1)/1000)+VLOOKUP($B$6,$A$25:$E$51,5)),VLOOKUP($B$6,$A$25:$E$51,IF($B$8=$A$22,3,2))) ->  | S167: 51.83333333 | T167: =VLOOKUP($S167,P_All!$X$5:$AS$245,3*($C$8-1)+2) -> 12897 | U167: =VLOOKUP($S167,P_All!$X$5:$AS$245,3*($C$8-1)+3) -> 13823 | V167: =VLOOKUP($S167,P_All!$X$5:$AS$245,3*($C$8-1)+4) -> 19290 | W167: =IF(ISNA(VLOOKUP($B$6,$A$25:$E$52,IF($B$8=$A$22,3,2))),EXP(VLOOKUP($B$6,$A$25:$E$52,4)*LN(VLOOKUP($S167,#REF!,$C$8+1)/1000)+VLOOKUP($B$6,$A$25:$E$52,5)),VLOOKUP($B$6,$A$25:$E$52,IF($B$8=$A$22,3,2))) -> 
H168: 143 | I168: =VLOOKUP($H168,P_All!$A$5:$D$205,3*($C$8-1)+2) -> 17616 | J168: =VLOOKUP($H168,P_All!$A$5:$D$205,3*($C$8-1)+3) -> 20190 | K168: =VLOOKUP($H168,P_All!$A$5:$D$205,3*($C$8-1)+4) -> 23936 | L168: =IF(ISNA(VLOOKUP($B$6,$A$25:$E$51,IF($B$8=$A$22,3,2))),EXP(VLOOKUP($B$6,$A$25:$E$51,4)*LN(VLOOKUP($H168,#REF!,$C$8+1)/1000)+VLOOKUP($B$6,$A$25:$E$51,5)),VLOOKUP($B$6,$A$25:$E$51,IF($B$8=$A$22,3,2))) ->  | M168: 143 | N168: =VLOOKUP($H168,Other_All!$A$5:$D$205,3*($C$8-1)+2) -> 17350 | O168: =VLOOKUP($H168,Other_All!$A$5:$D$205,3*($C$8-1)+3) -> 19614 | P168: =VLOOKUP($H168,Other_All!$A$5:$D$205,3*($C$8-1)+4) -> 22485 | Q168: =IF(ISNA(VLOOKUP($B$6,$A$25:$E$51,IF($B$8=$A$22,3,2))),EXP(VLOOKUP($B$6,$A$25:$E$51,4)*LN(VLOOKUP($H168,#REF!,$C$8+1)/1000)+VLOOKUP($B$6,$A$25:$E$51,5)),VLOOKUP($B$6,$A$25:$E$51,IF($B$8=$A$22,3,2))) ->  | S168: 51.91666667 | T168: =VLOOKUP($S168,P_All!$X$5:$AS$245,3*($C$8-1)+2) -> 12902 | U168: =VLOOKUP($S168,P_All!$X$5:$AS$245,3*($C$8-1)+3) -> 13824 | V168: =VLOOKUP($S168,P_All!$X$5:$AS$245,3*($C$8-1)+4) -> 19385 | W168: =IF(ISNA(VLOOKUP($B$6,$A$25:$E$52,IF($B$8=$A$22,3,2))),EXP(VLOOKUP($B$6,$A$25:$E$52,4)*LN(VLOOKUP($S168,#REF!,$C$8+1)/1000)+VLOOKUP($B$6,$A$25:$E$52,5)),VLOOKUP($B$6,$A$25:$E$52,IF($B$8=$A$22,3,2))) -> 
H169: 144 | I169: =VLOOKUP($H169,P_All!$A$5:$D$205,3*($C$8-1)+2) -> 17649 | J169: =VLOOKUP($H169,P_All!$A$5:$D$205,3*($C$8-1)+3) -> 20288 | K169: =VLOOKUP($H169,P_All!$A$5:$D$205,3*($C$8-1)+4) -> 23778 | L169: =IF(ISNA(VLOOKUP($B$6,$A$25:$E$51,IF($B$8=$A$22,3,2))),EXP(VLOOKUP($B$6,$A$25:$E$51,4)*LN(VLOOKUP($H169,#REF!,$C$8+1)/1000)+VLOOKUP($B$6,$A$25:$E$51,5)),VLOOKUP($B$6,$A$25:$E$51,IF($B$8=$A$22,3,2))) ->  | M169: 144 | N169: =VLOOKUP($H169,Other_All!$A$5:$D$205,3*($C$8-1)+2) -> 17274 | O169: =VLOOKUP($H169,Other_All!$A$5:$D$205,3*($C$8-1)+3) -> 19635 | P169: =VLOOKUP($H169,Other_All!$A$5:$D$205,3*($C$8-1)+4) -> 22321 | Q169: =IF(ISNA(VLOOKUP($B$6,$A$25:$E$51,IF($B$8=$A$22,3,2))),EXP(VLOOKUP($B$6,$A$25:$E$51,4)*LN(VLOOKUP($H169,#REF!,$C$8+1)/1000)+VLOOKUP($B$6,$A$25:$E$51,5)),VLOOKUP($B$6,$A$25:$E$51,IF($B$8=$A$22,3,2))) ->  | S169: 52 | T169: =VLOOKUP($S169,P_All!$X$5:$AS$245,3*($C$8-1)+2) -> 12876 | U169: =VLOOKUP($S169,P_All!$X$5:$AS$245,3*($C$8-1)+3) -> 13780 | V169: =VLOOKUP($S169,P_All!$X$5:$AS$245,3*($C$8-1)+4) -> 19449 | W169: =IF(ISNA(VLOOKUP($B$6,$A$25:$E$52,IF($B$8=$A$22,3,2))),EXP(VLOOKUP($B$6,$A$25:$E$52,4)*LN(VLOOKUP($S169,#REF!,$C$8+1)/1000)+VLOOKUP($B$6,$A$25:$E$52,5)),VLOOKUP($B$6,$A$25:$E$52,IF($B$8=$A$22,3,2))) -> 
H170: 145 | I170: =VLOOKUP($H170,P_All!$A$5:$D$205,3*($C$8-1)+2) -> 17582 | J170: =VLOOKUP($H170,P_All!$A$5:$D$205,3*($C$8-1)+3) -> 20300 | K170: =VLOOKUP($H170,P_All!$A$5:$D$205,3*($C$8-1)+4) -> 23871 | L170: =IF(ISNA(VLOOKUP($B$6,$A$25:$E$51,IF($B$8=$A$22,3,2))),EXP(VLOOKUP($B$6,$A$25:$E$51,4)*LN(VLOOKUP($H170,#REF!,$C$8+1)/1000)+VLOOKUP($B$6,$A$25:$E$51,5)),VLOOKUP($B$6,$A$25:$E$51,IF($B$8=$A$22,3,2))) ->  | M170: 145 | N170: =VLOOKUP($H170,Other_All!$A$5:$D$205,3*($C$8-1)+2) -> 17280 | O170: =VLOOKUP($H170,Other_All!$A$5:$D$205,3*($C$8-1)+3) -> 19675 | P170: =VLOOKUP($H170,Other_All!$A$5:$D$205,3*($C$8-1)+4) -> 22302 | Q170: =IF(ISNA(VLOOKUP($B$6,$A$25:$E$51,IF($B$8=$A$22,3,2))),EXP(VLOOKUP($B$6,$A$25:$E$51,4)*LN(VLOOKUP($H170,#REF!,$C$8+1)/1000)+VLOOKUP($B$6,$A$25:$E$51,5)),VLOOKUP($B$6,$A$25:$E$51,IF($B$8=$A$22,3,2))) ->  | S170: 52.08333333 | T170: =VLOOKUP($S170,P_All!$X$5:$AS$245,3*($C$8-1)+2) -> 12897 | U170: =VLOOKUP($S170,P_All!$X$5:$AS$245,3*($C$8-1)+3) -> 13781 | V170: =VLOOKUP($S170,P_All!$X$5:$AS$245,3*($C$8-1)+4) -> 19537 | W170: =IF(ISNA(VLOOKUP($B$6,$A$25:$E$52,IF($B$8=$A$22,3,2))),EXP(VLOOKUP($B$6,$A$25:$E$52,4)*LN(VLOOKUP($S170,#REF!,$C$8+1)/1000)+VLOOKUP($B$6,$A$25:$E$52,5)),VLOOKUP($B$6,$A$25:$E$52,IF($B$8=$A$22,3,2))) -> 
H171: 146 | I171: =VLOOKUP($H171,P_All!$A$5:$D$205,3*($C$8-1)+2) -> 17635 | J171: =VLOOKUP($H171,P_All!$A$5:$D$205,3*($C$8-1)+3) -> 20364 | K171: =VLOOKUP($H171,P_All!$A$5:$D$205,3*($C$8-1)+4) -> 23745 | L171: =IF(ISNA(VLOOKUP($B$6,$A$25:$E$51,IF($B$8=$A$22,3,2))),EXP(VLOOKUP($B$6,$A$25:$E$51,4)*LN(VLOOKUP($H171,#REF!,$C$8+1)/1000)+VLOOKUP($B$6,$A$25:$E$51,5)),VLOOKUP($B$6,$A$25:$E$51,IF($B$8=$A$22,3,2))) ->  | M171: 146 | N171: =VLOOKUP($H171,Other_All!$A$5:$D$205,3*($C$8-1)+2) -> 17307 | O171: =VLOOKUP($H171,Other_All!$A$5:$D$205,3*($C$8-1)+3) -> 19737 | P171: =VLOOKUP($H171,Other_All!$A$5:$D$205,3*($C$8-1)+4) -> 22089 | Q171: =IF(ISNA(VLOOKUP($B$6,$A$25:$E$51,IF($B$8=$A$22,3,2))),EXP(VLOOKUP($B$6,$A$25:$E$51,4)*LN(VLOOKUP($H171,#REF!,$C$8+1)/1000)+VLOOKUP($B$6,$A$25:$E$51,5)),VLOOKUP($B$6,$A$25:$E$51,IF($B$8=$A$22,3,2))) ->  | S171: 52.16666667 | T171: =VLOOKUP($S171,P_All!$X$5:$AS$245,3*($C$8-1)+2) -> 12910 | U171: =VLOOKUP($S171,P_All!$X$5:$AS$245,3*($C$8-1)+3) -> 13769 | V171: =VLOOKUP($S171,P_All!$X$5:$AS$245,3*($C$8-1)+4) -> 19643 | W171: =IF(ISNA(VLOOKUP($B$6,$A$25:$E$52,IF($B$8=$A$22,3,2))),EXP(VLOOKUP($B$6,$A$25:$E$52,4)*LN(VLOOKUP($S171,#REF!,$C$8+1)/1000)+VLOOKUP($B$6,$A$25:$E$52,5)),VLOOKUP($B$6,$A$25:$E$52,IF($B$8=$A$22,3,2))) -> 
H172: 147 | I172: =VLOOKUP($H172,P_All!$A$5:$D$205,3*($C$8-1)+2) -> 17743 | J172: =VLOOKUP($H172,P_All!$A$5:$D$205,3*($C$8-1)+3) -> 20334 | K172: =VLOOKUP($H172,P_All!$A$5:$D$205,3*($C$8-1)+4) -> 23594 | L172: =IF(ISNA(VLOOKUP($B$6,$A$25:$E$51,IF($B$8=$A$22,3,2))),EXP(VLOOKUP($B$6,$A$25:$E$51,4)*LN(VLOOKUP($H172,#REF!,$C$8+1)/1000)+VLOOKUP($B$6,$A$25:$E$51,5)),VLOOKUP($B$6,$A$25:$E$51,IF($B$8=$A$22,3,2))) ->  | M172: 147 | N172: =VLOOKUP($H172,Other_All!$A$5:$D$205,3*($C$8-1)+2) -> 17436 | O172: =VLOOKUP($H172,Other_All!$A$5:$D$205,3*($C$8-1)+3) -> 19670 | P172: =VLOOKUP($H172,Other_All!$A$5:$D$205,3*($C$8-1)+4) -> 22064 | Q172: =IF(ISNA(VLOOKUP($B$6,$A$25:$E$51,IF($B$8=$A$22,3,2))),EXP(VLOOKUP($B$6,$A$25:$E$51,4)*LN(VLOOKUP($H172,#REF!,$C$8+1)/1000)+VLOOKUP($B$6,$A$25:$E$51,5)),VLOOKUP($B$6,$A$25:$E$51,IF($B$8=$A$22,3,2))) ->  | S172: 52.25 | T172: =VLOOKUP($S172,P_All!$X$5:$AS$245,3*($C$8-1)+2) -> 12967 | U172: =VLOOKUP($S172,P_All!$X$5:$AS$245,3*($C$8-1)+3) -> 13813 | V172: =VLOOKUP($S172,P_All!$X$5:$AS$245,3*($C$8-1)+4) -> 19750 | W172: =IF(ISNA(VLOOKUP($B$6,$A$25:$E$52,IF($B$8=$A$22,3,2))),EXP(VLOOKUP($B$6,$A$25:$E$52,4)*LN(VLOOKUP($S172,#REF!,$C$8+1)/1000)+VLOOKUP($B$6,$A$25:$E$52,5)),VLOOKUP($B$6,$A$25:$E$52,IF($B$8=$A$22,3,2))) -> 
H173: 148 | I173: =VLOOKUP($H173,P_All!$A$5:$D$205,3*($C$8-1)+2) -> 17593 | J173: =VLOOKUP($H173,P_All!$A$5:$D$205,3*($C$8-1)+3) -> 20291 | K173: =VLOOKUP($H173,P_All!$A$5:$D$205,3*($C$8-1)+4) -> 24010 | L173: =IF(ISNA(VLOOKUP($B$6,$A$25:$E$51,IF($B$8=$A$22,3,2))),EXP(VLOOKUP($B$6,$A$25:$E$51,4)*LN(VLOOKUP($H173,#REF!,$C$8+1)/1000)+VLOOKUP($B$6,$A$25:$E$51,5)),VLOOKUP($B$6,$A$25:$E$51,IF($B$8=$A$22,3,2))) ->  | M173: 148 | N173: =VLOOKUP($H173,Other_All!$A$5:$D$205,3*($C$8-1)+2) -> 17325 | O173: =VLOOKUP($H173,Other_All!$A$5:$D$205,3*($C$8-1)+3) -> 19621 | P173: =VLOOKUP($H173,Other_All!$A$5:$D$205,3*($C$8-1)+4) -> 22269 | Q173: =IF(ISNA(VLOOKUP($B$6,$A$25:$E$51,IF($B$8=$A$22,3,2))),EXP(VLOOKUP($B$6,$A$25:$E$51,4)*LN(VLOOKUP($H173,#REF!,$C$8+1)/1000)+VLOOKUP($B$6,$A$25:$E$51,5)),VLOOKUP($B$6,$A$25:$E$51,IF($B$8=$A$22,3,2))) ->  | S173: 52.33333333 | T173: =VLOOKUP($S173,P_All!$X$5:$AS$245,3*($C$8-1)+2) -> 13049 | U173: =VLOOKUP($S173,P_All!$X$5:$AS$245,3*($C$8-1)+3) -> 13860 | V173: =VLOOKUP($S173,P_All!$X$5:$AS$245,3*($C$8-1)+4) -> 19956 | W173: =IF(ISNA(VLOOKUP($B$6,$A$25:$E$52,IF($B$8=$A$22,3,2))),EXP(VLOOKUP($B$6,$A$25:$E$52,4)*LN(VLOOKUP($S173,#REF!,$C$8+1)/1000)+VLOOKUP($B$6,$A$25:$E$52,5)),VLOOKUP($B$6,$A$25:$E$52,IF($B$8=$A$22,3,2))) -> 
H174: 149 | I174: =VLOOKUP($H174,P_All!$A$5:$D$205,3*($C$8-1)+2) -> 17765 | J174: =VLOOKUP($H174,P_All!$A$5:$D$205,3*($C$8-1)+3) -> 20174 | K174: =VLOOKUP($H174,P_All!$A$5:$D$205,3*($C$8-1)+4) -> 24152 | L174: =IF(ISNA(VLOOKUP($B$6,$A$25:$E$51,IF($B$8=$A$22,3,2))),EXP(VLOOKUP($B$6,$A$25:$E$51,4)*LN(VLOOKUP($H174,#REF!,$C$8+1)/1000)+VLOOKUP($B$6,$A$25:$E$51,5)),VLOOKUP($B$6,$A$25:$E$51,IF($B$8=$A$22,3,2))) ->  | M174: 149 | N174: =VLOOKUP($H174,Other_All!$A$5:$D$205,3*($C$8-1)+2) -> 17330 | O174: =VLOOKUP($H174,Other_All!$A$5:$D$205,3*($C$8-1)+3) -> 19666 | P174: =VLOOKUP($H174,Other_All!$A$5:$D$205,3*($C$8-1)+4) -> 22309 | Q174: =IF(ISNA(VLOOKUP($B$6,$A$25:$E$51,IF($B$8=$A$22,3,2))),EXP(VLOOKUP($B$6,$A$25:$E$51,4)*LN(VLOOKUP($H174,#REF!,$C$8+1)/1000)+VLOOKUP($B$6,$A$25:$E$51,5)),VLOOKUP($B$6,$A$25:$E$51,IF($B$8=$A$22,3,2))) ->  | S174: 52.41666667 | T174: =VLOOKUP($S174,P_All!$X$5:$AS$245,3*($C$8-1)+2) -> 13028 | U174: =VLOOKUP($S174,P_All!$X$5:$AS$245,3*($C$8-1)+3) -> 13836 | V174: =VLOOKUP($S174,P_All!$X$5:$AS$245,3*($C$8-1)+4) -> 19970 | W174: =IF(ISNA(VLOOKUP($B$6,$A$25:$E$52,IF($B$8=$A$22,3,2))),EXP(VLOOKUP($B$6,$A$25:$E$52,4)*LN(VLOOKUP($S174,#REF!,$C$8+1)/1000)+VLOOKUP($B$6,$A$25:$E$52,5)),VLOOKUP($B$6,$A$25:$E$52,IF($B$8=$A$22,3,2))) -> 
H175: 150 | I175: =VLOOKUP($H175,P_All!$A$5:$D$205,3*($C$8-1)+2) -> 17768 | J175: =VLOOKUP($H175,P_All!$A$5:$D$205,3*($C$8-1)+3) -> 20382 | K175: =VLOOKUP($H175,P_All!$A$5:$D$205,3*($C$8-1)+4) -> 23525 | L175: =IF(ISNA(VLOOKUP($B$6,$A$25:$E$51,IF($B$8=$A$22,3,2))),EXP(VLOOKUP($B$6,$A$25:$E$51,4)*LN(VLOOKUP($H175,#REF!,$C$8+1)/1000)+VLOOKUP($B$6,$A$25:$E$51,5)),VLOOKUP($B$6,$A$25:$E$51,IF($B$8=$A$22,3,2))) ->  | M175: 150 | N175: =VLOOKUP($H175,Other_All!$A$5:$D$205,3*($C$8-1)+2) -> 17342 | O175: =VLOOKUP($H175,Other_All!$A$5:$D$205,3*($C$8-1)+3) -> 19632 | P175: =VLOOKUP($H175,Other_All!$A$5:$D$205,3*($C$8-1)+4) -> 22174 | Q175: =IF(ISNA(VLOOKUP($B$6,$A$25:$E$51,IF($B$8=$A$22,3,2))),EXP(VLOOKUP($B$6,$A$25:$E$51,4)*LN(VLOOKUP($H175,#REF!,$C$8+1)/1000)+VLOOKUP($B$6,$A$25:$E$51,5)),VLOOKUP($B$6,$A$25:$E$51,IF($B$8=$A$22,3,2))) ->  | S175: 52.5 | T175: =VLOOKUP($S175,P_All!$X$5:$AS$245,3*($C$8-1)+2) -> 12923 | U175: =VLOOKUP($S175,P_All!$X$5:$AS$245,3*($C$8-1)+3) -> 13738 | V175: =VLOOKUP($S175,P_All!$X$5:$AS$245,3*($C$8-1)+4) -> 19735 | W175: =IF(ISNA(VLOOKUP($B$6,$A$25:$E$52,IF($B$8=$A$22,3,2))),EXP(VLOOKUP($B$6,$A$25:$E$52,4)*LN(VLOOKUP($S175,#REF!,$C$8+1)/1000)+VLOOKUP($B$6,$A$25:$E$52,5)),VLOOKUP($B$6,$A$25:$E$52,IF($B$8=$A$22,3,2))) -> 
H176: 151 | I176: =VLOOKUP($H176,P_All!$A$5:$D$205,3*($C$8-1)+2) -> 17690 | J176: =VLOOKUP($H176,P_All!$A$5:$D$205,3*($C$8-1)+3) -> 20166 | K176: =VLOOKUP($H176,P_All!$A$5:$D$205,3*($C$8-1)+4) -> 23796 | L176: =IF(ISNA(VLOOKUP($B$6,$A$25:$E$51,IF($B$8=$A$22,3,2))),EXP(VLOOKUP($B$6,$A$25:$E$51,4)*LN(VLOOKUP($H176,#REF!,$C$8+1)/1000)+VLOOKUP($B$6,$A$25:$E$51,5)),VLOOKUP($B$6,$A$25:$E$51,IF($B$8=$A$22,3,2))) ->  | M176: 151 | N176: =VLOOKUP($H176,Other_All!$A$5:$D$205,3*($C$8-1)+2) -> 17231 | O176: =VLOOKUP($H176,Other_All!$A$5:$D$205,3*($C$8-1)+3) -> 19653 | P176: =VLOOKUP($H176,Other_All!$A$5:$D$205,3*($C$8-1)+4) -> 22194 | Q176: =IF(ISNA(VLOOKUP($B$6,$A$25:$E$51,IF($B$8=$A$22,3,2))),EXP(VLOOKUP($B$6,$A$25:$E$51,4)*LN(VLOOKUP($H176,#REF!,$C$8+1)/1000)+VLOOKUP($B$6,$A$25:$E$51,5)),VLOOKUP($B$6,$A$25:$E$51,IF($B$8=$A$22,3,2))) ->  | S176: 52.58333333 | T176: =VLOOKUP($S176,P_All!$X$5:$AS$245,3*($C$8-1)+2) -> 12878 | U176: =VLOOKUP($S176,P_All!$X$5:$AS$245,3*($C$8-1)+3) -> 13706 | V176: =VLOOKUP($S176,P_All!$X$5:$AS$245,3*($C$8-1)+4) -> 19645 | W176: =IF(ISNA(VLOOKUP($B$6,$A$25:$E$52,IF($B$8=$A$22,3,2))),EXP(VLOOKUP($B$6,$A$25:$E$52,4)*LN(VLOOKUP($S176,#REF!,$C$8+1)/1000)+VLOOKUP($B$6,$A$25:$E$52,5)),VLOOKUP($B$6,$A$25:$E$52,IF($B$8=$A$22,3,2))) -> 
H177: 152 | I177: =VLOOKUP($H177,P_All!$A$5:$D$205,3*($C$8-1)+2) -> 17788 | J177: =VLOOKUP($H177,P_All!$A$5:$D$205,3*($C$8-1)+3) -> 20199 | K177: =VLOOKUP($H177,P_All!$A$5:$D$205,3*($C$8-1)+4) -> 23827 | L177: =IF(ISNA(VLOOKUP($B$6,$A$25:$E$51,IF($B$8=$A$22,3,2))),EXP(VLOOKUP($B$6,$A$25:$E$51,4)*LN(VLOOKUP($H177,#REF!,$C$8+1)/1000)+VLOOKUP($B$6,$A$25:$E$51,5)),VLOOKUP($B$6,$A$25:$E$51,IF($B$8=$A$22,3,2))) ->  | M177: 152 | N177: =VLOOKUP($H177,Other_All!$A$5:$D$205,3*($C$8-1)+2) -> 17215 | O177: =VLOOKUP($H177,Other_All!$A$5:$D$205,3*($C$8-1)+3) -> 19640 | P177: =VLOOKUP($H177,Other_All!$A$5:$D$205,3*($C$8-1)+4) -> 22296 | Q177: =IF(ISNA(VLOOKUP($B$6,$A$25:$E$51,IF($B$8=$A$22,3,2))),EXP(VLOOKUP($B$6,$A$25:$E$51,4)*LN(VLOOKUP($H177,#REF!,$C$8+1)/1000)+VLOOKUP($B$6,$A$25:$E$51,5)),VLOOKUP($B$6,$A$25:$E$51,IF($B$8=$A$22,3,2))) ->  | S177: 52.66666667 | T177: =VLOOKUP($S177,P_All!$X$5:$AS$245,3*($C$8-1)+2) -> 12814 | U177: =VLOOKUP($S177,P_All!$X$5:$AS$245,3*($C$8-1)+3) -> 13695 | V177: =VLOOKUP($S177,P_All!$X$5:$AS$245,3*($C$8-1)+4) -> 19705 | W177: =IF(ISNA(VLOOKUP($B$6,$A$25:$E$52,IF($B$8=$A$22,3,2))),EXP(VLOOKUP($B$6,$A$25:$E$52,4)*LN(VLOOKUP($S177,#REF!,$C$8+1)/1000)+VLOOKUP($B$6,$A$25:$E$52,5)),VLOOKUP($B$6,$A$25:$E$52,IF($B$8=$A$22,3,2))) -> 
H178: 153 | I178: =VLOOKUP($H178,P_All!$A$5:$D$205,3*($C$8-1)+2) -> 17856 | J178: =VLOOKUP($H178,P_All!$A$5:$D$205,3*($C$8-1)+3) -> 20203 | K178: =VLOOKUP($H178,P_All!$A$5:$D$205,3*($C$8-1)+4) -> 23850 | L178: =IF(ISNA(VLOOKUP($B$6,$A$25:$E$51,IF($B$8=$A$22,3,2))),EXP(VLOOKUP($B$6,$A$25:$E$51,4)*LN(VLOOKUP($H178,#REF!,$C$8+1)/1000)+VLOOKUP($B$6,$A$25:$E$51,5)),VLOOKUP($B$6,$A$25:$E$51,IF($B$8=$A$22,3,2))) ->  | M178: 153 | N178: =VLOOKUP($H178,Other_All!$A$5:$D$205,3*($C$8-1)+2) -> 17431 | O178: =VLOOKUP($H178,Other_All!$A$5:$D$205,3*($C$8-1)+3) -> 19638 | P178: =VLOOKUP($H178,Other_All!$A$5:$D$205,3*($C$8-1)+4) -> 22216 | Q178: =IF(ISNA(VLOOKUP($B$6,$A$25:$E$51,IF($B$8=$A$22,3,2))),EXP(VLOOKUP($B$6,$A$25:$E$51,4)*LN(VLOOKUP($H178,#REF!,$C$8+1)/1000)+VLOOKUP($B$6,$A$25:$E$51,5)),VLOOKUP($B$6,$A$25:$E$51,IF($B$8=$A$22,3,2))) ->  | S178: 52.75 | T178: =VLOOKUP($S178,P_All!$X$5:$AS$245,3*($C$8-1)+2) -> 12693 | U178: =VLOOKUP($S178,P_All!$X$5:$AS$245,3*($C$8-1)+3) -> 13594 | V178: =VLOOKUP($S178,P_All!$X$5:$AS$245,3*($C$8-1)+4) -> 19675 | W178: =IF(ISNA(VLOOKUP($B$6,$A$25:$E$52,IF($B$8=$A$22,3,2))),EXP(VLOOKUP($B$6,$A$25:$E$52,4)*LN(VLOOKUP($S178,#REF!,$C$8+1)/1000)+VLOOKUP($B$6,$A$25:$E$52,5)),VLOOKUP($B$6,$A$25:$E$52,IF($B$8=$A$22,3,2))) -> 
H179: 154 | I179: =VLOOKUP($H179,P_All!$A$5:$D$205,3*($C$8-1)+2) -> 17651 | J179: =VLOOKUP($H179,P_All!$A$5:$D$205,3*($C$8-1)+3) -> 20229 | K179: =VLOOKUP($H179,P_All!$A$5:$D$205,3*($C$8-1)+4) -> 23804 | L179: =IF(ISNA(VLOOKUP($B$6,$A$25:$E$51,IF($B$8=$A$22,3,2))),EXP(VLOOKUP($B$6,$A$25:$E$51,4)*LN(VLOOKUP($H179,#REF!,$C$8+1)/1000)+VLOOKUP($B$6,$A$25:$E$51,5)),VLOOKUP($B$6,$A$25:$E$51,IF($B$8=$A$22,3,2))) ->  | M179: 154 | N179: =VLOOKUP($H179,Other_All!$A$5:$D$205,3*($C$8-1)+2) -> 17413 | O179: =VLOOKUP($H179,Other_All!$A$5:$D$205,3*($C$8-1)+3) -> 19636 | P179: =VLOOKUP($H179,Other_All!$A$5:$D$205,3*($C$8-1)+4) -> 22426 | Q179: =IF(ISNA(VLOOKUP($B$6,$A$25:$E$51,IF($B$8=$A$22,3,2))),EXP(VLOOKUP($B$6,$A$25:$E$51,4)*LN(VLOOKUP($H179,#REF!,$C$8+1)/1000)+VLOOKUP($B$6,$A$25:$E$51,5)),VLOOKUP($B$6,$A$25:$E$51,IF($B$8=$A$22,3,2))) ->  | S179: 52.83333333 | T179: =VLOOKUP($S179,P_All!$X$5:$AS$245,3*($C$8-1)+2) -> 12661 | U179: =VLOOKUP($S179,P_All!$X$5:$AS$245,3*($C$8-1)+3) -> 13563 | V179: =VLOOKUP($S179,P_All!$X$5:$AS$245,3*($C$8-1)+4) -> 19607 | W179: =IF(ISNA(VLOOKUP($B$6,$A$25:$E$52,IF($B$8=$A$22,3,2))),EXP(VLOOKUP($B$6,$A$25:$E$52,4)*LN(VLOOKUP($S179,#REF!,$C$8+1)/1000)+VLOOKUP($B$6,$A$25:$E$52,5)),VLOOKUP($B$6,$A$25:$E$52,IF($B$8=$A$22,3,2))) -> 
H180: 155 | I180: =VLOOKUP($H180,P_All!$A$5:$D$205,3*($C$8-1)+2) -> 17653 | J180: =VLOOKUP($H180,P_All!$A$5:$D$205,3*($C$8-1)+3) -> 20250 | K180: =VLOOKUP($H180,P_All!$A$5:$D$205,3*($C$8-1)+4) -> 23927 | L180: =IF(ISNA(VLOOKUP($B$6,$A$25:$E$51,IF($B$8=$A$22,3,2))),EXP(VLOOKUP($B$6,$A$25:$E$51,4)*LN(VLOOKUP($H180,#REF!,$C$8+1)/1000)+VLOOKUP($B$6,$A$25:$E$51,5)),VLOOKUP($B$6,$A$25:$E$51,IF($B$8=$A$22,3,2))) ->  | M180: 155 | N180: =VLOOKUP($H180,Other_All!$A$5:$D$205,3*($C$8-1)+2) -> 17382 | O180: =VLOOKUP($H180,Other_All!$A$5:$D$205,3*($C$8-1)+3) -> 19634 | P180: =VLOOKUP($H180,Other_All!$A$5:$D$205,3*($C$8-1)+4) -> 22387 | Q180: =IF(ISNA(VLOOKUP($B$6,$A$25:$E$51,IF($B$8=$A$22,3,2))),EXP(VLOOKUP($B$6,$A$25:$E$51,4)*LN(VLOOKUP($H180,#REF!,$C$8+1)/1000)+VLOOKUP($B$6,$A$25:$E$51,5)),VLOOKUP($B$6,$A$25:$E$51,IF($B$8=$A$22,3,2))) ->  | S180: 52.91666667 | T180: =VLOOKUP($S180,P_All!$X$5:$AS$245,3*($C$8-1)+2) -> 12648 | U180: =VLOOKUP($S180,P_All!$X$5:$AS$245,3*($C$8-1)+3) -> 13568 | V180: =VLOOKUP($S180,P_All!$X$5:$AS$245,3*($C$8-1)+4) -> 19641 | W180: =IF(ISNA(VLOOKUP($B$6,$A$25:$E$52,IF($B$8=$A$22,3,2))),EXP(VLOOKUP($B$6,$A$25:$E$52,4)*LN(VLOOKUP($S180,#REF!,$C$8+1)/1000)+VLOOKUP($B$6,$A$25:$E$52,5)),VLOOKUP($B$6,$A$25:$E$52,IF($B$8=$A$22,3,2))) -> 
H181: 156 | I181: =VLOOKUP($H181,P_All!$A$5:$D$205,3*($C$8-1)+2) -> 17661 | J181: =VLOOKUP($H181,P_All!$A$5:$D$205,3*($C$8-1)+3) -> 20348 | K181: =VLOOKUP($H181,P_All!$A$5:$D$205,3*($C$8-1)+4) -> 24058 | L181: =IF(ISNA(VLOOKUP($B$6,$A$25:$E$51,IF($B$8=$A$22,3,2))),EXP(VLOOKUP($B$6,$A$25:$E$51,4)*LN(VLOOKUP($H181,#REF!,$C$8+1)/1000)+VLOOKUP($B$6,$A$25:$E$51,5)),VLOOKUP($B$6,$A$25:$E$51,IF($B$8=$A$22,3,2))) ->  | M181: 156 | N181: =VLOOKUP($H181,Other_All!$A$5:$D$205,3*($C$8-1)+2) -> 17352 | O181: =VLOOKUP($H181,Other_All!$A$5:$D$205,3*($C$8-1)+3) -> 19682 | P181: =VLOOKUP($H181,Other_All!$A$5:$D$205,3*($C$8-1)+4) -> 22429 | Q181: =IF(ISNA(VLOOKUP($B$6,$A$25:$E$51,IF($B$8=$A$22,3,2))),EXP(VLOOKUP($B$6,$A$25:$E$51,4)*LN(VLOOKUP($H181,#REF!,$C$8+1)/1000)+VLOOKUP($B$6,$A$25:$E$51,5)),VLOOKUP($B$6,$A$25:$E$51,IF($B$8=$A$22,3,2))) ->  | S181: 53 | T181: =VLOOKUP($S181,P_All!$X$5:$AS$245,3*($C$8-1)+2) -> 12642 | U181: =VLOOKUP($S181,P_All!$X$5:$AS$245,3*($C$8-1)+3) -> 13534 | V181: =VLOOKUP($S181,P_All!$X$5:$AS$245,3*($C$8-1)+4) -> 19702 | W181: =IF(ISNA(VLOOKUP($B$6,$A$25:$E$52,IF($B$8=$A$22,3,2))),EXP(VLOOKUP($B$6,$A$25:$E$52,4)*LN(VLOOKUP($S181,#REF!,$C$8+1)/1000)+VLOOKUP($B$6,$A$25:$E$52,5)),VLOOKUP($B$6,$A$25:$E$52,IF($B$8=$A$22,3,2))) -> 
H182: 157 | I182: =VLOOKUP($H182,P_All!$A$5:$D$205,3*($C$8-1)+2) -> 17714 | J182: =VLOOKUP($H182,P_All!$A$5:$D$205,3*($C$8-1)+3) -> 20376 | K182: =VLOOKUP($H182,P_All!$A$5:$D$205,3*($C$8-1)+4) -> 24193 | L182: =IF(ISNA(VLOOKUP($B$6,$A$25:$E$51,IF($B$8=$A$22,3,2))),EXP(VLOOKUP($B$6,$A$25:$E$51,4)*LN(VLOOKUP($H182,#REF!,$C$8+1)/1000)+VLOOKUP($B$6,$A$25:$E$51,5)),VLOOKUP($B$6,$A$25:$E$51,IF($B$8=$A$22,3,2))) ->  | M182: 157 | N182: =VLOOKUP($H182,Other_All!$A$5:$D$205,3*($C$8-1)+2) -> 17471 | O182: =VLOOKUP($H182,Other_All!$A$5:$D$205,3*($C$8-1)+3) -> 19672 | P182: =VLOOKUP($H182,Other_All!$A$5:$D$205,3*($C$8-1)+4) -> 22284 | Q182: =IF(ISNA(VLOOKUP($B$6,$A$25:$E$51,IF($B$8=$A$22,3,2))),EXP(VLOOKUP($B$6,$A$25:$E$51,4)*LN(VLOOKUP($H182,#REF!,$C$8+1)/1000)+VLOOKUP($B$6,$A$25:$E$51,5)),VLOOKUP($B$6,$A$25:$E$51,IF($B$8=$A$22,3,2))) ->  | S182: 53.08333333 | T182: =VLOOKUP($S182,P_All!$X$5:$AS$245,3*($C$8-1)+2) -> 12664 | U182: =VLOOKUP($S182,P_All!$X$5:$AS$245,3*($C$8-1)+3) -> 13535 | V182: =VLOOKUP($S182,P_All!$X$5:$AS$245,3*($C$8-1)+4) -> 19760 | W182: =IF(ISNA(VLOOKUP($B$6,$A$25:$E$52,IF($B$8=$A$22,3,2))),EXP(VLOOKUP($B$6,$A$25:$E$52,4)*LN(VLOOKUP($S182,#REF!,$C$8+1)/1000)+VLOOKUP($B$6,$A$25:$E$52,5)),VLOOKUP($B$6,$A$25:$E$52,IF($B$8=$A$22,3,2))) -> 
H183: 158 | I183: =VLOOKUP($H183,P_All!$A$5:$D$205,3*($C$8-1)+2) -> 17758 | J183: =VLOOKUP($H183,P_All!$A$5:$D$205,3*($C$8-1)+3) -> 20235 | K183: =VLOOKUP($H183,P_All!$A$5:$D$205,3*($C$8-1)+4) -> 24315 | L183: =IF(ISNA(VLOOKUP($B$6,$A$25:$E$51,IF($B$8=$A$22,3,2))),EXP(VLOOKUP($B$6,$A$25:$E$51,4)*LN(VLOOKUP($H183,#REF!,$C$8+1)/1000)+VLOOKUP($B$6,$A$25:$E$51,5)),VLOOKUP($B$6,$A$25:$E$51,IF($B$8=$A$22,3,2))) ->  | M183: 158 | N183: =VLOOKUP($H183,Other_All!$A$5:$D$205,3*($C$8-1)+2) -> 17419 | O183: =VLOOKUP($H183,Other_All!$A$5:$D$205,3*($C$8-1)+3) -> 19665 | P183: =VLOOKUP($H183,Other_All!$A$5:$D$205,3*($C$8-1)+4) -> 22311 | Q183: =IF(ISNA(VLOOKUP($B$6,$A$25:$E$51,IF($B$8=$A$22,3,2))),EXP(VLOOKUP($B$6,$A$25:$E$51,4)*LN(VLOOKUP($H183,#REF!,$C$8+1)/1000)+VLOOKUP($B$6,$A$25:$E$51,5)),VLOOKUP($B$6,$A$25:$E$51,IF($B$8=$A$22,3,2))) ->  | S183: 53.16666667 | T183: =VLOOKUP($S183,P_All!$X$5:$AS$245,3*($C$8-1)+2) -> 12690 | U183: =VLOOKUP($S183,P_All!$X$5:$AS$245,3*($C$8-1)+3) -> 13568 | V183: =VLOOKUP($S183,P_All!$X$5:$AS$245,3*($C$8-1)+4) -> 19857 | W183: =IF(ISNA(VLOOKUP($B$6,$A$25:$E$52,IF($B$8=$A$22,3,2))),EXP(VLOOKUP($B$6,$A$25:$E$52,4)*LN(VLOOKUP($S183,#REF!,$C$8+1)/1000)+VLOOKUP($B$6,$A$25:$E$52,5)),VLOOKUP($B$6,$A$25:$E$52,IF($B$8=$A$22,3,2))) -> 
H184: 159 | I184: =VLOOKUP($H184,P_All!$A$5:$D$205,3*($C$8-1)+2) -> 17839 | J184: =VLOOKUP($H184,P_All!$A$5:$D$205,3*($C$8-1)+3) -> 20213 | K184: =VLOOKUP($H184,P_All!$A$5:$D$205,3*($C$8-1)+4) -> 23892 | L184: =IF(ISNA(VLOOKUP($B$6,$A$25:$E$51,IF($B$8=$A$22,3,2))),EXP(VLOOKUP($B$6,$A$25:$E$51,4)*LN(VLOOKUP($H184,#REF!,$C$8+1)/1000)+VLOOKUP($B$6,$A$25:$E$51,5)),VLOOKUP($B$6,$A$25:$E$51,IF($B$8=$A$22,3,2))) ->  | M184: 159 | N184: =VLOOKUP($H184,Other_All!$A$5:$D$205,3*($C$8-1)+2) -> 17398 | O184: =VLOOKUP($H184,Other_All!$A$5:$D$205,3*($C$8-1)+3) -> 19626 | P184: =VLOOKUP($H184,Other_All!$A$5:$D$205,3*($C$8-1)+4) -> 22121 | Q184: =IF(ISNA(VLOOKUP($B$6,$A$25:$E$51,IF($B$8=$A$22,3,2))),EXP(VLOOKUP($B$6,$A$25:$E$51,4)*LN(VLOOKUP($H184,#REF!,$C$8+1)/1000)+VLOOKUP($B$6,$A$25:$E$51,5)),VLOOKUP($B$6,$A$25:$E$51,IF($B$8=$A$22,3,2))) ->  | S184: 53.25 | T184: =VLOOKUP($S184,P_All!$X$5:$AS$245,3*($C$8-1)+2) -> 12753 | U184: =VLOOKUP($S184,P_All!$X$5:$AS$245,3*($C$8-1)+3) -> 13614 | V184: =VLOOKUP($S184,P_All!$X$5:$AS$245,3*($C$8-1)+4) -> 19982 | W184: =IF(ISNA(VLOOKUP($B$6,$A$25:$E$52,IF($B$8=$A$22,3,2))),EXP(VLOOKUP($B$6,$A$25:$E$52,4)*LN(VLOOKUP($S184,#REF!,$C$8+1)/1000)+VLOOKUP($B$6,$A$25:$E$52,5)),VLOOKUP($B$6,$A$25:$E$52,IF($B$8=$A$22,3,2))) -> 
H185: 160 | I185: =VLOOKUP($H185,P_All!$A$5:$D$205,3*($C$8-1)+2) -> 17840 | J185: =VLOOKUP($H185,P_All!$A$5:$D$205,3*($C$8-1)+3) -> 20215 | K185: =VLOOKUP($H185,P_All!$A$5:$D$205,3*($C$8-1)+4) -> 23772 | L185: =IF(ISNA(VLOOKUP($B$6,$A$25:$E$51,IF($B$8=$A$22,3,2))),EXP(VLOOKUP($B$6,$A$25:$E$51,4)*LN(VLOOKUP($H185,#REF!,$C$8+1)/1000)+VLOOKUP($B$6,$A$25:$E$51,5)),VLOOKUP($B$6,$A$25:$E$51,IF($B$8=$A$22,3,2))) ->  | M185: 160 | N185: =VLOOKUP($H185,Other_All!$A$5:$D$205,3*($C$8-1)+2) -> 17564 | O185: =VLOOKUP($H185,Other_All!$A$5:$D$205,3*($C$8-1)+3) -> 19665 | P185: =VLOOKUP($H185,Other_All!$A$5:$D$205,3*($C$8-1)+4) -> 22333 | Q185: =IF(ISNA(VLOOKUP($B$6,$A$25:$E$51,IF($B$8=$A$22,3,2))),EXP(VLOOKUP($B$6,$A$25:$E$51,4)*LN(VLOOKUP($H185,#REF!,$C$8+1)/1000)+VLOOKUP($B$6,$A$25:$E$51,5)),VLOOKUP($B$6,$A$25:$E$51,IF($B$8=$A$22,3,2))) ->  | S185: 53.33333333 | T185: =VLOOKUP($S185,P_All!$X$5:$AS$245,3*($C$8-1)+2) -> 12800 | U185: =VLOOKUP($S185,P_All!$X$5:$AS$245,3*($C$8-1)+3) -> 13684 | V185: =VLOOKUP($S185,P_All!$X$5:$AS$245,3*($C$8-1)+4) -> 20368 | W185: =IF(ISNA(VLOOKUP($B$6,$A$25:$E$52,IF($B$8=$A$22,3,2))),EXP(VLOOKUP($B$6,$A$25:$E$52,4)*LN(VLOOKUP($S185,#REF!,$C$8+1)/1000)+VLOOKUP($B$6,$A$25:$E$52,5)),VLOOKUP($B$6,$A$25:$E$52,IF($B$8=$A$22,3,2))) -> 
H186: 161 | I186: =VLOOKUP($H186,P_All!$A$5:$D$205,3*($C$8-1)+2) -> 17727 | J186: =VLOOKUP($H186,P_All!$A$5:$D$205,3*($C$8-1)+3) -> 20267 | K186: =VLOOKUP($H186,P_All!$A$5:$D$205,3*($C$8-1)+4) -> 23666 | L186: =IF(ISNA(VLOOKUP($B$6,$A$25:$E$51,IF($B$8=$A$22,3,2))),EXP(VLOOKUP($B$6,$A$25:$E$51,4)*LN(VLOOKUP($H186,#REF!,$C$8+1)/1000)+VLOOKUP($B$6,$A$25:$E$51,5)),VLOOKUP($B$6,$A$25:$E$51,IF($B$8=$A$22,3,2))) ->  | M186: 161 | N186: =VLOOKUP($H186,Other_All!$A$5:$D$205,3*($C$8-1)+2) -> 17360 | O186: =VLOOKUP($H186,Other_All!$A$5:$D$205,3*($C$8-1)+3) -> 19566 | P186: =VLOOKUP($H186,Other_All!$A$5:$D$205,3*($C$8-1)+4) -> 22308 | Q186: =IF(ISNA(VLOOKUP($B$6,$A$25:$E$51,IF($B$8=$A$22,3,2))),EXP(VLOOKUP($B$6,$A$25:$E$51,4)*LN(VLOOKUP($H186,#REF!,$C$8+1)/1000)+VLOOKUP($B$6,$A$25:$E$51,5)),VLOOKUP($B$6,$A$25:$E$51,IF($B$8=$A$22,3,2))) ->  | S186: 53.41666667 | T186: =VLOOKUP($S186,P_All!$X$5:$AS$245,3*($C$8-1)+2) -> 12762 | U186: =VLOOKUP($S186,P_All!$X$5:$AS$245,3*($C$8-1)+3) -> 13653 | V186: =VLOOKUP($S186,P_All!$X$5:$AS$245,3*($C$8-1)+4) -> 20284 | W186: =IF(ISNA(VLOOKUP($B$6,$A$25:$E$52,IF($B$8=$A$22,3,2))),EXP(VLOOKUP($B$6,$A$25:$E$52,4)*LN(VLOOKUP($S186,#REF!,$C$8+1)/1000)+VLOOKUP($B$6,$A$25:$E$52,5)),VLOOKUP($B$6,$A$25:$E$52,IF($B$8=$A$22,3,2))) -> 
H187: 162 | I187: =VLOOKUP($H187,P_All!$A$5:$D$205,3*($C$8-1)+2) -> 17678 | J187: =VLOOKUP($H187,P_All!$A$5:$D$205,3*($C$8-1)+3) -> 20201 | K187: =VLOOKUP($H187,P_All!$A$5:$D$205,3*($C$8-1)+4) -> 23652 | L187: =IF(ISNA(VLOOKUP($B$6,$A$25:$E$51,IF($B$8=$A$22,3,2))),EXP(VLOOKUP($B$6,$A$25:$E$51,4)*LN(VLOOKUP($H187,#REF!,$C$8+1)/1000)+VLOOKUP($B$6,$A$25:$E$51,5)),VLOOKUP($B$6,$A$25:$E$51,IF($B$8=$A$22,3,2))) ->  | M187: 162 | N187: =VLOOKUP($H187,Other_All!$A$5:$D$205,3*($C$8-1)+2) -> 17357 | O187: =VLOOKUP($H187,Other_All!$A$5:$D$205,3*($C$8-1)+3) -> 19609 | P187: =VLOOKUP($H187,Other_All!$A$5:$D$205,3*($C$8-1)+4) -> 22261 | Q187: =IF(ISNA(VLOOKUP($B$6,$A$25:$E$51,IF($B$8=$A$22,3,2))),EXP(VLOOKUP($B$6,$A$25:$E$51,4)*LN(VLOOKUP($H187,#REF!,$C$8+1)/1000)+VLOOKUP($B$6,$A$25:$E$51,5)),VLOOKUP($B$6,$A$25:$E$51,IF($B$8=$A$22,3,2))) ->  | S187: 53.5 | T187: =VLOOKUP($S187,P_All!$X$5:$AS$245,3*($C$8-1)+2) -> 12711 | U187: =VLOOKUP($S187,P_All!$X$5:$AS$245,3*($C$8-1)+3) -> 13573 | V187: =VLOOKUP($S187,P_All!$X$5:$AS$245,3*($C$8-1)+4) -> 20214 | W187: =IF(ISNA(VLOOKUP($B$6,$A$25:$E$52,IF($B$8=$A$22,3,2))),EXP(VLOOKUP($B$6,$A$25:$E$52,4)*LN(VLOOKUP($S187,#REF!,$C$8+1)/1000)+VLOOKUP($B$6,$A$25:$E$52,5)),VLOOKUP($B$6,$A$25:$E$52,IF($B$8=$A$22,3,2))) -> 
H188: 163 | I188: =VLOOKUP($H188,P_All!$A$5:$D$205,3*($C$8-1)+2) -> 17884 | J188: =VLOOKUP($H188,P_All!$A$5:$D$205,3*($C$8-1)+3) -> 20267 | K188: =VLOOKUP($H188,P_All!$A$5:$D$205,3*($C$8-1)+4) -> 23566 | L188: =IF(ISNA(VLOOKUP($B$6,$A$25:$E$51,IF($B$8=$A$22,3,2))),EXP(VLOOKUP($B$6,$A$25:$E$51,4)*LN(VLOOKUP($H188,#REF!,$C$8+1)/1000)+VLOOKUP($B$6,$A$25:$E$51,5)),VLOOKUP($B$6,$A$25:$E$51,IF($B$8=$A$22,3,2))) ->  | M188: 163 | N188: =VLOOKUP($H188,Other_All!$A$5:$D$205,3*($C$8-1)+2) -> 17272 | O188: =VLOOKUP($H188,Other_All!$A$5:$D$205,3*($C$8-1)+3) -> 19524 | P188: =VLOOKUP($H188,Other_All!$A$5:$D$205,3*($C$8-1)+4) -> 22184 | Q188: =IF(ISNA(VLOOKUP($B$6,$A$25:$E$51,IF($B$8=$A$22,3,2))),EXP(VLOOKUP($B$6,$A$25:$E$51,4)*LN(VLOOKUP($H188,#REF!,$C$8+1)/1000)+VLOOKUP($B$6,$A$25:$E$51,5)),VLOOKUP($B$6,$A$25:$E$51,IF($B$8=$A$22,3,2))) ->  | S188: 53.58333333 | T188: =VLOOKUP($S188,P_All!$X$5:$AS$245,3*($C$8-1)+2) -> 12688 | U188: =VLOOKUP($S188,P_All!$X$5:$AS$245,3*($C$8-1)+3) -> 13593 | V188: =VLOOKUP($S188,P_All!$X$5:$AS$245,3*($C$8-1)+4) -> 20340 | W188: =IF(ISNA(VLOOKUP($B$6,$A$25:$E$52,IF($B$8=$A$22,3,2))),EXP(VLOOKUP($B$6,$A$25:$E$52,4)*LN(VLOOKUP($S188,#REF!,$C$8+1)/1000)+VLOOKUP($B$6,$A$25:$E$52,5)),VLOOKUP($B$6,$A$25:$E$52,IF($B$8=$A$22,3,2))) -> 
H189: 164 | I189: =VLOOKUP($H189,P_All!$A$5:$D$205,3*($C$8-1)+2) -> 17974 | J189: =VLOOKUP($H189,P_All!$A$5:$D$205,3*($C$8-1)+3) -> 20213 | K189: =VLOOKUP($H189,P_All!$A$5:$D$205,3*($C$8-1)+4) -> 23742 | L189: =IF(ISNA(VLOOKUP($B$6,$A$25:$E$51,IF($B$8=$A$22,3,2))),EXP(VLOOKUP($B$6,$A$25:$E$51,4)*LN(VLOOKUP($H189,#REF!,$C$8+1)/1000)+VLOOKUP($B$6,$A$25:$E$51,5)),VLOOKUP($B$6,$A$25:$E$51,IF($B$8=$A$22,3,2))) ->  | M189: 164 | N189: =VLOOKUP($H189,Other_All!$A$5:$D$205,3*($C$8-1)+2) -> 17463 | O189: =VLOOKUP($H189,Other_All!$A$5:$D$205,3*($C$8-1)+3) -> 19459 | P189: =VLOOKUP($H189,Other_All!$A$5:$D$205,3*($C$8-1)+4) -> 22255 | Q189: =IF(ISNA(VLOOKUP($B$6,$A$25:$E$51,IF($B$8=$A$22,3,2))),EXP(VLOOKUP($B$6,$A$25:$E$51,4)*LN(VLOOKUP($H189,#REF!,$C$8+1)/1000)+VLOOKUP($B$6,$A$25:$E$51,5)),VLOOKUP($B$6,$A$25:$E$51,IF($B$8=$A$22,3,2))) ->  | S189: 53.66666667 | T189: =VLOOKUP($S189,P_All!$X$5:$AS$245,3*($C$8-1)+2) -> 12644 | U189: =VLOOKUP($S189,P_All!$X$5:$AS$245,3*($C$8-1)+3) -> 13593 | V189: =VLOOKUP($S189,P_All!$X$5:$AS$245,3*($C$8-1)+4) -> 20479 | W189: =IF(ISNA(VLOOKUP($B$6,$A$25:$E$52,IF($B$8=$A$22,3,2))),EXP(VLOOKUP($B$6,$A$25:$E$52,4)*LN(VLOOKUP($S189,#REF!,$C$8+1)/1000)+VLOOKUP($B$6,$A$25:$E$52,5)),VLOOKUP($B$6,$A$25:$E$52,IF($B$8=$A$22,3,2))) -> 
H190: 165 | I190: =VLOOKUP($H190,P_All!$A$5:$D$205,3*($C$8-1)+2) -> 17979 | J190: =VLOOKUP($H190,P_All!$A$5:$D$205,3*($C$8-1)+3) -> 20193 | K190: =VLOOKUP($H190,P_All!$A$5:$D$205,3*($C$8-1)+4) -> 23820 | L190: =IF(ISNA(VLOOKUP($B$6,$A$25:$E$51,IF($B$8=$A$22,3,2))),EXP(VLOOKUP($B$6,$A$25:$E$51,4)*LN(VLOOKUP($H190,#REF!,$C$8+1)/1000)+VLOOKUP($B$6,$A$25:$E$51,5)),VLOOKUP($B$6,$A$25:$E$51,IF($B$8=$A$22,3,2))) ->  | M190: 165 | N190: =VLOOKUP($H190,Other_All!$A$5:$D$205,3*($C$8-1)+2) -> 17544 | O190: =VLOOKUP($H190,Other_All!$A$5:$D$205,3*($C$8-1)+3) -> 19545 | P190: =VLOOKUP($H190,Other_All!$A$5:$D$205,3*($C$8-1)+4) -> 22396 | Q190: =IF(ISNA(VLOOKUP($B$6,$A$25:$E$51,IF($B$8=$A$22,3,2))),EXP(VLOOKUP($B$6,$A$25:$E$51,4)*LN(VLOOKUP($H190,#REF!,$C$8+1)/1000)+VLOOKUP($B$6,$A$25:$E$51,5)),VLOOKUP($B$6,$A$25:$E$51,IF($B$8=$A$22,3,2))) ->  | S190: 53.75 | T190: =VLOOKUP($S190,P_All!$X$5:$AS$245,3*($C$8-1)+2) -> 12535 | U190: =VLOOKUP($S190,P_All!$X$5:$AS$245,3*($C$8-1)+3) -> 13572 | V190: =VLOOKUP($S190,P_All!$X$5:$AS$245,3*($C$8-1)+4) -> 20241 | W190: =IF(ISNA(VLOOKUP($B$6,$A$25:$E$52,IF($B$8=$A$22,3,2))),EXP(VLOOKUP($B$6,$A$25:$E$52,4)*LN(VLOOKUP($S190,#REF!,$C$8+1)/1000)+VLOOKUP($B$6,$A$25:$E$52,5)),VLOOKUP($B$6,$A$25:$E$52,IF($B$8=$A$22,3,2))) -> 
H191: 166 | I191: =VLOOKUP($H191,P_All!$A$5:$D$205,3*($C$8-1)+2) -> 17799 | J191: =VLOOKUP($H191,P_All!$A$5:$D$205,3*($C$8-1)+3) -> 20339 | K191: =VLOOKUP($H191,P_All!$A$5:$D$205,3*($C$8-1)+4) -> 23761 | L191: =IF(ISNA(VLOOKUP($B$6,$A$25:$E$51,IF($B$8=$A$22,3,2))),EXP(VLOOKUP($B$6,$A$25:$E$51,4)*LN(VLOOKUP($H191,#REF!,$C$8+1)/1000)+VLOOKUP($B$6,$A$25:$E$51,5)),VLOOKUP($B$6,$A$25:$E$51,IF($B$8=$A$22,3,2))) ->  | M191: 166 | N191: =VLOOKUP($H191,Other_All!$A$5:$D$205,3*($C$8-1)+2) -> 17520 | O191: =VLOOKUP($H191,Other_All!$A$5:$D$205,3*($C$8-1)+3) -> 19547 | P191: =VLOOKUP($H191,Other_All!$A$5:$D$205,3*($C$8-1)+4) -> 22387 | Q191: =IF(ISNA(VLOOKUP($B$6,$A$25:$E$51,IF($B$8=$A$22,3,2))),EXP(VLOOKUP($B$6,$A$25:$E$51,4)*LN(VLOOKUP($H191,#REF!,$C$8+1)/1000)+VLOOKUP($B$6,$A$25:$E$51,5)),VLOOKUP($B$6,$A$25:$E$51,IF($B$8=$A$22,3,2))) ->  | S191: 53.83333333 | T191: =VLOOKUP($S191,P_All!$X$5:$AS$245,3*($C$8-1)+2) -> 12476 | U191: =VLOOKUP($S191,P_All!$X$5:$AS$245,3*($C$8-1)+3) -> 13527 | V191: =VLOOKUP($S191,P_All!$X$5:$AS$245,3*($C$8-1)+4) -> 20238 | W191: =IF(ISNA(VLOOKUP($B$6,$A$25:$E$52,IF($B$8=$A$22,3,2))),EXP(VLOOKUP($B$6,$A$25:$E$52,4)*LN(VLOOKUP($S191,#REF!,$C$8+1)/1000)+VLOOKUP($B$6,$A$25:$E$52,5)),VLOOKUP($B$6,$A$25:$E$52,IF($B$8=$A$22,3,2))) -> 
H192: 167 | I192: =VLOOKUP($H192,P_All!$A$5:$D$205,3*($C$8-1)+2) -> 17755 | J192: =VLOOKUP($H192,P_All!$A$5:$D$205,3*($C$8-1)+3) -> 20352 | K192: =VLOOKUP($H192,P_All!$A$5:$D$205,3*($C$8-1)+4) -> 23567 | L192: =IF(ISNA(VLOOKUP($B$6,$A$25:$E$51,IF($B$8=$A$22,3,2))),EXP(VLOOKUP($B$6,$A$25:$E$51,4)*LN(VLOOKUP($H192,#REF!,$C$8+1)/1000)+VLOOKUP($B$6,$A$25:$E$51,5)),VLOOKUP($B$6,$A$25:$E$51,IF($B$8=$A$22,3,2))) ->  | M192: 167 | N192: =VLOOKUP($H192,Other_All!$A$5:$D$205,3*($C$8-1)+2) -> 17408 | O192: =VLOOKUP($H192,Other_All!$A$5:$D$205,3*($C$8-1)+3) -> 19594 | P192: =VLOOKUP($H192,Other_All!$A$5:$D$205,3*($C$8-1)+4) -> 22248 | Q192: =IF(ISNA(VLOOKUP($B$6,$A$25:$E$51,IF($B$8=$A$22,3,2))),EXP(VLOOKUP($B$6,$A$25:$E$51,4)*LN(VLOOKUP($H192,#REF!,$C$8+1)/1000)+VLOOKUP($B$6,$A$25:$E$51,5)),VLOOKUP($B$6,$A$25:$E$51,IF($B$8=$A$22,3,2))) ->  | S192: 53.91666667 | T192: =VLOOKUP($S192,P_All!$X$5:$AS$245,3*($C$8-1)+2) -> 12460 | U192: =VLOOKUP($S192,P_All!$X$5:$AS$245,3*($C$8-1)+3) -> 13531 | V192: =VLOOKUP($S192,P_All!$X$5:$AS$245,3*($C$8-1)+4) -> 20351 | W192: =IF(ISNA(VLOOKUP($B$6,$A$25:$E$52,IF($B$8=$A$22,3,2))),EXP(VLOOKUP($B$6,$A$25:$E$52,4)*LN(VLOOKUP($S192,#REF!,$C$8+1)/1000)+VLOOKUP($B$6,$A$25:$E$52,5)),VLOOKUP($B$6,$A$25:$E$52,IF($B$8=$A$22,3,2))) -> 
H193: 168 | I193: =VLOOKUP($H193,P_All!$A$5:$D$205,3*($C$8-1)+2) -> 17679 | J193: =VLOOKUP($H193,P_All!$A$5:$D$205,3*($C$8-1)+3) -> 20406 | K193: =VLOOKUP($H193,P_All!$A$5:$D$205,3*($C$8-1)+4) -> 23578 | L193: =IF(ISNA(VLOOKUP($B$6,$A$25:$E$51,IF($B$8=$A$22,3,2))),EXP(VLOOKUP($B$6,$A$25:$E$51,4)*LN(VLOOKUP($H193,#REF!,$C$8+1)/1000)+VLOOKUP($B$6,$A$25:$E$51,5)),VLOOKUP($B$6,$A$25:$E$51,IF($B$8=$A$22,3,2))) ->  | M193: 168 | N193: =VLOOKUP($H193,Other_All!$A$5:$D$205,3*($C$8-1)+2) -> 17329 | O193: =VLOOKUP($H193,Other_All!$A$5:$D$205,3*($C$8-1)+3) -> 19606 | P193: =VLOOKUP($H193,Other_All!$A$5:$D$205,3*($C$8-1)+4) -> 22212 | Q193: =IF(ISNA(VLOOKUP($B$6,$A$25:$E$51,IF($B$8=$A$22,3,2))),EXP(VLOOKUP($B$6,$A$25:$E$51,4)*LN(VLOOKUP($H193,#REF!,$C$8+1)/1000)+VLOOKUP($B$6,$A$25:$E$51,5)),VLOOKUP($B$6,$A$25:$E$51,IF($B$8=$A$22,3,2))) ->  | S193: 54 | T193: =VLOOKUP($S193,P_All!$X$5:$AS$245,3*($C$8-1)+2) -> 12430 | U193: =VLOOKUP($S193,P_All!$X$5:$AS$245,3*($C$8-1)+3) -> 13531 | V193: =VLOOKUP($S193,P_All!$X$5:$AS$245,3*($C$8-1)+4) -> 20432 | W193: =IF(ISNA(VLOOKUP($B$6,$A$25:$E$52,IF($B$8=$A$22,3,2))),EXP(VLOOKUP($B$6,$A$25:$E$52,4)*LN(VLOOKUP($S193,#REF!,$C$8+1)/1000)+VLOOKUP($B$6,$A$25:$E$52,5)),VLOOKUP($B$6,$A$25:$E$52,IF($B$8=$A$22,3,2))) -> 
H194: 169 | I194: =VLOOKUP($H194,P_All!$A$5:$D$205,3*($C$8-1)+2) -> 17666 | J194: =VLOOKUP($H194,P_All!$A$5:$D$205,3*($C$8-1)+3) -> 20328 | K194: =VLOOKUP($H194,P_All!$A$5:$D$205,3*($C$8-1)+4) -> 23923 | L194: =IF(ISNA(VLOOKUP($B$6,$A$25:$E$51,IF($B$8=$A$22,3,2))),EXP(VLOOKUP($B$6,$A$25:$E$51,4)*LN(VLOOKUP($H194,#REF!,$C$8+1)/1000)+VLOOKUP($B$6,$A$25:$E$51,5)),VLOOKUP($B$6,$A$25:$E$51,IF($B$8=$A$22,3,2))) ->  | M194: 169 | N194: =VLOOKUP($H194,Other_All!$A$5:$D$205,3*($C$8-1)+2) -> 17461 | O194: =VLOOKUP($H194,Other_All!$A$5:$D$205,3*($C$8-1)+3) -> 19602 | P194: =VLOOKUP($H194,Other_All!$A$5:$D$205,3*($C$8-1)+4) -> 22127 | Q194: =IF(ISNA(VLOOKUP($B$6,$A$25:$E$51,IF($B$8=$A$22,3,2))),EXP(VLOOKUP($B$6,$A$25:$E$51,4)*LN(VLOOKUP($H194,#REF!,$C$8+1)/1000)+VLOOKUP($B$6,$A$25:$E$51,5)),VLOOKUP($B$6,$A$25:$E$51,IF($B$8=$A$22,3,2))) ->  | S194: 54.08333333 | T194: =VLOOKUP($S194,P_All!$X$5:$AS$245,3*($C$8-1)+2) -> 12435 | U194: =VLOOKUP($S194,P_All!$X$5:$AS$245,3*($C$8-1)+3) -> 13532 | V194: =VLOOKUP($S194,P_All!$X$5:$AS$245,3*($C$8-1)+4) -> 20498 | W194: =IF(ISNA(VLOOKUP($B$6,$A$25:$E$52,IF($B$8=$A$22,3,2))),EXP(VLOOKUP($B$6,$A$25:$E$52,4)*LN(VLOOKUP($S194,#REF!,$C$8+1)/1000)+VLOOKUP($B$6,$A$25:$E$52,5)),VLOOKUP($B$6,$A$25:$E$52,IF($B$8=$A$22,3,2))) -> 
H195: 170 | I195: =VLOOKUP($H195,P_All!$A$5:$D$205,3*($C$8-1)+2) -> 17638 | J195: =VLOOKUP($H195,P_All!$A$5:$D$205,3*($C$8-1)+3) -> 20261 | K195: =VLOOKUP($H195,P_All!$A$5:$D$205,3*($C$8-1)+4) -> 23820 | L195: =IF(ISNA(VLOOKUP($B$6,$A$25:$E$51,IF($B$8=$A$22,3,2))),EXP(VLOOKUP($B$6,$A$25:$E$51,4)*LN(VLOOKUP($H195,#REF!,$C$8+1)/1000)+VLOOKUP($B$6,$A$25:$E$51,5)),VLOOKUP($B$6,$A$25:$E$51,IF($B$8=$A$22,3,2))) ->  | M195: 170 | N195: =VLOOKUP($H195,Other_All!$A$5:$D$205,3*($C$8-1)+2) -> 17258 | O195: =VLOOKUP($H195,Other_All!$A$5:$D$205,3*($C$8-1)+3) -> 19518 | P195: =VLOOKUP($H195,Other_All!$A$5:$D$205,3*($C$8-1)+4) -> 22211 | Q195: =IF(ISNA(VLOOKUP($B$6,$A$25:$E$51,IF($B$8=$A$22,3,2))),EXP(VLOOKUP($B$6,$A$25:$E$51,4)*LN(VLOOKUP($H195,#REF!,$C$8+1)/1000)+VLOOKUP($B$6,$A$25:$E$51,5)),VLOOKUP($B$6,$A$25:$E$51,IF($B$8=$A$22,3,2))) ->  | S195: 54.16666667 | T195: =VLOOKUP($S195,P_All!$X$5:$AS$245,3*($C$8-1)+2) -> 12465 | U195: =VLOOKUP($S195,P_All!$X$5:$AS$245,3*($C$8-1)+3) -> 13540 | V195: =VLOOKUP($S195,P_All!$X$5:$AS$245,3*($C$8-1)+4) -> 20583 | W195: =IF(ISNA(VLOOKUP($B$6,$A$25:$E$52,IF($B$8=$A$22,3,2))),EXP(VLOOKUP($B$6,$A$25:$E$52,4)*LN(VLOOKUP($S195,#REF!,$C$8+1)/1000)+VLOOKUP($B$6,$A$25:$E$52,5)),VLOOKUP($B$6,$A$25:$E$52,IF($B$8=$A$22,3,2))) -> 
H196: 171 | I196: =VLOOKUP($H196,P_All!$A$5:$D$205,3*($C$8-1)+2) -> 17627 | J196: =VLOOKUP($H196,P_All!$A$5:$D$205,3*($C$8-1)+3) -> 20231 | K196: =VLOOKUP($H196,P_All!$A$5:$D$205,3*($C$8-1)+4) -> 23692 | L196: =IF(ISNA(VLOOKUP($B$6,$A$25:$E$51,IF($B$8=$A$22,3,2))),EXP(VLOOKUP($B$6,$A$25:$E$51,4)*LN(VLOOKUP($H196,#REF!,$C$8+1)/1000)+VLOOKUP($B$6,$A$25:$E$51,5)),VLOOKUP($B$6,$A$25:$E$51,IF($B$8=$A$22,3,2))) ->  | M196: 171 | N196: =VLOOKUP($H196,Other_All!$A$5:$D$205,3*($C$8-1)+2) -> 17227 | O196: =VLOOKUP($H196,Other_All!$A$5:$D$205,3*($C$8-1)+3) -> 19579 | P196: =VLOOKUP($H196,Other_All!$A$5:$D$205,3*($C$8-1)+4) -> 22255 | Q196: =IF(ISNA(VLOOKUP($B$6,$A$25:$E$51,IF($B$8=$A$22,3,2))),EXP(VLOOKUP($B$6,$A$25:$E$51,4)*LN(VLOOKUP($H196,#REF!,$C$8+1)/1000)+VLOOKUP($B$6,$A$25:$E$51,5)),VLOOKUP($B$6,$A$25:$E$51,IF($B$8=$A$22,3,2))) ->  | S196: 54.25 | T196: =VLOOKUP($S196,P_All!$X$5:$AS$245,3*($C$8-1)+2) -> 12521 | U196: =VLOOKUP($S196,P_All!$X$5:$AS$245,3*($C$8-1)+3) -> 13572 | V196: =VLOOKUP($S196,P_All!$X$5:$AS$245,3*($C$8-1)+4) -> 20690 | W196: =IF(ISNA(VLOOKUP($B$6,$A$25:$E$52,IF($B$8=$A$22,3,2))),EXP(VLOOKUP($B$6,$A$25:$E$52,4)*LN(VLOOKUP($S196,#REF!,$C$8+1)/1000)+VLOOKUP($B$6,$A$25:$E$52,5)),VLOOKUP($B$6,$A$25:$E$52,IF($B$8=$A$22,3,2))) -> 
H197: 172 | I197: =VLOOKUP($H197,P_All!$A$5:$D$205,3*($C$8-1)+2) -> 17681 | J197: =VLOOKUP($H197,P_All!$A$5:$D$205,3*($C$8-1)+3) -> 20256 | K197: =VLOOKUP($H197,P_All!$A$5:$D$205,3*($C$8-1)+4) -> 23791 | L197: =IF(ISNA(VLOOKUP($B$6,$A$25:$E$51,IF($B$8=$A$22,3,2))),EXP(VLOOKUP($B$6,$A$25:$E$51,4)*LN(VLOOKUP($H197,#REF!,$C$8+1)/1000)+VLOOKUP($B$6,$A$25:$E$51,5)),VLOOKUP($B$6,$A$25:$E$51,IF($B$8=$A$22,3,2))) ->  | M197: 172 | N197: =VLOOKUP($H197,Other_All!$A$5:$D$205,3*($C$8-1)+2) -> 17348 | O197: =VLOOKUP($H197,Other_All!$A$5:$D$205,3*($C$8-1)+3) -> 19618 | P197: =VLOOKUP($H197,Other_All!$A$5:$D$205,3*($C$8-1)+4) -> 22395 | Q197: =IF(ISNA(VLOOKUP($B$6,$A$25:$E$51,IF($B$8=$A$22,3,2))),EXP(VLOOKUP($B$6,$A$25:$E$51,4)*LN(VLOOKUP($H197,#REF!,$C$8+1)/1000)+VLOOKUP($B$6,$A$25:$E$51,5)),VLOOKUP($B$6,$A$25:$E$51,IF($B$8=$A$22,3,2))) ->  | S197: 54.33333333 | T197: =VLOOKUP($S197,P_All!$X$5:$AS$245,3*($C$8-1)+2) -> 12596 | U197: =VLOOKUP($S197,P_All!$X$5:$AS$245,3*($C$8-1)+3) -> 13662 | V197: =VLOOKUP($S197,P_All!$X$5:$AS$245,3*($C$8-1)+4) -> 20903 | W197: =IF(ISNA(VLOOKUP($B$6,$A$25:$E$52,IF($B$8=$A$22,3,2))),EXP(VLOOKUP($B$6,$A$25:$E$52,4)*LN(VLOOKUP($S197,#REF!,$C$8+1)/1000)+VLOOKUP($B$6,$A$25:$E$52,5)),VLOOKUP($B$6,$A$25:$E$52,IF($B$8=$A$22,3,2))) -> 
H198: 173 | I198: =VLOOKUP($H198,P_All!$A$5:$D$205,3*($C$8-1)+2) -> 17568 | J198: =VLOOKUP($H198,P_All!$A$5:$D$205,3*($C$8-1)+3) -> 20198 | K198: =VLOOKUP($H198,P_All!$A$5:$D$205,3*($C$8-1)+4) -> 23750 | L198: =IF(ISNA(VLOOKUP($B$6,$A$25:$E$51,IF($B$8=$A$22,3,2))),EXP(VLOOKUP($B$6,$A$25:$E$51,4)*LN(VLOOKUP($H198,#REF!,$C$8+1)/1000)+VLOOKUP($B$6,$A$25:$E$51,5)),VLOOKUP($B$6,$A$25:$E$51,IF($B$8=$A$22,3,2))) ->  | M198: 173 | N198: =VLOOKUP($H198,Other_All!$A$5:$D$205,3*($C$8-1)+2) -> 17264 | O198: =VLOOKUP($H198,Other_All!$A$5:$D$205,3*($C$8-1)+3) -> 19463 | P198: =VLOOKUP($H198,Other_All!$A$5:$D$205,3*($C$8-1)+4) -> 22203 | Q198: =IF(ISNA(VLOOKUP($B$6,$A$25:$E$51,IF($B$8=$A$22,3,2))),EXP(VLOOKUP($B$6,$A$25:$E$51,4)*LN(VLOOKUP($H198,#REF!,$C$8+1)/1000)+VLOOKUP($B$6,$A$25:$E$51,5)),VLOOKUP($B$6,$A$25:$E$51,IF($B$8=$A$22,3,2))) ->  | S198: 54.41666667 | T198: =VLOOKUP($S198,P_All!$X$5:$AS$245,3*($C$8-1)+2) -> 12601 | U198: =VLOOKUP($S198,P_All!$X$5:$AS$245,3*($C$8-1)+3) -> 13645 | V198: =VLOOKUP($S198,P_All!$X$5:$AS$245,3*($C$8-1)+4) -> 21052 | W198: =IF(ISNA(VLOOKUP($B$6,$A$25:$E$52,IF($B$8=$A$22,3,2))),EXP(VLOOKUP($B$6,$A$25:$E$52,4)*LN(VLOOKUP($S198,#REF!,$C$8+1)/1000)+VLOOKUP($B$6,$A$25:$E$52,5)),VLOOKUP($B$6,$A$25:$E$52,IF($B$8=$A$22,3,2))) -> 
H199: 174 | I199: =VLOOKUP($H199,P_All!$A$5:$D$205,3*($C$8-1)+2) -> 17651 | J199: =VLOOKUP($H199,P_All!$A$5:$D$205,3*($C$8-1)+3) -> 20167 | K199: =VLOOKUP($H199,P_All!$A$5:$D$205,3*($C$8-1)+4) -> 23923 | L199: =IF(ISNA(VLOOKUP($B$6,$A$25:$E$51,IF($B$8=$A$22,3,2))),EXP(VLOOKUP($B$6,$A$25:$E$51,4)*LN(VLOOKUP($H199,#REF!,$C$8+1)/1000)+VLOOKUP($B$6,$A$25:$E$51,5)),VLOOKUP($B$6,$A$25:$E$51,IF($B$8=$A$22,3,2))) ->  | M199: 174 | N199: =VLOOKUP($H199,Other_All!$A$5:$D$205,3*($C$8-1)+2) -> 17245 | O199: =VLOOKUP($H199,Other_All!$A$5:$D$205,3*($C$8-1)+3) -> 19556 | P199: =VLOOKUP($H199,Other_All!$A$5:$D$205,3*($C$8-1)+4) -> 22317 | Q199: =IF(ISNA(VLOOKUP($B$6,$A$25:$E$51,IF($B$8=$A$22,3,2))),EXP(VLOOKUP($B$6,$A$25:$E$51,4)*LN(VLOOKUP($H199,#REF!,$C$8+1)/1000)+VLOOKUP($B$6,$A$25:$E$51,5)),VLOOKUP($B$6,$A$25:$E$51,IF($B$8=$A$22,3,2))) ->  | S199: 54.5 | T199: =VLOOKUP($S199,P_All!$X$5:$AS$245,3*($C$8-1)+2) -> 12505 | U199: =VLOOKUP($S199,P_All!$X$5:$AS$245,3*($C$8-1)+3) -> 13599 | V199: =VLOOKUP($S199,P_All!$X$5:$AS$245,3*($C$8-1)+4) -> 20882 | W199: =IF(ISNA(VLOOKUP($B$6,$A$25:$E$52,IF($B$8=$A$22,3,2))),EXP(VLOOKUP($B$6,$A$25:$E$52,4)*LN(VLOOKUP($S199,#REF!,$C$8+1)/1000)+VLOOKUP($B$6,$A$25:$E$52,5)),VLOOKUP($B$6,$A$25:$E$52,IF($B$8=$A$22,3,2))) -> 
H200: 175 | I200: =VLOOKUP($H200,P_All!$A$5:$D$205,3*($C$8-1)+2) -> 17570 | J200: =VLOOKUP($H200,P_All!$A$5:$D$205,3*($C$8-1)+3) -> 20313 | K200: =VLOOKUP($H200,P_All!$A$5:$D$205,3*($C$8-1)+4) -> 24054 | L200: =IF(ISNA(VLOOKUP($B$6,$A$25:$E$51,IF($B$8=$A$22,3,2))),EXP(VLOOKUP($B$6,$A$25:$E$51,4)*LN(VLOOKUP($H200,#REF!,$C$8+1)/1000)+VLOOKUP($B$6,$A$25:$E$51,5)),VLOOKUP($B$6,$A$25:$E$51,IF($B$8=$A$22,3,2))) ->  | M200: 175 | N200: =VLOOKUP($H200,Other_All!$A$5:$D$205,3*($C$8-1)+2) -> 17373 | O200: =VLOOKUP($H200,Other_All!$A$5:$D$205,3*($C$8-1)+3) -> 19636 | P200: =VLOOKUP($H200,Other_All!$A$5:$D$205,3*($C$8-1)+4) -> 22198 | Q200: =IF(ISNA(VLOOKUP($B$6,$A$25:$E$51,IF($B$8=$A$22,3,2))),EXP(VLOOKUP($B$6,$A$25:$E$51,4)*LN(VLOOKUP($H200,#REF!,$C$8+1)/1000)+VLOOKUP($B$6,$A$25:$E$51,5)),VLOOKUP($B$6,$A$25:$E$51,IF($B$8=$A$22,3,2))) ->  | S200: 54.58333333 | T200: =VLOOKUP($S200,P_All!$X$5:$AS$245,3*($C$8-1)+2) -> 12423 | U200: =VLOOKUP($S200,P_All!$X$5:$AS$245,3*($C$8-1)+3) -> 13609 | V200: =VLOOKUP($S200,P_All!$X$5:$AS$245,3*($C$8-1)+4) -> 20839 | W200: =IF(ISNA(VLOOKUP($B$6,$A$25:$E$52,IF($B$8=$A$22,3,2))),EXP(VLOOKUP($B$6,$A$25:$E$52,4)*LN(VLOOKUP($S200,#REF!,$C$8+1)/1000)+VLOOKUP($B$6,$A$25:$E$52,5)),VLOOKUP($B$6,$A$25:$E$52,IF($B$8=$A$22,3,2))) -> 
H201: 176 | I201: =VLOOKUP($H201,P_All!$A$5:$D$205,3*($C$8-1)+2) -> 17643 | J201: =VLOOKUP($H201,P_All!$A$5:$D$205,3*($C$8-1)+3) -> 20351 | K201: =VLOOKUP($H201,P_All!$A$5:$D$205,3*($C$8-1)+4) -> 23925 | L201: =IF(ISNA(VLOOKUP($B$6,$A$25:$E$51,IF($B$8=$A$22,3,2))),EXP(VLOOKUP($B$6,$A$25:$E$51,4)*LN(VLOOKUP($H201,#REF!,$C$8+1)/1000)+VLOOKUP($B$6,$A$25:$E$51,5)),VLOOKUP($B$6,$A$25:$E$51,IF($B$8=$A$22,3,2))) ->  | M201: 176 | N201: =VLOOKUP($H201,Other_All!$A$5:$D$205,3*($C$8-1)+2) -> 17375 | O201: =VLOOKUP($H201,Other_All!$A$5:$D$205,3*($C$8-1)+3) -> 19701 | P201: =VLOOKUP($H201,Other_All!$A$5:$D$205,3*($C$8-1)+4) -> 22432 | Q201: =IF(ISNA(VLOOKUP($B$6,$A$25:$E$51,IF($B$8=$A$22,3,2))),EXP(VLOOKUP($B$6,$A$25:$E$51,4)*LN(VLOOKUP($H201,#REF!,$C$8+1)/1000)+VLOOKUP($B$6,$A$25:$E$51,5)),VLOOKUP($B$6,$A$25:$E$51,IF($B$8=$A$22,3,2))) ->  | S201: 54.66666667 | T201: =VLOOKUP($S201,P_All!$X$5:$AS$245,3*($C$8-1)+2) -> 12363 | U201: =VLOOKUP($S201,P_All!$X$5:$AS$245,3*($C$8-1)+3) -> 13649 | V201: =VLOOKUP($S201,P_All!$X$5:$AS$245,3*($C$8-1)+4) -> 20855 | W201: =IF(ISNA(VLOOKUP($B$6,$A$25:$E$52,IF($B$8=$A$22,3,2))),EXP(VLOOKUP($B$6,$A$25:$E$52,4)*LN(VLOOKUP($S201,#REF!,$C$8+1)/1000)+VLOOKUP($B$6,$A$25:$E$52,5)),VLOOKUP($B$6,$A$25:$E$52,IF($B$8=$A$22,3,2))) -> 
H202: 177 | I202: =VLOOKUP($H202,P_All!$A$5:$D$205,3*($C$8-1)+2) -> 17607 | J202: =VLOOKUP($H202,P_All!$A$5:$D$205,3*($C$8-1)+3) -> 20486 | K202: =VLOOKUP($H202,P_All!$A$5:$D$205,3*($C$8-1)+4) -> 23746 | L202: =IF(ISNA(VLOOKUP($B$6,$A$25:$E$51,IF($B$8=$A$22,3,2))),EXP(VLOOKUP($B$6,$A$25:$E$51,4)*LN(VLOOKUP($H202,#REF!,$C$8+1)/1000)+VLOOKUP($B$6,$A$25:$E$51,5)),VLOOKUP($B$6,$A$25:$E$51,IF($B$8=$A$22,3,2))) ->  | M202: 177 | N202: =VLOOKUP($H202,Other_All!$A$5:$D$205,3*($C$8-1)+2) -> 17342 | O202: =VLOOKUP($H202,Other_All!$A$5:$D$205,3*($C$8-1)+3) -> 19728 | P202: =VLOOKUP($H202,Other_All!$A$5:$D$205,3*($C$8-1)+4) -> 22310 | Q202: =IF(ISNA(VLOOKUP($B$6,$A$25:$E$51,IF($B$8=$A$22,3,2))),EXP(VLOOKUP($B$6,$A$25:$E$51,4)*LN(VLOOKUP($H202,#REF!,$C$8+1)/1000)+VLOOKUP($B$6,$A$25:$E$51,5)),VLOOKUP($B$6,$A$25:$E$51,IF($B$8=$A$22,3,2))) ->  | S202: 54.75 | T202: =VLOOKUP($S202,P_All!$X$5:$AS$245,3*($C$8-1)+2) -> 12256 | U202: =VLOOKUP($S202,P_All!$X$5:$AS$245,3*($C$8-1)+3) -> 13582 | V202: =VLOOKUP($S202,P_All!$X$5:$AS$245,3*($C$8-1)+4) -> 20713 | W202: =IF(ISNA(VLOOKUP($B$6,$A$25:$E$52,IF($B$8=$A$22,3,2))),EXP(VLOOKUP($B$6,$A$25:$E$52,4)*LN(VLOOKUP($S202,#REF!,$C$8+1)/1000)+VLOOKUP($B$6,$A$25:$E$52,5)),VLOOKUP($B$6,$A$25:$E$52,IF($B$8=$A$22,3,2))) -> 
H203: 178 | I203: =VLOOKUP($H203,P_All!$A$5:$D$205,3*($C$8-1)+2) -> 17615 | J203: =VLOOKUP($H203,P_All!$A$5:$D$205,3*($C$8-1)+3) -> 20443 | K203: =VLOOKUP($H203,P_All!$A$5:$D$205,3*($C$8-1)+4) -> 23993 | L203: =IF(ISNA(VLOOKUP($B$6,$A$25:$E$51,IF($B$8=$A$22,3,2))),EXP(VLOOKUP($B$6,$A$25:$E$51,4)*LN(VLOOKUP($H203,#REF!,$C$8+1)/1000)+VLOOKUP($B$6,$A$25:$E$51,5)),VLOOKUP($B$6,$A$25:$E$51,IF($B$8=$A$22,3,2))) ->  | M203: 178 | N203: =VLOOKUP($H203,Other_All!$A$5:$D$205,3*($C$8-1)+2) -> 17220 | O203: =VLOOKUP($H203,Other_All!$A$5:$D$205,3*($C$8-1)+3) -> 19788 | P203: =VLOOKUP($H203,Other_All!$A$5:$D$205,3*($C$8-1)+4) -> 22344 | Q203: =IF(ISNA(VLOOKUP($B$6,$A$25:$E$51,IF($B$8=$A$22,3,2))),EXP(VLOOKUP($B$6,$A$25:$E$51,4)*LN(VLOOKUP($H203,#REF!,$C$8+1)/1000)+VLOOKUP($B$6,$A$25:$E$51,5)),VLOOKUP($B$6,$A$25:$E$51,IF($B$8=$A$22,3,2))) ->  | S203: 54.83333333 | T203: =VLOOKUP($S203,P_All!$X$5:$AS$245,3*($C$8-1)+2) -> 12205 | U203: =VLOOKUP($S203,P_All!$X$5:$AS$245,3*($C$8-1)+3) -> 13550 | V203: =VLOOKUP($S203,P_All!$X$5:$AS$245,3*($C$8-1)+4) -> 20717 | W203: =IF(ISNA(VLOOKUP($B$6,$A$25:$E$52,IF($B$8=$A$22,3,2))),EXP(VLOOKUP($B$6,$A$25:$E$52,4)*LN(VLOOKUP($S203,#REF!,$C$8+1)/1000)+VLOOKUP($B$6,$A$25:$E$52,5)),VLOOKUP($B$6,$A$25:$E$52,IF($B$8=$A$22,3,2))) -> 
H204: 179 | I204: =VLOOKUP($H204,P_All!$A$5:$D$205,3*($C$8-1)+2) -> 17613 | J204: =VLOOKUP($H204,P_All!$A$5:$D$205,3*($C$8-1)+3) -> 20332 | K204: =VLOOKUP($H204,P_All!$A$5:$D$205,3*($C$8-1)+4) -> 24136 | L204: =IF(ISNA(VLOOKUP($B$6,$A$25:$E$51,IF($B$8=$A$22,3,2))),EXP(VLOOKUP($B$6,$A$25:$E$51,4)*LN(VLOOKUP($H204,#REF!,$C$8+1)/1000)+VLOOKUP($B$6,$A$25:$E$51,5)),VLOOKUP($B$6,$A$25:$E$51,IF($B$8=$A$22,3,2))) ->  | M204: 179 | N204: =VLOOKUP($H204,Other_All!$A$5:$D$205,3*($C$8-1)+2) -> 17181 | O204: =VLOOKUP($H204,Other_All!$A$5:$D$205,3*($C$8-1)+3) -> 19673 | P204: =VLOOKUP($H204,Other_All!$A$5:$D$205,3*($C$8-1)+4) -> 22352 | Q204: =IF(ISNA(VLOOKUP($B$6,$A$25:$E$51,IF($B$8=$A$22,3,2))),EXP(VLOOKUP($B$6,$A$25:$E$51,4)*LN(VLOOKUP($H204,#REF!,$C$8+1)/1000)+VLOOKUP($B$6,$A$25:$E$51,5)),VLOOKUP($B$6,$A$25:$E$51,IF($B$8=$A$22,3,2))) ->  | S204: 54.91666667 | T204: =VLOOKUP($S204,P_All!$X$5:$AS$245,3*($C$8-1)+2) -> 12219 | U204: =VLOOKUP($S204,P_All!$X$5:$AS$245,3*($C$8-1)+3) -> 13586 | V204: =VLOOKUP($S204,P_All!$X$5:$AS$245,3*($C$8-1)+4) -> 20748 | W204: =IF(ISNA(VLOOKUP($B$6,$A$25:$E$52,IF($B$8=$A$22,3,2))),EXP(VLOOKUP($B$6,$A$25:$E$52,4)*LN(VLOOKUP($S204,#REF!,$C$8+1)/1000)+VLOOKUP($B$6,$A$25:$E$52,5)),VLOOKUP($B$6,$A$25:$E$52,IF($B$8=$A$22,3,2))) -> 
H205: 180 | I205: =VLOOKUP($H205,P_All!$A$5:$D$205,3*($C$8-1)+2) -> 17555 | J205: =VLOOKUP($H205,P_All!$A$5:$D$205,3*($C$8-1)+3) -> 20165 | K205: =VLOOKUP($H205,P_All!$A$5:$D$205,3*($C$8-1)+4) -> 24187 | L205: =IF(ISNA(VLOOKUP($B$6,$A$25:$E$51,IF($B$8=$A$22,3,2))),EXP(VLOOKUP($B$6,$A$25:$E$51,4)*LN(VLOOKUP($H205,#REF!,$C$8+1)/1000)+VLOOKUP($B$6,$A$25:$E$51,5)),VLOOKUP($B$6,$A$25:$E$51,IF($B$8=$A$22,3,2))) ->  | M205: 180 | N205: =VLOOKUP($H205,Other_All!$A$5:$D$205,3*($C$8-1)+2) -> 17327 | O205: =VLOOKUP($H205,Other_All!$A$5:$D$205,3*($C$8-1)+3) -> 19703 | P205: =VLOOKUP($H205,Other_All!$A$5:$D$205,3*($C$8-1)+4) -> 22612 | Q205: =IF(ISNA(VLOOKUP($B$6,$A$25:$E$51,IF($B$8=$A$22,3,2))),EXP(VLOOKUP($B$6,$A$25:$E$51,4)*LN(VLOOKUP($H205,#REF!,$C$8+1)/1000)+VLOOKUP($B$6,$A$25:$E$51,5)),VLOOKUP($B$6,$A$25:$E$51,IF($B$8=$A$22,3,2))) ->  | S205: 55 | T205: =VLOOKUP($S205,P_All!$X$5:$AS$245,3*($C$8-1)+2) -> 12249 | U205: =VLOOKUP($S205,P_All!$X$5:$AS$245,3*($C$8-1)+3) -> 13548 | V205: =VLOOKUP($S205,P_All!$X$5:$AS$245,3*($C$8-1)+4) -> 20759 | W205: =IF(ISNA(VLOOKUP($B$6,$A$25:$E$52,IF($B$8=$A$22,3,2))),EXP(VLOOKUP($B$6,$A$25:$E$52,4)*LN(VLOOKUP($S205,#REF!,$C$8+1)/1000)+VLOOKUP($B$6,$A$25:$E$52,5)),VLOOKUP($B$6,$A$25:$E$52,IF($B$8=$A$22,3,2))) -> 
H206: 181 | I206: =VLOOKUP($H206,P_All!$A$5:$D$205,3*($C$8-1)+2) -> 17560 | J206: =VLOOKUP($H206,P_All!$A$5:$D$205,3*($C$8-1)+3) -> 20206 | K206: =VLOOKUP($H206,P_All!$A$5:$D$205,3*($C$8-1)+4) -> 23844 | L206: =IF(ISNA(VLOOKUP($B$6,$A$25:$E$51,IF($B$8=$A$22,3,2))),EXP(VLOOKUP($B$6,$A$25:$E$51,4)*LN(VLOOKUP($H206,#REF!,$C$8+1)/1000)+VLOOKUP($B$6,$A$25:$E$51,5)),VLOOKUP($B$6,$A$25:$E$51,IF($B$8=$A$22,3,2))) ->  | M206: 181 | N206: =VLOOKUP($H206,Other_All!$A$5:$D$205,3*($C$8-1)+2) -> 17221 | O206: =VLOOKUP($H206,Other_All!$A$5:$D$205,3*($C$8-1)+3) -> 19567 | P206: =VLOOKUP($H206,Other_All!$A$5:$D$205,3*($C$8-1)+4) -> 22312 | Q206: =IF(ISNA(VLOOKUP($B$6,$A$25:$E$51,IF($B$8=$A$22,3,2))),EXP(VLOOKUP($B$6,$A$25:$E$51,4)*LN(VLOOKUP($H206,#REF!,$C$8+1)/1000)+VLOOKUP($B$6,$A$25:$E$51,5)),VLOOKUP($B$6,$A$25:$E$51,IF($B$8=$A$22,3,2))) ->  | S206: 55.08333333 | T206: =VLOOKUP($S206,P_All!$X$5:$AS$245,3*($C$8-1)+2) -> 12262 | U206: =VLOOKUP($S206,P_All!$X$5:$AS$245,3*($C$8-1)+3) -> 13611 | V206: =VLOOKUP($S206,P_All!$X$5:$AS$245,3*($C$8-1)+4) -> 20827 | W206: =IF(ISNA(VLOOKUP($B$6,$A$25:$E$52,IF($B$8=$A$22,3,2))),EXP(VLOOKUP($B$6,$A$25:$E$52,4)*LN(VLOOKUP($S206,#REF!,$C$8+1)/1000)+VLOOKUP($B$6,$A$25:$E$52,5)),VLOOKUP($B$6,$A$25:$E$52,IF($B$8=$A$22,3,2))) -> 
H207: 182 | I207: =VLOOKUP($H207,P_All!$A$5:$D$205,3*($C$8-1)+2) -> 17490 | J207: =VLOOKUP($H207,P_All!$A$5:$D$205,3*($C$8-1)+3) -> 20245 | K207: =VLOOKUP($H207,P_All!$A$5:$D$205,3*($C$8-1)+4) -> 24021 | L207: =IF(ISNA(VLOOKUP($B$6,$A$25:$E$51,IF($B$8=$A$22,3,2))),EXP(VLOOKUP($B$6,$A$25:$E$51,4)*LN(VLOOKUP($H207,#REF!,$C$8+1)/1000)+VLOOKUP($B$6,$A$25:$E$51,5)),VLOOKUP($B$6,$A$25:$E$51,IF($B$8=$A$22,3,2))) ->  | M207: 182 | N207: =VLOOKUP($H207,Other_All!$A$5:$D$205,3*($C$8-1)+2) -> 17190 | O207: =VLOOKUP($H207,Other_All!$A$5:$D$205,3*($C$8-1)+3) -> 19520 | P207: =VLOOKUP($H207,Other_All!$A$5:$D$205,3*($C$8-1)+4) -> 22270 | Q207: =IF(ISNA(VLOOKUP($B$6,$A$25:$E$51,IF($B$8=$A$22,3,2))),EXP(VLOOKUP($B$6,$A$25:$E$51,4)*LN(VLOOKUP($H207,#REF!,$C$8+1)/1000)+VLOOKUP($B$6,$A$25:$E$51,5)),VLOOKUP($B$6,$A$25:$E$51,IF($B$8=$A$22,3,2))) ->  | S207: 55.16666667 | T207: =VLOOKUP($S207,P_All!$X$5:$AS$245,3*($C$8-1)+2) -> 12277 | U207: =VLOOKUP($S207,P_All!$X$5:$AS$245,3*($C$8-1)+3) -> 13662 | V207: =VLOOKUP($S207,P_All!$X$5:$AS$245,3*($C$8-1)+4) -> 20910 | W207: =IF(ISNA(VLOOKUP($B$6,$A$25:$E$52,IF($B$8=$A$22,3,2))),EXP(VLOOKUP($B$6,$A$25:$E$52,4)*LN(VLOOKUP($S207,#REF!,$C$8+1)/1000)+VLOOKUP($B$6,$A$25:$E$52,5)),VLOOKUP($B$6,$A$25:$E$52,IF($B$8=$A$22,3,2))) -> 
H208: 183 | I208: =VLOOKUP($H208,P_All!$A$5:$D$205,3*($C$8-1)+2) -> 17409 | J208: =VLOOKUP($H208,P_All!$A$5:$D$205,3*($C$8-1)+3) -> 20346 | K208: =VLOOKUP($H208,P_All!$A$5:$D$205,3*($C$8-1)+4) -> 23838 | L208: =IF(ISNA(VLOOKUP($B$6,$A$25:$E$51,IF($B$8=$A$22,3,2))),EXP(VLOOKUP($B$6,$A$25:$E$51,4)*LN(VLOOKUP($H208,#REF!,$C$8+1)/1000)+VLOOKUP($B$6,$A$25:$E$51,5)),VLOOKUP($B$6,$A$25:$E$51,IF($B$8=$A$22,3,2))) ->  | M208: 183 | N208: =VLOOKUP($H208,Other_All!$A$5:$D$205,3*($C$8-1)+2) -> 17034 | O208: =VLOOKUP($H208,Other_All!$A$5:$D$205,3*($C$8-1)+3) -> 19672 | P208: =VLOOKUP($H208,Other_All!$A$5:$D$205,3*($C$8-1)+4) -> 22223 | Q208: =IF(ISNA(VLOOKUP($B$6,$A$25:$E$51,IF($B$8=$A$22,3,2))),EXP(VLOOKUP($B$6,$A$25:$E$51,4)*LN(VLOOKUP($H208,#REF!,$C$8+1)/1000)+VLOOKUP($B$6,$A$25:$E$51,5)),VLOOKUP($B$6,$A$25:$E$51,IF($B$8=$A$22,3,2))) ->  | S208: 55.25 | T208: =VLOOKUP($S208,P_All!$X$5:$AS$245,3*($C$8-1)+2) -> 12360 | U208: =VLOOKUP($S208,P_All!$X$5:$AS$245,3*($C$8-1)+3) -> 13694 | V208: =VLOOKUP($S208,P_All!$X$5:$AS$245,3*($C$8-1)+4) -> 21025 | W208: =IF(ISNA(VLOOKUP($B$6,$A$25:$E$52,IF($B$8=$A$22,3,2))),EXP(VLOOKUP($B$6,$A$25:$E$52,4)*LN(VLOOKUP($S208,#REF!,$C$8+1)/1000)+VLOOKUP($B$6,$A$25:$E$52,5)),VLOOKUP($B$6,$A$25:$E$52,IF($B$8=$A$22,3,2))) -> 
... 57 more rows

Sheet P_All
B1: Values shown for constituent selected on PlotControl tab | Y1: Values shown for constituent selected on PlotControl tab
B2: Pond | E2: =PlotControl!$A$16 -> 0 | H2: =PlotControl!$A$17 -> Plot | K2: =PlotControl!$A$18 -> Annual Max | N2: =PlotControl!$A$19 -> Annual Average | Q2: =PlotControl!$A$20 -> 0 | T2: =PlotControl!$A$21 -> 0 | Y2: =PlotControl!$A$15 -> Pond | AB2: =PlotControl!$A$16 -> 0 | AE2: =PlotControl!$A$17 -> Plot | AH2: =PlotControl!$A$18 -> Annual Max | AK2: =PlotControl!$A$19 -> Annual Average | AN2: =PlotControl!$A$20 -> 0 | AQ2: =PlotControl!$A$21 -> 0
B3: Annual Project Results | E3: Annual Project Results | H3: Annual Project Results | K3: Annual Project Results | N3: Annual Project Results | Q3: Annual Project Results | T3: Annual Project Results | Y3: Monthly Project Results | AB3: Monthly Project Results | AE3: Monthly Project Results | AH3: Monthly Project Results | AK3: Monthly Project Results | AN3: Monthly Project Results | AQ3: Monthly Project Results
A4: Time | B4: P10 | C4: P50 | D4: P90 | E4: P10 | F4: P50 | G4: P90 | H4: P10 | I4: P50 | J4: P90 | K4: P10 | L4: P50 | M4: P90 | N4: P10 | O4: P50 | P4: P90 | Q4: P10 | R4: P50 | S4: P90 | T4: P10 | U4: P50 | V4: P90 | X4: Time | Y4: P10 | Z4: P50 | AA4: P90 | AB4: P10 | AC4: P50 | AD4: P90 | AE4: P10 | AF4: P50 | AG4: P90 | AH4: P10 | AI4: P50 | AJ4: P90 | AK4: P10 | AL4: P50 | AM4: P90 | AN4: P10 | AO4: P50 | AP4: P90 | AQ4: P10 | AR4: P50 | AS4: P90
A5: 0 | B5: =IF(PlotControl!$B$4 = "Annual Max",MAX(OFFSET('2EPond'!$C$10,12*$A5,4*(PlotControl!$C$6-1),12,1)),AVERAGE(OFFSET('2EPond'!$C$10,12*$A5,4*(PlotControl!$C$6-1),12,1))) -> 130000 | C5: =IF(PlotControl!$B$4 = "Annual Max",MAX(OFFSET('2EPond'!$D$10,12*$A5,4*(PlotControl!$C$6-1),12,1)),AVERAGE(OFFSET('2EPond'!$D$10,12*$A5,4*(PlotControl!$C$6-1),12,1))) -> 130350 | D5: =IF(PlotControl!$B$4 = "Annual Max",MAX(OFFSET('2EPond'!$E$10,12*$A5,4*(PlotControl!$C$6-1),12,1)),AVERAGE(OFFSET('2EPond'!$E$10,12*$A5,4*(PlotControl!$C$6-1),12,1))) -> 134610 | X5: =PlotControl!$B$10 -> 40 | Y5: =IF($X5<=7,OFFSET('2EPond'!$C$10,12*$X5,4*(PlotControl!$C$6-1),1,1),OFFSET('1EPond'!$C$10,12*$X5,4*(PlotControl!$C$6-1),1,1)) -> 17516 | Z5: =IF(X5<=7,OFFSET('2EPond'!$D$10,12*$X5,4*(PlotControl!$C$6-1),1,1),OFFSET('1EPond'!$D$10,12*$X5,4*(PlotControl!$C$6-1),1,1)) -> 18592 | AA5: =IF(X5<=7,OFFSET('2EPond'!$E$10,12*$X5,4*(PlotControl!$C$6-1),1,1),OFFSET('1EPond'!$E$10,12*$X5,4*(PlotControl!$C$6-1),1,1)) -> 19604
A6: 1 | B6: =IF(PlotControl!$B$4 = "Annual Max",MAX(OFFSET('2EPond'!$C$10,12*$A6,4*(PlotControl!$C$6-1),12,1)),AVERAGE(OFFSET('2EPond'!$C$10,12*$A6,4*(PlotControl!$C$6-1),12,1))) -> 156760 | C6: =IF(PlotControl!$B$4 = "Annual Max",MAX(OFFSET('2EPond'!$D$10,12*$A6,4*(PlotControl!$C$6-1),12,1)),AVERAGE(OFFSET('2EPond'!$D$10,12*$A6,4*(PlotControl!$C$6-1),12,1))) -> 164570 | D6: =IF(PlotControl!$B$4 = "Annual Max",MAX(OFFSET('2EPond'!$E$10,12*$A6,4*(PlotControl!$C$6-1),12,1)),AVERAGE(OFFSET('2EPond'!$E$10,12*$A6,4*(PlotControl!$C$6-1),12,1))) -> 172410 | X6: =X5+1/12 -> 40.08333333 | Y6: =IF($X6<=7,OFFSET('2EPond'!$C$10,12*$X6,4*(PlotControl!$C$6-1),1,1),OFFSET('1EPond'!$C$10,12*$X6,4*(PlotControl!$C$6-1),1,1)) -> 17462 | Z6: =IF(X6<=7,OFFSET('2EPond'!$D$10,12*$X6,4*(PlotControl!$C$6-1),1,1),OFFSET('1EPond'!$D$10,12*$X6,4*(PlotControl!$C$6-1),1,1)) -> 18510 | AA6: =IF(X6<=7,OFFSET('2EPond'!$E$10,12*$X6,4*(PlotControl!$C$6-1),1,1),OFFSET('1EPond'!$E$10,12*$X6,4*(PlotControl!$C$6-1),1,1)) -> 19481
A7: 2 | B7: =IF(PlotControl!$B$4 = "Annual Max",MAX(OFFSET('2EPond'!$C$10,12*$A7,4*(PlotControl!$C$6-1),12,1)),AVERAGE(OFFSET('2EPond'!$C$10,12*$A7,4*(PlotControl!$C$6-1),12,1))) -> 174660 | C7: =IF(PlotControl!$B$4 = "Annual Max",MAX(OFFSET('2EPond'!$D$10,12*$A7,4*(PlotControl!$C$6-1),12,1)),AVERAGE(OFFSET('2EPond'!$D$10,12*$A7,4*(PlotControl!$C$6-1),12,1))) -> 183960 | D7: =IF(PlotControl!$B$4 = "Annual Max",MAX(OFFSET('2EPond'!$E$10,12*$A7,4*(PlotControl!$C$6-1),12,1)),AVERAGE(OFFSET('2EPond'!$E$10,12*$A7,4*(PlotControl!$C$6-1),12,1))) -> 193610 | X7: =X6+1/12 -> 40.16666667 | Y7: =IF($X7<=7,OFFSET('2EPond'!$C$10,12*$X7,4*(PlotControl!$C$6-1),1,1),OFFSET('1EPond'!$C$10,12*$X7,4*(PlotControl!$C$6-1),1,1)) -> 17413 | Z7: =IF(X7<=7,OFFSET('2EPond'!$D$10,12*$X7,4*(PlotControl!$C$6-1),1,1),OFFSET('1EPond'!$D$10,12*$X7,4*(PlotControl!$C$6-1),1,1)) -> 18421 | AA7: =IF(X7<=7,OFFSET('2EPond'!$E$10,12*$X7,4*(PlotControl!$C$6-1),1,1),OFFSET('1EPond'!$E$10,12*$X7,4*(PlotControl!$C$6-1),1,1)) -> 19364
A8: 3 | B8: =IF(PlotControl!$B$4 = "Annual Max",MAX(OFFSET('2EPond'!$C$10,12*$A8,4*(PlotControl!$C$6-1),12,1)),AVERAGE(OFFSET('2EPond'!$C$10,12*$A8,4*(PlotControl!$C$6-1),12,1))) -> 185560 | C8: =IF(PlotControl!$B$4 = "Annual Max",MAX(OFFSET('2EPond'!$D$10,12*$A8,4*(PlotControl!$C$6-1),12,1)),AVERAGE(OFFSET('2EPond'!$D$10,12*$A8,4*(PlotControl!$C$6-1),12,1))) -> 196030 | D8: =IF(PlotControl!$B$4 = "Annual Max",MAX(OFFSET('2EPond'!$E$10,12*$A8,4*(PlotControl!$C$6-1),12,1)),AVERAGE(OFFSET('2EPond'!$E$10,12*$A8,4*(PlotControl!$C$6-1),12,1))) -> 206920 | X8: 40.25 | Y8: =IF($X8<=7,OFFSET('2EPond'!$C$10,12*$X8,4*(PlotControl!$C$6-1),1,1),OFFSET('1EPond'!$C$10,12*$X8,4*(PlotControl!$C$6-1),1,1)) -> 17407 | Z8: =IF(X8<=7,OFFSET('2EPond'!$D$10,12*$X8,4*(PlotControl!$C$6-1),1,1),OFFSET('1EPond'!$D$10,12*$X8,4*(PlotControl!$C$6-1),1,1)) -> 18406 | AA8: =IF(X8<=7,OFFSET('2EPond'!$E$10,12*$X8,4*(PlotControl!$C$6-1),1,1),OFFSET('1EPond'!$E$10,12*$X8,4*(PlotControl!$C$6-1),1,1)) -> 19320
A9: 4 | B9: =IF(PlotControl!$B$4 = "Annual Max",MAX(OFFSET('2EPond'!$C$10,12*$A9,4*(PlotControl!$C$6-1),12,1)),AVERAGE(OFFSET('2EPond'!$C$10,12*$A9,4*(PlotControl!$C$6-1),12,1))) -> 192970 | C9: =IF(PlotControl!$B$4 = "Annual Max",MAX(OFFSET('2EPond'!$D$10,12*$A9,4*(PlotControl!$C$6-1),12,1)),AVERAGE(OFFSET('2EPond'!$D$10,12*$A9,4*(PlotControl!$C$6-1),12,1))) -> 203610 | D9: =IF(PlotControl!$B$4 = "Annual Max",MAX(OFFSET('2EPond'!$E$10,12*$A9,4*(PlotControl!$C$6-1),12,1)),AVERAGE(OFFSET('2EPond'!$E$10,12*$A9,4*(PlotControl!$C$6-1),12,1))) -> 213630 | X9: 40.33333333 | Y9: =IF($X9<=7,OFFSET('2EPond'!$C$10,12*$X9,4*(PlotControl!$C$6-1),1,1),OFFSET('1EPond'!$C$10,12*$X9,4*(PlotControl!$C$6-1),1,1)) -> 17423 | Z9: =IF(X9<=7,OFFSET('2EPond'!$D$10,12*$X9,4*(PlotControl!$C$6-1),1,1),OFFSET('1EPond'!$D$10,12*$X9,4*(PlotControl!$C$6-1),1,1)) -> 18411 | AA9: =IF(X9<=7,OFFSET('2EPond'!$E$10,12*$X9,4*(PlotControl!$C$6-1),1,1),OFFSET('1EPond'!$E$10,12*$X9,4*(PlotControl!$C$6-1),1,1)) -> 19329
A10: 5 | B10: =IF(PlotControl!$B$4 = "Annual Max",MAX(OFFSET('2EPond'!$C$10,12*$A10,4*(PlotControl!$C$6-1),12,1)),AVERAGE(OFFSET('2EPond'!$C$10,12*$A10,4*(PlotControl!$C$6-1),12,1))) -> 197950 | C10: =IF(PlotControl!$B$4 = "Annual Max",MAX(OFFSET('2EPond'!$D$10,12*$A10,4*(PlotControl!$C$6-1),12,1)),AVERAGE(OFFSET('2EPond'!$D$10,12*$A10,4*(PlotControl!$C$6-1),12,1))) -> 207380 | D10: =IF(PlotControl!$B$4 = "Annual Max",MAX(OFFSET('2EPond'!$E$10,12*$A10,4*(PlotControl!$C$6-1),12,1)),AVERAGE(OFFSET('2EPond'!$E$10,12*$A10,4*(PlotControl!$C$6-1),12,1))) -> 217980 | X10: 40.41666667 | Y10: =IF($X10<=7,OFFSET('2EPond'!$C$10,12*$X10,4*(PlotControl!$C$6-1),1,1),OFFSET('1EPond'!$C$10,12*$X10,4*(PlotControl!$C$6-1),1,1)) -> 17327 | Z10: =IF(X10<=7,OFFSET('2EPond'!$D$10,12*$X10,4*(PlotControl!$C$6-1),1,1),OFFSET('1EPond'!$D$10,12*$X10,4*(PlotControl!$C$6-1),1,1)) -> 18324 | AA10: =IF(X10<=7,OFFSET('2EPond'!$E$10,12*$X10,4*(PlotControl!$C$6-1),1,1),OFFSET('1EPond'!$E$10,12*$X10,4*(PlotControl!$C$6-1),1,1)) -> 19231
A11: 6 | B11: =IF(PlotControl!$B$4 = "Annual Max",MAX(OFFSET('2EPond'!$C$10,12*$A11,4*(PlotControl!$C$6-1),12,1)),AVERAGE(OFFSET('2EPond'!$C$10,12*$A11,4*(PlotControl!$C$6-1),12,1))) -> 203430 | C11: =IF(PlotControl!$B$4 = "Annual Max",MAX(OFFSET('2EPond'!$D$10,12*$A11,4*(PlotControl!$C$6-1),12,1)),AVERAGE(OFFSET('2EPond'!$D$10,12*$A11,4*(PlotControl!$C$6-1),12,1))) -> 216190 | D11: =IF(PlotControl!$B$4 = "Annual Max",MAX(OFFSET('2EPond'!$E$10,12*$A11,4*(PlotControl!$C$6-1),12,1)),AVERAGE(OFFSET('2EPond'!$E$10,12*$A11,4*(PlotControl!$C$6-1),12,1))) -> 229230 | X11: 40.5 | Y11: =IF($X11<=7,OFFSET('2EPond'!$C$10,12*$X11,4*(PlotControl!$C$6-1),1,1),OFFSET('1EPond'!$C$10,12*$X11,4*(PlotControl!$C$6-1),1,1)) -> 17146 | Z11: =IF(X11<=7,OFFSET('2EPond'!$D$10,12*$X11,4*(PlotControl!$C$6-1),1,1),OFFSET('1EPond'!$D$10,12*$X11,4*(PlotControl!$C$6-1),1,1)) -> 18183 | AA11: =IF(X11<=7,OFFSET('2EPond'!$E$10,12*$X11,4*(PlotControl!$C$6-1),1,1),OFFSET('1EPond'!$E$10,12*$X11,4*(PlotControl!$C$6-1),1,1)) -> 19054
A12: 7 | B12: =IF(PlotControl!$B$4 = "Annual Max",MAX(OFFSET('1EPond'!$C$10,12*$A12,4*(PlotControl!$C$6-1),12,1)),AVERAGE(OFFSET('1EPond'!$C$10,12*$A12,4*(PlotControl!$C$6-1),12,1))) -> 195210 | C12: =IF(PlotControl!$B$4 = "Annual Max",MAX(OFFSET('1EPond'!$D$10,12*$A12,4*(PlotControl!$C$6-1),12,1)),AVERAGE(OFFSET('1EPond'!$D$10,12*$A12,4*(PlotControl!$C$6-1),12,1))) -> 207030 | D12: =IF(PlotControl!$B$4 = "Annual Max",MAX(OFFSET('1EPond'!$E$10,12*$A12,4*(PlotControl!$C$6-1),12,1)),AVERAGE(OFFSET('1EPond'!$E$10,12*$A12,4*(PlotControl!$C$6-1),12,1))) -> 220920 | X12: 40.58333333 | Y12: =IF($X12<=7,OFFSET('2EPond'!$C$10,12*$X12,4*(PlotControl!$C$6-1),1,1),OFFSET('1EPond'!$C$10,12*$X12,4*(PlotControl!$C$6-1),1,1)) -> 17060 | Z12: =IF(X12<=7,OFFSET('2EPond'!$D$10,12*$X12,4*(PlotControl!$C$6-1),1,1),OFFSET('1EPond'!$D$10,12*$X12,4*(PlotControl!$C$6-1),1,1)) -> 18119 | AA12: =IF(X12<=7,OFFSET('2EPond'!$E$10,12*$X12,4*(PlotControl!$C$6-1),1,1),OFFSET('1EPond'!$E$10,12*$X12,4*(PlotControl!$C$6-1),1,1)) -> 18993
A13: 8 | B13: =IF(PlotControl!$B$4 = "Annual Max",MAX(OFFSET('1EPond'!$C$10,12*$A13,4*(PlotControl!$C$6-1),12,1)),AVERAGE(OFFSET('1EPond'!$C$10,12*$A13,4*(PlotControl!$C$6-1),12,1))) -> 211560 | C13: =IF(PlotControl!$B$4 = "Annual Max",MAX(OFFSET('1EPond'!$D$10,12*$A13,4*(PlotControl!$C$6-1),12,1)),AVERAGE(OFFSET('1EPond'!$D$10,12*$A13,4*(PlotControl!$C$6-1),12,1))) -> 227650 | D13: =IF(PlotControl!$B$4 = "Annual Max",MAX(OFFSET('1EPond'!$E$10,12*$A13,4*(PlotControl!$C$6-1),12,1)),AVERAGE(OFFSET('1EPond'!$E$10,12*$A13,4*(PlotControl!$C$6-1),12,1))) -> 242620 | X13: 40.66666667 | Y13: =IF($X13<=7,OFFSET('2EPond'!$C$10,12*$X13,4*(PlotControl!$C$6-1),1,1),OFFSET('1EPond'!$C$10,12*$X13,4*(PlotControl!$C$6-1),1,1)) -> 16952 | Z13: =IF(X13<=7,OFFSET('2EPond'!$D$10,12*$X13,4*(PlotControl!$C$6-1),1,1),OFFSET('1EPond'!$D$10,12*$X13,4*(PlotControl!$C$6-1),1,1)) -> 18061 | AA13: =IF(X13<=7,OFFSET('2EPond'!$E$10,12*$X13,4*(PlotControl!$C$6-1),1,1),OFFSET('1EPond'!$E$10,12*$X13,4*(PlotControl!$C$6-1),1,1)) -> 18964
A14: 9 | B14: =IF(PlotControl!$B$4 = "Annual Max",MAX(OFFSET('1EPond'!$C$10,12*$A14,4*(PlotControl!$C$6-1),12,1)),AVERAGE(OFFSET('1EPond'!$C$10,12*$A14,4*(PlotControl!$C$6-1),12,1))) -> 227450 | C14: =IF(PlotControl!$B$4 = "Annual Max",MAX(OFFSET('1EPond'!$D$10,12*$A14,4*(PlotControl!$C$6-1),12,1)),AVERAGE(OFFSET('1EPond'!$D$10,12*$A14,4*(PlotControl!$C$6-1),12,1))) -> 243480 | D14: =IF(PlotControl!$B$4 = "Annual Max",MAX(OFFSET('1EPond'!$E$10,12*$A14,4*(PlotControl!$C$6-1),12,1)),AVERAGE(OFFSET('1EPond'!$E$10,12*$A14,4*(PlotControl!$C$6-1),12,1))) -> 258400 | X14: 40.75 | Y14: =IF($X14<=7,OFFSET('2EPond'!$C$10,12*$X14,4*(PlotControl!$C$6-1),1,1),OFFSET('1EPond'!$C$10,12*$X14,4*(PlotControl!$C$6-1),1,1)) -> 16814 | Z14: =IF(X14<=7,OFFSET('2EPond'!$D$10,12*$X14,4*(PlotControl!$C$6-1),1,1),OFFSET('1EPond'!$D$10,12*$X14,4*(PlotControl!$C$6-1),1,1)) -> 17929 | AA14: =IF(X14<=7,OFFSET('2EPond'!$E$10,12*$X14,4*(PlotControl!$C$6-1),1,1),OFFSET('1EPond'!$E$10,12*$X14,4*(PlotControl!$C$6-1),1,1)) -> 18873
A15: 10 | B15: =IF(PlotControl!$B$4 = "Annual Max",MAX(OFFSET('1EPond'!$C$10,12*$A15,4*(PlotControl!$C$6-1),12,1)),AVERAGE(OFFSET('1EPond'!$C$10,12*$A15,4*(PlotControl!$C$6-1),12,1))) -> 237630 | C15: =IF(PlotControl!$B$4 = "Annual Max",MAX(OFFSET('1EPond'!$D$10,12*$A15,4*(PlotControl!$C$6-1),12,1)),AVERAGE(OFFSET('1EPond'!$D$10,12*$A15,4*(PlotControl!$C$6-1),12,1))) -> 253980 | D15: =IF(PlotControl!$B$4 = "Annual Max",MAX(OFFSET('1EPond'!$E$10,12*$A15,4*(PlotControl!$C$6-1),12,1)),AVERAGE(OFFSET('1EPond'!$E$10,12*$A15,4*(PlotControl!$C$6-1),12,1))) -> 268750 | X15: 40.83333333 | Y15: =IF($X15<=7,OFFSET('2EPond'!$C$10,12*$X15,4*(PlotControl!$C$6-1),1,1),OFFSET('1EPond'!$C$10,12*$X15,4*(PlotControl!$C$6-1),1,1)) -> 16723 | Z15: =IF(X15<=7,OFFSET('2EPond'!$D$10,12*$X15,4*(PlotControl!$C$6-1),1,1),OFFSET('1EPond'!$D$10,12*$X15,4*(PlotControl!$C$6-1),1,1)) -> 17837 | AA15: =IF(X15<=7,OFFSET('2EPond'!$E$10,12*$X15,4*(PlotControl!$C$6-1),1,1),OFFSET('1EPond'!$E$10,12*$X15,4*(PlotControl!$C$6-1),1,1)) -> 18784
A16: 11 | B16: =IF(PlotControl!$B$4 = "Annual Max",MAX(OFFSET('1EPond'!$C$10,12*$A16,4*(PlotControl!$C$6-1),12,1)),AVERAGE(OFFSET('1EPond'!$C$10,12*$A16,4*(PlotControl!$C$6-1),12,1))) -> 246380 | C16: =IF(PlotControl!$B$4 = "Annual Max",MAX(OFFSET('1EPond'!$D$10,12*$A16,4*(PlotControl!$C$6-1),12,1)),AVERAGE(OFFSET('1EPond'!$D$10,12*$A16,4*(PlotControl!$C$6-1),12,1))) -> 262180 | D16: =IF(PlotControl!$B$4 = "Annual Max",MAX(OFFSET('1EPond'!$E$10,12*$A16,4*(PlotControl!$C$6-1),12,1)),AVERAGE(OFFSET('1EPond'!$E$10,12*$A16,4*(PlotControl!$C$6-1),12,1))) -> 276950 | X16: 40.91666667 | Y16: =IF($X16<=7,OFFSET('2EPond'!$C$10,12*$X16,4*(PlotControl!$C$6-1),1,1),OFFSET('1EPond'!$C$10,12*$X16,4*(PlotControl!$C$6-1),1,1)) -> 16677 | Z16: =IF(X16<=7,OFFSET('2EPond'!$D$10,12*$X16,4*(PlotControl!$C$6-1),1,1),OFFSET('1EPond'!$D$10,12*$X16,4*(PlotControl!$C$6-1),1,1)) -> 17760 | AA16: =IF(X16<=7,OFFSET('2EPond'!$E$10,12*$X16,4*(PlotControl!$C$6-1),1,1),OFFSET('1EPond'!$E$10,12*$X16,4*(PlotControl!$C$6-1),1,1)) -> 18683
A17: 12 | B17: =IF(PlotControl!$B$4 = "Annual Max",MAX(OFFSET('1EPond'!$C$10,12*$A17,4*(PlotControl!$C$6-1),12,1)),AVERAGE(OFFSET('1EPond'!$C$10,12*$A17,4*(PlotControl!$C$6-1),12,1))) -> 251790 | C17: =IF(PlotControl!$B$4 = "Annual Max",MAX(OFFSET('1EPond'!$D$10,12*$A17,4*(PlotControl!$C$6-1),12,1)),AVERAGE(OFFSET('1EPond'!$D$10,12*$A17,4*(PlotControl!$C$6-1),12,1))) -> 266750 | D17: =IF(PlotControl!$B$4 = "Annual Max",MAX(OFFSET('1EPond'!$E$10,12*$A17,4*(PlotControl!$C$6-1),12,1)),AVERAGE(OFFSET('1EPond'!$E$10,12*$A17,4*(PlotControl!$C$6-1),12,1))) -> 282910 | X17: 41 | Y17: =IF($X17<=7,OFFSET('2EPond'!$C$10,12*$X17,4*(PlotControl!$C$6-1),1,1),OFFSET('1EPond'!$C$10,12*$X17,4*(PlotControl!$C$6-1),1,1)) -> 16599 | Z17: =IF(X17<=7,OFFSET('2EPond'!$D$10,12*$X17,4*(PlotControl!$C$6-1),1,1),OFFSET('1EPond'!$D$10,12*$X17,4*(PlotControl!$C$6-1),1,1)) -> 17665 | AA17: =IF(X17<=7,OFFSET('2EPond'!$E$10,12*$X17,4*(PlotControl!$C$6-1),1,1),OFFSET('1EPond'!$E$10,12*$X17,4*(PlotControl!$C$6-1),1,1)) -> 18560
A18: 13 | B18: =IF(PlotControl!$B$4 = "Annual Max",MAX(OFFSET('1EPond'!$C$10,12*$A18,4*(PlotControl!$C$6-1),12,1)),AVERAGE(OFFSET('1EPond'!$C$10,12*$A18,4*(PlotControl!$C$6-1),12,1))) -> 252510 | C18: =IF(PlotControl!$B$4 = "Annual Max",MAX(OFFSET('1EPond'!$D$10,12*$A18,4*(PlotControl!$C$6-1),12,1)),AVERAGE(OFFSET('1EPond'!$D$10,12*$A18,4*(PlotControl!$C$6-1),12,1))) -> 268370 | D18: =IF(PlotControl!$B$4 = "Annual Max",MAX(OFFSET('1EPond'!$E$10,12*$A18,4*(PlotControl!$C$6-1),12,1)),AVERAGE(OFFSET('1EPond'!$E$10,12*$A18,4*(PlotControl!$C$6-1),12,1))) -> 284190 | X18: 41.08333333 | Y18: =IF($X18<=7,OFFSET('2EPond'!$C$10,12*$X18,4*(PlotControl!$C$6-1),1,1),OFFSET('1EPond'!$C$10,12*$X18,4*(PlotControl!$C$6-1),1,1)) -> 16565 | Z18: =IF(X18<=7,OFFSET('2EPond'!$D$10,12*$X18,4*(PlotControl!$C$6-1),1,1),OFFSET('1EPond'!$D$10,12*$X18,4*(PlotControl!$C$6-1),1,1)) -> 17582 | AA18: =IF(X18<=7,OFFSET('2EPond'!$E$10,12*$X18,4*(PlotControl!$C$6-1),1,1),OFFSET('1EPond'!$E$10,12*$X18,4*(PlotControl!$C$6-1),1,1)) -> 18453
A19: 14 | B19: =IF(PlotControl!$B$4 = "Annual Max",MAX(OFFSET('1EPond'!$C$10,12*$A19,4*(PlotControl!$C$6-1),12,1)),AVERAGE(OFFSET('1EPond'!$C$10,12*$A19,4*(PlotControl!$C$6-1),12,1))) -> 251970 | C19: =IF(PlotControl!$B$4 = "Annual Max",MAX(OFFSET('1EPond'!$D$10,12*$A19,4*(PlotControl!$C$6-1),12,1)),AVERAGE(OFFSET('1EPond'!$D$10,12*$A19,4*(PlotControl!$C$6-1),12,1))) -> 267590 | D19: =IF(PlotControl!$B$4 = "Annual Max",MAX(OFFSET('1EPond'!$E$10,12*$A19,4*(PlotControl!$C$6-1),12,1)),AVERAGE(OFFSET('1EPond'!$E$10,12*$A19,4*(PlotControl!$C$6-1),12,1))) -> 284100 | X19: 41.16666667 | Y19: =IF($X19<=7,OFFSET('2EPond'!$C$10,12*$X19,4*(PlotControl!$C$6-1),1,1),OFFSET('1EPond'!$C$10,12*$X19,4*(PlotControl!$C$6-1),1,1)) -> 16548 | Z19: =IF(X19<=7,OFFSET('2EPond'!$D$10,12*$X19,4*(PlotControl!$C$6-1),1,1),OFFSET('1EPond'!$D$10,12*$X19,4*(PlotControl!$C$6-1),1,1)) -> 17526 | AA19: =IF(X19<=7,OFFSET('2EPond'!$E$10,12*$X19,4*(PlotControl!$C$6-1),1,1),OFFSET('1EPond'!$E$10,12*$X19,4*(PlotControl!$C$6-1),1,1)) -> 18383
A20: 15 | B20: =IF(PlotControl!$B$4 = "Annual Max",MAX(OFFSET('1EPond'!$C$10,12*$A20,4*(PlotControl!$C$6-1),12,1)),AVERAGE(OFFSET('1EPond'!$C$10,12*$A20,4*(PlotControl!$C$6-1),12,1))) -> 248710 | C20: =IF(PlotControl!$B$4 = "Annual Max",MAX(OFFSET('1EPond'!$D$10,12*$A20,4*(PlotControl!$C$6-1),12,1)),AVERAGE(OFFSET('1EPond'!$D$10,12*$A20,4*(PlotControl!$C$6-1),12,1))) -> 265120 | D20: =IF(PlotControl!$B$4 = "Annual Max",MAX(OFFSET('1EPond'!$E$10,12*$A20,4*(PlotControl!$C$6-1),12,1)),AVERAGE(OFFSET('1EPond'!$E$10,12*$A20,4*(PlotControl!$C$6-1),12,1))) -> 282270 | X20: 41.25 | Y20: =IF($X20<=7,OFFSET('2EPond'!$C$10,12*$X20,4*(PlotControl!$C$6-1),1,1),OFFSET('1EPond'!$C$10,12*$X20,4*(PlotControl!$C$6-1),1,1)) -> 16596 | Z20: =IF(X20<=7,OFFSET('2EPond'!$D$10,12*$X20,4*(PlotControl!$C$6-1),1,1),OFFSET('1EPond'!$D$10,12*$X20,4*(PlotControl!$C$6-1),1,1)) -> 17522 | AA20: =IF(X20<=7,OFFSET('2EPond'!$E$10,12*$X20,4*(PlotControl!$C$6-1),1,1),OFFSET('1EPond'!$E$10,12*$X20,4*(PlotControl!$C$6-1),1,1)) -> 18368
A21: 16 | B21: =IF(PlotControl!$B$4 = "Annual Max",MAX(OFFSET('1EPond'!$C$10,12*$A21,4*(PlotControl!$C$6-1),12,1)),AVERAGE(OFFSET('1EPond'!$C$10,12*$A21,4*(PlotControl!$C$6-1),12,1))) -> 234030 | C21: =IF(PlotControl!$B$4 = "Annual Max",MAX(OFFSET('1EPond'!$D$10,12*$A21,4*(PlotControl!$C$6-1),12,1)),AVERAGE(OFFSET('1EPond'!$D$10,12*$A21,4*(PlotControl!$C$6-1),12,1))) -> 250020 | D21: =IF(PlotControl!$B$4 = "Annual Max",MAX(OFFSET('1EPond'!$E$10,12*$A21,4*(PlotControl!$C$6-1),12,1)),AVERAGE(OFFSET('1EPond'!$E$10,12*$A21,4*(PlotControl!$C$6-1),12,1))) -> 268210 | X21: 41.33333333 | Y21: =IF($X21<=7,OFFSET('2EPond'!$C$10,12*$X21,4*(PlotControl!$C$6-1),1,1),OFFSET('1EPond'!$C$10,12*$X21,4*(PlotControl!$C$6-1),1,1)) -> 16651 | Z21: =IF(X21<=7,OFFSET('2EPond'!$D$10,12*$X21,4*(PlotControl!$C$6-1),1,1),OFFSET('1EPond'!$D$10,12*$X21,4*(PlotControl!$C$6-1),1,1)) -> 17528 | AA21: =IF(X21<=7,OFFSET('2EPond'!$E$10,12*$X21,4*(PlotControl!$C$6-1),1,1),OFFSET('1EPond'!$E$10,12*$X21,4*(PlotControl!$C$6-1),1,1)) -> 18392
A22: 17 | B22: =IF(PlotControl!$B$4 = "Annual Max",MAX(OFFSET('1EPond'!$C$10,12*$A22,4*(PlotControl!$C$6-1),12,1)),AVERAGE(OFFSET('1EPond'!$C$10,12*$A22,4*(PlotControl!$C$6-1),12,1))) -> 226960 | C22: =IF(PlotControl!$B$4 = "Annual Max",MAX(OFFSET('1EPond'!$D$10,12*$A22,4*(PlotControl!$C$6-1),12,1)),AVERAGE(OFFSET('1EPond'!$D$10,12*$A22,4*(PlotControl!$C$6-1),12,1))) -> 245820 | D22: =IF(PlotControl!$B$4 = "Annual Max",MAX(OFFSET('1EPond'!$E$10,12*$A22,4*(PlotControl!$C$6-1),12,1)),AVERAGE(OFFSET('1EPond'!$E$10,12*$A22,4*(PlotControl!$C$6-1),12,1))) -> 266610 | X22: 41.41666667 | Y22: =IF($X22<=7,OFFSET('2EPond'!$C$10,12*$X22,4*(PlotControl!$C$6-1),1,1),OFFSET('1EPond'!$C$10,12*$X22,4*(PlotControl!$C$6-1),1,1)) -> 16590 | Z22: =IF(X22<=7,OFFSET('2EPond'!$D$10,12*$X22,4*(PlotControl!$C$6-1),1,1),OFFSET('1EPond'!$D$10,12*$X22,4*(PlotControl!$C$6-1),1,1)) -> 17471 | AA22: =IF(X22<=7,OFFSET('2EPond'!$E$10,12*$X22,4*(PlotControl!$C$6-1),1,1),OFFSET('1EPond'!$E$10,12*$X22,4*(PlotControl!$C$6-1),1,1)) -> 18359
A23: 18 | B23: =IF(PlotControl!$B$4 = "Annual Max",MAX(OFFSET('1EPond'!$C$10,12*$A23,4*(PlotControl!$C$6-1),12,1)),AVERAGE(OFFSET('1EPond'!$C$10,12*$A23,4*(PlotControl!$C$6-1),12,1))) -> 229350 | C23: =IF(PlotControl!$B$4 = "Annual Max",MAX(OFFSET('1EPond'!$D$10,12*$A23,4*(PlotControl!$C$6-1),12,1)),AVERAGE(OFFSET('1EPond'!$D$10,12*$A23,4*(PlotControl!$C$6-1),12,1))) -> 249680 | D23: =IF(PlotControl!$B$4 = "Annual Max",MAX(OFFSET('1EPond'!$E$10,12*$A23,4*(PlotControl!$C$6-1),12,1)),AVERAGE(OFFSET('1EPond'!$E$10,12*$A23,4*(PlotControl!$C$6-1),12,1))) -> 272170 | X23: 41.5 | Y23: =IF($X23<=7,OFFSET('2EPond'!$C$10,12*$X23,4*(PlotControl!$C$6-1),1,1),OFFSET('1EPond'!$C$10,12*$X23,4*(PlotControl!$C$6-1),1,1)) -> 16444 | Z23: =IF(X23<=7,OFFSET('2EPond'!$D$10,12*$X23,4*(PlotControl!$C$6-1),1,1),OFFSET('1EPond'!$D$10,12*$X23,4*(PlotControl!$C$6-1),1,1)) -> 17331 | AA23: =IF(X23<=7,OFFSET('2EPond'!$E$10,12*$X23,4*(PlotControl!$C$6-1),1,1),OFFSET('1EPond'!$E$10,12*$X23,4*(PlotControl!$C$6-1),1,1)) -> 18223
A24: 19 | B24: =IF(PlotControl!$B$4 = "Annual Max",MAX(OFFSET('1EPond'!$C$10,12*$A24,4*(PlotControl!$C$6-1),12,1)),AVERAGE(OFFSET('1EPond'!$C$10,12*$A24,4*(PlotControl!$C$6-1),12,1))) -> 238930 | C24: =IF(PlotControl!$B$4 = "Annual Max",MAX(OFFSET('1EPond'!$D$10,12*$A24,4*(PlotControl!$C$6-1),12,1)),AVERAGE(OFFSET('1EPond'!$D$10,12*$A24,4*(PlotControl!$C$6-1),12,1))) -> 259730 | D24: =IF(PlotControl!$B$4 = "Annual Max",MAX(OFFSET('1EPond'!$E$10,12*$A24,4*(PlotControl!$C$6-1),12,1)),AVERAGE(OFFSET('1EPond'!$E$10,12*$A24,4*(PlotControl!$C$6-1),12,1))) -> 283540 | X24: 41.58333333 | Y24: =IF($X24<=7,OFFSET('2EPond'!$C$10,12*$X24,4*(PlotControl!$C$6-1),1,1),OFFSET('1EPond'!$C$10,12*$X24,4*(PlotControl!$C$6-1),1,1)) -> 16378 | Z24: =IF(X24<=7,OFFSET('2EPond'!$D$10,12*$X24,4*(PlotControl!$C$6-1),1,1),OFFSET('1EPond'!$D$10,12*$X24,4*(PlotControl!$C$6-1),1,1)) -> 17279 | AA24: =IF(X24<=7,OFFSET('2EPond'!$E$10,12*$X24,4*(PlotControl!$C$6-1),1,1),OFFSET('1EPond'!$E$10,12*$X24,4*(PlotControl!$C$6-1),1,1)) -> 18214
A25: 20 | B25: =IF(PlotControl!$B$4 = "Annual Max",MAX(OFFSET('1EPond'!$C$10,12*$A25,4*(PlotControl!$C$6-1),12,1)),AVERAGE(OFFSET('1EPond'!$C$10,12*$A25,4*(PlotControl!$C$6-1),12,1))) -> 300680 | C25: =IF(PlotControl!$B$4 = "Annual Max",MAX(OFFSET('1EPond'!$D$10,12*$A25,4*(PlotControl!$C$6-1),12,1)),AVERAGE(OFFSET('1EPond'!$D$10,12*$A25,4*(PlotControl!$C$6-1),12,1))) -> 330380 | D25: =IF(PlotControl!$B$4 = "Annual Max",MAX(OFFSET('1EPond'!$E$10,12*$A25,4*(PlotControl!$C$6-1),12,1)),AVERAGE(OFFSET('1EPond'!$E$10,12*$A25,4*(PlotControl!$C$6-1),12,1))) -> 360590 | X25: 41.66666667 | Y25: =IF($X25<=7,OFFSET('2EPond'!$C$10,12*$X25,4*(PlotControl!$C$6-1),1,1),OFFSET('1EPond'!$C$10,12*$X25,4*(PlotControl!$C$6-1),1,1)) -> 16317 | Z25: =IF(X25<=7,OFFSET('2EPond'!$D$10,12*$X25,4*(PlotControl!$C$6-1),1,1),OFFSET('1EPond'!$D$10,12*$X25,4*(PlotControl!$C$6-1),1,1)) -> 17239 | AA25: =IF(X25<=7,OFFSET('2EPond'!$E$10,12*$X25,4*(PlotControl!$C$6-1),1,1),OFFSET('1EPond'!$E$10,12*$X25,4*(PlotControl!$C$6-1),1,1)) -> 18190
A26: 21 | B26: =IF(PlotControl!$B$4 = "Annual Max",MAX(OFFSET('1EPond'!$C$10,12*$A26,4*(PlotControl!$C$6-1),12,1)),AVERAGE(OFFSET('1EPond'!$C$10,12*$A26,4*(PlotControl!$C$6-1),12,1))) -> 244360 | C26: =IF(PlotControl!$B$4 = "Annual Max",MAX(OFFSET('1EPond'!$D$10,12*$A26,4*(PlotControl!$C$6-1),12,1)),AVERAGE(OFFSET('1EPond'!$D$10,12*$A26,4*(PlotControl!$C$6-1),12,1))) -> 274550 | D26: =IF(PlotControl!$B$4 = "Annual Max",MAX(OFFSET('1EPond'!$E$10,12*$A26,4*(PlotControl!$C$6-1),12,1)),AVERAGE(OFFSET('1EPond'!$E$10,12*$A26,4*(PlotControl!$C$6-1),12,1))) -> 305510 | X26: 41.75 | Y26: =IF($X26<=7,OFFSET('2EPond'!$C$10,12*$X26,4*(PlotControl!$C$6-1),1,1),OFFSET('1EPond'!$C$10,12*$X26,4*(PlotControl!$C$6-1),1,1)) -> 16216 | Z26: =IF(X26<=7,OFFSET('2EPond'!$D$10,12*$X26,4*(PlotControl!$C$6-1),1,1),OFFSET('1EPond'!$D$10,12*$X26,4*(PlotControl!$C$6-1),1,1)) -> 17123 | AA26: =IF(X26<=7,OFFSET('2EPond'!$E$10,12*$X26,4*(PlotControl!$C$6-1),1,1),OFFSET('1EPond'!$E$10,12*$X26,4*(PlotControl!$C$6-1),1,1)) -> 18113
A27: 22 | B27: =IF(PlotControl!$B$4 = "Annual Max",MAX(OFFSET('1EPond'!$C$10,12*$A27,4*(PlotControl!$C$6-1),12,1)),AVERAGE(OFFSET('1EPond'!$C$10,12*$A27,4*(PlotControl!$C$6-1),12,1))) -> 196550 | C27: =IF(PlotControl!$B$4 = "Annual Max",MAX(OFFSET('1EPond'!$D$10,12*$A27,4*(PlotControl!$C$6-1),12,1)),AVERAGE(OFFSET('1EPond'!$D$10,12*$A27,4*(PlotControl!$C$6-1),12,1))) -> 225890 | D27: =IF(PlotControl!$B$4 = "Annual Max",MAX(OFFSET('1EPond'!$E$10,12*$A27,4*(PlotControl!$C$6-1),12,1)),AVERAGE(OFFSET('1EPond'!$E$10,12*$A27,4*(PlotControl!$C$6-1),12,1))) -> 254380 | X27: 41.83333333 | Y27: =IF($X27<=7,OFFSET('2EPond'!$C$10,12*$X27,4*(PlotControl!$C$6-1),1,1),OFFSET('1EPond'!$C$10,12*$X27,4*(PlotControl!$C$6-1),1,1)) -> 16137 | Z27: =IF(X27<=7,OFFSET('2EPond'!$D$10,12*$X27,4*(PlotControl!$C$6-1),1,1),OFFSET('1EPond'!$D$10,12*$X27,4*(PlotControl!$C$6-1),1,1)) -> 17048 | AA27: =IF(X27<=7,OFFSET('2EPond'!$E$10,12*$X27,4*(PlotControl!$C$6-1),1,1),OFFSET('1EPond'!$E$10,12*$X27,4*(PlotControl!$C$6-1),1,1)) -> 18037
A28: 23 | B28: =IF(PlotControl!$B$4 = "Annual Max",MAX(OFFSET('1EPond'!$C$10,12*$A28,4*(PlotControl!$C$6-1),12,1)),AVERAGE(OFFSET('1EPond'!$C$10,12*$A28,4*(PlotControl!$C$6-1),12,1))) -> 163450 | C28: =IF(PlotControl!$B$4 = "Annual Max",MAX(OFFSET('1EPond'!$D$10,12*$A28,4*(PlotControl!$C$6-1),12,1)),AVERAGE(OFFSET('1EPond'!$D$10,12*$A28,4*(PlotControl!$C$6-1),12,1))) -> 189140 | D28: =IF(PlotControl!$B$4 = "Annual Max",MAX(OFFSET('1EPond'!$E$10,12*$A28,4*(PlotControl!$C$6-1),12,1)),AVERAGE(OFFSET('1EPond'!$E$10,12*$A28,4*(PlotControl!$C$6-1),12,1))) -> 215310 | X28: 41.91666667 | Y28: =IF($X28<=7,OFFSET('2EPond'!$C$10,12*$X28,4*(PlotControl!$C$6-1),1,1),OFFSET('1EPond'!$C$10,12*$X28,4*(PlotControl!$C$6-1),1,1)) -> 16105 | Z28: =IF(X28<=7,OFFSET('2EPond'!$D$10,12*$X28,4*(PlotControl!$C$6-1),1,1),OFFSET('1EPond'!$D$10,12*$X28,4*(PlotControl!$C$6-1),1,1)) -> 16982 | AA28: =IF(X28<=7,OFFSET('2EPond'!$E$10,12*$X28,4*(PlotControl!$C$6-1),1,1),OFFSET('1EPond'!$E$10,12*$X28,4*(PlotControl!$C$6-1),1,1)) -> 17987
A29: 24 | B29: =IF(PlotControl!$B$4 = "Annual Max",MAX(OFFSET('1EPond'!$C$10,12*$A29,4*(PlotControl!$C$6-1),12,1)),AVERAGE(OFFSET('1EPond'!$C$10,12*$A29,4*(PlotControl!$C$6-1),12,1))) -> 139090 | C29: =IF(PlotControl!$B$4 = "Annual Max",MAX(OFFSET('1EPond'!$D$10,12*$A29,4*(PlotControl!$C$6-1),12,1)),AVERAGE(OFFSET('1EPond'!$D$10,12*$A29,4*(PlotControl!$C$6-1),12,1))) -> 161250 | D29: =IF(PlotControl!$B$4 = "Annual Max",MAX(OFFSET('1EPond'!$E$10,12*$A29,4*(PlotControl!$C$6-1),12,1)),AVERAGE(OFFSET('1EPond'!$E$10,12*$A29,4*(PlotControl!$C$6-1),12,1))) -> 182970 | X29: 42 | Y29: =IF($X29<=7,OFFSET('2EPond'!$C$10,12*$X29,4*(PlotControl!$C$6-1),1,1),OFFSET('1EPond'!$C$10,12*$X29,4*(PlotControl!$C$6-1),1,1)) -> 16040 | Z29: =IF(X29<=7,OFFSET('2EPond'!$D$10,12*$X29,4*(PlotControl!$C$6-1),1,1),OFFSET('1EPond'!$D$10,12*$X29,4*(PlotControl!$C$6-1),1,1)) -> 16893 | AA29: =IF(X29<=7,OFFSET('2EPond'!$E$10,12*$X29,4*(PlotControl!$C$6-1),1,1),OFFSET('1EPond'!$E$10,12*$X29,4*(PlotControl!$C$6-1),1,1)) -> 17884
A30: 25 | B30: =IF(PlotControl!$B$4 = "Annual Max",MAX(OFFSET('1EPond'!$C$10,12*$A30,4*(PlotControl!$C$6-1),12,1)),AVERAGE(OFFSET('1EPond'!$C$10,12*$A30,4*(PlotControl!$C$6-1),12,1))) -> 122610 | C30: =IF(PlotControl!$B$4 = "Annual Max",MAX(OFFSET('1EPond'!$D$10,12*$A30,4*(PlotControl!$C$6-1),12,1)),AVERAGE(OFFSET('1EPond'!$D$10,12*$A30,4*(PlotControl!$C$6-1),12,1))) -> 141920 | D30: =IF(PlotControl!$B$4 = "Annual Max",MAX(OFFSET('1EPond'!$E$10,12*$A30,4*(PlotControl!$C$6-1),12,1)),AVERAGE(OFFSET('1EPond'!$E$10,12*$A30,4*(PlotControl!$C$6-1),12,1))) -> 161790 | X30: 42.08333333 | Y30: =IF($X30<=7,OFFSET('2EPond'!$C$10,12*$X30,4*(PlotControl!$C$6-1),1,1),OFFSET('1EPond'!$C$10,12*$X30,4*(PlotControl!$C$6-1),1,1)) -> 16014 | Z30: =IF(X30<=7,OFFSET('2EPond'!$D$10,12*$X30,4*(PlotControl!$C$6-1),1,1),OFFSET('1EPond'!$D$10,12*$X30,4*(PlotControl!$C$6-1),1,1)) -> 16842 | AA30: =IF(X30<=7,OFFSET('2EPond'!$E$10,12*$X30,4*(PlotControl!$C$6-1),1,1),OFFSET('1EPond'!$E$10,12*$X30,4*(PlotControl!$C$6-1),1,1)) -> 17797
A31: 26 | B31: =IF(PlotControl!$B$4 = "Annual Max",MAX(OFFSET('1EPond'!$C$10,12*$A31,4*(PlotControl!$C$6-1),12,1)),AVERAGE(OFFSET('1EPond'!$C$10,12*$A31,4*(PlotControl!$C$6-1),12,1))) -> 110540 | C31: =IF(PlotControl!$B$4 = "Annual Max",MAX(OFFSET('1EPond'!$D$10,12*$A31,4*(PlotControl!$C$6-1),12,1)),AVERAGE(OFFSET('1EPond'!$D$10,12*$A31,4*(PlotControl!$C$6-1),12,1))) -> 126730 | D31: =IF(PlotControl!$B$4 = "Annual Max",MAX(OFFSET('1EPond'!$E$10,12*$A31,4*(PlotControl!$C$6-1),12,1)),AVERAGE(OFFSET('1EPond'!$E$10,12*$A31,4*(PlotControl!$C$6-1),12,1))) -> 145080 | X31: 42.16666667 | Y31: =IF($X31<=7,OFFSET('2EPond'!$C$10,12*$X31,4*(PlotControl!$C$6-1),1,1),OFFSET('1EPond'!$C$10,12*$X31,4*(PlotControl!$C$6-1),1,1)) -> 16010 | Z31: =IF(X31<=7,OFFSET('2EPond'!$D$10,12*$X31,4*(PlotControl!$C$6-1),1,1),OFFSET('1EPond'!$D$10,12*$X31,4*(PlotControl!$C$6-1),1,1)) -> 16805 | AA31: =IF(X31<=7,OFFSET('2EPond'!$E$10,12*$X31,4*(PlotControl!$C$6-1),1,1),OFFSET('1EPond'!$E$10,12*$X31,4*(PlotControl!$C$6-1),1,1)) -> 17744
A32: 27 | B32: =IF(PlotControl!$B$4 = "Annual Max",MAX(OFFSET('1EPond'!$C$10,12*$A32,4*(PlotControl!$C$6-1),12,1)),AVERAGE(OFFSET('1EPond'!$C$10,12*$A32,4*(PlotControl!$C$6-1),12,1))) -> 99395 | C32: =IF(PlotControl!$B$4 = "Annual Max",MAX(OFFSET('1EPond'!$D$10,12*$A32,4*(PlotControl!$C$6-1),12,1)),AVERAGE(OFFSET('1EPond'!$D$10,12*$A32,4*(PlotControl!$C$6-1),12,1))) -> 112730 | D32: =IF(PlotControl!$B$4 = "Annual Max",MAX(OFFSET('1EPond'!$E$10,12*$A32,4*(PlotControl!$C$6-1),12,1)),AVERAGE(OFFSET('1EPond'!$E$10,12*$A32,4*(PlotControl!$C$6-1),12,1))) -> 129220 | X32: 42.25 | Y32: =IF($X32<=7,OFFSET('2EPond'!$C$10,12*$X32,4*(PlotControl!$C$6-1),1,1),OFFSET('1EPond'!$C$10,12*$X32,4*(PlotControl!$C$6-1),1,1)) -> 16071 | Z32: =IF(X32<=7,OFFSET('2EPond'!$D$10,12*$X32,4*(PlotControl!$C$6-1),1,1),OFFSET('1EPond'!$D$10,12*$X32,4*(PlotControl!$C$6-1),1,1)) -> 16825 | AA32: =IF(X32<=7,OFFSET('2EPond'!$E$10,12*$X32,4*(PlotControl!$C$6-1),1,1),OFFSET('1EPond'!$E$10,12*$X32,4*(PlotControl!$C$6-1),1,1)) -> 17737
A33: 28 | B33: =IF(PlotControl!$B$4 = "Annual Max",MAX(OFFSET('1EPond'!$C$10,12*$A33,4*(PlotControl!$C$6-1),12,1)),AVERAGE(OFFSET('1EPond'!$C$10,12*$A33,4*(PlotControl!$C$6-1),12,1))) -> 84326 | C33: =IF(PlotControl!$B$4 = "Annual Max",MAX(OFFSET('1EPond'!$D$10,12*$A33,4*(PlotControl!$C$6-1),12,1)),AVERAGE(OFFSET('1EPond'!$D$10,12*$A33,4*(PlotControl!$C$6-1),12,1))) -> 95113 | D33: =IF(PlotControl!$B$4 = "Annual Max",MAX(OFFSET('1EPond'!$E$10,12*$A33,4*(PlotControl!$C$6-1),12,1)),AVERAGE(OFFSET('1EPond'!$E$10,12*$A33,4*(PlotControl!$C$6-1),12,1))) -> 108260 | X33: 42.33333333 | Y33: =IF($X33<=7,OFFSET('2EPond'!$C$10,12*$X33,4*(PlotControl!$C$6-1),1,1),OFFSET('1EPond'!$C$10,12*$X33,4*(PlotControl!$C$6-1),1,1)) -> 16123 | Z33: =IF(X33<=7,OFFSET('2EPond'!$D$10,12*$X33,4*(PlotControl!$C$6-1),1,1),OFFSET('1EPond'!$D$10,12*$X33,4*(PlotControl!$C$6-1),1,1)) -> 16876 | AA33: =IF(X33<=7,OFFSET('2EPond'!$E$10,12*$X33,4*(PlotControl!$C$6-1),1,1),OFFSET('1EPond'!$E$10,12*$X33,4*(PlotControl!$C$6-1),1,1)) -> 17748
A34: 29 | B34: =IF(PlotControl!$B$4 = "Annual Max",MAX(OFFSET('1EPond'!$C$10,12*$A34,4*(PlotControl!$C$6-1),12,1)),AVERAGE(OFFSET('1EPond'!$C$10,12*$A34,4*(PlotControl!$C$6-1),12,1))) -> 67470 | C34: =IF(PlotControl!$B$4 = "Annual Max",MAX(OFFSET('1EPond'!$D$10,12*$A34,4*(PlotControl!$C$6-1),12,1)),AVERAGE(OFFSET('1EPond'!$D$10,12*$A34,4*(PlotControl!$C$6-1),12,1))) -> 76217 | D34: =IF(PlotControl!$B$4 = "Annual Max",MAX(OFFSET('1EPond'!$E$10,12*$A34,4*(PlotControl!$C$6-1),12,1)),AVERAGE(OFFSET('1EPond'!$E$10,12*$A34,4*(PlotControl!$C$6-1),12,1))) -> 85975 | X34: 42.41666667 | Y34: =IF($X34<=7,OFFSET('2EPond'!$C$10,12*$X34,4*(PlotControl!$C$6-1),1,1),OFFSET('1EPond'!$C$10,12*$X34,4*(PlotControl!$C$6-1),1,1)) -> 16080 | Z34: =IF(X34<=7,OFFSET('2EPond'!$D$10,12*$X34,4*(PlotControl!$C$6-1),1,1),OFFSET('1EPond'!$D$10,12*$X34,4*(PlotControl!$C$6-1),1,1)) -> 16836 | AA34: =IF(X34<=7,OFFSET('2EPond'!$E$10,12*$X34,4*(PlotControl!$C$6-1),1,1),OFFSET('1EPond'!$E$10,12*$X34,4*(PlotControl!$C$6-1),1,1)) -> 17694
A35: 30 | B35: =IF(PlotControl!$B$4 = "Annual Max",MAX(OFFSET('1EPond'!$C$10,12*$A35,4*(PlotControl!$C$6-1),12,1)),AVERAGE(OFFSET('1EPond'!$C$10,12*$A35,4*(PlotControl!$C$6-1),12,1))) -> 54108 | C35: =IF(PlotControl!$B$4 = "Annual Max",MAX(OFFSET('1EPond'!$D$10,12*$A35,4*(PlotControl!$C$6-1),12,1)),AVERAGE(OFFSET('1EPond'!$D$10,12*$A35,4*(PlotControl!$C$6-1),12,1))) -> 60053 | D35: =IF(PlotControl!$B$4 = "Annual Max",MAX(OFFSET('1EPond'!$E$10,12*$A35,4*(PlotControl!$C$6-1),12,1)),AVERAGE(OFFSET('1EPond'!$E$10,12*$A35,4*(PlotControl!$C$6-1),12,1))) -> 67084 | X35: 42.5 | Y35: =IF($X35<=7,OFFSET('2EPond'!$C$10,12*$X35,4*(PlotControl!$C$6-1),1,1),OFFSET('1EPond'!$C$10,12*$X35,4*(PlotControl!$C$6-1),1,1)) -> 15949 | Z35: =IF(X35<=7,OFFSET('2EPond'!$D$10,12*$X35,4*(PlotControl!$C$6-1),1,1),OFFSET('1EPond'!$D$10,12*$X35,4*(PlotControl!$C$6-1),1,1)) -> 16721 | AA35: =IF(X35<=7,OFFSET('2EPond'!$E$10,12*$X35,4*(PlotControl!$C$6-1),1,1),OFFSET('1EPond'!$E$10,12*$X35,4*(PlotControl!$C$6-1),1,1)) -> 17597
A36: 31 | B36: =IF(PlotControl!$B$4 = "Annual Max",MAX(OFFSET('1EPond'!$C$10,12*$A36,4*(PlotControl!$C$6-1),12,1)),AVERAGE(OFFSET('1EPond'!$C$10,12*$A36,4*(PlotControl!$C$6-1),12,1))) -> 44292 | C36: =IF(PlotControl!$B$4 = "Annual Max",MAX(OFFSET('1EPond'!$D$10,12*$A36,4*(PlotControl!$C$6-1),12,1)),AVERAGE(OFFSET('1EPond'!$D$10,12*$A36,4*(PlotControl!$C$6-1),12,1))) -> 48787 | D36: =IF(PlotControl!$B$4 = "Annual Max",MAX(OFFSET('1EPond'!$E$10,12*$A36,4*(PlotControl!$C$6-1),12,1)),AVERAGE(OFFSET('1EPond'!$E$10,12*$A36,4*(PlotControl!$C$6-1),12,1))) -> 54194 | X36: 42.58333333 | Y36: =IF($X36<=7,OFFSET('2EPond'!$C$10,12*$X36,4*(PlotControl!$C$6-1),1,1),OFFSET('1EPond'!$C$10,12*$X36,4*(PlotControl!$C$6-1),1,1)) -> 15878 | Z36: =IF(X36<=7,OFFSET('2EPond'!$D$10,12*$X36,4*(PlotControl!$C$6-1),1,1),OFFSET('1EPond'!$D$10,12*$X36,4*(PlotControl!$C$6-1),1,1)) -> 16679 | AA36: =IF(X36<=7,OFFSET('2EPond'!$E$10,12*$X36,4*(PlotControl!$C$6-1),1,1),OFFSET('1EPond'!$E$10,12*$X36,4*(PlotControl!$C$6-1),1,1)) -> 17566
A37: 32 | B37: =IF(PlotControl!$B$4 = "Annual Max",MAX(OFFSET('1EPond'!$C$10,12*$A37,4*(PlotControl!$C$6-1),12,1)),AVERAGE(OFFSET('1EPond'!$C$10,12*$A37,4*(PlotControl!$C$6-1),12,1))) -> 37784 | C37: =IF(PlotControl!$B$4 = "Annual Max",MAX(OFFSET('1EPond'!$D$10,12*$A37,4*(PlotControl!$C$6-1),12,1)),AVERAGE(OFFSET('1EPond'!$D$10,12*$A37,4*(PlotControl!$C$6-1),12,1))) -> 41387 | D37: =IF(PlotControl!$B$4 = "Annual Max",MAX(OFFSET('1EPond'!$E$10,12*$A37,4*(PlotControl!$C$6-1),12,1)),AVERAGE(OFFSET('1EPond'!$E$10,12*$A37,4*(PlotControl!$C$6-1),12,1))) -> 45061 | X37: 42.66666667 | Y37: =IF($X37<=7,OFFSET('2EPond'!$C$10,12*$X37,4*(PlotControl!$C$6-1),1,1),OFFSET('1EPond'!$C$10,12*$X37,4*(PlotControl!$C$6-1),1,1)) -> 15819 | Z37: =IF(X37<=7,OFFSET('2EPond'!$D$10,12*$X37,4*(PlotControl!$C$6-1),1,1),OFFSET('1EPond'!$D$10,12*$X37,4*(PlotControl!$C$6-1),1,1)) -> 16668 | AA37: =IF(X37<=7,OFFSET('2EPond'!$E$10,12*$X37,4*(PlotControl!$C$6-1),1,1),OFFSET('1EPond'!$E$10,12*$X37,4*(PlotControl!$C$6-1),1,1)) -> 17558
A38: 33 | B38: =IF(PlotControl!$B$4 = "Annual Max",MAX(OFFSET('1EPond'!$C$10,12*$A38,4*(PlotControl!$C$6-1),12,1)),AVERAGE(OFFSET('1EPond'!$C$10,12*$A38,4*(PlotControl!$C$6-1),12,1))) -> 33388 | C38: =IF(PlotControl!$B$4 = "Annual Max",MAX(OFFSET('1EPond'!$D$10,12*$A38,4*(PlotControl!$C$6-1),12,1)),AVERAGE(OFFSET('1EPond'!$D$10,12*$A38,4*(PlotControl!$C$6-1),12,1))) -> 35962 | D38: =IF(PlotControl!$B$4 = "Annual Max",MAX(OFFSET('1EPond'!$E$10,12*$A38,4*(PlotControl!$C$6-1),12,1)),AVERAGE(OFFSET('1EPond'!$E$10,12*$A38,4*(PlotControl!$C$6-1),12,1))) -> 38993 | X38: 42.75 | Y38: =IF($X38<=7,OFFSET('2EPond'!$C$10,12*$X38,4*(PlotControl!$C$6-1),1,1),OFFSET('1EPond'!$C$10,12*$X38,4*(PlotControl!$C$6-1),1,1)) -> 15694 | Z38: =IF(X38<=7,OFFSET('2EPond'!$D$10,12*$X38,4*(PlotControl!$C$6-1),1,1),OFFSET('1EPond'!$D$10,12*$X38,4*(PlotControl!$C$6-1),1,1)) -> 16585 | AA38: =IF(X38<=7,OFFSET('2EPond'!$E$10,12*$X38,4*(PlotControl!$C$6-1),1,1),OFFSET('1EPond'!$E$10,12*$X38,4*(PlotControl!$C$6-1),1,1)) -> 17489
A39: 34 | B39: =IF(PlotControl!$B$4 = "Annual Max",MAX(OFFSET('1EPond'!$C$10,12*$A39,4*(PlotControl!$C$6-1),12,1)),AVERAGE(OFFSET('1EPond'!$C$10,12*$A39,4*(PlotControl!$C$6-1),12,1))) -> 30248 | C39: =IF(PlotControl!$B$4 = "Annual Max",MAX(OFFSET('1EPond'!$D$10,12*$A39,4*(PlotControl!$C$6-1),12,1)),AVERAGE(OFFSET('1EPond'!$D$10,12*$A39,4*(PlotControl!$C$6-1),12,1))) -> 32227 | D39: =IF(PlotControl!$B$4 = "Annual Max",MAX(OFFSET('1EPond'!$E$10,12*$A39,4*(PlotControl!$C$6-1),12,1)),AVERAGE(OFFSET('1EPond'!$E$10,12*$A39,4*(PlotControl!$C$6-1),12,1))) -> 34755 | X39: 42.83333333 | Y39: =IF($X39<=7,OFFSET('2EPond'!$C$10,12*$X39,4*(PlotControl!$C$6-1),1,1),OFFSET('1EPond'!$C$10,12*$X39,4*(PlotControl!$C$6-1),1,1)) -> 15616 | Z39: =IF(X39<=7,OFFSET('2EPond'!$D$10,12*$X39,4*(PlotControl!$C$6-1),1,1),OFFSET('1EPond'!$D$10,12*$X39,4*(PlotControl!$C$6-1),1,1)) -> 16512 | AA39: =IF(X39<=7,OFFSET('2EPond'!$E$10,12*$X39,4*(PlotControl!$C$6-1),1,1),OFFSET('1EPond'!$E$10,12*$X39,4*(PlotControl!$C$6-1),1,1)) -> 17433
A40: 35 | B40: =IF(PlotControl!$B$4 = "Annual Max",MAX(OFFSET('1EPond'!$C$10,12*$A40,4*(PlotControl!$C$6-1),12,1)),AVERAGE(OFFSET('1EPond'!$C$10,12*$A40,4*(PlotControl!$C$6-1),12,1))) -> 27153 | C40: =IF(PlotControl!$B$4 = "Annual Max",MAX(OFFSET('1EPond'!$D$10,12*$A40,4*(PlotControl!$C$6-1),12,1)),AVERAGE(OFFSET('1EPond'!$D$10,12*$A40,4*(PlotControl!$C$6-1),12,1))) -> 28818 | D40: =IF(PlotControl!$B$4 = "Annual Max",MAX(OFFSET('1EPond'!$E$10,12*$A40,4*(PlotControl!$C$6-1),12,1)),AVERAGE(OFFSET('1EPond'!$E$10,12*$A40,4*(PlotControl!$C$6-1),12,1))) -> 31002 | X40: 42.91666667 | Y40: =IF($X40<=7,OFFSET('2EPond'!$C$10,12*$X40,4*(PlotControl!$C$6-1),1,1),OFFSET('1EPond'!$C$10,12*$X40,4*(PlotControl!$C$6-1),1,1)) -> 15568 | Z40: =IF(X40<=7,OFFSET('2EPond'!$D$10,12*$X40,4*(PlotControl!$C$6-1),1,1),OFFSET('1EPond'!$D$10,12*$X40,4*(PlotControl!$C$6-1),1,1)) -> 16474 | AA40: =IF(X40<=7,OFFSET('2EPond'!$E$10,12*$X40,4*(PlotControl!$C$6-1),1,1),OFFSET('1EPond'!$E$10,12*$X40,4*(PlotControl!$C$6-1),1,1)) -> 17365
A41: 36 | B41: =IF(PlotControl!$B$4 = "Annual Max",MAX(OFFSET('1EPond'!$C$10,12*$A41,4*(PlotControl!$C$6-1),12,1)),AVERAGE(OFFSET('1EPond'!$C$10,12*$A41,4*(PlotControl!$C$6-1),12,1))) -> 24132 | C41: =IF(PlotControl!$B$4 = "Annual Max",MAX(OFFSET('1EPond'!$D$10,12*$A41,4*(PlotControl!$C$6-1),12,1)),AVERAGE(OFFSET('1EPond'!$D$10,12*$A41,4*(PlotControl!$C$6-1),12,1))) -> 25653 | D41: =IF(PlotControl!$B$4 = "Annual Max",MAX(OFFSET('1EPond'!$E$10,12*$A41,4*(PlotControl!$C$6-1),12,1)),AVERAGE(OFFSET('1EPond'!$E$10,12*$A41,4*(PlotControl!$C$6-1),12,1))) -> 27388 | X41: 43 | Y41: =IF($X41<=7,OFFSET('2EPond'!$C$10,12*$X41,4*(PlotControl!$C$6-1),1,1),OFFSET('1EPond'!$C$10,12*$X41,4*(PlotControl!$C$6-1),1,1)) -> 15530 | Z41: =IF(X41<=7,OFFSET('2EPond'!$D$10,12*$X41,4*(PlotControl!$C$6-1),1,1),OFFSET('1EPond'!$D$10,12*$X41,4*(PlotControl!$C$6-1),1,1)) -> 16411 | AA41: =IF(X41<=7,OFFSET('2EPond'!$E$10,12*$X41,4*(PlotControl!$C$6-1),1,1),OFFSET('1EPond'!$E$10,12*$X41,4*(PlotControl!$C$6-1),1,1)) -> 17290
A42: 37 | B42: =IF(PlotControl!$B$4 = "Annual Max",MAX(OFFSET('1EPond'!$C$10,12*$A42,4*(PlotControl!$C$6-1),12,1)),AVERAGE(OFFSET('1EPond'!$C$10,12*$A42,4*(PlotControl!$C$6-1),12,1))) -> 21626 | C42: =IF(PlotControl!$B$4 = "Annual Max",MAX(OFFSET('1EPond'!$D$10,12*$A42,4*(PlotControl!$C$6-1),12,1)),AVERAGE(OFFSET('1EPond'!$D$10,12*$A42,4*(PlotControl!$C$6-1),12,1))) -> 22902 | D42: =IF(PlotControl!$B$4 = "Annual Max",MAX(OFFSET('1EPond'!$E$10,12*$A42,4*(PlotControl!$C$6-1),12,1)),AVERAGE(OFFSET('1EPond'!$E$10,12*$A42,4*(PlotControl!$C$6-1),12,1))) -> 24292 | X42: 43.08333333 | Y42: =IF($X42<=7,OFFSET('2EPond'!$C$10,12*$X42,4*(PlotControl!$C$6-1),1,1),OFFSET('1EPond'!$C$10,12*$X42,4*(PlotControl!$C$6-1),1,1)) -> 15507 | Z42: =IF(X42<=7,OFFSET('2EPond'!$D$10,12*$X42,4*(PlotControl!$C$6-1),1,1),OFFSET('1EPond'!$D$10,12*$X42,4*(PlotControl!$C$6-1),1,1)) -> 16358 | AA42: =IF(X42<=7,OFFSET('2EPond'!$E$10,12*$X42,4*(PlotControl!$C$6-1),1,1),OFFSET('1EPond'!$E$10,12*$X42,4*(PlotControl!$C$6-1),1,1)) -> 17214
A43: 38 | B43: =IF(PlotControl!$B$4 = "Annual Max",MAX(OFFSET('1EPond'!$C$10,12*$A43,4*(PlotControl!$C$6-1),12,1)),AVERAGE(OFFSET('1EPond'!$C$10,12*$A43,4*(PlotControl!$C$6-1),12,1))) -> 19748 | C43: =IF(PlotControl!$B$4 = "Annual Max",MAX(OFFSET('1EPond'!$D$10,12*$A43,4*(PlotControl!$C$6-1),12,1)),AVERAGE(OFFSET('1EPond'!$D$10,12*$A43,4*(PlotControl!$C$6-1),12,1))) -> 20901 | D43: =IF(PlotControl!$B$4 = "Annual Max",MAX(OFFSET('1EPond'!$E$10,12*$A43,4*(PlotControl!$C$6-1),12,1)),AVERAGE(OFFSET('1EPond'!$E$10,12*$A43,4*(PlotControl!$C$6-1),12,1))) -> 22221 | X43: 43.16666667 | Y43: =IF($X43<=7,OFFSET('2EPond'!$C$10,12*$X43,4*(PlotControl!$C$6-1),1,1),OFFSET('1EPond'!$C$10,12*$X43,4*(PlotControl!$C$6-1),1,1)) -> 15510 | Z43: =IF(X43<=7,OFFSET('2EPond'!$D$10,12*$X43,4*(PlotControl!$C$6-1),1,1),OFFSET('1EPond'!$D$10,12*$X43,4*(PlotControl!$C$6-1),1,1)) -> 16323 | AA43: =IF(X43<=7,OFFSET('2EPond'!$E$10,12*$X43,4*(PlotControl!$C$6-1),1,1),OFFSET('1EPond'!$E$10,12*$X43,4*(PlotControl!$C$6-1),1,1)) -> 17176
A44: 39 | B44: =IF(PlotControl!$B$4 = "Annual Max",MAX(OFFSET('1EPond'!$C$10,12*$A44,4*(PlotControl!$C$6-1),12,1)),AVERAGE(OFFSET('1EPond'!$C$10,12*$A44,4*(PlotControl!$C$6-1),12,1))) -> 18478 | C44: =IF(PlotControl!$B$4 = "Annual Max",MAX(OFFSET('1EPond'!$D$10,12*$A44,4*(PlotControl!$C$6-1),12,1)),AVERAGE(OFFSET('1EPond'!$D$10,12*$A44,4*(PlotControl!$C$6-1),12,1))) -> 19513 | D44: =IF(PlotControl!$B$4 = "Annual Max",MAX(OFFSET('1EPond'!$E$10,12*$A44,4*(PlotControl!$C$6-1),12,1)),AVERAGE(OFFSET('1EPond'!$E$10,12*$A44,4*(PlotControl!$C$6-1),12,1))) -> 20672 | X44: 43.25 | Y44: =IF($X44<=7,OFFSET('2EPond'!$C$10,12*$X44,4*(PlotControl!$C$6-1),1,1),OFFSET('1EPond'!$C$10,12*$X44,4*(PlotControl!$C$6-1),1,1)) -> 15553 | Z44: =IF(X44<=7,OFFSET('2EPond'!$D$10,12*$X44,4*(PlotControl!$C$6-1),1,1),OFFSET('1EPond'!$D$10,12*$X44,4*(PlotControl!$C$6-1),1,1)) -> 16335 | AA44: =IF(X44<=7,OFFSET('2EPond'!$E$10,12*$X44,4*(PlotControl!$C$6-1),1,1),OFFSET('1EPond'!$E$10,12*$X44,4*(PlotControl!$C$6-1),1,1)) -> 17187
A45: 40 | B45: =IF(PlotControl!$B$4 = "Annual Max",MAX(OFFSET('1EPond'!$C$10,12*$A45,4*(PlotControl!$C$6-1),12,1)),AVERAGE(OFFSET('1EPond'!$C$10,12*$A45,4*(PlotControl!$C$6-1),12,1))) -> 17516 | C45: =IF(PlotControl!$B$4 = "Annual Max",MAX(OFFSET('1EPond'!$D$10,12*$A45,4*(PlotControl!$C$6-1),12,1)),AVERAGE(OFFSET('1EPond'!$D$10,12*$A45,4*(PlotControl!$C$6-1),12,1))) -> 18592 | D45: =IF(PlotControl!$B$4 = "Annual Max",MAX(OFFSET('1EPond'!$E$10,12*$A45,4*(PlotControl!$C$6-1),12,1)),AVERAGE(OFFSET('1EPond'!$E$10,12*$A45,4*(PlotControl!$C$6-1),12,1))) -> 19604 | X45: 43.33333333 | Y45: =IF($X45<=7,OFFSET('2EPond'!$C$10,12*$X45,4*(PlotControl!$C$6-1),1,1),OFFSET('1EPond'!$C$10,12*$X45,4*(PlotControl!$C$6-1),1,1)) -> 15605 | Z45: =IF(X45<=7,OFFSET('2EPond'!$D$10,12*$X45,4*(PlotControl!$C$6-1),1,1),OFFSET('1EPond'!$D$10,12*$X45,4*(PlotControl!$C$6-1),1,1)) -> 16407 | AA45: =IF(X45<=7,OFFSET('2EPond'!$E$10,12*$X45,4*(PlotControl!$C$6-1),1,1),OFFSET('1EPond'!$E$10,12*$X45,4*(PlotControl!$C$6-1),1,1)) -> 17232
A46: 41 | B46: =IF(PlotControl!$B$4 = "Annual Max",MAX(OFFSET('1EPond'!$C$10,12*$A46,4*(PlotControl!$C$6-1),12,1)),AVERAGE(OFFSET('1EPond'!$C$10,12*$A46,4*(PlotControl!$C$6-1),12,1))) -> 16651 | C46: =IF(PlotControl!$B$4 = "Annual Max",MAX(OFFSET('1EPond'!$D$10,12*$A46,4*(PlotControl!$C$6-1),12,1)),AVERAGE(OFFSET('1EPond'!$D$10,12*$A46,4*(PlotControl!$C$6-1),12,1))) -> 17665 | D46: =IF(PlotControl!$B$4 = "Annual Max",MAX(OFFSET('1EPond'!$E$10,12*$A46,4*(PlotControl!$C$6-1),12,1)),AVERAGE(OFFSET('1EPond'!$E$10,12*$A46,4*(PlotControl!$C$6-1),12,1))) -> 18560 | X46: 43.41666667 | Y46: =IF($X46<=7,OFFSET('2EPond'!$C$10,12*$X46,4*(PlotControl!$C$6-1),1,1),OFFSET('1EPond'!$C$10,12*$X46,4*(PlotControl!$C$6-1),1,1)) -> 15586 | Z46: =IF(X46<=7,OFFSET('2EPond'!$D$10,12*$X46,4*(PlotControl!$C$6-1),1,1),OFFSET('1EPond'!$D$10,12*$X46,4*(PlotControl!$C$6-1),1,1)) -> 16378 | AA46: =IF(X46<=7,OFFSET('2EPond'!$E$10,12*$X46,4*(PlotControl!$C$6-1),1,1),OFFSET('1EPond'!$E$10,12*$X46,4*(PlotControl!$C$6-1),1,1)) -> 17226
A47: 42 | B47: =IF(PlotControl!$B$4 = "Annual Max",MAX(OFFSET('1EPond'!$C$10,12*$A47,4*(PlotControl!$C$6-1),12,1)),AVERAGE(OFFSET('1EPond'!$C$10,12*$A47,4*(PlotControl!$C$6-1),12,1))) -> 16123 | C47: =IF(PlotControl!$B$4 = "Annual Max",MAX(OFFSET('1EPond'!$D$10,12*$A47,4*(PlotControl!$C$6-1),12,1)),AVERAGE(OFFSET('1EPond'!$D$10,12*$A47,4*(PlotControl!$C$6-1),12,1))) -> 16893 | D47: =IF(PlotControl!$B$4 = "Annual Max",MAX(OFFSET('1EPond'!$E$10,12*$A47,4*(PlotControl!$C$6-1),12,1)),AVERAGE(OFFSET('1EPond'!$E$10,12*$A47,4*(PlotControl!$C$6-1),12,1))) -> 17884 | X47: 43.5 | Y47: =IF($X47<=7,OFFSET('2EPond'!$C$10,12*$X47,4*(PlotControl!$C$6-1),1,1),OFFSET('1EPond'!$C$10,12*$X47,4*(PlotControl!$C$6-1),1,1)) -> 15464 | Z47: =IF(X47<=7,OFFSET('2EPond'!$D$10,12*$X47,4*(PlotControl!$C$6-1),1,1),OFFSET('1EPond'!$D$10,12*$X47,4*(PlotControl!$C$6-1),1,1)) -> 16270 | AA47: =IF(X47<=7,OFFSET('2EPond'!$E$10,12*$X47,4*(PlotControl!$C$6-1),1,1),OFFSET('1EPond'!$E$10,12*$X47,4*(PlotControl!$C$6-1),1,1)) -> 17093
A48: 43 | B48: =IF(PlotControl!$B$4 = "Annual Max",MAX(OFFSET('1EPond'!$C$10,12*$A48,4*(PlotControl!$C$6-1),12,1)),AVERAGE(OFFSET('1EPond'!$C$10,12*$A48,4*(PlotControl!$C$6-1),12,1))) -> 15605 | C48: =IF(PlotControl!$B$4 = "Annual Max",MAX(OFFSET('1EPond'!$D$10,12*$A48,4*(PlotControl!$C$6-1),12,1)),AVERAGE(OFFSET('1EPond'!$D$10,12*$A48,4*(PlotControl!$C$6-1),12,1))) -> 16411 | D48: =IF(PlotControl!$B$4 = "Annual Max",MAX(OFFSET('1EPond'!$E$10,12*$A48,4*(PlotControl!$C$6-1),12,1)),AVERAGE(OFFSET('1EPond'!$E$10,12*$A48,4*(PlotControl!$C$6-1),12,1))) -> 17290 | X48: 43.58333333 | Y48: =IF($X48<=7,OFFSET('2EPond'!$C$10,12*$X48,4*(PlotControl!$C$6-1),1,1),OFFSET('1EPond'!$C$10,12*$X48,4*(PlotControl!$C$6-1),1,1)) -> 15388 | Z48: =IF(X48<=7,OFFSET('2EPond'!$D$10,12*$X48,4*(PlotControl!$C$6-1),1,1),OFFSET('1EPond'!$D$10,12*$X48,4*(PlotControl!$C$6-1),1,1)) -> 16228 | AA48: =IF(X48<=7,OFFSET('2EPond'!$E$10,12*$X48,4*(PlotControl!$C$6-1),1,1),OFFSET('1EPond'!$E$10,12*$X48,4*(PlotControl!$C$6-1),1,1)) -> 17070
A49: 44 | B49: =IF(PlotControl!$B$4 = "Annual Max",MAX(OFFSET('1EPond'!$C$10,12*$A49,4*(PlotControl!$C$6-1),12,1)),AVERAGE(OFFSET('1EPond'!$C$10,12*$A49,4*(PlotControl!$C$6-1),12,1))) -> 15165 | C49: =IF(PlotControl!$B$4 = "Annual Max",MAX(OFFSET('1EPond'!$D$10,12*$A49,4*(PlotControl!$C$6-1),12,1)),AVERAGE(OFFSET('1EPond'!$D$10,12*$A49,4*(PlotControl!$C$6-1),12,1))) -> 15996 | D49: =IF(PlotControl!$B$4 = "Annual Max",MAX(OFFSET('1EPond'!$E$10,12*$A49,4*(PlotControl!$C$6-1),12,1)),AVERAGE(OFFSET('1EPond'!$E$10,12*$A49,4*(PlotControl!$C$6-1),12,1))) -> 16767 | X49: 43.66666667 | Y49: =IF($X49<=7,OFFSET('2EPond'!$C$10,12*$X49,4*(PlotControl!$C$6-1),1,1),OFFSET('1EPond'!$C$10,12*$X49,4*(PlotControl!$C$6-1),1,1)) -> 15341 | Z49: =IF(X49<=7,OFFSET('2EPond'!$D$10,12*$X49,4*(PlotControl!$C$6-1),1,1),OFFSET('1EPond'!$D$10,12*$X49,4*(PlotControl!$C$6-1),1,1)) -> 16199 | AA49: =IF(X49<=7,OFFSET('2EPond'!$E$10,12*$X49,4*(PlotControl!$C$6-1),1,1),OFFSET('1EPond'!$E$10,12*$X49,4*(PlotControl!$C$6-1),1,1)) -> 17046
A50: 45 | B50: =IF(PlotControl!$B$4 = "Annual Max",MAX(OFFSET('1EPond'!$C$10,12*$A50,4*(PlotControl!$C$6-1),12,1)),AVERAGE(OFFSET('1EPond'!$C$10,12*$A50,4*(PlotControl!$C$6-1),12,1))) -> 14857 | C50: =IF(PlotControl!$B$4 = "Annual Max",MAX(OFFSET('1EPond'!$D$10,12*$A50,4*(PlotControl!$C$6-1),12,1)),AVERAGE(OFFSET('1EPond'!$D$10,12*$A50,4*(PlotControl!$C$6-1),12,1))) -> 15621 | D50: =IF(PlotControl!$B$4 = "Annual Max",MAX(OFFSET('1EPond'!$E$10,12*$A50,4*(PlotControl!$C$6-1),12,1)),AVERAGE(OFFSET('1EPond'!$E$10,12*$A50,4*(PlotControl!$C$6-1),12,1))) -> 16459 | X50: 43.75 | Y50: =IF($X50<=7,OFFSET('2EPond'!$C$10,12*$X50,4*(PlotControl!$C$6-1),1,1),OFFSET('1EPond'!$C$10,12*$X50,4*(PlotControl!$C$6-1),1,1)) -> 15189 | Z50: =IF(X50<=7,OFFSET('2EPond'!$D$10,12*$X50,4*(PlotControl!$C$6-1),1,1),OFFSET('1EPond'!$D$10,12*$X50,4*(PlotControl!$C$6-1),1,1)) -> 16101 | AA50: =IF(X50<=7,OFFSET('2EPond'!$E$10,12*$X50,4*(PlotControl!$C$6-1),1,1),OFFSET('1EPond'!$E$10,12*$X50,4*(PlotControl!$C$6-1),1,1)) -> 16962
A51: 46 | B51: =IF(PlotControl!$B$4 = "Annual Max",MAX(OFFSET('1EPond'!$C$10,12*$A51,4*(PlotControl!$C$6-1),12,1)),AVERAGE(OFFSET('1EPond'!$C$10,12*$A51,4*(PlotControl!$C$6-1),12,1))) -> 14568 | C51: =IF(PlotControl!$B$4 = "Annual Max",MAX(OFFSET('1EPond'!$D$10,12*$A51,4*(PlotControl!$C$6-1),12,1)),AVERAGE(OFFSET('1EPond'!$D$10,12*$A51,4*(PlotControl!$C$6-1),12,1))) -> 15291 | D51: =IF(PlotControl!$B$4 = "Annual Max",MAX(OFFSET('1EPond'!$E$10,12*$A51,4*(PlotControl!$C$6-1),12,1)),AVERAGE(OFFSET('1EPond'!$E$10,12*$A51,4*(PlotControl!$C$6-1),12,1))) -> 16195 | X51: 43.83333333 | Y51: =IF($X51<=7,OFFSET('2EPond'!$C$10,12*$X51,4*(PlotControl!$C$6-1),1,1),OFFSET('1EPond'!$C$10,12*$X51,4*(PlotControl!$C$6-1),1,1)) -> 15121 | Z51: =IF(X51<=7,OFFSET('2EPond'!$D$10,12*$X51,4*(PlotControl!$C$6-1),1,1),OFFSET('1EPond'!$D$10,12*$X51,4*(PlotControl!$C$6-1),1,1)) -> 16051 | AA51: =IF(X51<=7,OFFSET('2EPond'!$E$10,12*$X51,4*(PlotControl!$C$6-1),1,1),OFFSET('1EPond'!$E$10,12*$X51,4*(PlotControl!$C$6-1),1,1)) -> 16926
A52: 47 | B52: =IF(PlotControl!$B$4 = "Annual Max",MAX(OFFSET('1EPond'!$C$10,12*$A52,4*(PlotControl!$C$6-1),12,1)),AVERAGE(OFFSET('1EPond'!$C$10,12*$A52,4*(PlotControl!$C$6-1),12,1))) -> 14283 | C52: =IF(PlotControl!$B$4 = "Annual Max",MAX(OFFSET('1EPond'!$D$10,12*$A52,4*(PlotControl!$C$6-1),12,1)),AVERAGE(OFFSET('1EPond'!$D$10,12*$A52,4*(PlotControl!$C$6-1),12,1))) -> 14986 | D52: =IF(PlotControl!$B$4 = "Annual Max",MAX(OFFSET('1EPond'!$E$10,12*$A52,4*(PlotControl!$C$6-1),12,1)),AVERAGE(OFFSET('1EPond'!$E$10,12*$A52,4*(PlotControl!$C$6-1),12,1))) -> 16046 | X52: 43.91666667 | Y52: =IF($X52<=7,OFFSET('2EPond'!$C$10,12*$X52,4*(PlotControl!$C$6-1),1,1),OFFSET('1EPond'!$C$10,12*$X52,4*(PlotControl!$C$6-1),1,1)) -> 15096 | Z52: =IF(X52<=7,OFFSET('2EPond'!$D$10,12*$X52,4*(PlotControl!$C$6-1),1,1),OFFSET('1EPond'!$D$10,12*$X52,4*(PlotControl!$C$6-1),1,1)) -> 16006 | AA52: =IF(X52<=7,OFFSET('2EPond'!$E$10,12*$X52,4*(PlotControl!$C$6-1),1,1),OFFSET('1EPond'!$E$10,12*$X52,4*(PlotControl!$C$6-1),1,1)) -> 16867
A53: 48 | B53: =IF(PlotControl!$B$4 = "Annual Max",MAX(OFFSET('1EPond'!$C$10,12*$A53,4*(PlotControl!$C$6-1),12,1)),AVERAGE(OFFSET('1EPond'!$C$10,12*$A53,4*(PlotControl!$C$6-1),12,1))) -> 14034 | C53: =IF(PlotControl!$B$4 = "Annual Max",MAX(OFFSET('1EPond'!$D$10,12*$A53,4*(PlotControl!$C$6-1),12,1)),AVERAGE(OFFSET('1EPond'!$D$10,12*$A53,4*(PlotControl!$C$6-1),12,1))) -> 14710 | D53: =IF(PlotControl!$B$4 = "Annual Max",MAX(OFFSET('1EPond'!$E$10,12*$A53,4*(PlotControl!$C$6-1),12,1)),AVERAGE(OFFSET('1EPond'!$E$10,12*$A53,4*(PlotControl!$C$6-1),12,1))) -> 16450 | X53: 44 | Y53: =IF($X53<=7,OFFSET('2EPond'!$C$10,12*$X53,4*(PlotControl!$C$6-1),1,1),OFFSET('1EPond'!$C$10,12*$X53,4*(PlotControl!$C$6-1),1,1)) -> 15071 | Z53: =IF(X53<=7,OFFSET('2EPond'!$D$10,12*$X53,4*(PlotControl!$C$6-1),1,1),OFFSET('1EPond'!$D$10,12*$X53,4*(PlotControl!$C$6-1),1,1)) -> 15948 | AA53: =IF(X53<=7,OFFSET('2EPond'!$E$10,12*$X53,4*(PlotControl!$C$6-1),1,1),OFFSET('1EPond'!$E$10,12*$X53,4*(PlotControl!$C$6-1),1,1)) -> 16767
A54: 49 | B54: =IF(PlotControl!$B$4 = "Annual Max",MAX(OFFSET('1EPond'!$C$10,12*$A54,4*(PlotControl!$C$6-1),12,1)),AVERAGE(OFFSET('1EPond'!$C$10,12*$A54,4*(PlotControl!$C$6-1),12,1))) -> 13801 | C54: =IF(PlotControl!$B$4 = "Annual Max",MAX(OFFSET('1EPond'!$D$10,12*$A54,4*(PlotControl!$C$6-1),12,1)),AVERAGE(OFFSET('1EPond'!$D$10,12*$A54,4*(PlotControl!$C$6-1),12,1))) -> 14425 | D54: =IF(PlotControl!$B$4 = "Annual Max",MAX(OFFSET('1EPond'!$E$10,12*$A54,4*(PlotControl!$C$6-1),12,1)),AVERAGE(OFFSET('1EPond'!$E$10,12*$A54,4*(PlotControl!$C$6-1),12,1))) -> 17338 | X54: 44.08333333 | Y54: =IF($X54<=7,OFFSET('2EPond'!$C$10,12*$X54,4*(PlotControl!$C$6-1),1,1),OFFSET('1EPond'!$C$10,12*$X54,4*(PlotControl!$C$6-1),1,1)) -> 15060 | Z54: =IF(X54<=7,OFFSET('2EPond'!$D$10,12*$X54,4*(PlotControl!$C$6-1),1,1),OFFSET('1EPond'!$D$10,12*$X54,4*(PlotControl!$C$6-1),1,1)) -> 15921 | AA54: =IF(X54<=7,OFFSET('2EPond'!$E$10,12*$X54,4*(PlotControl!$C$6-1),1,1),OFFSET('1EPond'!$E$10,12*$X54,4*(PlotControl!$C$6-1),1,1)) -> 16706
A55: 50 | B55: =IF(PlotControl!$B$4 = "Annual Max",MAX(OFFSET('1EPond'!$C$10,12*$A55,4*(PlotControl!$C$6-1),12,1)),AVERAGE(OFFSET('1EPond'!$C$10,12*$A55,4*(PlotControl!$C$6-1),12,1))) -> 13512 | C55: =IF(PlotControl!$B$4 = "Annual Max",MAX(OFFSET('1EPond'!$D$10,12*$A55,4*(PlotControl!$C$6-1),12,1)),AVERAGE(OFFSET('1EPond'!$D$10,12*$A55,4*(PlotControl!$C$6-1),12,1))) -> 14209 | D55: =IF(PlotControl!$B$4 = "Annual Max",MAX(OFFSET('1EPond'!$E$10,12*$A55,4*(PlotControl!$C$6-1),12,1)),AVERAGE(OFFSET('1EPond'!$E$10,12*$A55,4*(PlotControl!$C$6-1),12,1))) -> 18320 | X55: 44.16666667 | Y55: =IF($X55<=7,OFFSET('2EPond'!$C$10,12*$X55,4*(PlotControl!$C$6-1),1,1),OFFSET('1EPond'!$C$10,12*$X55,4*(PlotControl!$C$6-1),1,1)) -> 15071 | Z55: =IF(X55<=7,OFFSET('2EPond'!$D$10,12*$X55,4*(PlotControl!$C$6-1),1,1),OFFSET('1EPond'!$D$10,12*$X55,4*(PlotControl!$C$6-1),1,1)) -> 15907 | AA55: =IF(X55<=7,OFFSET('2EPond'!$E$10,12*$X55,4*(PlotControl!$C$6-1),1,1),OFFSET('1EPond'!$E$10,12*$X55,4*(PlotControl!$C$6-1),1,1)) -> 16667
A56: 51 | B56: =IF(PlotControl!$B$4 = "Annual Max",MAX(OFFSET('1EPond'!$C$10,12*$A56,4*(PlotControl!$C$6-1),12,1)),AVERAGE(OFFSET('1EPond'!$C$10,12*$A56,4*(PlotControl!$C$6-1),12,1))) -> 13283 | C56: =IF(PlotControl!$B$4 = "Annual Max",MAX(OFFSET('1EPond'!$D$10,12*$A56,4*(PlotControl!$C$6-1),12,1)),AVERAGE(OFFSET('1EPond'!$D$10,12*$A56,4*(PlotControl!$C$6-1),12,1))) -> 14005 | D56: =IF(PlotControl!$B$4 = "Annual Max",MAX(OFFSET('1EPond'!$E$10,12*$A56,4*(PlotControl!$C$6-1),12,1)),AVERAGE(OFFSET('1EPond'!$E$10,12*$A56,4*(PlotControl!$C$6-1),12,1))) -> 19385 | X56: 44.25 | Y56: =IF($X56<=7,OFFSET('2EPond'!$C$10,12*$X56,4*(PlotControl!$C$6-1),1,1),OFFSET('1EPond'!$C$10,12*$X56,4*(PlotControl!$C$6-1),1,1)) -> 15095 | Z56: =IF(X56<=7,OFFSET('2EPond'!$D$10,12*$X56,4*(PlotControl!$C$6-1),1,1),OFFSET('1EPond'!$D$10,12*$X56,4*(PlotControl!$C$6-1),1,1)) -> 15931 | AA56: =IF(X56<=7,OFFSET('2EPond'!$E$10,12*$X56,4*(PlotControl!$C$6-1),1,1),OFFSET('1EPond'!$E$10,12*$X56,4*(PlotControl!$C$6-1),1,1)) -> 16662
A57: 52 | B57: =IF(PlotControl!$B$4 = "Annual Max",MAX(OFFSET('1EPond'!$C$10,12*$A57,4*(PlotControl!$C$6-1),12,1)),AVERAGE(OFFSET('1EPond'!$C$10,12*$A57,4*(PlotControl!$C$6-1),12,1))) -> 13049 | C57: =IF(PlotControl!$B$4 = "Annual Max",MAX(OFFSET('1EPond'!$D$10,12*$A57,4*(PlotControl!$C$6-1),12,1)),AVERAGE(OFFSET('1EPond'!$D$10,12*$A57,4*(PlotControl!$C$6-1),12,1))) -> 13860 | D57: =IF(PlotControl!$B$4 = "Annual Max",MAX(OFFSET('1EPond'!$E$10,12*$A57,4*(PlotControl!$C$6-1),12,1)),AVERAGE(OFFSET('1EPond'!$E$10,12*$A57,4*(PlotControl!$C$6-1),12,1))) -> 19970 | X57: 44.33333333 | Y57: =IF($X57<=7,OFFSET('2EPond'!$C$10,12*$X57,4*(PlotControl!$C$6-1),1,1),OFFSET('1EPond'!$C$10,12*$X57,4*(PlotControl!$C$6-1),1,1)) -> 15163 | Z57: =IF(X57<=7,OFFSET('2EPond'!$D$10,12*$X57,4*(PlotControl!$C$6-1),1,1),OFFSET('1EPond'!$D$10,12*$X57,4*(PlotControl!$C$6-1),1,1)) -> 15996 | AA57: =IF(X57<=7,OFFSET('2EPond'!$E$10,12*$X57,4*(PlotControl!$C$6-1),1,1),OFFSET('1EPond'!$E$10,12*$X57,4*(PlotControl!$C$6-1),1,1)) -> 16738
A58: 53 | B58: =IF(PlotControl!$B$4 = "Annual Max",MAX(OFFSET('1EPond'!$C$10,12*$A58,4*(PlotControl!$C$6-1),12,1)),AVERAGE(OFFSET('1EPond'!$C$10,12*$A58,4*(PlotControl!$C$6-1),12,1))) -> 12800 | C58: =IF(PlotControl!$B$4 = "Annual Max",MAX(OFFSET('1EPond'!$D$10,12*$A58,4*(PlotControl!$C$6-1),12,1)),AVERAGE(OFFSET('1EPond'!$D$10,12*$A58,4*(PlotControl!$C$6-1),12,1))) -> 13684 | D58: =IF(PlotControl!$B$4 = "Annual Max",MAX(OFFSET('1EPond'!$E$10,12*$A58,4*(PlotControl!$C$6-1),12,1)),AVERAGE(OFFSET('1EPond'!$E$10,12*$A58,4*(PlotControl!$C$6-1),12,1))) -> 20479 | X58: 44.41666667 | Y58: =IF($X58<=7,OFFSET('2EPond'!$C$10,12*$X58,4*(PlotControl!$C$6-1),1,1),OFFSET('1EPond'!$C$10,12*$X58,4*(PlotControl!$C$6-1),1,1)) -> 15165 | Z58: =IF(X58<=7,OFFSET('2EPond'!$D$10,12*$X58,4*(PlotControl!$C$6-1),1,1),OFFSET('1EPond'!$D$10,12*$X58,4*(PlotControl!$C$6-1),1,1)) -> 15964 | AA58: =IF(X58<=7,OFFSET('2EPond'!$E$10,12*$X58,4*(PlotControl!$C$6-1),1,1),OFFSET('1EPond'!$E$10,12*$X58,4*(PlotControl!$C$6-1),1,1)) -> 16746
A59: 54 | B59: =IF(PlotControl!$B$4 = "Annual Max",MAX(OFFSET('1EPond'!$C$10,12*$A59,4*(PlotControl!$C$6-1),12,1)),AVERAGE(OFFSET('1EPond'!$C$10,12*$A59,4*(PlotControl!$C$6-1),12,1))) -> 12601 | C59: =IF(PlotControl!$B$4 = "Annual Max",MAX(OFFSET('1EPond'!$D$10,12*$A59,4*(PlotControl!$C$6-1),12,1)),AVERAGE(OFFSET('1EPond'!$D$10,12*$A59,4*(PlotControl!$C$6-1),12,1))) -> 13662 | D59: =IF(PlotControl!$B$4 = "Annual Max",MAX(OFFSET('1EPond'!$E$10,12*$A59,4*(PlotControl!$C$6-1),12,1)),AVERAGE(OFFSET('1EPond'!$E$10,12*$A59,4*(PlotControl!$C$6-1),12,1))) -> 21052 | X59: 44.5 | Y59: =IF($X59<=7,OFFSET('2EPond'!$C$10,12*$X59,4*(PlotControl!$C$6-1),1,1),OFFSET('1EPond'!$C$10,12*$X59,4*(PlotControl!$C$6-1),1,1)) -> 15076 | Z59: =IF(X59<=7,OFFSET('2EPond'!$D$10,12*$X59,4*(PlotControl!$C$6-1),1,1),OFFSET('1EPond'!$D$10,12*$X59,4*(PlotControl!$C$6-1),1,1)) -> 15835 | AA59: =IF(X59<=7,OFFSET('2EPond'!$E$10,12*$X59,4*(PlotControl!$C$6-1),1,1),OFFSET('1EPond'!$E$10,12*$X59,4*(PlotControl!$C$6-1),1,1)) -> 16662
A60: 55 | B60: =IF(PlotControl!$B$4 = "Annual Max",MAX(OFFSET('1EPond'!$C$10,12*$A60,4*(PlotControl!$C$6-1),12,1)),AVERAGE(OFFSET('1EPond'!$C$10,12*$A60,4*(PlotControl!$C$6-1),12,1))) -> 12433 | C60: =IF(PlotControl!$B$4 = "Annual Max",MAX(OFFSET('1EPond'!$D$10,12*$A60,4*(PlotControl!$C$6-1),12,1)),AVERAGE(OFFSET('1EPond'!$D$10,12*$A60,4*(PlotControl!$C$6-1),12,1))) -> 13852 | D60: =IF(PlotControl!$B$4 = "Annual Max",MAX(OFFSET('1EPond'!$E$10,12*$A60,4*(PlotControl!$C$6-1),12,1)),AVERAGE(OFFSET('1EPond'!$E$10,12*$A60,4*(PlotControl!$C$6-1),12,1))) -> 21118 | X60: 44.58333333 | Y60: =IF($X60<=7,OFFSET('2EPond'!$C$10,12*$X60,4*(PlotControl!$C$6-1),1,1),OFFSET('1EPond'!$C$10,12*$X60,4*(PlotControl!$C$6-1),1,1)) -> 14998 | Z60: =IF(X60<=7,OFFSET('2EPond'!$D$10,12*$X60,4*(PlotControl!$C$6-1),1,1),OFFSET('1EPond'!$D$10,12*$X60,4*(PlotControl!$C$6-1),1,1)) -> 15805 | AA60: =IF(X60<=7,OFFSET('2EPond'!$E$10,12*$X60,4*(PlotControl!$C$6-1),1,1),OFFSET('1EPond'!$E$10,12*$X60,4*(PlotControl!$C$6-1),1,1)) -> 16659
A61: 56 | B61: =IF(PlotControl!$B$4 = "Annual Max",MAX(OFFSET('1EPond'!$C$10,12*$A61,4*(PlotControl!$C$6-1),12,1)),AVERAGE(OFFSET('1EPond'!$C$10,12*$A61,4*(PlotControl!$C$6-1),12,1))) -> 12298 | C61: =IF(PlotControl!$B$4 = "Annual Max",MAX(OFFSET('1EPond'!$D$10,12*$A61,4*(PlotControl!$C$6-1),12,1)),AVERAGE(OFFSET('1EPond'!$D$10,12*$A61,4*(PlotControl!$C$6-1),12,1))) -> 14860 | D61: =IF(PlotControl!$B$4 = "Annual Max",MAX(OFFSET('1EPond'!$E$10,12*$A61,4*(PlotControl!$C$6-1),12,1)),AVERAGE(OFFSET('1EPond'!$E$10,12*$A61,4*(PlotControl!$C$6-1),12,1))) -> 21073 | X61: 44.66666667 | Y61: =IF($X61<=7,OFFSET('2EPond'!$C$10,12*$X61,4*(PlotControl!$C$6-1),1,1),OFFSET('1EPond'!$C$10,12*$X61,4*(PlotControl!$C$6-1),1,1)) -> 14951 | Z61: =IF(X61<=7,OFFSET('2EPond'!$D$10,12*$X61,4*(PlotControl!$C$6-1),1,1),OFFSET('1EPond'!$D$10,12*$X61,4*(PlotControl!$C$6-1),1,1)) -> 15785 | AA61: =IF(X61<=7,OFFSET('2EPond'!$E$10,12*$X61,4*(PlotControl!$C$6-1),1,1),OFFSET('1EPond'!$E$10,12*$X61,4*(PlotControl!$C$6-1),1,1)) -> 16654
A62: 57 | B62: =IF(PlotControl!$B$4 = "Annual Max",MAX(OFFSET('1EPond'!$C$10,12*$A62,4*(PlotControl!$C$6-1),12,1)),AVERAGE(OFFSET('1EPond'!$C$10,12*$A62,4*(PlotControl!$C$6-1),12,1))) -> 12246 | C62: =IF(PlotControl!$B$4 = "Annual Max",MAX(OFFSET('1EPond'!$D$10,12*$A62,4*(PlotControl!$C$6-1),12,1)),AVERAGE(OFFSET('1EPond'!$D$10,12*$A62,4*(PlotControl!$C$6-1),12,1))) -> 15731 | D62: =IF(PlotControl!$B$4 = "Annual Max",MAX(OFFSET('1EPond'!$E$10,12*$A62,4*(PlotControl!$C$6-1),12,1)),AVERAGE(OFFSET('1EPond'!$E$10,12*$A62,4*(PlotControl!$C$6-1),12,1))) -> 21269 | X62: 44.75 | Y62: =IF($X62<=7,OFFSET('2EPond'!$C$10,12*$X62,4*(PlotControl!$C$6-1),1,1),OFFSET('1EPond'!$C$10,12*$X62,4*(PlotControl!$C$6-1),1,1)) -> 14829 | Z62: =IF(X62<=7,OFFSET('2EPond'!$D$10,12*$X62,4*(PlotControl!$C$6-1),1,1),OFFSET('1EPond'!$D$10,12*$X62,4*(PlotControl!$C$6-1),1,1)) -> 15696 | AA62: =IF(X62<=7,OFFSET('2EPond'!$E$10,12*$X62,4*(PlotControl!$C$6-1),1,1),OFFSET('1EPond'!$E$10,12*$X62,4*(PlotControl!$C$6-1),1,1)) -> 16594
A63: 58 | B63: =IF(PlotControl!$B$4 = "Annual Max",MAX(OFFSET('1EPond'!$C$10,12*$A63,4*(PlotControl!$C$6-1),12,1)),AVERAGE(OFFSET('1EPond'!$C$10,12*$A63,4*(PlotControl!$C$6-1),12,1))) -> 12204 | C63: =IF(PlotControl!$B$4 = "Annual Max",MAX(OFFSET('1EPond'!$D$10,12*$A63,4*(PlotControl!$C$6-1),12,1)),AVERAGE(OFFSET('1EPond'!$D$10,12*$A63,4*(PlotControl!$C$6-1),12,1))) -> 16341 | D63: =IF(PlotControl!$B$4 = "Annual Max",MAX(OFFSET('1EPond'!$E$10,12*$A63,4*(PlotControl!$C$6-1),12,1)),AVERAGE(OFFSET('1EPond'!$E$10,12*$A63,4*(PlotControl!$C$6-1),12,1))) -> 21424 | X63: 44.83333333 | Y63: =IF($X63<=7,OFFSET('2EPond'!$C$10,12*$X63,4*(PlotControl!$C$6-1),1,1),OFFSET('1EPond'!$C$10,12*$X63,4*(PlotControl!$C$6-1),1,1)) -> 14789 | Z63: =IF(X63<=7,OFFSET('2EPond'!$D$10,12*$X63,4*(PlotControl!$C$6-1),1,1),OFFSET('1EPond'!$D$10,12*$X63,4*(PlotControl!$C$6-1),1,1)) -> 15652 | AA63: =IF(X63<=7,OFFSET('2EPond'!$E$10,12*$X63,4*(PlotControl!$C$6-1),1,1),OFFSET('1EPond'!$E$10,12*$X63,4*(PlotControl!$C$6-1),1,1)) -> 16543
A64: 59 | B64: =IF(PlotControl!$B$4 = "Annual Max",MAX(OFFSET('1EPond'!$C$10,12*$A64,4*(PlotControl!$C$6-1),12,1)),AVERAGE(OFFSET('1EPond'!$C$10,12*$A64,4*(PlotControl!$C$6-1),12,1))) -> 12265 | C64: =IF(PlotControl!$B$4 = "Annual Max",MAX(OFFSET('1EPond'!$D$10,12*$A64,4*(PlotControl!$C$6-1),12,1)),AVERAGE(OFFSET('1EPond'!$D$10,12*$A64,4*(PlotControl!$C$6-1),12,1))) -> 16882 | D64: =IF(PlotControl!$B$4 = "Annual Max",MAX(OFFSET('1EPond'!$E$10,12*$A64,4*(PlotControl!$C$6-1),12,1)),AVERAGE(OFFSET('1EPond'!$E$10,12*$A64,4*(PlotControl!$C$6-1),12,1))) -> 21670 | X64: 44.91666667 | Y64: =IF($X64<=7,OFFSET('2EPond'!$C$10,12*$X64,4*(PlotControl!$C$6-1),1,1),OFFSET('1EPond'!$C$10,12*$X64,4*(PlotControl!$C$6-1),1,1)) -> 14762 | Z64: =IF(X64<=7,OFFSET('2EPond'!$D$10,12*$X64,4*(PlotControl!$C$6-1),1,1),OFFSET('1EPond'!$D$10,12*$X64,4*(PlotControl!$C$6-1),1,1)) -> 15614 | AA64: =IF(X64<=7,OFFSET('2EPond'!$E$10,12*$X64,4*(PlotControl!$C$6-1),1,1),OFFSET('1EPond'!$E$10,12*$X64,4*(PlotControl!$C$6-1),1,1)) -> 16490
A65: 60 | B65: =IF(PlotControl!$B$4 = "Annual Max",MAX(OFFSET('1EPond'!$C$10,12*$A65,4*(PlotControl!$C$6-1),12,1)),AVERAGE(OFFSET('1EPond'!$C$10,12*$A65,4*(PlotControl!$C$6-1),12,1))) -> 12272 | C65: =IF(PlotControl!$B$4 = "Annual Max",MAX(OFFSET('1EPond'!$D$10,12*$A65,4*(PlotControl!$C$6-1),12,1)),AVERAGE(OFFSET('1EPond'!$D$10,12*$A65,4*(PlotControl!$C$6-1),12,1))) -> 17153 | D65: =IF(PlotControl!$B$4 = "Annual Max",MAX(OFFSET('1EPond'!$E$10,12*$A65,4*(PlotControl!$C$6-1),12,1)),AVERAGE(OFFSET('1EPond'!$E$10,12*$A65,4*(PlotControl!$C$6-1),12,1))) -> 21845 | X65: 45 | Y65: =IF($X65<=7,OFFSET('2EPond'!$C$10,12*$X65,4*(PlotControl!$C$6-1),1,1),OFFSET('1EPond'!$C$10,12*$X65,4*(PlotControl!$C$6-1),1,1)) -> 14730 | Z65: =IF(X65<=7,OFFSET('2EPond'!$D$10,12*$X65,4*(PlotControl!$C$6-1),1,1),OFFSET('1EPond'!$D$10,12*$X65,4*(PlotControl!$C$6-1),1,1)) -> 15568 | AA65: =IF(X65<=7,OFFSET('2EPond'!$E$10,12*$X65,4*(PlotControl!$C$6-1),1,1),OFFSET('1EPond'!$E$10,12*$X65,4*(PlotControl!$C$6-1),1,1)) -> 16408
A66: 61 | B66: =IF(PlotControl!$B$4 = "Annual Max",MAX(OFFSET('1EPond'!$C$10,12*$A66,4*(PlotControl!$C$6-1),12,1)),AVERAGE(OFFSET('1EPond'!$C$10,12*$A66,4*(PlotControl!$C$6-1),12,1))) -> 12439 | C66: =IF(PlotControl!$B$4 = "Annual Max",MAX(OFFSET('1EPond'!$D$10,12*$A66,4*(PlotControl!$C$6-1),12,1)),AVERAGE(OFFSET('1EPond'!$D$10,12*$A66,4*(PlotControl!$C$6-1),12,1))) -> 17381 | D66: =IF(PlotControl!$B$4 = "Annual Max",MAX(OFFSET('1EPond'!$E$10,12*$A66,4*(PlotControl!$C$6-1),12,1)),AVERAGE(OFFSET('1EPond'!$E$10,12*$A66,4*(PlotControl!$C$6-1),12,1))) -> 22086 | X66: 45.08333333 | Y66: =IF($X66<=7,OFFSET('2EPond'!$C$10,12*$X66,4*(PlotControl!$C$6-1),1,1),OFFSET('1EPond'!$C$10,12*$X66,4*(PlotControl!$C$6-1),1,1)) -> 14724 | Z66: =IF(X66<=7,OFFSET('2EPond'!$D$10,12*$X66,4*(PlotControl!$C$6-1),1,1),OFFSET('1EPond'!$D$10,12*$X66,4*(PlotControl!$C$6-1),1,1)) -> 15534 | AA66: =IF(X66<=7,OFFSET('2EPond'!$E$10,12*$X66,4*(PlotControl!$C$6-1),1,1),OFFSET('1EPond'!$E$10,12*$X66,4*(PlotControl!$C$6-1),1,1)) -> 16370
A67: 62 | B67: =IF(PlotControl!$B$4 = "Annual Max",MAX(OFFSET('1EPond'!$C$10,12*$A67,4*(PlotControl!$C$6-1),12,1)),AVERAGE(OFFSET('1EPond'!$C$10,12*$A67,4*(PlotControl!$C$6-1),12,1))) -> 12561 | C67: =IF(PlotControl!$B$4 = "Annual Max",MAX(OFFSET('1EPond'!$D$10,12*$A67,4*(PlotControl!$C$6-1),12,1)),AVERAGE(OFFSET('1EPond'!$D$10,12*$A67,4*(PlotControl!$C$6-1),12,1))) -> 17809 | D67: =IF(PlotControl!$B$4 = "Annual Max",MAX(OFFSET('1EPond'!$E$10,12*$A67,4*(PlotControl!$C$6-1),12,1)),AVERAGE(OFFSET('1EPond'!$E$10,12*$A67,4*(PlotControl!$C$6-1),12,1))) -> 22101 | X67: 45.16666667 | Y67: =IF($X67<=7,OFFSET('2EPond'!$C$10,12*$X67,4*(PlotControl!$C$6-1),1,1),OFFSET('1EPond'!$C$10,12*$X67,4*(PlotControl!$C$6-1),1,1)) -> 14746 | Z67: =IF(X67<=7,OFFSET('2EPond'!$D$10,12*$X67,4*(PlotControl!$C$6-1),1,1),OFFSET('1EPond'!$D$10,12*$X67,4*(PlotControl!$C$6-1),1,1)) -> 15529 | AA67: =IF(X67<=7,OFFSET('2EPond'!$E$10,12*$X67,4*(PlotControl!$C$6-1),1,1),OFFSET('1EPond'!$E$10,12*$X67,4*(PlotControl!$C$6-1),1,1)) -> 16357
A68: 63 | B68: =IF(PlotControl!$B$4 = "Annual Max",MAX(OFFSET('1EPond'!$C$10,12*$A68,4*(PlotControl!$C$6-1),12,1)),AVERAGE(OFFSET('1EPond'!$C$10,12*$A68,4*(PlotControl!$C$6-1),12,1))) -> 12974 | C68: =IF(PlotControl!$B$4 = "Annual Max",MAX(OFFSET('1EPond'!$D$10,12*$A68,4*(PlotControl!$C$6-1),12,1)),AVERAGE(OFFSET('1EPond'!$D$10,12*$A68,4*(PlotControl!$C$6-1),12,1))) -> 18196 | D68: =IF(PlotControl!$B$4 = "Annual Max",MAX(OFFSET('1EPond'!$E$10,12*$A68,4*(PlotControl!$C$6-1),12,1)),AVERAGE(OFFSET('1EPond'!$E$10,12*$A68,4*(PlotControl!$C$6-1),12,1))) -> 22099 | X68: 45.25 | Y68: =IF($X68<=7,OFFSET('2EPond'!$C$10,12*$X68,4*(PlotControl!$C$6-1),1,1),OFFSET('1EPond'!$C$10,12*$X68,4*(PlotControl!$C$6-1),1,1)) -> 14798 | Z68: =IF(X68<=7,OFFSET('2EPond'!$D$10,12*$X68,4*(PlotControl!$C$6-1),1,1),OFFSET('1EPond'!$D$10,12*$X68,4*(PlotControl!$C$6-1),1,1)) -> 15565 | AA68: =IF(X68<=7,OFFSET('2EPond'!$E$10,12*$X68,4*(PlotControl!$C$6-1),1,1),OFFSET('1EPond'!$E$10,12*$X68,4*(PlotControl!$C$6-1),1,1)) -> 16392
